Workbook

Sheet Introduction
C2: Outil d’évaluation du besoin de soutien public des ENR électriques - Guide de démarrage rapide
C4: Notes importantes
C6: 1. Les macros doivent être approuvées pour l'utilisation de l'outil.
C7: 2. L'outil a été conçu avec des virgules comme séparateur de décimales. S'il ne s'agit pas de la configuration par défaut de l'utilisateur, il est possible de le modifier via le chemin suivant: Fichier/Options/Options avancées/Utiliser les séparateurs systèmes
C10: GUIDE UTILISATEUR
C12: Cet outil Excel a pour objectif de présenter l'évolution du besoin de soutien public suivant le déploiement des énergies renouvelables électriques en France. Il présente trois scénarios: - Un scénario respectant les objectifs de la PPE jusqu’à 2028 et prolongé jusqu’à 2040 à partir du scénario « Ampère » du BP RTE. - Le scénario de référence de l’étude ADEME Trajectoires d’évolution du mix électrique 2020-2060 - Le scénario « Prolongement nucléaire aisé » de l’étude ADEME Trajectoires d’évolution du mix électrique 2020-2060 L'outil se présente sous deux modes, un mode par défaut avec des fonctionnalités limitées, et un mode dit "expert" permettant de faire varier davantage de paramètres, définir son propre scénario d'évolution des EnRe et d'accèder au détail des calculs.Toutes les cellules modifiables de l'outil sont en couleur bleu cyan, le reste est en lecture seule. Les variations de % proposées s'appliquent sur la pente de trajectoires tendancielles explicitées dans un document complémentaire. Pour commencer, appuyer sur le bouton "Démarrer" qui vous redirigera vers l'onglet principal du mode par défaut. Mode par défaut: Au sein de ce mode, il vous sera possible de visualiser les hypothèses et résultats des trois scénarios présentés plus haut. Pour sélectionner le scénario voulu, il est possible de le faire via le menu déroulant de la cellule E3. Il sera par ailleurs possible de faire évoluer la trajectoire de coût des technologies (variation en % sur la pente) afin d'évaluer la sensibilité des soutiens publics nécessaires suivant ces hypothèses. Par défaut les valeurs présentées sont dites en prix courants (tenant compte de l'inflation), il est possible de passer en prix constants via le menu déroulant de la cellule F3. Un bouton "Réinitialiser" permet de réinitialiser les valeurs modifiables de l'onglet à 0. Mode expert: Pour passer au mode expert, il suffit d'appuyer sur le bouton "Mode expert" dans l'onglet "Start". Au sein de ce mode, plus de liberté est laissé à l'utilisateur. Comme présenté plus haut, un onglet "Scénario à définir" permet de définir son propre scénario sur la base des trois scénario existants. Il est aussi possible d'appliquer de plus simples variations sur quelques paramètres (capacités installées, coûts, prix de marché...) via la colonne D et J. Par défaut les valeurs présentées sont dites en prix courants (tenant compte de l'inflation), il est possible de passer en prix constants via le menu déroulant de la cellule F3. Les cellules de couleur bleu cyan peuvent être modifiées en sélectionnant une valeur proposée dans le menu déroulant. Un bouton "Réinitialiser" permet de réinitialiser les valeurs modifiables de l'onglet à 0.
C16: DESCRIPTION DES ONGLETS
C18: ONGLETS COMMUNS A TOUS LES MODES
C20: Données de production | E20: Présente l'historique et les projections par scénario des capacités installées et de production
C22: Données de prix | E22: Présente l'historique et les projections de l'inflation, des prix de marché, du CO2 et des revenus de marché par technologie
C24: Données de coûts | E24: Présente les hypothèses utilisées dans le calcul des coûts des technologies (CAPEX/OPEX, taux d'actualisation/financement, durée de vie, facteur de charge) ou les prix d'attribution des projets selon la technologie
C27: MODE PAR DEFAUT
C29: Start | E29: Onglet principal du mode par défaut présentant les hypothèses et résultats par scénario
C31: MODE EXPERT
C33: Start - expert | E33: Onglet principal du mode expert présentant les hypothèses et résultats par scénario
C35: Scénario à définir | E35: Onglet libre permettant à l'utilisateur de définir son propre scénario
C37: Calcul LCOE | E37: Détail du calcul des LCOE par technologie, sur la base de l'onglet "Données de coûts"
C39: Calcul de variation des prix | E39: Détail du calcul de passage de prix courant à prix constant
C41: Scénarios choisis | E41: Détail du calcul des compléments de rémunération
C45: LEXIQUE
C47: PPE - AMPERE | E47: Scénario prenant en compte les éléments de la PPE jusqu'à 2028 et prolongé grâce au scénario "Ampère" du Bilan Prévisionnel RTE 2017
C48: Référence ADEME | E48: Scénario de référence de l’étude ADEME Trajectoires d’évolution du mix électrique 2020-2060
C49: Prolongement nucléaire aisé ADEME | E49: Scénario « Prolongement nucléaire aisé » de l’étude ADEME Trajectoires d’évolution du mix électrique 2020-2060
C50: LCOE nucléaire | E50: Le LCOE associé au nucléaire correspond à celui des EPR comme considéré dans l’étude ADEME Trajectoires d’évolution du mix électrique 2020-2060
C53: LICENCE
C55: Produit de | D55: Agora Energiewende
D56: Anna-Louisa-Karsch-Str. 2
D57: 10178 Berlin
D58: Allemagne
D59: www.agora-energiewende.de/fr
C61: Auteure | D61: Murielle Gagnebin (Agora Energiewende)
C62: En coopération avec | D62: Nicolas Berghmans (Institut du développement durable et des relations internationales, Iddri)
C63: Avec le soutien de | D63: Igor Arduin (Artelys)
C65: Dernière actualisation : | D65: 05/12/2019
C66: Version : | D66: 01.2
C68: Contact : | D68: info@agora-energiewende.de
C71: © Agora Energiewende, Smart Energy for Europe Platform (SEFEP) gGmbH. Tous droits réservés.
C72: L'utilisation du modèle, des données et des résultats sous réserve de mention de l'auteure et de Agora Energiewende.
C74: Citation : Agora Energiewende (2019) : Outil d’évaluation du besoin de soutien public des ENR électriques

Sheet Start
C3: Sélectionnez le scénario | D3: PPE - AMPERE | E3: Prix | F3: CONSTANT
B5: HYPOTHESES | P5: RESULTATS
D7: Capacité installée de production d'électricité (GW) | G7: Production d'électricité (TWh) | I7: Variation prix d'attribution des projets (€2017/MWh)
C8: Technologie | D8: 2017 | E8: 2040 | F8: Croissance annuelle moyenne | G8: 2017 | H8: 2040 | I8: Evolution trajectoire | J8: 2017 | K8: 2040
C9: ='Données de production'!C5 -> Nucléaire | D9: ='Scénarios choisis - défaut'!E5 -> 63.13 | E9: ='Scénarios choisis - défaut'!N5 -> 40.71428571 | F9: =(E9-D9)/($E$8-$D$8) -> -0.9745962733 | G9: ='Scénarios choisis - défaut'!E16 -> 379.1 | H9: ='Scénarios choisis - défaut'!N16 -> 234.7285714 | J9: ='Scénarios choisis - défaut'!E28 -> 0 | K9: ='Scénarios choisis - défaut'!J28 -> 85
C10: ='Données de production'!C6 -> Eolien terrestre | D10: ='Scénarios choisis - défaut'!E6 -> 13.55 | E10: ='Scénarios choisis - défaut'!N6 -> 64.76428571 | F10: =(E10-D10)/($E$8-$D$8) -> 2.226708075 | G10: ='Scénarios choisis - défaut'!E17 -> 24 | H10: ='Scénarios choisis - défaut'!N17 -> 138.6 | I10: Trajectoire de référence | J10: ='Scénarios choisis - défaut'!E29 -> 65.4 | K10: ='Scénarios choisis - défaut'!J29 -> 43.06298734
C11: ='Données de production'!C7 -> Eolien en mer | D11: ='Scénarios choisis - défaut'!E7 -> 0 | E11: ='Scénarios choisis - défaut'!N7 -> 22.17857143 | F11: 0.9642857143 | G11: ='Scénarios choisis - défaut'!E18 -> 0 | H11: ='Scénarios choisis - défaut'!N18 -> 73.78571429 | I11: Trajectoire de référence | J11: ='Scénarios choisis - défaut'!E30 -> 140 | K11: ='Scénarios choisis - défaut'!J30 -> 45
C12: ='Données de production'!C8 -> PV au sol | D12: ='Scénarios choisis - défaut'!E8 -> 4.178612325 | E12: ='Scénarios choisis - défaut'!N8 -> 33.08298396 | F12: 1.25671181 | G12: ='Scénarios choisis - défaut'!E19 -> 5.022633053 | H12: ='Scénarios choisis - défaut'!N19 -> 39.6221877 | I12: Trajectoire de référence | J12: ='Scénarios choisis - défaut'!E31 -> 63.9 | K12: ='Scénarios choisis - défaut'!J31 -> 37.55529781
C13: ='Données de production'!C9 -> PV sur toiture | D13: ='Scénarios choisis - défaut'!E9 -> 3.475387675 | E13: ='Scénarios choisis - défaut'!N9 -> 21.45273033 | F13: 0.7816235935 | G13: ='Scénarios choisis - défaut'!E20 -> 4.177366947 | H13: ='Scénarios choisis - défaut'!N20 -> 25.69209802 | I13: Trajectoire de référence | J13: ='Scénarios choisis - défaut'!E32 -> 85 | K13: ='Scénarios choisis - défaut'!J32 -> 48.58192944
C14: ='Données de production'!C10 -> Autres EnRe | D14: ='Scénarios choisis - défaut'!E10 -> 1.9528 | E14: ='Scénarios choisis - défaut'!N10 -> 6.172142857 | F14: 0.1834496894 | G14: ='Scénarios choisis - défaut'!E21 -> 9.5 | H14: ='Scénarios choisis - défaut'!N21 -> 24.07142857
C15: ='Données de production'!C11 -> Hydraulique | D15: ='Scénarios choisis - défaut'!E11 -> 25.5211 | E15: ='Scénarios choisis - défaut'!N11 -> 25.5 | F15: -0.0009173913043 | G15: ='Scénarios choisis - défaut'!E22 -> 53.5 | H15: ='Scénarios choisis - défaut'!N22 -> 71.94285714
C16: ='Données de production'!C12 -> Fossile | D16: ='Scénarios choisis - défaut'!E12 -> 19.0277 | E16: ='Scénarios choisis - défaut'!N12 -> 12.5 | F16: -0.2838130435 | G16: ='Scénarios choisis - défaut'!E23 -> 53.9 | H16: ='Scénarios choisis - défaut'!N23 -> 22.74285714
D18: 2017 | E18: 2040
C19: Prix de marché moyen (€/MWh) | D19: ='Scénarios choisis - défaut'!E52 -> 50.49797673 | E19: ='Scénarios choisis - défaut'!J52 -> 71.72167869
C20: Prix du CO2 (€/tCO2) | D20: ='Scénarios choisis - défaut'!E53 -> 8.15 | E20: ='Scénarios choisis - défaut'!J53 -> 124.35
D22: Revenus de marché (€2017/MWh)
C23: Technologie | D23: 2017 | E23: 2040
C24: ='Calcul de variation des prix'!C37 -> Nucléaire | D24: ='Scénarios choisis - défaut'!E36 -> 47.90213593 | E24: ='Scénarios choisis - défaut'!J36 -> 66.77752796
C25: ='Calcul de variation des prix'!C38 -> Eolien terrestre | D25: ='Scénarios choisis - défaut'!E37 -> 48.22849058 | E25: ='Scénarios choisis - défaut'!J37 -> 50.25268824
C26: ='Calcul de variation des prix'!C39 -> Eolien en mer | D26: ='Scénarios choisis - défaut'!E38 -> 0 | E26: ='Scénarios choisis - défaut'!J38 -> 54.946779
C27: ='Calcul de variation des prix'!C40 -> PV au sol | D27: ='Scénarios choisis - défaut'!E39 -> 43.13735911 | E27: ='Scénarios choisis - défaut'!J39 -> 51.32651311
C28: ='Calcul de variation des prix'!C41 -> PV sur toiture | D28: ='Scénarios choisis - défaut'!E40 -> 43.13735911 | E28: ='Scénarios choisis - défaut'!J40 -> 51.32651311

Sheet Start - expert (hidden)
C3: Sélectionnez le scénario | D3: PPE - AMPERE | E3: Prix | F3: CONSTANT
B5: !! La variation des paramètres dans les cellules bleues dans le mode expert n’assure plus la cohérence interne entre les valeurs du scénario (capacité, production, prix, etc.) !! Il permet d’évaluer - en première estimation - des tendances d’évolution autour des trajectoires de référence. Vous pouvez importer des scénarios cohérents complémentaires dans l'onglet "scénario à définir".
B7: HYPOTHESES | P7: RESULTATS
D9: Capacité installée de production d'électricité (GW) | H9: Production d'électricité (TWh) | J9: Variation prix d'attribution des projets (€2017/MWh)
C10: Technologie | D10: Evolution / scénario (%) | E10: 2017 | F10: 2040 | G10: Croissance annuelle moyenne | H10: 2017 | I10: 2040 | J10: Evolution trajectoire | K10: 2017 | L10: 2040
C11: ='Données de production'!C5 -> Nucléaire | D11: 0 | E11: ='Scénarios choisis'!E5 -> 63.13 | F11: ='Scénarios choisis'!N5 -> 40.71428571 | G11: =(F11-E11)/($F$10-$E$10) -> -0.9745962733 | H11: ='Scénarios choisis'!E16 -> 379.1 | I11: ='Scénarios choisis'!N16 -> 234.7285714 | K11: ='Scénarios choisis'!E28 -> 0 | L11: ='Scénarios choisis'!J28 -> 85
C12: ='Données de production'!C6 -> Eolien terrestre | D12: 0 | E12: ='Scénarios choisis'!E6 -> 13.55 | F12: ='Scénarios choisis'!N6 -> 64.76428571 | G12: =(F12-E12)/($F$10-$E$10) -> 2.226708075 | H12: ='Scénarios choisis'!E17 -> 24 | I12: ='Scénarios choisis'!N17 -> 138.6 | J12: Trajectoire de référence | K12: ='Scénarios choisis'!E29 -> 65.4 | L12: ='Scénarios choisis'!J29 -> 43.06298734
C13: ='Données de production'!C7 -> Eolien en mer | D13: 0 | E13: ='Scénarios choisis'!E7 -> 0 | F13: ='Scénarios choisis'!N7 -> 22.17857143 | G13: 0.9642857143 | H13: ='Scénarios choisis'!E18 -> 0 | I13: ='Scénarios choisis'!N18 -> 73.78571429 | J13: Trajectoire de référence | K13: ='Scénarios choisis'!E30 -> 140 | L13: ='Scénarios choisis'!J30 -> 45
C14: ='Données de production'!C8 -> PV au sol | D14: 0 | E14: ='Scénarios choisis'!E8 -> 4.178612325 | F14: ='Scénarios choisis'!N8 -> 33.08298396 | G14: 1.25671181 | H14: ='Scénarios choisis'!E19 -> 5.022633053 | I14: ='Scénarios choisis'!N19 -> 39.6221877 | J14: Trajectoire de référence | K14: ='Scénarios choisis'!E31 -> 63.9 | L14: ='Scénarios choisis'!J31 -> 37.55529781
C15: ='Données de production'!C9 -> PV sur toiture | D15: 0 | E15: ='Scénarios choisis'!E9 -> 3.475387675 | F15: ='Scénarios choisis'!N9 -> 21.45273033 | G15: 0.7816235935 | H15: ='Scénarios choisis'!E20 -> 4.177366947 | I15: ='Scénarios choisis'!N20 -> 25.69209802 | J15: Trajectoire de référence | K15: ='Scénarios choisis'!E32 -> 85 | L15: ='Scénarios choisis'!J32 -> 48.58192944
C16: ='Données de production'!C10 -> Autres EnRe | D16: 0 | E16: ='Scénarios choisis'!E10 -> 1.9528 | F16: ='Scénarios choisis'!N10 -> 6.172142857 | G16: 0.1834496894 | H16: ='Scénarios choisis'!E21 -> 9.5 | I16: ='Scénarios choisis'!N21 -> 24.07142857
C17: ='Données de production'!C11 -> Hydraulique | D17: 0 | E17: ='Scénarios choisis'!E11 -> 25.5211 | F17: ='Scénarios choisis'!N11 -> 25.5 | G17: -0.0009173913043 | H17: ='Scénarios choisis'!E22 -> 53.5 | I17: ='Scénarios choisis'!N22 -> 71.94285714
C18: ='Données de production'!C12 -> Fossile | D18: 0 | E18: ='Scénarios choisis'!E12 -> 19.0277 | F18: ='Scénarios choisis'!N12 -> 12.5 | G18: -0.2838130435 | H18: ='Scénarios choisis'!E23 -> 53.9 | I18: ='Scénarios choisis'!N23 -> 22.74285714
D20: Evolution / scénario (%) | E20: 2017 | F20: 2040
C21: Prix de marché moyen (€/MWh) | D21: 0 | E21: ='Scénarios choisis'!E52 -> 50.49797673 | F21: ='Scénarios choisis'!J52 -> 71.72167869
C22: Prix du CO2 (€/tCO2) | E22: ='Scénarios choisis'!E53 -> 8.15 | F22: ='Scénarios choisis'!J53 -> 124.35 | R22: Evolution du besoin cumulé de compléments rémunération (Milliards €)
Q23: Technologie | R23: 2018 | S23: 2020 | T23: 2025 | U23: 2030 | V23: 2035 | W23: 2040
D24: Revenus de marché (€2017/MWh) | Q24: ='Scénarios choisis'!C194 -> Charges engagées avant 2018 | R24: ='Scénarios choisis'!F194 -> 3.813501302 | S24: ='Scénarios choisis'!H194 -> 4.177116619 | T24: ='Scénarios choisis'!M194 -> 3.694912407 | U24: ='Scénarios choisis'!R194 -> 2.468598527 | V24: ='Scénarios choisis'!W194 -> 0.3758867195 | W24: ='Scénarios choisis'!AB194 -> 0
C25: Technologie | D25: Evolution / scénario (%) | E25: 2017 | F25: 2040 | Q25: ='Scénarios choisis'!C195 -> AO éolien en mer 2011 & 2013 renégociés | R25: ='Scénarios choisis'!F195 -> 0 | S25: ='Scénarios choisis'!H195 -> 0 | T25: ='Scénarios choisis'!M195 -> 0.6277537471 | U25: ='Scénarios choisis'!R195 -> 0.4751862177 | V25: ='Scénarios choisis'!W195 -> 0.4584332288 | W25: ='Scénarios choisis'!AB195 -> 0.2878977752
C26: ='Calcul de variation des prix'!C37 -> Nucléaire | D26: 0 | E26: ='Scénarios choisis'!E36 -> 47.90213593 | F26: =ROUND('Scénarios choisis'!J36,12) -> 66.77752796 | Q26: ='Scénarios choisis'!C196 -> Eolien terrestre | R26: ='Scénarios choisis'!F196+'Scénarios choisis'!F197 -> 0 | S26: ='Scénarios choisis'!H196+'Scénarios choisis'!H197 -> 0 | T26: ='Scénarios choisis'!M196+'Scénarios choisis'!M197 -> 0.4728117411 | U26: ='Scénarios choisis'!R196+'Scénarios choisis'!R197 -> 0.6588980709 | V26: ='Scénarios choisis'!W196+'Scénarios choisis'!W197 -> 0.6650882925 | W26: ='Scénarios choisis'!AB196+'Scénarios choisis'!AB197 -> 0.5254667228
C27: ='Calcul de variation des prix'!C38 -> Eolien terrestre | D27: 0 | E27: ='Scénarios choisis'!E37 -> 48.22849058 | F27: =ROUND('Scénarios choisis'!J37,12) -> 50.25268824 | Q27: ='Scénarios choisis'!C198 -> Eolien en mer | R27: ='Scénarios choisis'!F198+'Scénarios choisis'!F199 -> 0 | S27: ='Scénarios choisis'!H198+'Scénarios choisis'!H199 -> 0 | T27: ='Scénarios choisis'!M198+'Scénarios choisis'!M199 -> 8.874419726e-07 | U27: ='Scénarios choisis'!R198+'Scénarios choisis'!R199 -> 0.05959016401 | V27: ='Scénarios choisis'!W198+'Scénarios choisis'!W199 -> 0.0417081072 | W27: ='Scénarios choisis'!AB198+'Scénarios choisis'!AB199 -> -0.1741579539
C28: ='Calcul de variation des prix'!C39 -> Eolien en mer | D28: 0 | E28: ='Scénarios choisis'!E38 -> 0 | F28: =ROUND('Scénarios choisis'!J38,12) -> 54.946779 | Q28: ='Scénarios choisis'!C200 -> PV au sol | R28: ='Scénarios choisis'!F200+'Scénarios choisis'!F201 -> 0 | S28: ='Scénarios choisis'!H200+'Scénarios choisis'!H201 -> 0.03222022616 | T28: ='Scénarios choisis'!M200+'Scénarios choisis'!M201 -> 0.1903040464 | U28: ='Scénarios choisis'!R200+'Scénarios choisis'!R201 -> 0.1667568436 | V28: ='Scénarios choisis'!W200+'Scénarios choisis'!W201 -> 0.07289696913 | W28: ='Scénarios choisis'!AB200+'Scénarios choisis'!AB201 -> -0.08904728348
C29: ='Calcul de variation des prix'!C40 -> PV au sol | D29: 0 | E29: ='Scénarios choisis'!E39 -> 43.13735911 | F29: =ROUND('Scénarios choisis'!J39,12) -> 51.32651311 | Q29: ='Scénarios choisis'!C202 -> PV sur toiture | R29: ='Scénarios choisis'!F202+'Scénarios choisis'!F203 -> 0 | S29: ='Scénarios choisis'!H202+'Scénarios choisis'!H203 -> 0.0478387669 | T29: ='Scénarios choisis'!M202+'Scénarios choisis'!M203 -> 0.3365959708 | U29: ='Scénarios choisis'!R202+'Scénarios choisis'!R203 -> 0.4828921517 | V29: ='Scénarios choisis'!W202+'Scénarios choisis'!W203 -> 0.4611333727 | W29: ='Scénarios choisis'!AB202+'Scénarios choisis'!AB203 -> 0.3707030637
C30: ='Calcul de variation des prix'!C41 -> PV sur toiture | D30: 0 | E30: ='Scénarios choisis'!E40 -> 43.13735911 | F30: =ROUND('Scénarios choisis'!J40,12) -> 51.32651311
R44: Complément de rémunération nécessaire en fonction de l'année de mise en fonctionnement (€2017/MWh)
Q45: Technologie | R45: 2017 | S45: 2020 | T45: 2025 | U45: 2030 | V45: 2035 | W45: 2040
Q46: ='Calcul de variation des prix'!C37 -> Nucléaire | R46: =IF(ISNA('Données - Graphiques'!E66), 0,'Données - Graphiques'!E66) -> 0 | S46: =IF(ISNA('Données - Graphiques'!F66), 0,'Données - Graphiques'!F66) -> 0 | T46: =IF(ISNA('Données - Graphiques'!G66), 0,'Données - Graphiques'!G66) -> 0 | U46: =IF(ISNA('Données - Graphiques'!H66), 0,'Données - Graphiques'!H66) -> 26.42916423 | V46: =IF(ISNA('Données - Graphiques'!I66), 0,'Données - Graphiques'!I66) -> 22.32581814 | W46: =IF(ISNA('Données - Graphiques'!J66), 0,'Données - Graphiques'!J66) -> 18.22247204
Q47: ='Calcul de variation des prix'!C38 -> Eolien terrestre | R47: =IF(ISNA('Données - Graphiques'!E67), 0,'Données - Graphiques'!E67) -> 17.17150942 | S47: =IF(ISNA('Données - Graphiques'!F67), 0,'Données - Graphiques'!F67) -> 20.06166091 | T47: =IF(ISNA('Données - Graphiques'!G67), 0,'Données - Graphiques'!G67) -> 18.26908319 | U47: =IF(ISNA('Données - Graphiques'!H67), 0,'Données - Graphiques'!H67) -> 5.425700689 | V47: =IF(ISNA('Données - Graphiques'!I67), 0,'Données - Graphiques'!I67) -> -0.9477203031 | W47: =IF(ISNA('Données - Graphiques'!J67), 0,'Données - Graphiques'!J67) -> -7.189700896
Q48: ='Calcul de variation des prix'!C39 -> Eolien en mer | R48: =IF(ISNA('Données - Graphiques'!E68), 0,'Données - Graphiques'!E68) -> 0 | S48: =IF(ISNA('Données - Graphiques'!F68), 0,'Données - Graphiques'!F68) -> 0 | T48: =IF(ISNA('Données - Graphiques'!G68), 0,'Données - Graphiques'!G68) -> 10.8 | U48: =IF(ISNA('Données - Graphiques'!H68), 0,'Données - Graphiques'!H68) -> 2.842203499 | V48: =IF(ISNA('Données - Graphiques'!I68), 0,'Données - Graphiques'!I68) -> -2.052287753 | W48: =IF(ISNA('Données - Graphiques'!J68), 0,'Données - Graphiques'!J68) -> -9.946779004
Q49: ='Calcul de variation des prix'!C40 -> PV au sol | R49: =IF(ISNA('Données - Graphiques'!E69), 0,'Données - Graphiques'!E69) -> 20.76264089 | S49: =IF(ISNA('Données - Graphiques'!F69), 0,'Données - Graphiques'!F69) -> 17.86039541 | T49: =IF(ISNA('Données - Graphiques'!G69), 0,'Données - Graphiques'!G69) -> 8.577533233 | U49: =IF(ISNA('Données - Graphiques'!H69), 0,'Données - Graphiques'!H69) -> 0.2481858689 | V49: =IF(ISNA('Données - Graphiques'!I69), 0,'Données - Graphiques'!I69) -> -6.246433341 | W49: =IF(ISNA('Données - Graphiques'!J69), 0,'Données - Graphiques'!J69) -> -13.7712153
Q50: ='Calcul de variation des prix'!C41 -> PV sur toiture | R50: =IF(ISNA('Données - Graphiques'!E70), 0,'Données - Graphiques'!E70) -> 41.86264089 | S50: =IF(ISNA('Données - Graphiques'!F70), 0,'Données - Graphiques'!F70) -> 40.80417205 | T50: =IF(ISNA('Données - Graphiques'!G70), 0,'Données - Graphiques'!G70) -> 34.59427094 | U50: =IF(ISNA('Données - Graphiques'!H70), 0,'Données - Graphiques'!H70) -> 20.14003776 | V50: =IF(ISNA('Données - Graphiques'!I70), 0,'Données - Graphiques'!I70) -> 7.013752023 | W50: =IF(ISNA('Données - Graphiques'!J70), 0,'Données - Graphiques'!J70) -> -2.744583667
E59: Données historiques | F59: Scénario choisi (€2017/MWh)
C60: Prix d'attribution des projets | D60: Unité | E60: 2017 | F60: 2020 | G60: 2025 | H60: 2030 | I60: 2035 | J60: 2040
C61: ='Calcul de variation des prix'!C73 -> Nucléaire | D61: €/MWh | E61: ='Scénarios choisis'!E28 -> 0 | F61: ='Scénarios choisis'!F28 -> 0 | G61: ='Scénarios choisis'!G28 -> 0 | H61: ='Scénarios choisis'!H28 -> 85 | I61: ='Scénarios choisis'!I28 -> 85 | J61: ='Scénarios choisis'!J28 -> 85
C62: ='Calcul de variation des prix'!C74 -> Eolien terrestre | D62: €/MWh | E62: ='Scénarios choisis'!E29 -> 65.4 | F62: ='Scénarios choisis'!F29 -> 63.1759062 | G62: ='Scénarios choisis'!G29 -> 59.46908319 | H62: ='Scénarios choisis'!H29 -> 52.13448206 | I62: ='Scénarios choisis'!I29 -> 47.5330145 | J62: ='Scénarios choisis'!J29 -> 43.06298734
C63: ='Calcul de variation des prix'!C75 -> Eolien en mer | D63: €/MWh | E63: ='Scénarios choisis'!E30 -> 140 | F63: ='Scénarios choisis'!F30 -> 56 | G63: ='Scénarios choisis'!G30 -> 54 | H63: ='Scénarios choisis'!H30 -> 52 | I63: ='Scénarios choisis'!I30 -> 50 | J63: ='Scénarios choisis'!J30 -> 45
C64: ='Calcul de variation des prix'!C76 -> PV au sol | D64: €/MWh | E64: ='Scénarios choisis'!E31 -> 63.9 | F64: ='Scénarios choisis'!F31 -> 57.92907496 | G64: ='Scénarios choisis'!G31 -> 47.97753323 | H64: ='Scénarios choisis'!H31 -> 44.63593805 | I64: ='Scénarios choisis'!I31 -> 41.61069931 | J64: ='Scénarios choisis'!J31 -> 37.55529781
C65: ='Calcul de variation des prix'!C77 -> PV sur toiture | D65: €/MWh | E65: ='Scénarios choisis'!E32 -> 85 | F65: ='Scénarios choisis'!F32 -> 80.8728516 | G65: ='Scénarios choisis'!G32 -> 73.99427094 | H65: ='Scénarios choisis'!H32 -> 64.52778995 | I65: ='Scénarios choisis'!I32 -> 54.87088467 | J65: ='Scénarios choisis'!J32 -> 48.58192944
R66: Coûts totaux (CAPEX+OPEX) annualisés (Milliards €)
E67: Données historiques | F67: Scénario choisi (€2017/MWh) | Q67: Technologie | R67: 2018 | S67: 2020 | T67: 2025 | U67: 2030 | V67: 2035 | W67: 2040
C68: Variables | D68: Unité | E68: 2017 | F68: 2020 | G68: 2025 | H68: 2030 | I68: 2035 | J68: 2040 | Q68: ='Scénarios choisis'!C306 -> Charges engagées avant 2018 | R68: ='Scénarios choisis'!F306 -> 5.978627886 | S68: ='Scénarios choisis'!H306 -> 6.394211078 | T68: ='Scénarios choisis'!M306 -> 5.748792253 | U68: ='Scénarios choisis'!R306 -> 4.229841674 | V68: ='Scénarios choisis'!W306 -> 0.6626113693 | W68: ='Scénarios choisis'!AB306 -> 0
C69: Prix de marché moyen | D69: €/MWh | E69: ='Scénarios choisis'!E52 -> 50.49797673 | F69: ='Scénarios choisis'!F52 -> 47.24898836 | G69: ='Scénarios choisis'!G52 -> 48.8 | H69: ='Scénarios choisis'!H52 -> 58.62027978 | I69: ='Scénarios choisis'!I52 -> 65.17097924 | J69: ='Scénarios choisis'!J52 -> 71.72167869 | Q69: ='Scénarios choisis'!C307 -> AO éolien en mer 2011 & 2013 renégociés | R69: ='Scénarios choisis'!F307 -> 0 | S69: ='Scénarios choisis'!H307 -> 0 | T69: ='Scénarios choisis'!M307 -> 0.976385326 | U69: ='Scénarios choisis'!R307 -> 0.8198359181 | V69: ='Scénarios choisis'!W307 -> 0.9265533178 | W69: ='Scénarios choisis'!AB307 -> 0.7631419993
C70: Prix du CO2 | D70: €/tCO2 | E70: ='Scénarios choisis'!E53 -> 8.15 | F70: ='Scénarios choisis'!F53 -> 17.76 | G70: ='Scénarios choisis'!G53 -> 53.29 | H70: ='Scénarios choisis'!H53 -> 88.82 | I70: ='Scénarios choisis'!I53 -> 106.58 | J70: ='Scénarios choisis'!J53 -> 124.35 | Q70: ='Scénarios choisis'!C308 -> Eolien terrestre | R70: ='Scénarios choisis'!F308 -> 0 | S70: ='Scénarios choisis'!H308 -> 0 | T70: ='Scénarios choisis'!M308 -> 1.358033594 | U70: ='Scénarios choisis'!R308 -> 2.805916579 | V70: ='Scénarios choisis'!W308 -> 4.136193033 | W70: ='Scénarios choisis'!AB308 -> 5.30800307
Q71: ='Scénarios choisis'!C309 -> Eolien en mer | R71: ='Scénarios choisis'!F309 -> 0 | S71: ='Scénarios choisis'!H309 -> 0 | T71: ='Scénarios choisis'!M309 -> 0.04880930849 | U71: ='Scénarios choisis'!R309 -> 0.7229574723 | V71: ='Scénarios choisis'!W309 -> 2.064112994 | W71: ='Scénarios choisis'!AB309 -> 3.404844168
E72: Données historiques | F72: Scénario choisi (€2017/MWh) | Q72: ='Scénarios choisis'!C310 -> PV au sol | R72: ='Scénarios choisis'!F310 -> 0 | S72: ='Scénarios choisis'!H310 -> 0.09133021207 | T72: ='Scénarios choisis'!M310 -> 0.634007952 | U72: ='Scénarios choisis'!R310 -> 1.116813141 | V72: ='Scénarios choisis'!W310 -> 1.342524543 | W72: ='Scénarios choisis'!AB310 -> 1.45965204
C73: Revenus de marché | D73: Unité | E73: 2017 | F73: 2020 | G73: 2025 | H73: 2030 | I73: 2035 | J73: 2040 | Q73: ='Scénarios choisis'!C311 -> PV sur toiture | R73: ='Scénarios choisis'!F311 -> 0 | S73: ='Scénarios choisis'!H311 -> 0.09184771251 | T73: ='Scénarios choisis'!M311 -> 0.6652345338 | U73: ='Scénarios choisis'!R311 -> 1.154881704 | V73: ='Scénarios choisis'!W311 -> 1.285804706 | W73: ='Scénarios choisis'!AB311 -> 1.305961763
C74: ='Calcul de variation des prix'!C73 -> Nucléaire | D74: €/MWh | E74: ='Scénarios choisis'!E36 -> 47.90213593 | F74: =ROUND('Scénarios choisis'!F36,12) -> 50.36414359 | G74: =ROUND('Scénarios choisis'!G36,12) -> 54.46748968 | H74: =ROUND('Scénarios choisis'!H36,12) -> 58.57083577 | I74: =ROUND('Scénarios choisis'!I36,12) -> 62.67418186 | J74: =ROUND('Scénarios choisis'!J36,12) -> 66.77752796
C75: ='Calcul de variation des prix'!C74 -> Eolien terrestre | D75: €/MWh | E75: ='Scénarios choisis'!E37 -> 48.22849058 | F75: =ROUND('Scénarios choisis'!F37,12) -> 43.11424529 | G75: =ROUND('Scénarios choisis'!G37,12) -> 41.2 | H75: =ROUND('Scénarios choisis'!H37,12) -> 46.70878137 | I75: =ROUND('Scénarios choisis'!I37,12) -> 48.48073481 | J75: =ROUND('Scénarios choisis'!J37,12) -> 50.25268824
C76: ='Calcul de variation des prix'!C75 -> Eolien en mer | D76: €/MWh | E76: ='Scénarios choisis'!E38 -> 0 | F76: =ROUND('Scénarios choisis'!F38,12) -> 0 | G76: =ROUND('Scénarios choisis'!G38,12) -> 43.2 | H76: =ROUND('Scénarios choisis'!H38,12) -> 49.1577965 | I76: =ROUND('Scénarios choisis'!I38,12) -> 52.05228775 | J76: =ROUND('Scénarios choisis'!J38,12) -> 54.946779
C77: ='Calcul de variation des prix'!C76 -> PV au sol | D77: €/MWh | E77: ='Scénarios choisis'!E39 -> 43.13735911 | F77: =ROUND('Scénarios choisis'!F39,12) -> 40.06867956 | G77: =ROUND('Scénarios choisis'!G39,12) -> 39.4 | H77: =ROUND('Scénarios choisis'!H39,12) -> 44.38775219 | I77: =ROUND('Scénarios choisis'!I39,12) -> 47.85713265 | J77: =ROUND('Scénarios choisis'!J39,12) -> 51.32651311
C78: ='Calcul de variation des prix'!C77 -> PV sur toiture | D78: €/MWh | E78: ='Scénarios choisis'!E40 -> 43.13735911 | F78: =ROUND('Scénarios choisis'!F40,12) -> 40.06867956 | G78: =ROUND('Scénarios choisis'!G40,12) -> 39.4 | H78: =ROUND('Scénarios choisis'!H40,12) -> 44.38775219 | I78: =ROUND('Scénarios choisis'!I40,12) -> 47.85713265 | J78: =ROUND('Scénarios choisis'!J40,12) -> 51.32651311

Sheet Données de production
E3: Données historiques
C4: Capacité installée de production d'électricité | D4: Unité | E4: 2000 | F4: 2001 | G4: 2002 | H4: 2003 | I4: 2004 | J4: 2005 | K4: 2006 | L4: 2007 | M4: 2008 | N4: 2009 | O4: 2010 | P4: 2011 | Q4: 2012 | R4: 2013 | S4: 2014 | T4: 2015 | U4: 2016 | V4: 2017 | W4: 2018 | X4: 2019 | Y4: 2020 | Z4: 2021 | AA4: 2022
C5: Nucléaire | D5: GW | E5: 63.13 | F5: 63.13 | G5: 63.13 | H5: 63.13 | I5: 63.13 | J5: 63.13 | K5: 63.13 | L5: 63.13 | M5: 63.13 | N5: 63.13 | O5: 63.13 | P5: 63.13 | Q5: 63.13 | R5: 63.13 | S5: 63.13 | T5: 63.13 | U5: 63.1 | V5: 63.13
C6: Eolien terrestre | D6: GW | E6: 0 | F6: 0.094 | G6: 0.129 | H6: 0.219 | I6: 0.393 | J6: 0.752 | K6: 1.502 | L6: 2.25 | M6: 3.327 | N6: 4.573 | O6: 5.762 | P6: 6.714 | Q6: 7.536 | R6: 8.157 | S6: 9.313 | T6: 10.324 | U6: 11.761 | V6: 13.55
C7: Eolien en mer | D7: GW | E7: 0 | F7: 0 | G7: 0 | H7: 0 | I7: 0 | J7: 0 | K7: 0 | L7: 0 | M7: 0 | N7: 0 | O7: 0 | P7: 0 | Q7: 0 | R7: 0 | S7: 0 | T7: 0 | U7: 0 | V7: 0
C8: PV au sol | D8: GW | E8: 0 | F8: 0 | G8: 0 | H8: 0 | I8: 0 | J8: 0 | K8: 0.00206930174 | L8: 0.003639732981 | M8: 0.03187849469 | N8: 0.09979459165 | O8: 0.4634708365 | P8: 1.370831461 | Q8: 1.987027504 | R8: 2.339217095 | S8: 2.851993733 | T8: 3.35236568 | U8: 3.676771429 | V8: 4.178612325
C9: PV sur toiture | D9: GW | E9: 0 | F9: 0 | G9: 0 | H9: 0 | I9: 0 | J9: 0 | K9: 0.00193069826 | L9: 0.003360267019 | M9: 0.02912150531 | N9: 0.09020540835 | O9: 0.4145291635 | P9: 1.213168539 | Q9: 1.739972496 | R9: 2.026782905 | S9: 2.445006267 | T9: 2.84363432 | U9: 3.096228571 | V9: 3.475387675
C10: Autres EnRe | D10: GW | H10: 0.667 | I10: 0.772 | J10: 0.927 | K10: 1.041 | L10: 0.953 | M10: 0.9863 | N10: 1.029 | O10: 1.2239 | P10: 1.237 | Q10: 1.3459 | R10: 1.4961 | S10: 1.5981 | T10: 1.7029 | U10: 1.9182 | V10: 1.9528
C11: Hydraulique | D11: GW | L11: 25.413 | M11: 25.36 | N11: 25.3569 | O11: 25.392 | P11: 25.3939 | Q11: 25.407 | R11: 25.434 | S11: 25.4153 | T11: 25.4302 | U11: 25.4698 | V11: 25.5211
C12: Fossile | D12: GW | O12: 27.399 | P12: 27.813 | Q12: 27.8265 | R12: 25.707 | S12: 23.751 | T12: 22.3349 | U12: 21.8032 | V12: 19.0277
E14: PPE - AMPERE | N14: Référence ADEME | W14: Prolongement nucléaire aisé ADEME
C15: Capacité installée de production d'électricité | D15: Unité | E15: 2018 | F15: 2019 | G15: 2020 | H15: 2021 | I15: 2022 | J15: 2025 | K15: 2030 | L15: 2035 | M15: 2040 | N15: 2018 | O15: 2019 | P15: 2020 | Q15: 2021 | R15: 2022 | S15: 2025 | T15: 2030 | U15: 2035 | V15: 2040 | W15: 2018 | X15: 2019 | Y15: 2020 | Z15: 2021 | AA15: 2022 | AB15: 2025 | AC15: 2030 | AD15: 2035 | AE15: 2040
C16: =+C5 -> Nucléaire | D16: GW | E16: 63.10833333 | F16: 63.08666667 | G16: 63.065 | H16: 63.04333333 | I16: 63.02166667 | J16: 63 | K16: 56.28571429 | L16: 48.5 | M16: 40.71428571 | N16: 63.09333333 | O16: 63.05666667 | P16: 63.02 | Q16: 61.5896 | R16: 60.1592 | S16: 55.868 | T16: 48.74 | U16: 41.3876 | V16: 36.398 | W16: 63.09333333 | X16: 63.05666667 | Y16: 63.02 | Z16: 61.8490154 | AA16: 60.6780308 | AB16: 57.165077 | AC16: 57.165077 | AD16: 57.16157884 | AE16: 57.16157884
C17: =+C6 -> Eolien terrestre | D17: GW | E17: 15.575 | F17: 17.6 | G17: 19.625 | H17: 21.65 | I17: 23.675 | J17: 29.36 | K17: 39.83571429 | L17: 52.3 | M17: 64.76428571 | N17: 14.94766667 | O17: 16.34533333 | P17: 17.743 | Q17: 19.5687 | R17: 21.3944 | S17: 26.8715 | T17: 36 | U17: 46 | V17: 56 | W17: 14.94766667 | X17: 16.34533333 | Y17: 17.743 | Z17: 19.5687 | AA17: 21.3944 | AB17: 26.8715 | AC17: 36 | AD17: 36 | AE17: 46
C18: =C7 -> Eolien en mer | D18: GW | E18: 0 | F18: 0 | G18: 0 | H18: 0.8 | I18: 1.6 | J18: 3.42 | K18: 7.821428571 | L18: 15 | M18: 22.17857143 | N18: 0 | O18: 0 | P18: 0 | Q18: 0.6 | R18: 1.2 | S18: 3 | T18: 6 | U18: 6 | V18: 6 | W18: 0 | X18: 0 | Y18: 0 | Z18: 0.6 | AA18: 1.2 | AB18: 3 | AC18: 6 | AD18: 6 | AE18: 6
C19: =C8 -> PV au sol | D19: GW | E19: 5.415510271 | F19: 6.652408217 | G19: 7.889306162 | H19: 9.126204108 | I19: 10.36310205 | J19: 16.08 | K19: 24.51383066 | L19: 28.79840731 | M19: 33.08298396 | N19: 5.375963772 | O19: 6.573315219 | P19: 7.770666667 | Q19: 8.60779013 | R19: 9.444913594 | S19: 11.95628399 | T19: 14.001 | U19: 14.6 | V19: 27.0378759 | W19: 5.375963772 | X19: 6.573315219 | Y19: 7.770666667 | Z19: 8.126933333 | AA19: 8.4832 | AB19: 9.552 | AC19: 14 | AD19: 14 | AE19: 14
C20: =C9 -> PV sur toiture | D20: GW | E20: 4.396156396 | F20: 5.316925117 | G20: 6.237693838 | H20: 7.158462558 | I20: 8.079231279 | J20: 12.3 | K20: 17.95045505 | L20: 19.70159269 | M20: 21.45273033 | N20: 3.612036228 | O20: 3.748684781 | P20: 3.885333333 | Q20: 5.563466667 | R20: 7.2416 | S20: 12.276 | T20: 17.999 | U20: 19.332 | V20: 20.66566667 | W20: 3.612036228 | X20: 3.748684781 | Y20: 3.885333333 | Z20: 5.563466667 | AA20: 7.2416 | AB20: 12.276 | AC20: 17.999 | AD20: 19.332 | AE20: 20.66566667
C21: =+C10 -> Autres EnRe | D21: GW | E21: 1.809666667 | F21: 1.666533333 | G21: 1.5234 | H21: 1.380266667 | I21: 1.237133333 | J21: 1.136 | K21: 2.027857143 | L21: 4.1 | M21: 6.172142857 | N21: 2.140533333 | O21: 2.328266667 | P21: 2.516 | Q21: 2.543 | R21: 2.57 | S21: 2.651 | T21: 4.375 | U21: 7.4100355 | V21: 8.363071 | W21: 2.140533333 | X21: 2.328266667 | Y21: 2.516 | Z21: 2.51786 | AA21: 2.51972 | AB21: 2.5253 | AC21: 4.2493 | AD21: 5.62255 | AE21: 6.9958
C22: =+C11 -> Hydraulique | D22: GW | E22: 25.51758333 | F22: 25.51406667 | G22: 25.51055 | H22: 25.50703333 | I22: 25.50351667 | J22: 25.5 | K22: 25.5 | L22: 25.5 | M22: 25.5 | N22: 26.2454 | O22: 26.9697 | P22: 27.694 | Q22: 27.69448857 | R22: 27.69497714 | S22: 27.69644286 | T22: 29.011 | U22: 29.011 | V22: 29.011 | W22: 26.2454 | X22: 26.9697 | Y22: 27.694 | Z22: 27.71748816 | AA22: 27.74097633 | AB22: 27.81144082 | AC22: 29.011 | AD22: 29.011 | AE22: 29.011
C23: =+C12 -> Fossile | D23: GW | E23: 17.93975 | F23: 16.8518 | G23: 15.76385 | H23: 14.6759 | I23: 13.58795 | J23: 12.5 | K23: 12.5 | L23: 12.5 | M23: 12.5 | N23: 18.4058 | O23: 17.7839 | P23: 17.162 | Q23: 16.4290858 | R23: 15.6961716 | S23: 13.497429 | T23: 13.139535 | U23: 11.351622 | V23: 8.694283723 | W23: 18.4058 | X23: 17.7839 | Y23: 17.162 | Z23: 16.4290858 | AA23: 15.6961716 | AB23: 13.497429 | AC23: 13.139535 | AD23: 11.351622 | AE23: 8.166727
E25: Données historiques
C26: Production d'électricité | D26: Unité | E26: 2000 | F26: 2001 | G26: 2002 | H26: 2003 | I26: 2004 | J26: 2005 | K26: 2006 | L26: 2007 | M26: 2008 | N26: 2009 | O26: 2010 | P26: 2011 | Q26: 2012 | R26: 2013 | S26: 2014 | T26: 2015 | U26: 2016 | V26: 2017 | W26: 2018 | X26: 2019 | Y26: 2020 | Z26: 2021 | AA26: 2022
C27: =+C5 -> Nucléaire | D27: TWh | Q27: 405 | R27: 404 | S27: 415.9 | T27: 416.8 | U27: 384 | V27: 379.1
C28: Eolien terrestre | D28: TWh | E28: 0 | F28: 0 | G28: 0 | H28: 0.4 | I28: 0.6 | J28: 1 | K28: 2.3 | L28: 4 | M28: 5.6 | N28: 7.9 | O28: 9.7 | P28: 12.1 | Q28: 14.9 | R28: 15.9 | S28: 17.1 | T28: 21.1 | U28: 20.9 | V28: 24
C29: Eolien en mer | D29: TWh | E29: 0 | F29: 0 | G29: 0 | H29: 0 | I29: 0 | J29: 0 | K29: 0 | L29: 0 | M29: 0 | N29: 0 | O29: 0 | P29: 0 | Q29: 0 | R29: 0 | S29: 0 | T29: 0 | U29: 0 | V29: 0
C30: PV au sol | D30: TWh | E30: 0 | F30: 0 | G30: 0 | H30: 0 | I30: 0 | J30: 0 | K30: 0 | L30: 0 | M30: 0 | N30: 0.1050469386 | O30: 0.2639355561 | P30: 1.114065816 | Q30: 2.185890198 | R30: 2.518167739 | S30: 3.176659057 | T30: 4.003793743 | U30: 4.56 | V30: 5.022633053
C31: PV sur toiture | D31: TWh | E31: 0 | F31: 0 | G31: 0 | H31: 0 | I31: 0 | J31: 0 | K31: 0 | L31: 0 | M31: 0 | N31: 0.09495306142 | O31: 0.2360644439 | P31: 0.9859341839 | Q31: 1.914109802 | R31: 2.181832261 | S31: 2.723340943 | T31: 3.396206257 | U31: 3.84 | V31: 4.177366947
C32: Autres EnRe | D32: TWh | Q32: 5.8 | R32: 7.1 | S32: 7.5 | T32: 8 | U32: 8.7 | V32: 9.5
C33: Hydraulique | D33: TWh | L33: 63 | M33: 68 | N33: 62 | O33: 68 | P33: 50 | Q33: 63.8 | R33: 75.5 | S33: 68.1 | T33: 59.1 | U33: 64 | V33: 53.5
C34: Fossile | D34: TWh | Q34: 48.1 | R34: 43.6 | S34: 26 | T34: 34.3 | U34: 45.3 | V34: 53.9
E36: Données historiques
C37: Consommation d'électricité | D37: Unité | E37: 2000 | F37: 2001 | G37: 2002 | H37: 2003 | I37: 2004 | J37: 2005 | K37: 2006 | L37: 2007 | M37: 2008 | N37: 2009 | O37: 2010 | P37: 2011 | Q37: 2012 | R37: 2013 | S37: 2014 | T37: 2015 | U37: 2016 | V37: 2017 | W37: 2018 | X37: 2019 | Y37: 2020 | Z37: 2021 | AA37: 2022
C38: Consommation | D38: TWh | T38: 438.6 | U38: 442.5 | V38: 441.5
E40: =E14 -> PPE - AMPERE | N40: =N14 -> Référence ADEME | W40: =W14 -> Prolongement nucléaire aisé ADEME
C41: Production d'électricité | D41: Unité | E41: 2018 | F41: 2019 | G41: 2020 | H41: 2021 | I41: 2022 | J41: 2025 | K41: 2030 | L41: 2035 | M41: 2040 | N41: 2018 | O41: 2019 | P41: 2020 | Q41: 2021 | R41: 2022 | S41: 2025 | T41: 2030 | U41: 2035 | V41: 2040 | W41: 2018 | X41: 2019 | Y41: 2020 | Z41: 2021 | AA41: 2022 | AB41: 2025 | AC41: 2030 | AD41: 2035 | AE41: 2040
C42: =+C5 -> Nucléaire | D42: TWh | E42: 381.4166667 | F42: 383.7333333 | G42: 386.05 | H42: 388.3666667 | I42: 390.6833333 | J42: 386.4 | K42: 352.8714286 | L42: 293.8 | M42: 234.7285714 | N42: 393.3875168 | O42: 407.6750336 | P42: 421.9625503 | Q42: 410.2924834 | R42: 398.6224165 | S42: 363.6122158 | T42: 301.1900989 | U42: 252.3977515 | V42: 215.4591939 | W42: 393.3875168 | X42: 407.6750336 | Y42: 421.9625503 | Z42: 411.8974579 | AA42: 401.8323654 | AB42: 371.637088 | AC42: 345.9459259 | AD42: 339.3744427 | AE42: 326.0653828
C43: Eolien terrestre | D43: TWh | E43: 29 | F43: 34 | G43: 39 | H43: 44 | I43: 49 | J43: 64.8 | K43: 90.6 | L43: 114.6 | M43: 138.6 | N43: 27.17564935 | O43: 30.3512987 | P43: 33.52694806 | Q43: 39.24336864 | R43: 44.95978922 | S43: 62.10905097 | T43: 90.48352031 | U43: 119.5501542 | V43: 149.4756176 | W43: 27.17564935 | X43: 30.3512987 | Y43: 33.52694806 | Z43: 39.24336864 | AA43: 44.95978922 | AB43: 62.10905097 | AC43: 90.48352031 | AD43: 90.48352031 | AE43: 119.5501542
C44: Eolien en mer | D44: TWh | E44: 0 | F44: 0 | G44: 0 | H44: 3 | I44: 6 | J44: 9.2 | K44: 20.21428571 | L44: 47 | M44: 73.78571429 | N44: 0 | O44: 0 | P44: 0 | Q44: 2.752248493 | R44: 5.504496985 | S44: 13.76124246 | T44: 27.02463928 | U44: 27.02463928 | V44: 27.02463928 | W44: 0 | X44: 0 | Y44: 0 | Z44: 2.752248493 | AA44: 5.504496985 | AB44: 13.76124246 | AC44: 27.02463928 | AD44: 27.02463928 | AE44: 27.02463928
C45: PV au sol | D45: TWh | E45: 6.484880295 | F45: 7.947127537 | G45: 9.409374779 | H45: 10.87162202 | I45: 12.33386926 | J45: 19.20800698 | K45: 29.37523353 | L45: 34.49871061 | M45: 39.6221877 | N45: 7.546008312 | O45: 10.06938357 | P45: 12.59275883 | Q45: 13.88959982 | R45: 15.18644082 | S45: 19.0769638 | T45: 22.24452055 | U45: 23.17245699 | V45: 41.06091064 | W45: 7.546008312 | X45: 10.06938357 | Y45: 12.59275883 | Z45: 13.14466671 | AA45: 13.6965746 | AB45: 15.35229825 | AC45: 22.2428847 | AD45: 22.2428847 | AE45: 22.2428847
C46: PV sur toiture | D46: TWh | E46: 5.265119705 | F46: 6.352872463 | G46: 7.440625221 | H46: 8.528377979 | I46: 9.616130737 | J46: 14.69199302 | K46: 21.51048076 | L46: 23.60128939 | M46: 25.69209802 | N46: 4.575578158 | O46: 4.97378937 | P46: 5.372000582 | Q46: 7.692247642 | R46: 10.0124947 | S46: 16.97323588 | T46: 24.70761391 | U46: 26.44659435 | V46: 28.09032571 | W46: 4.575578158 | X46: 4.97378937 | Y46: 5.372000582 | Z46: 7.692247642 | AA46: 10.0124947 | AB46: 16.97323588 | AC46: 24.70761391 | AD46: 26.44659435 | AE46: 28.09032571
C47: Autres EnRe | D47: TWh | E47: 9.416666667 | F47: 9.333333333 | G47: 9.25 | H47: 9.166666667 | I47: 9.083333333 | J47: 9.2 | K47: 11.92857143 | L47: 18 | M47: 24.07142857 | N47: 13.0789157 | O47: 16.65783139 | P47: 20.23674709 | Q47: 20.38072878 | R47: 20.52471048 | S47: 20.95665557 | T47: 30.75420604 | U47: 53.32106278 | V47: 56.97210019 | W47: 13.0789157 | X47: 16.65783139 | Y47: 20.23674709 | Z47: 20.15586188 | AA47: 20.07497667 | AB47: 19.83232104 | AC47: 28.75322515 | AD47: 39.08939306 | AE47: 45.80845393
C48: Hydraulique | D48: TWh | E48: 54.91666667 | F48: 56.33333333 | G48: 57.75 | H48: 59.16666667 | I48: 60.58333333 | J48: 62 | K48: 63.65714286 | L48: 67.8 | M48: 71.94285714 | N48: 56.0852252 | O48: 58.67045041 | P48: 61.25567561 | Q48: 61.59714559 | R48: 61.93861556 | S48: 62.96302549 | T48: 65.58000874 | U48: 65.41984092 | V48: 66.50447454 | W48: 56.0852252 | X48: 58.67045041 | Y48: 61.25567561 | Z48: 61.60786007 | AA48: 61.96004453 | AB48: 63.01659792 | AC48: 65.93744807 | AD48: 65.64916242 | AE48: 65.42662589
C49: =+C12 -> Fossile | D49: TWh | E49: 50.58333333 | F49: 47.26666667 | G49: 43.95 | H49: 40.63333333 | I49: 37.31666667 | J49: 33.2 | K49: 30.45714286 | L49: 26.6 | M49: 22.74285714 | N49: 44.75415168 | O49: 35.60830337 | P49: 26.46245505 | Q49: 24.19660407 | R49: 21.9307531 | S49: 15.13320017 | T49: 16.66241574 | U49: 14.95553758 | V49: 15.27992863 | W49: 44.75415168 | X49: 35.60830337 | Y49: 26.46245505 | Z49: 24.15932508 | AA49: 21.85619512 | AB49: 14.94680522 | AC49: 14.91644459 | AD49: 12.69129795 | AE49: 10.00149912
E51: =E14 -> PPE - AMPERE | N51: =N14 -> Référence ADEME | W51: =W14 -> Prolongement nucléaire aisé ADEME
C52: Consommation d'électricité | D52: Unité | E52: 2018 | F52: 2019 | G52: 2020 | H52: 2021 | I52: 2022 | J52: 2025 | K52: 2030 | L52: 2035 | M52: 2040 | N52: 2018 | O52: 2019 | P52: 2020 | Q52: 2021 | R52: 2022 | S52: 2025 | T52: 2030 | U52: 2035 | V52: 2040 | W52: 2018 | X52: 2019 | Y52: 2020 | Z52: 2021 | AA52: 2022 | AB52: 2025 | AC52: 2030 | AD52: 2035 | AE52: 2040
C53: =C38 -> Consommation | D53: TWh | E53: 460.15 | F53: 478.8 | G53: 477.4 | H53: 475.9 | I53: 474.2 | J53: 471 | K53: 480.4 | L53: 501.2 | M53: 522 | N53: 450.7825388 | O53: 460.0650776 | P53: 469.3476165 | Q53: 468.149364 | R53: 466.9511116 | S53: 463.3563544 | T53: 467.6526328 | U53: 478.9837749 | V53: 493.3125005 | W53: 450.7825388 | X53: 460.0650776 | Y53: 469.3476165 | Z53: 468.149364 | AA53: 466.9511116 | AB53: 463.3563544 | AC53: 467.6526328 | AD53: 478.9837749 | AE53: 493.3125005

Sheet Données de prix
E3: 2017 | F3: 2018 | G3: 2019 | H3: 2020 | I3: 2021 | J3: 2022 | K3: 2023 | L3: 2024 | M3: 2025 | N3: 2026 | O3: 2027 | P3: 2028 | Q3: 2029 | R3: 2030 | S3: 2031 | T3: 2032 | U3: 2033 | V3: 2034 | W3: 2035 | X3: 2036 | Y3: 2037 | Z3: 2038 | AA3: 2039 | AB3: 2040 | AC3: 2041 | AD3: 2042 | AE3: 2043 | AF3: 2044 | AG3: 2045 | AH3: 2046 | AI3: 2047 | AJ3: 2048 | AK3: 2049 | AL3: 2050 | AM3: 2051 | AN3: 2052 | AO3: 2053 | AP3: 2054 | AQ3: 2055 | AR3: 2056 | AS3: 2057 | AT3: 2058 | AU3: 2059 | AV3: 2060
C4: Inflation annuelle | E4: 0.0103 | F4: 0.0185 | G4: 0.0184 | H4: 0.0184 | I4: 0.0184 | J4: 0.0184 | K4: 0.0184 | L4: 0.0184 | M4: 0.0184 | N4: 0.0184 | O4: 0.0184 | P4: 0.0184 | Q4: 0.0184 | R4: 0.0184 | S4: 0.0184 | T4: 0.0184 | U4: 0.0184 | V4: 0.0184 | W4: 0.0184 | X4: 0.0184 | Y4: 0.0184 | Z4: 0.0184 | AA4: 0.0184 | AB4: 0.0184 | AC4: 0.0184 | AD4: 0.0184 | AE4: 0.0184 | AF4: 0.0184 | AG4: 0.0184 | AH4: 0.0184 | AI4: 0.0184 | AJ4: 0.0184 | AK4: 0.0184 | AL4: 0.0184 | AM4: 0.0184 | AN4: 0.0184 | AO4: 0.0184 | AP4: 0.0184 | AQ4: 0.0184 | AR4: 0.0184 | AS4: 0.0184 | AT4: 0.0184 | AU4: 0.0184 | AV4: 0.0184
B6: PRIX COURANTS
D8: Estimation des compléments de rémunération passés par la Cour des Comptes
D9: Unité | E9: 2018 | F9: 2019 | G9: 2020 | H9: 2021 | I9: 2022 | J9: 2023 | K9: 2024 | L9: 2025 | M9: 2026 | N9: 2027 | O9: 2028 | P9: 2029 | Q9: 2030 | R9: 2031 | S9: 2032 | T9: 2033 | U9: 2034 | V9: 2035 | W9: 2036 | X9: 2037 | Y9: 2038 | Z9: 2039 | AA9: 2040
C10: Dépenses au titre des engagements passés | D10: M€ | E10: =5205*0.84 -> 4372.2 | F10: =5640*0.84 -> 4737.6 | G10: =5651*0.84 -> 4746.84 | H10: 4942.44 | I10: 5009.52 | J10: 5110.384532 | K10: 5376.226635 | L10: 5428.486316 | M10: 5153.650566 | N10: 4927.868181 | O10: 4804.063927 | P10: 4715.655668 | Q10: 4504.415057 | R10: 3898.01277 | S10: 2764.56132 | T10: 2039.031461 | U10: 1703.782005 | V10: 1554.298681 | W10: 1417.032054 | X10: 1191.946374 | Y10: 1046.398327 | Z10: 890.8827574 | AA10: 805.6949975
C11: Part de l'éolien en mer dans les dépenses au titre des engagements passés (AO 2011&2013) | D11: M€ | E11: 0 | F11: 0 | G11: 0 | H11: 189.969375 | I11: 378.4881375 | J11: 482.9539577 | K11: 723.7958355 | L11: 804.9702621 | M11: 790.2751025 | N11: 779.5152592 | O11: 770.9625405 | P11: 763.7652852 | Q11: 757.4551026 | R11: 806.0792831 | S11: 840.3376029 | T11: 865.3145212 | U11: 883.941631 | V11: 898.0279567 | W11: 908.7502527 | X11: 916.9069706 | Y11: 923.0589138 | Z11: 890.8827574 | AA11: 805.6949975
C12: Dépenses au titre des engagements passés hors éolien en mer | D12: M€ | E12: =E10-E11 -> 4372.2 | F12: =F10-F11 -> 4737.6 | G12: 4746.84 | H12: 4752.470625 | I12: 4631.031862 | J12: 4627.430574 | K12: 4652.4308 | L12: 4623.516054 | M12: 4363.375463 | N12: 4148.352922 | O12: 4033.101386 | P12: 3951.890383 | Q12: 3746.959955 | R12: 3091.933487 | S12: 1924.223717 | T12: 1173.71694 | U12: 819.8403741 | V12: 656.2707244 | W12: 508.2818013 | X12: 275.039403 | Y12: 123.3394135 | Z12: 0 | AA12: 0
D14: Estimation des compléments de rémunération passés par la Cour des Comptes
D15: Unité | E15: 2018 | F15: 2019 | G15: 2020 | H15: 2021 | I15: 2022 | J15: 2023 | K15: 2024 | L15: 2025 | M15: 2026 | N15: 2027 | O15: 2028 | P15: 2029 | Q15: 2030 | R15: 2031 | S15: 2032 | T15: 2033 | U15: 2034 | V15: 2035 | W15: 2036 | X15: 2037 | Y15: 2038 | Z15: 2039 | AA15: 2040
C16: Hypothèse de prix marché de la Cour des Comptes | D16: €/MWh | E16: 35.91 | F16: 36.09 | G16: 38.3 | H16: 38.683 | I16: 39.06983 | J16: 39.4605283 | K16: 39.85513358 | L16: 40.25368492 | M16: 40.65622177 | N16: 41.06278399 | O16: 41.47341183 | P16: 41.88814594 | Q16: 42.3070274 | R16: 42.73009768 | S16: 43.15739865 | T16: 43.58897264 | U16: 44.02486237 | V16: 44.46511099 | W16: 44.9097621 | X16: 45.35885972 | Y16: 45.81244832 | Z16: 46.2705728 | AA16: 46.73327853
B18: PRIX CONSTANTS
E20: Données historiques | F20: ='Données de production'!E14 -> PPE - AMPERE | K20: ='Données de production'!N14 -> Référence ADEME | P20: ='Données de production'!W14 -> Prolongement nucléaire aisé ADEME
D21: Unité | E21: 2017 | F21: 2020 | G21: 2025 | H21: 2030 | I21: 2035 | J21: 2040 | K21: 2020 | L21: 2025 | M21: 2030 | N21: 2035 | O21: 2040 | P21: 2020 | Q21: 2025 | R21: 2030 | S21: 2035 | T21: 2040
C22: Prix de marché moyen | D22: €/MWh | E22: 50.49797673 | F22: 47.24898836 | G22: 48.8 | H22: 58.62027978 | I22: 65.17097924 | J22: 71.72167869 | K22: 39 | L22: 48 | M22: 49 | N22: 54 | O22: 60 | P22: 39 | Q22: 47 | R22: 40 | S22: 43 | T22: 42
C23: Prix du CO2 | D23: €/tCO2 | E23: 8.15 | F23: 17.76 | G23: 53.29 | H23: 88.82 | I23: 106.58 | J23: 124.35 | K23: 17.76 | L23: 25.31 | M23: 32.86 | N23: 38.64 | O23: 44.41 | P23: 17.76 | Q23: 25.31 | R23: 32.86 | S23: 38.64 | T23: 44.41
E25: Données historiques | F25: ='Données de production'!E14 -> PPE - AMPERE | K25: ='Données de production'!N14 -> Référence ADEME | P25: ='Données de production'!W14 -> Prolongement nucléaire aisé ADEME
C26: Revenus de marché | D26: Unité | E26: 2017 | F26: 2020 | G26: 2025 | H26: 2030 | I26: 2035 | J26: 2040 | K26: 2020 | L26: 2025 | M26: 2030 | N26: 2035 | O26: 2040 | P26: 2020 | Q26: 2025 | R26: 2030 | S26: 2035 | T26: 2040
C27: ='Données de coûts'!C24 -> Nucléaire | D27: €/MWh | E27: 47.90213593 | F27: 50.36414359 | G27: 54.46748968 | H27: 58.57083577 | I27: 62.67418186 | J27: 66.77752796 | K27: 39 | L27: 49 | M27: 51 | N27: 57 | O27: 65 | P27: 39 | Q27: 48 | R27: 42 | S27: 46 | T27: 46
C28: ='Données de coûts'!C25 -> Eolien terrestre | D28: €/MWh | E28: 48.22849058 | F28: 43.11424529 | G28: 41.2 | H28: 46.70878137 | I28: 48.48073481 | J28: 50.25268824 | K28: 37 | L28: 41 | M28: 39 | N28: 44 | O28: 45 | P28: 37 | Q28: 42 | R28: 32 | S28: 35 | T28: 35
C29: Eolien en mer | D29: €/MWh | G29: 43.2 | H29: 49.1577965 | I29: 52.05228775 | J29: 54.946779 | L29: 44 | M29: 42 | N29: 48 | O29: 51 | Q29: 43 | R29: 35 | S29: 37 | T29: 35
C30: ='Données de coûts'!C27 -> PV au sol | D30: €/MWh | E30: 43.13735911 | F30: 40.06867956 | G30: 39.4 | H30: 44.38775219 | I30: 47.85713265 | J30: 51.32651311 | K30: 39 | L30: 43 | M30: 40 | N30: 44 | O30: 42 | P30: 39 | Q30: 43 | R30: 34 | S30: 36 | T30: 33
C31: ='Données de coûts'!C28 -> PV sur toiture | D31: €/MWh | E31: 43.13735911 | F31: 40.06867956 | G31: 39.4 | H31: 44.38775219 | I31: 47.85713265 | J31: 51.32651311 | K31: 39 | L31: 43 | M31: 40 | N31: 44 | O31: 42 | P31: 39 | Q31: 43 | R31: 34 | S31: 36 | T31: 33

Sheet Données de coûts
D3: Taux
C4: Actualisation | D4: 0.025
C5: Financement | D5: 0.0525
D7: Durée de vie | E7: OPEX | F7: Facteur de charge
C8: Unité | D8: année | E8: % CAPEX/an | F8: %
C9: Eolien terrestre | D9: 25 | E9: 0.03 | F9: 0.3354347032
C10: Eolien en mer | D10: 30 | E10: 0.02 | F10: 0.4810097032
C11: PV au sol | D11: 25 | E11: 0.023 | F11: 0.16100879
C12: PV sur toiture | D12: 25 | E12: 0.025 | F12: 0.1516622527
B14: PRIX CONSTANTS
C16: CAPEX | D16: Unité | E16: 2020 | F16: 2025 | G16: 2030 | H16: 2035 | I16: 2040 | J16: 2045 | K16: 2050 | L16: 2055 | M16: 2060 | N16: 2065
C17: Eolien terrestre | D17: €/MW | E17: 1959013.684 | F17: 1863200 | G17: 1609400 | H17: 1448000 | I17: 1276700 | J17: 1276700 | K17: 1276700 | L17: 1276700 | M17: 1276700
C18: Eolien en mer | D18: €/MW | E18: 7344417.701 | F18: 3379181.378 | G18: 3379181.378 | H18: 2934590.689 | I18: 2490000 | J18: 2440000 | K18: 2390000 | L18: 2390000 | M18: 2390000 | N18: 2390000
C19: PV au sol | D19: €/MW | E19: 932593.3658 | F19: 758000 | G19: 708000 | H19: 662100 | I19: 592900 | J19: 532000 | K19: 482600 | L19: 482600 | M19: 482600
C20: PV sur toiture | D20: €/MW | E20: 1198838.393 | F20: 1106000 | G20: 960000 | H20: 800000 | I20: 691600 | J20: 675000 | K20: 657200 | L20: 657200 | M20: 657200
E22: Données historiques | F22: Scénario par défaut
C23: Prix d'attribution des projets | D23: Unité | E23: 2017 | F23: 2020 | G23: 2025 | H23: 2030 | I23: 2035 | J23: 2040
C24: Nucléaire | D24: €/MWh | H24: 85 | I24: 85 | J24: 85
C25: Eolien terrestre | D25: €/MWh | E25: 65.4
C26: Eolien en mer (nouvelle trajectoire AO 2019 comme référence) | D26: €/MWh | E26: 140 | F26: 56 | G26: 54 | H26: 52 | I26: 50 | J26: 45
C27: PV au sol | D27: €/MWh | E27: 63.9
C28: PV sur toiture | D28: €/MWh | E28: 85

Sheet Scénario à définir (hidden)
C3: Choisisez le nom de votre scénario | D3: Scénario à définir
C5: Partir des données d'un scénario intégré
E7: =D3 -> Scénario à définir
C8: Capacité installée de production d'électricité | D8: Unité | E8: 2018 | F8: 2019 | G8: 2020 | H8: 2021 | I8: 2022 | J8: 2025 | K8: 2030 | L8: 2035 | M8: 2040
C9: ='Données de production'!C5 -> Nucléaire | D9: GW | E9: 0 | F9: 0 | G9: 0 | H9: 0 | I9: 0 | J9: 0 | K9: 0 | L9: 0 | M9: 0
C10: ='Données de production'!C6 -> Eolien terrestre | D10: GW | E10: 0 | F10: 0 | G10: 0 | H10: 0 | I10: 0 | J10: 0 | K10: 0 | L10: 0 | M10: 0
C11: ='Données de production'!C7 -> Eolien en mer | D11: GW | E11: 0 | F11: 0 | G11: 0 | H11: 0 | I11: 0 | J11: 0 | K11: 0 | L11: 0 | M11: 0
C12: ='Données de production'!C8 -> PV au sol | D12: GW | E12: 0 | F12: 0 | G12: 0 | H12: 0 | I12: 0 | J12: 0 | K12: 0 | L12: 0 | M12: 0
C13: ='Données de production'!C9 -> PV sur toiture | D13: GW | E13: 0 | F13: 0 | G13: 0 | H13: 0 | I13: 0 | J13: 0 | K13: 0 | L13: 0 | M13: 0
C14: ='Données de production'!C10 -> Autres EnRe | D14: GW | E14: 0 | F14: 0 | G14: 0 | H14: 0 | I14: 0 | J14: 0 | K14: 0 | L14: 0 | M14: 0
C15: ='Données de production'!C11 -> Hydraulique | D15: GW | E15: 0 | F15: 0 | G15: 0 | H15: 0 | I15: 0 | J15: 0 | K15: 0 | L15: 0 | M15: 0
C16: ='Données de production'!C12 -> Fossile | D16: GW | E16: 0 | F16: 0 | G16: 0 | H16: 0 | I16: 0 | J16: 0 | K16: 0 | L16: 0 | M16: 0
E18: =E7 -> Scénario à définir
C19: Production d'électricité | D19: Unité | E19: 2018 | F19: 2019 | G19: 2020 | H19: 2021 | I19: 2022 | J19: 2025 | K19: 2030 | L19: 2035 | M19: 2040
C20: ='Données de production'!C5 -> Nucléaire | D20: TWh | E20: 0 | F20: 0 | G20: 0 | H20: 0 | I20: 0 | J20: 0 | K20: 0 | L20: 0 | M20: 0
C21: ='Données de production'!C6 -> Eolien terrestre | D21: TWh | E21: 0 | F21: 0 | G21: 0 | H21: 0 | I21: 0 | J21: 0 | K21: 0 | L21: 0 | M21: 0
C22: ='Données de production'!C7 -> Eolien en mer | D22: TWh | E22: 0 | F22: 0 | G22: 0 | H22: 0 | I22: 0 | J22: 0 | K22: 0 | L22: 0 | M22: 0
C23: ='Données de production'!C8 -> PV au sol | D23: TWh | E23: 0 | F23: 0 | G23: 0 | H23: 0 | I23: 0 | J23: 0 | K23: 0 | L23: 0 | M23: 0
C24: ='Données de production'!C9 -> PV sur toiture | D24: TWh | E24: 0 | F24: 0 | G24: 0 | H24: 0 | I24: 0 | J24: 0 | K24: 0 | L24: 0 | M24: 0
C25: ='Données de production'!C10 -> Autres EnRe | D25: TWh | E25: 0 | F25: 0 | G25: 0 | H25: 0 | I25: 0 | J25: 0 | K25: 0 | L25: 0 | M25: 0
C26: ='Données de production'!C11 -> Hydraulique | D26: TWh | E26: 0 | F26: 0 | G26: 0 | H26: 0 | I26: 0 | J26: 0 | K26: 0 | L26: 0 | M26: 0
C27: ='Données de production'!C12 -> Fossile | D27: TWh | E27: 0 | F27: 0 | G27: 0 | H27: 0 | I27: 0 | J27: 0 | K27: 0 | L27: 0 | M27: 0
E29: =E7 -> Scénario à définir
C30: Consommation d'électricité | D30: Unité | E30: 2018 | F30: 2019 | G30: 2020 | H30: 2021 | I30: 2022 | J30: 2025 | K30: 2030 | L30: 2035 | M30: 2040
C31: Consommation | D31: TWh | E31: 0 | F31: 0 | G31: 0 | H31: 0 | I31: 0 | J31: 0 | K31: 0 | L31: 0 | M31: 0
B33: PRIX CONSTANTS
E35: =E7 -> Scénario à définir
C36: Revenus de marché | D36: Unité | E36: 2020 | F36: 2025 | G36: 2030 | H36: 2035 | I36: 2040
C37: ='Données de coûts'!C24 -> Nucléaire | D37: €/MWh | E37: 0 | F37: 0 | G37: 0 | H37: 0 | I37: 0
C38: ='Calcul de LCOE'!C35 -> Eolien terrestre | D38: €/MWh | E38: 0 | F38: 0 | G38: 0 | H38: 0 | I38: 0
C39: ='Calcul de LCOE'!C36 -> Eolien en mer | D39: €/MWh | E39: 0 | F39: 0 | G39: 0 | H39: 0 | I39: 0
C40: ='Calcul de LCOE'!C37 -> PV au sol | D40: €/MWh | E40: 0 | F40: 0 | G40: 0 | H40: 0 | I40: 0
C41: ='Calcul de LCOE'!C38 -> PV sur toiture | D41: €/MWh | E41: 0 | F41: 0 | G41: 0 | H41: 0 | I41: 0
E43: =E7 -> Scénario à définir
C44: Variables | D44: Unité | E44: 2020 | F44: 2025 | G44: 2030 | H44: 2035 | I44: 2040
C45: Prix de marché moyen | D45: €/MWh | E45: 0 | F45: 0 | G45: 0 | H45: 0 | I45: 0
C46: Prix du CO2 | D46: €/tCO2 | E46: 0 | F46: 0 | G46: 0 | H46: 0 | I46: 0

Sheet Calcul de LCOE (hidden)
D3: Taux | E3: Q = 1/(1+taux) | F3: Coefficient somme de 5 ans
C4: Actualisation | D4: ='Données de coûts'!D4 -> 0.025 | E4: =1/(1+D4) -> 0.9756097561 | F4: =(1-E4^5)/(1-E4) -> 4.761974208
C5: Financement | D5: ='Données de coûts'!D5 -> 0.0525 | E5: =1/(1+D5) -> 0.9501187648 | F5: =(1-E5^5)/(1-E5) -> 4.525454659
C7: Année | D7: 0 | E7: 5 | F7: 10 | G7: 15 | H7: 20 | I7: 25
C8: Coefficient de financement | D8: 1 | E8: =$E5^(E7-$D7) -> 0.774264732 | F8: =$E5^(F7-$D7) -> 0.5994858752 | G8: =$E5^(G7-$D7) -> 0.4641607705 | H8: =$E5^(H7-$D7) -> 0.3593833146 | I8: =$E5^(I7-$D7) -> 0.2782578257
C9: Coefficient d'actualisation | D9: 1 | E9: =$E4^(E7-$D7) -> 0.8838542876 | F9: =$E4^(F7-$D7) -> 0.7811984017 | G9: =$E4^(G7-$D7) -> 0.6904655568 | H9: =$E4^(H7-$D7) -> 0.6102709429 | I9: =$E4^(I7-$D7) -> 0.5393905894
D11: Durée de vie | E11: OPEX | F11: Facteur de charge | G11: Prime
C12: Unité | D12: années | E12: % CAPEX/an | F12: %
C13: Eolien terrestre | D13: ='Données de coûts'!D9 -> 25 | E13: ='Données de coûts'!E9 -> 0.03 | F13: ='Données de coûts'!F9 -> 0.3354347032 | G13: =(1-E$5)*(1-E$4^D13)/(1-E$4)/(1-E$5^D13) -> 1.305184113
C14: Eolien en mer | D14: ='Données de coûts'!D10 -> 30 | E14: ='Données de coûts'!E10 -> 0.02 | F14: ='Données de coûts'!F10 -> 0.4810097032 | G14: =(1-E$5)*(1-E$4^D14)/(1-E$4)/(1-E$5^D14) -> 1.363995984
C15: PV au sol | D15: ='Données de coûts'!D11 -> 25 | E15: ='Données de coûts'!E11 -> 0.023 | F15: ='Données de coûts'!F11 -> 0.16100879 | G15: =(1-E$5)*(1-E$4^D15)/(1-E$4)/(1-E$5^D15) -> 1.305184113
C16: PV sur toiture | D16: ='Données de coûts'!D12 -> 25 | E16: ='Données de coûts'!E12 -> 0.025 | F16: ='Données de coûts'!F12 -> 0.1516622527 | G16: =(1-E$5)*(1-E$4^D16)/(1-E$4)/(1-E$5^D16) -> 1.305184113
B18: PRIX CONSTANTS
C20: CAPEX | D20: Unité | E20: 2020 | F20: 2025 | G20: 2030 | H20: 2035 | I20: 2040 | J20: 2045 | K20: 2050 | L20: 2055 | M20: 2060 | N20: 2065
C21: Eolien terrestre | D21: €/MW | E21: ='Données de coûts'!E17 -> 1959013.684 | F21: ='Données de coûts'!F17 -> 1863200 | G21: ='Données de coûts'!G17 -> 1609400 | H21: ='Données de coûts'!H17 -> 1448000 | I21: ='Données de coûts'!I17 -> 1276700 | J21: ='Données de coûts'!J17 -> 1276700 | K21: ='Données de coûts'!K17 -> 1276700 | L21: ='Données de coûts'!L17 -> 1276700 | M21: ='Données de coûts'!M17 -> 1276700
C22: Eolien en mer | D22: €/MW | E22: ='Données de coûts'!E18 -> 7344417.701 | F22: ='Données de coûts'!F18 -> 3379181.378 | G22: ='Données de coûts'!G18 -> 3379181.378 | H22: ='Données de coûts'!H18 -> 2934590.689 | I22: ='Données de coûts'!I18 -> 2490000 | J22: ='Données de coûts'!J18 -> 2440000 | K22: ='Données de coûts'!K18 -> 2390000 | L22: ='Données de coûts'!L18 -> 2390000 | M22: ='Données de coûts'!M18 -> 2390000 | N22: ='Données de coûts'!N18 -> 2390000
C23: PV au sol | D23: €/MW | E23: ='Données de coûts'!E19 -> 932593.3658 | F23: ='Données de coûts'!F19 -> 758000 | G23: ='Données de coûts'!G19 -> 708000 | H23: ='Données de coûts'!H19 -> 662100 | I23: ='Données de coûts'!I19 -> 592900 | J23: ='Données de coûts'!J19 -> 532000 | K23: ='Données de coûts'!K19 -> 482600 | L23: ='Données de coûts'!L19 -> 482600 | M23: ='Données de coûts'!M19 -> 482600
C24: PV sur toiture | D24: €/MW | E24: ='Données de coûts'!E20 -> 1198838.393 | F24: ='Données de coûts'!F20 -> 1106000 | G24: ='Données de coûts'!G20 -> 960000 | H24: ='Données de coûts'!H20 -> 800000 | I24: ='Données de coûts'!I20 -> 691600 | J24: ='Données de coûts'!J20 -> 675000 | K24: ='Données de coûts'!K20 -> 657200 | L24: ='Données de coûts'!L20 -> 657200 | M24: ='Données de coûts'!M20 -> 657200
C26: OPEX annuel | D26: Unité | E26: 2020 | F26: 2025 | G26: 2030 | H26: 2035 | I26: 2040 | J26: 2045 | K26: 2050 | L26: 2055 | M26: 2060 | N26: 2065
C27: Eolien terrestre | D27: €/MW/an | E27: =E21*$E13 -> 58770.41053 | F27: =F21*$E13 -> 55896 | G27: =G21*$E13 -> 48282 | H27: 43440 | I27: 38301 | J27: 38301 | K27: 38301 | L27: 38301 | M27: 38301
C28: Eolien en mer | D28: €/MW/an | E28: =E22*$E14 -> 146888.354 | F28: =F22*$E14 -> 67583.62756 | G28: 67583.62756 | H28: 58691.81378 | I28: 49800 | J28: 48800 | K28: 47800 | L28: 47800 | M28: 47800 | N28: 47800
C29: PV au sol | D29: €/MW/an | E29: =E23*$E15 -> 21449.64741 | F29: =F23*$E15 -> 17434 | G29: 16284 | H29: 15228.3 | I29: 13636.7 | J29: 12236 | K29: 11099.8 | L29: 11099.8 | M29: 11099.8
C30: PV sur toiture | D30: €/MW/an | E30: =E24*$E16 -> 29970.95983 | F30: 27650 | G30: 24000 | H30: 20000 | I30: 17290 | J30: 16875 | K30: 16430 | L30: 16430 | M30: 16430
E32: ='Données de coûts'!E22 -> Données historiques | F32: ='Données de coûts'!F22:J22 -> Scénario par défaut
C33: LCOE= prix d'attribution des projets | D33: Unité | E33: 2017 | F33: 2020 | G33: 2025 | H33: 2030 | I33: 2035 | J33: 2040
C34: Nucléaire | D34: €/MWh | E34: ='Données de coûts'!E24 -> 0 | F34: ='Données de coûts'!F24 -> 0 | G34: ='Données de coûts'!G24 -> 0 | H34: ='Données de coûts'!H24 -> 85 | I34: ='Données de coûts'!I24 -> 85 | J34: ='Données de coûts'!J24 -> 85
C35: Eolien terrestre | D35: €/MWh | E35: ='Données de coûts'!E25 -> 65.4 | F35: =(E21*$G13+$F$4*SUMPRODUCT(E27:I27,$D$9:$H$9))*(1-$E$4)/$F13/8760/(1-$E$4^$D13) -> 63.1759062 | G35: =(F21*$G13+$F$4*SUMPRODUCT(F27:J27,$D$9:$H$9))*(1-$E$4)/$F13/8760/(1-$E$4^$D13) -> 59.46908319 | H35: =(G21*$G13+$F$4*SUMPRODUCT(G27:K27,$D$9:$H$9))*(1-$E$4)/$F13/8760/(1-$E$4^$D13) -> 52.13448206 | I35: =(H21*$G13+$F$4*SUMPRODUCT(H27:L27,$D$9:$H$9))*(1-$E$4)/$F13/8760/(1-$E$4^$D13) -> 47.5330145 | J35: =(I21*$G13+$F$4*SUMPRODUCT(I27:M27,$D$9:$H$9))*(1-$E$4)/$F13/8760/(1-$E$4^$D13) -> 43.06298734
C36: Eolien en mer | D36: €/MWh | E36: ='Données de coûts'!E26 -> 140 | F36: =(E22*$G14+$F$4*SUMPRODUCT(E28:J28,$D$9:$I$9))*(1-$E$4)/$F14/8760/(1-$E$4^$D14) -> 129.6067868 | G36: =(F22*$G14+$F$4*SUMPRODUCT(F28:K28,$D$9:$I$9))*(1-$E$4)/$F14/8760/(1-$E$4^$D14) -> 64.84843709 | H36: =(G22*$G14+$F$4*SUMPRODUCT(G28:L28,$D$9:$I$9))*(1-$E$4)/$F14/8760/(1-$E$4^$D14) -> 64 | I36: =(H22*$G14+$F$4*SUMPRODUCT(H28:M28,$D$9:$I$9))*(1-$E$4)/$F14/8760/(1-$E$4^$D14) -> 56.33171153 | J36: =(I22*$G14+$F$4*SUMPRODUCT(I28:N28,$D$9:$I$9))*(1-$E$4)/$F14/8760/(1-$E$4^$D14) -> 49.0672363
C37: PV au sol | D37: €/MWh | E37: ='Données de coûts'!E27 -> 63.9 | F37: =(E23*$G15+$F$4*SUMPRODUCT(E29:I29,$D$9:$H$9))*(1-$E$4)/$F15/8760/(1-$E$4^$D15) -> 57.92907496 | G37: 47.97753323 | H37: 44.63593805 | I37: 41.61069931 | J37: 37.55529781
C38: PV sur toiture | D38: €/MWh | E38: ='Données de coûts'!E28 -> 85 | F38: 80.8728516 | G38: 73.99427094 | H38: 64.52778995 | I38: 54.87088467 | J38: 48.58192944

Sheet Calcul de variation des prix (hidden)
E3: 2017 | F3: 2018 | G3: 2019 | H3: 2020 | I3: 2021 | J3: 2022 | K3: 2023 | L3: 2024 | M3: 2025 | N3: 2026 | O3: 2027 | P3: 2028 | Q3: 2029 | R3: 2030 | S3: 2031 | T3: 2032 | U3: 2033 | V3: 2034 | W3: 2035 | X3: 2036 | Y3: 2037 | Z3: 2038 | AA3: 2039 | AB3: 2040 | AC3: 2041 | AD3: 2042 | AE3: 2043 | AF3: 2044 | AG3: 2045 | AH3: 2046 | AI3: 2047 | AJ3: 2048 | AK3: 2049 | AL3: 2050 | AM3: 2051 | AN3: 2052 | AO3: 2053 | AP3: 2054 | AQ3: 2055 | AR3: 2056 | AS3: 2057 | AT3: 2058 | AU3: 2059 | AV3: 2060
C4: Inflation annuelle | E4: ='Données de prix'!E4 -> 0.0103 | F4: ='Données de prix'!F4 -> 0.0185 | G4: ='Données de prix'!G4 -> 0.0184 | H4: ='Données de prix'!H4 -> 0.0184 | I4: ='Données de prix'!I4 -> 0.0184 | J4: ='Données de prix'!J4 -> 0.0184 | K4: ='Données de prix'!K4 -> 0.0184 | L4: ='Données de prix'!L4 -> 0.0184 | M4: ='Données de prix'!M4 -> 0.0184 | N4: ='Données de prix'!N4 -> 0.0184 | O4: ='Données de prix'!O4 -> 0.0184 | P4: ='Données de prix'!P4 -> 0.0184 | Q4: ='Données de prix'!Q4 -> 0.0184 | R4: ='Données de prix'!R4 -> 0.0184 | S4: ='Données de prix'!S4 -> 0.0184 | T4: ='Données de prix'!T4 -> 0.0184 | U4: ='Données de prix'!U4 -> 0.0184 | V4: ='Données de prix'!V4 -> 0.0184 | W4: ='Données de prix'!W4 -> 0.0184 | X4: ='Données de prix'!X4 -> 0.0184 | Y4: ='Données de prix'!Y4 -> 0.0184 | Z4: ='Données de prix'!Z4 -> 0.0184 | AA4: ='Données de prix'!AA4 -> 0.0184 | AB4: ='Données de prix'!AB4 -> 0.0184 | AC4: ='Données de prix'!AC4 -> 0.0184 | AD4: ='Données de prix'!AD4 -> 0.0184 | AE4: ='Données de prix'!AE4 -> 0.0184 | AF4: ='Données de prix'!AF4 -> 0.0184 | AG4: ='Données de prix'!AG4 -> 0.0184 | AH4: ='Données de prix'!AH4 -> 0.0184 | AI4: ='Données de prix'!AI4 -> 0.0184 | AJ4: ='Données de prix'!AJ4 -> 0.0184 | AK4: ='Données de prix'!AK4 -> 0.0184 | AL4: ='Données de prix'!AL4 -> 0.0184 | AM4: ='Données de prix'!AM4 -> 0.0184 | AN4: ='Données de prix'!AN4 -> 0.0184 | AO4: ='Données de prix'!AO4 -> 0.0184 | AP4: ='Données de prix'!AP4 -> 0.0184 | AQ4: ='Données de prix'!AQ4 -> 0.0184 | AR4: ='Données de prix'!AR4 -> 0.0184 | AS4: ='Données de prix'!AS4 -> 0.0184 | AT4: ='Données de prix'!AT4 -> 0.0184 | AU4: ='Données de prix'!AU4 -> 0.0184 | AV4: ='Données de prix'!AV4 -> 0.0184
C5: Conversion de prix constants 2017 à courants | E5: =IF(E3<2017,F5/(1+F4),IF(E3>2017,D5*(1+E4),1)) -> 1 | F5: =IF(F3<2017,G5/(1+G4),IF(F3>2017,E5*(1+F4),1)) -> 1.0185 | G5: =IF(G3<2017,H5/(1+H4),IF(G3>2017,F5*(1+G4),1)) -> 1.0372404 | H5: 1.056325623 | I5: 1.075762015 | J5: 1.095556036 | K5: 1.115714267 | L5: 1.136243409 | M5: 1.157150288 | N5: 1.178441854 | O5: 1.200125184 | P5: 1.222207487 | Q5: 1.244696105 | R5: 1.267598513 | S5: 1.290922326 | T5: 1.314675297 | U5: 1.338865322 | V5: 1.363500444 | W5: 1.388588852 | X5: 1.414138887 | Y5: 1.440159042 | Z5: 1.466657969 | AA5: 1.493644475 | AB5: 1.521127534 | AC5: 1.54911628 | AD5: 1.57762002 | AE5: 1.606648228 | AF5: 1.636210556 | AG5: 1.66631683 | AH5: 1.69697706 | AI5: 1.728201438 | AJ5: 1.760000344 | AK5: 1.79238435 | AL5: 1.825364222 | AM5: 1.858950924 | AN5: 1.893155621 | AO5: 1.927989685 | AP5: 1.963464695 | AQ5: 1.999592445 | AR5: 2.036384946 | AS5: 2.073854429 | AT5: 2.112013351 | AU5: 2.150874396 | AV5: 2.190450485
B7: PRIX COURANTS
D9: ='Données de prix'!D8:AA8 -> Estimation des compléments de rémunération passés par la Cour des Comptes
D10: ='Données de prix'!D9 -> Unité | E10: ='Données de prix'!E9 -> 2018 | F10: ='Données de prix'!F9 -> 2019 | G10: ='Données de prix'!G9 -> 2020 | H10: ='Données de prix'!H9 -> 2021 | I10: ='Données de prix'!I9 -> 2022 | J10: ='Données de prix'!J9 -> 2023 | K10: ='Données de prix'!K9 -> 2024 | L10: ='Données de prix'!L9 -> 2025 | M10: ='Données de prix'!M9 -> 2026 | N10: ='Données de prix'!N9 -> 2027 | O10: ='Données de prix'!O9 -> 2028 | P10: ='Données de prix'!P9 -> 2029 | Q10: ='Données de prix'!Q9 -> 2030 | R10: ='Données de prix'!R9 -> 2031 | S10: ='Données de prix'!S9 -> 2032 | T10: ='Données de prix'!T9 -> 2033 | U10: ='Données de prix'!U9 -> 2034 | V10: ='Données de prix'!V9 -> 2035 | W10: ='Données de prix'!W9 -> 2036 | X10: ='Données de prix'!X9 -> 2037 | Y10: ='Données de prix'!Y9 -> 2038 | Z10: ='Données de prix'!Z9 -> 2039 | AA10: ='Données de prix'!AA9 -> 2040
C11: ='Données de prix'!C10 -> Dépenses au titre des engagements passés | D11: ='Données de prix'!D10 -> M€ | E11: ='Données de prix'!E10 -> 4372.2 | F11: ='Données de prix'!F10 -> 4737.6 | G11: ='Données de prix'!G10 -> 4746.84 | H11: ='Données de prix'!H10 -> 4942.44 | I11: ='Données de prix'!I10 -> 5009.52 | J11: ='Données de prix'!J10 -> 5110.384532 | K11: ='Données de prix'!K10 -> 5376.226635 | L11: ='Données de prix'!L10 -> 5428.486316 | M11: ='Données de prix'!M10 -> 5153.650566 | N11: ='Données de prix'!N10 -> 4927.868181 | O11: ='Données de prix'!O10 -> 4804.063927 | P11: ='Données de prix'!P10 -> 4715.655668 | Q11: ='Données de prix'!Q10 -> 4504.415057 | R11: ='Données de prix'!R10 -> 3898.01277 | S11: ='Données de prix'!S10 -> 2764.56132 | T11: ='Données de prix'!T10 -> 2039.031461 | U11: ='Données de prix'!U10 -> 1703.782005 | V11: ='Données de prix'!V10 -> 1554.298681 | W11: ='Données de prix'!W10 -> 1417.032054 | X11: ='Données de prix'!X10 -> 1191.946374 | Y11: ='Données de prix'!Y10 -> 1046.398327 | Z11: ='Données de prix'!Z10 -> 890.8827574 | AA11: ='Données de prix'!AA10 -> 805.6949975
C12: ='Données de prix'!C11 -> Part de l'éolien en mer dans les dépenses au titre des engagements passés (AO 2011&2013) | D12: ='Données de prix'!D11 -> M€ | E12: ='Données de prix'!E11 -> 0 | F12: ='Données de prix'!F11 -> 0 | G12: ='Données de prix'!G11 -> 0 | H12: ='Données de prix'!H11 -> 189.969375 | I12: ='Données de prix'!I11 -> 378.4881375 | J12: ='Données de prix'!J11 -> 482.9539577 | K12: ='Données de prix'!K11 -> 723.7958355 | L12: ='Données de prix'!L11 -> 804.9702621 | M12: ='Données de prix'!M11 -> 790.2751025 | N12: ='Données de prix'!N11 -> 779.5152592 | O12: ='Données de prix'!O11 -> 770.9625405 | P12: ='Données de prix'!P11 -> 763.7652852 | Q12: ='Données de prix'!Q11 -> 757.4551026 | R12: ='Données de prix'!R11 -> 806.0792831 | S12: ='Données de prix'!S11 -> 840.3376029 | T12: ='Données de prix'!T11 -> 865.3145212 | U12: ='Données de prix'!U11 -> 883.941631 | V12: ='Données de prix'!V11 -> 898.0279567 | W12: ='Données de prix'!W11 -> 908.7502527 | X12: ='Données de prix'!X11 -> 916.9069706 | Y12: ='Données de prix'!Y11 -> 923.0589138 | Z12: ='Données de prix'!Z11 -> 890.8827574 | AA12: ='Données de prix'!AA11 -> 805.6949975
C13: ='Données de prix'!C12 -> Dépenses au titre des engagements passés hors éolien en mer | D13: ='Données de prix'!D12 -> M€ | E13: ='Données de prix'!E12 -> 4372.2 | F13: ='Données de prix'!F12 -> 4737.6 | G13: ='Données de prix'!G12 -> 4746.84 | H13: ='Données de prix'!H12 -> 4752.470625 | I13: ='Données de prix'!I12 -> 4631.031862 | J13: ='Données de prix'!J12 -> 4627.430574 | K13: ='Données de prix'!K12 -> 4652.4308 | L13: ='Données de prix'!L12 -> 4623.516054 | M13: ='Données de prix'!M12 -> 4363.375463 | N13: ='Données de prix'!N12 -> 4148.352922 | O13: ='Données de prix'!O12 -> 4033.101386 | P13: ='Données de prix'!P12 -> 3951.890383 | Q13: ='Données de prix'!Q12 -> 3746.959955 | R13: ='Données de prix'!R12 -> 3091.933487 | S13: ='Données de prix'!S12 -> 1924.223717 | T13: ='Données de prix'!T12 -> 1173.71694 | U13: ='Données de prix'!U12 -> 819.8403741 | V13: ='Données de prix'!V12 -> 656.2707244 | W13: ='Données de prix'!W12 -> 508.2818013 | X13: ='Données de prix'!X12 -> 275.039403 | Y13: ='Données de prix'!Y12 -> 123.3394135 | Z13: ='Données de prix'!Z12 -> 0 | AA13: ='Données de prix'!AA12 -> 0
C14: ='Données de prix'!C16 -> Hypothèse de prix marché de la Cour des Comptes | D14: ='Données de prix'!D16 -> €/MWh | E14: ='Données de prix'!E16 -> 35.91 | F14: ='Données de prix'!F16 -> 36.09 | G14: ='Données de prix'!G16 -> 38.3 | H14: ='Données de prix'!H16 -> 38.683 | I14: ='Données de prix'!I16 -> 39.06983 | J14: ='Données de prix'!J16 -> 39.4605283 | K14: ='Données de prix'!K16 -> 39.85513358 | L14: ='Données de prix'!L16 -> 40.25368492 | M14: ='Données de prix'!M16 -> 40.65622177 | N14: ='Données de prix'!N16 -> 41.06278399 | O14: ='Données de prix'!O16 -> 41.47341183 | P14: ='Données de prix'!P16 -> 41.88814594 | Q14: ='Données de prix'!Q16 -> 42.3070274 | R14: ='Données de prix'!R16 -> 42.73009768 | S14: ='Données de prix'!S16 -> 43.15739865 | T14: ='Données de prix'!T16 -> 43.58897264 | U14: ='Données de prix'!U16 -> 44.02486237 | V14: ='Données de prix'!V16 -> 44.46511099 | W14: ='Données de prix'!W16 -> 44.9097621 | X14: ='Données de prix'!X16 -> 45.35885972 | Y14: ='Données de prix'!Y16 -> 45.81244832 | Z14: ='Données de prix'!Z16 -> 46.2705728 | AA14: ='Données de prix'!AA16 -> 46.73327853
E16: Données historiques | F16: =+'Données de production'!E14 -> PPE - AMPERE | K16: ='Données de production'!N14 -> Référence ADEME | P16: ='Données de production'!W14 -> Prolongement nucléaire aisé ADEME | U16: ='Scénario à définir'!E7 -> Scénario à définir
C17: ='Données de prix'!C26 -> Revenus de marché | D17: ='Données de prix'!D26 -> Unité | E17: ='Données de prix'!E26 -> 2017 | F17: ='Données de prix'!F26 -> 2020 | G17: ='Données de prix'!G26 -> 2025 | H17: ='Données de prix'!H26 -> 2030 | I17: ='Données de prix'!I26 -> 2035 | J17: ='Données de prix'!J26 -> 2040 | K17: ='Données de prix'!K26 -> 2020 | L17: ='Données de prix'!L26 -> 2025 | M17: ='Données de prix'!M26 -> 2030 | N17: ='Données de prix'!N26 -> 2035 | O17: ='Données de prix'!O26 -> 2040 | P17: ='Données de prix'!P26 -> 2020 | Q17: ='Données de prix'!Q26 -> 2025 | R17: ='Données de prix'!R26 -> 2030 | S17: ='Données de prix'!S26 -> 2035 | T17: ='Données de prix'!T26 -> 2040 | U17: 2020 | V17: 2025 | W17: 2030 | X17: 2035 | Y17: 2040
C18: ='Données de coûts'!C24 -> Nucléaire | D18: ='Données de prix'!D27 -> €/MWh | E18: ='Données de prix'!E27 -> 47.90213593 | F18: =F54*HLOOKUP(F$17, $E$3:$AB$5, 3, FALSE) -> 53.20093537 | G18: =G54*HLOOKUP(G$17, $E$3:$AB$5, 3, FALSE) -> 63.02707138 | H18: 74.24430433 | I18: 87.02867025 | J18: 101.5771364 | K18: =K54*HLOOKUP(K$17, $E$3:$AB$5, 3, FALSE) -> 41.19669931 | L18: =L54*HLOOKUP(L$17, $E$3:$AB$5, 3, FALSE) -> 56.70036412 | M18: 64.64752417 | N18: 79.14956457 | O18: 98.8732897 | P18: 41.19669931 | Q18: 55.54321383 | R18: 53.23913755 | S18: 63.8750872 | T18: 69.97186656 | U18: =U54*HLOOKUP(U$17, $E$3:$AB$5, 3, FALSE) -> 0 | V18: =V54*HLOOKUP(V$17, $E$3:$AB$5, 3, FALSE) -> 0 | W18: 0 | X18: 0 | Y18: 0
C19: ='Calcul de LCOE'!C35 -> Eolien terrestre | D19: ='Données de prix'!D28 -> €/MWh | E19: ='Données de prix'!E28 -> 48.22849058 | F19: =F55*HLOOKUP(F$17, $E$3:$AB$5, 3, FALSE) -> 45.54268203 | G19: =G55*HLOOKUP(G$17, $E$3:$AB$5, 3, FALSE) -> 47.67459187 | H19: 59.20798182 | I19: 67.31980789 | J19: 76.44074773 | K19: =K55*HLOOKUP(K$17, $E$3:$AB$5, 3, FALSE) -> 39.08404806 | L19: 47.44316182 | M19: 49.43634201 | N19: 61.09790949 | O19: 68.45073902 | P19: 39.08404806 | Q19: 48.6003121 | R19: 40.56315242 | S19: 48.60060982 | T19: 53.23946368 | U19: 0 | V19: 0 | W19: 0 | X19: 0 | Y19: 0
C20: ='Calcul de LCOE'!C36 -> Eolien en mer | D20: ='Données de prix'!D29 -> €/MWh | E20: ='Données de prix'!E29 -> 0 | F20: =F56*HLOOKUP(F$17, $E$3:$AB$5, 3, FALSE) -> 0 | G20: 49.98889245 | H20: 62.31234975 | I20: 72.2792265 | J20: 83.58105844 | K20: =K56*HLOOKUP(K$17, $E$3:$AB$5, 3, FALSE) -> 0 | L20: 50.91461268 | M20: 53.23913755 | N20: 66.6522649 | O20: 77.57750422 | P20: 0 | Q20: 49.75746239 | R20: 44.36594796 | S20: 51.37778753 | T20: 53.23946368 | U20: 0 | V20: 0 | W20: 0 | X20: 0 | Y20: 0
C21: ='Calcul de LCOE'!C37 -> PV au sol | D21: ='Données de prix'!D30 -> €/MWh | E21: ='Données de prix'!E30 -> 43.13735911 | F21: =F57*HLOOKUP(F$17, $E$3:$AB$5, 3, FALSE) -> 42.32557291 | G21: 45.59172136 | H21: 56.26584867 | I21: 66.45388089 | J21: 78.07417231 | K21: =K57*HLOOKUP(K$17, $E$3:$AB$5, 3, FALSE) -> 41.19669931 | L21: 49.75746239 | M21: 50.70394052 | N21: 61.09790949 | O21: 63.88735642 | P21: 41.19669931 | Q21: 49.75746239 | R21: 43.09834944 | S21: 49.98919867 | T21: 50.19720862 | U21: 0 | V21: 0 | W21: 0 | X21: 0 | Y21: 0
C22: ='Calcul de LCOE'!C38 -> PV sur toiture | D22: ='Données de prix'!D31 -> €/MWh | E22: ='Données de prix'!E31 -> 43.13735911 | F22: =F58*HLOOKUP(F$17, $E$3:$AB$5, 3, FALSE) -> 42.32557291 | G22: 45.59172136 | H22: 56.26584867 | I22: 66.45388089 | J22: 78.07417231 | K22: =K58*HLOOKUP(K$17, $E$3:$AB$5, 3, FALSE) -> 41.19669931 | L22: 49.75746239 | M22: 50.70394052 | N22: 61.09790949 | O22: 63.88735642 | P22: 41.19669931 | Q22: 49.75746239 | R22: 43.09834944 | S22: 49.98919867 | T22: 50.19720862 | U22: 0 | V22: 0 | W22: 0 | X22: 0 | Y22: 0
E24: Données historiques | F24: ='Données de production'!E14 -> PPE - AMPERE | K24: ='Données de production'!N14 -> Référence ADEME | P24: ='Données de production'!W14 -> Prolongement nucléaire aisé ADEME | U24: ='Scénario à définir'!E7 -> Scénario à définir
C25: Variables | D25: Unité | E25: 2017 | F25: 2020 | G25: 2025 | H25: 2030 | I25: 2035 | J25: 2040 | K25: 2020 | L25: 2025 | M25: 2030 | N25: 2035 | O25: 2040 | P25: 2020 | Q25: 2025 | R25: 2030 | S25: 2035 | T25: 2040 | U25: 2020 | V25: 2025 | W25: 2030 | X25: 2035 | Y25: 2040
C26: Prix de marché moyen | D26: €/MWh | E26: ='Données de prix'!E22 -> 50.49797673 | F26: =F62*HLOOKUP(F$17, $E$3:$AB$5, 3, FALSE) -> 49.91031709 | G26: =G62*HLOOKUP(G$17, $E$3:$AB$5, 3, FALSE) -> 56.46893406 | H26: 74.30697949 | I26: 90.49569524 | J26: 109.0978202 | K26: =K62*HLOOKUP(K$17, $E$3:$AB$5, 3, FALSE) -> 41.19669931 | L26: =L62*HLOOKUP(L$17, $E$3:$AB$5, 3, FALSE) -> 55.54321383 | M26: 62.11232714 | N26: 74.98379801 | O26: 91.26765203 | P26: 41.19669931 | Q26: 54.38606355 | R26: 50.70394052 | S26: 59.70932064 | T26: 63.88735642 | U26: =U62*HLOOKUP(U$17, $E$3:$AB$5, 3, FALSE) -> 0 | V26: =V62*HLOOKUP(V$17, $E$3:$AB$5, 3, FALSE) -> 0 | W26: 0 | X26: 0 | Y26: 0
C27: Prix du CO2 | D27: €/tCO2 | E27: ='Données de prix'!E23 -> 8.15 | F27: =F63*HLOOKUP(F$17, $E$3:$AB$5, 3, FALSE) -> 18.76034307 | G27: 61.66453886 | H27: 112.5880999 | I27: 147.9957999 | J27: 189.1522088 | K27: =K63*HLOOKUP(K$17, $E$3:$AB$5, 3, FALSE) -> 18.76034307 | L27: 29.28747379 | M27: 41.65328714 | N27: 53.65507324 | O27: 67.55327378 | P27: =P63*HLOOKUP(P$17, $E$3:$AB$5, 3, FALSE) -> 18.76034307 | Q27: 29.28747379 | R27: 41.65328714 | S27: 53.65507324 | T27: 67.55327378 | U27: =U63*HLOOKUP(U$17, $E$3:$AB$5, 3, FALSE) -> 0 | V27: 0 | W27: 0 | X27: 0 | Y27: 0
C29: CAPEX | D29: Unité | E29: 2020 | F29: 2025 | G29: 2030 | H29: 2035 | I29: 2040 | J29: 2045 | K29: 2050 | L29: 2055 | M29: 2060
C30: Eolien terrestre | D30: €/MW | E30: =E66*HLOOKUP(E$29, $E$3:$AV$5, 3, FALSE) -> 2069356.351 | F30: =F66*HLOOKUP(F$29, $E$3:$AV$5, 3, FALSE) -> 2156002.417 | G30: =G66*HLOOKUP(G$29, $E$3:$AV$5, 3, FALSE) -> 2040073.047 | H30: 2010676.658 | I30: 1942023.522 | J30: 2127386.697 | K30: 2330442.503 | L30: 2552879.675 | M30: 2796548.134
C31: Eolien en mer | D31: €/MW | E31: =E67*HLOOKUP(E$29, $E$3:$AV$5, 3, FALSE) -> 7758096.606 | F31: 3910220.706 | G31: 4283445.29 | H31: 4074939.916 | I31: 3787607.559 | J31: 4065813.065 | K31: 4362620.492 | L31: 4779025.944 | M31: 5235176.659
C32: PV au sol | D32: €/MW | E32: =E68*HLOOKUP(E$29, $E$3:$AV$5, 3, FALSE) -> 985122.2685 | F32: 877119.9185 | G32: 897459.7473 | H32: 919384.679 | I32: 901876.5148 | J32: 886480.5536 | K32: 880920.7737 | L32: 965003.314 | M32: 1057111.404
C33: PV sur toiture | D33: €/MW | E33: =E69*HLOOKUP(E$29, $E$3:$AV$5, 3, FALSE) -> 1266363.713 | F33: 1279808.219 | G33: 1216894.573 | H33: 1110871.082 | I33: 1052011.802 | J33: 1124763.86 | K33: 1199629.367 | L33: 1314132.155 | M33: =M69*HLOOKUP(M$29, $E$3:$AV$5, 3, FALSE) -> 1439564.059
E35: Données historiques | F35: ='Calcul de LCOE'!F32:J32 -> Scénario par défaut
C36: ='Données de coûts'!C23 -> Prix d'attribution des projets | D36: ='Calcul de LCOE'!D33 -> Unité | E36: 2017 | F36: ='Calcul de LCOE'!F33 -> 2020 | G36: ='Calcul de LCOE'!G33 -> 2025 | H36: ='Calcul de LCOE'!H33 -> 2030 | I36: ='Calcul de LCOE'!I33 -> 2035 | J36: ='Calcul de LCOE'!J33 -> 2040
C37: ='Données de coûts'!C24 -> Nucléaire | D37: ='Calcul de LCOE'!D34 -> €/MWh | E37: =E73 -> 0 | F37: =F73*HLOOKUP(F$36, $E$3:$AV$5, 3, FALSE) -> 0 | G37: =G73*HLOOKUP(G$36, $E$3:$AV$5, 3, FALSE) -> 0 | H37: 107.7458736 | I37: 118.0300524 | J37: 129.2958404
C38: ='Calcul de LCOE'!C35 -> Eolien terrestre | D38: ='Calcul de LCOE'!D35 -> €/MWh | E38: =E74 -> 65.4 | F38: =F74*HLOOKUP(F$36, $E$3:$AV$5, 3, FALSE) -> 66.73432849 | G38: 68.81466675 | H38: 66.08559194 | I38: 66.00381404 | J38: 65.50429573
C39: ='Calcul de LCOE'!C36 -> Eolien en mer | D39: ='Calcul de LCOE'!D36 -> €/MWh | E39: 140 | F39: =F75*HLOOKUP(F$36, $E$3:$AV$5, 3, FALSE) -> 59.15423491 | G39: 62.48611556 | H39: 65.91512268 | I39: 69.4294426 | J39: 68.45073902
C40: ='Calcul de LCOE'!C37 -> PV au sol | D40: ='Calcul de LCOE'!D37 -> €/MWh | E40: 63.9 | F40: =F76*HLOOKUP(F$36, $E$3:$AV$5, 3, FALSE) -> 61.19196622 | G40: 55.51721641 | H40: 56.58044871 | I40: 57.78015319 | J40: 57.12639755
C41: ='Calcul de LCOE'!C38 -> PV sur toiture | D41: ='Calcul de LCOE'!D38 -> €/MWh | E41: 85 | F41: =F77*HLOOKUP(F$36, $E$3:$AV$5, 3, FALSE) -> 85.42806538 | G41: =G77*HLOOKUP(G$36, $E$3:$AV$5, 3, FALSE) -> 85.62249194 | H41: 81.79533059 | I41: 76.19309876 | J41: 73.89931052
B43: PRIX CONSTANTS
E45: =D9 -> Estimation des compléments de rémunération passés par la Cour des Comptes
D46: Unité | E46: 2018 | F46: 2019 | G46: 2020 | H46: 2021 | I46: 2022 | J46: 2023 | K46: 2024 | L46: 2025 | M46: 2026 | N46: 2027 | O46: 2028 | P46: 2029 | Q46: 2030 | R46: 2031 | S46: 2032 | T46: 2033 | U46: 2034 | V46: 2035 | W46: 2036 | X46: 2037 | Y46: 2038 | Z46: 2039 | AA46: 2040
C47: =+C11 -> Dépenses au titre des engagements passés | D47: M€ | E47: =E11/HLOOKUP(E$46, $E$3:$AB$5, 3, FALSE) -> 4292.783505 | F47: =F11/HLOOKUP(F$46, $E$3:$AB$5, 3, FALSE) -> 4567.504312 | G47: =G11/HLOOKUP(G$46, $E$3:$AB$5, 3, FALSE) -> 4493.727971 | H47: 4594.361887 | I47: 4572.582174 | J47: 4580.370336 | K47: 4731.580038 | L47: 4691.254344 | M47: 4373.275228 | N47: 4106.128467 | O47: 3930.645146 | P47: 3788.600004 | Q47: 3553.502951 | R47: 3019.556399 | S47: 2102.847241 | T47: 1522.954869 | U47: 1249.564687 | V47: 1119.336857 | W47: 1002.045886 | X47: 827.6491265 | Y47: 713.457636 | Z47: 596.4490024 | AA47: 529.6695902
C48: =+C12 -> Part de l'éolien en mer dans les dépenses au titre des engagements passés (AO 2011&2013) | D48: =+D12 -> M€ | E48: =E12/HLOOKUP(E$46, $E$3:$AB$5, 3, FALSE) -> 0 | F48: =F12/HLOOKUP(F$46, $E$3:$AB$5, 3, FALSE) -> 0 | G48: 0 | H48: 176.5905213 | I48: 345.4758361 | J48: 432.8652703 | K48: 637.0077304 | L48: 695.6488455 | M48: 670.6101791 | N48: 649.5282907 | O48: 630.795138 | P48: 613.6158716 | Q48: 597.551271 | R48: 624.4212119 | S48: 639.1978347 | T48: 646.3043795 | U48: 648.2884805 | V48: 646.7198374 | W48: 642.6173985 | X48: 636.670634 | Y48: 629.3620827 | Z48: 596.4490024 | AA48: 529.6695902
C49: =+C13 -> Dépenses au titre des engagements passés hors éolien en mer | D49: =+D13 -> M€ | E49: =E13/HLOOKUP(E$46, $E$3:$AB$5, 3, FALSE) -> 4292.783505 | F49: 4567.504312 | G49: 4493.727971 | H49: 4417.771365 | I49: 4227.106338 | J49: 4147.505066 | K49: 4094.572308 | L49: 3995.605498 | M49: 3702.665049 | N49: 3456.600177 | O49: 3299.850008 | P49: 3174.984133 | Q49: 2955.95168 | R49: 2395.135188 | S49: 1463.649406 | T49: 876.6504896 | U49: 601.2762062 | V49: 472.6170194 | W49: 359.4284875 | X49: 190.9784925 | Y49: 84.09555336 | Z49: 0 | AA49: 0
C50: =+C14 -> Hypothèse de prix marché de la Cour des Comptes | D50: €/MWh | E50: ='Données de prix'!E16/HLOOKUP(E$46, $E$3:$AB$5, 3, FALSE) -> 35.25773196 | F50: ='Données de prix'!F16/HLOOKUP(F$46, $E$3:$AB$5, 3, FALSE) -> 34.79424828 | G50: ='Données de prix'!G16/HLOOKUP(G$46, $E$3:$AB$5, 3, FALSE) -> 36.25775912 | H50: ='Données de prix'!H16/HLOOKUP(H$46, $E$3:$AB$5, 3, FALSE) -> 35.95869669 | I50: ='Données de prix'!I16/HLOOKUP(I$46, $E$3:$AB$5, 3, FALSE) -> 35.662101 | J50: ='Données de prix'!J16/HLOOKUP(J$46, $E$3:$AB$5, 3, FALSE) -> 35.3679517 | K50: ='Données de prix'!K16/HLOOKUP(K$46, $E$3:$AB$5, 3, FALSE) -> 35.07622861 | L50: ='Données de prix'!L16/HLOOKUP(L$46, $E$3:$AB$5, 3, FALSE) -> 34.78691172 | M50: ='Données de prix'!M16/HLOOKUP(M$46, $E$3:$AB$5, 3, FALSE) -> 34.49998118 | N50: ='Données de prix'!N16/HLOOKUP(N$46, $E$3:$AB$5, 3, FALSE) -> 34.21541731 | O50: ='Données de prix'!O16/HLOOKUP(O$46, $E$3:$AB$5, 3, FALSE) -> 33.9332006 | P50: ='Données de prix'!P16/HLOOKUP(P$46, $E$3:$AB$5, 3, FALSE) -> 33.65331167 | Q50: ='Données de prix'!Q16/HLOOKUP(Q$46, $E$3:$AB$5, 3, FALSE) -> 33.37573133 | R50: ='Données de prix'!R16/HLOOKUP(R$46, $E$3:$AB$5, 3, FALSE) -> 33.10044053 | S50: ='Données de prix'!S16/HLOOKUP(S$46, $E$3:$AB$5, 3, FALSE) -> 32.8274204 | T50: ='Données de prix'!T16/HLOOKUP(T$46, $E$3:$AB$5, 3, FALSE) -> 32.55665221 | U50: ='Données de prix'!U16/HLOOKUP(U$46, $E$3:$AB$5, 3, FALSE) -> 32.28811737 | V50: ='Données de prix'!V16/HLOOKUP(V$46, $E$3:$AB$5, 3, FALSE) -> 32.02179747 | W50: ='Données de prix'!W16/HLOOKUP(W$46, $E$3:$AB$5, 3, FALSE) -> 31.75767424 | X50: ='Données de prix'!X16/HLOOKUP(X$46, $E$3:$AB$5, 3, FALSE) -> 31.49572956 | Y50: ='Données de prix'!Y16/HLOOKUP(Y$46, $E$3:$AB$5, 3, FALSE) -> 31.23594546 | Z50: ='Données de prix'!Z16/HLOOKUP(Z$46, $E$3:$AB$5, 3, FALSE) -> 30.97830412 | AA50: ='Données de prix'!AA16/HLOOKUP(AA$46, $E$3:$AB$5, 3, FALSE) -> 30.72278786
E52: Données historiques | F52: ='Données de production'!E14 -> PPE - AMPERE | K52: ='Données de production'!N14 -> Référence ADEME | P52: ='Données de production'!W14 -> Prolongement nucléaire aisé ADEME | U52: ='Scénario à définir'!E7 -> Scénario à définir
C53: Revenus de marché | D53: Unité | E53: 2017 | F53: 2020 | G53: 2025 | H53: 2030 | I53: 2035 | J53: 2040 | K53: 2020 | L53: 2025 | M53: 2030 | N53: 2035 | O53: 2040 | P53: 2020 | Q53: 2025 | R53: 2030 | S53: 2035 | T53: 2040 | U53: 2020 | V53: 2025 | W53: 2030 | X53: 2035 | Y53: 2040
C54: ='Données de coûts'!C24 -> Nucléaire | D54: €/MWh | E54: =E18/HLOOKUP(E$53, $E$3:$AB$5, 3, FALSE) -> 47.90213593 | F54: ='Données de prix'!F27 -> 50.36414359 | G54: ='Données de prix'!G27 -> 54.46748968 | H54: ='Données de prix'!H27 -> 58.57083577 | I54: ='Données de prix'!I27 -> 62.67418186 | J54: ='Données de prix'!J27 -> 66.77752796 | K54: ='Données de prix'!K27 -> 39 | L54: ='Données de prix'!L27 -> 49 | M54: ='Données de prix'!M27 -> 51 | N54: ='Données de prix'!N27 -> 57 | O54: ='Données de prix'!O27 -> 65 | P54: ='Données de prix'!P27 -> 39 | Q54: ='Données de prix'!Q27 -> 48 | R54: ='Données de prix'!R27 -> 42 | S54: ='Données de prix'!S27 -> 46 | T54: ='Données de prix'!T27 -> 46 | U54: ='Scénario à définir'!E37 -> 0 | V54: ='Scénario à définir'!F37 -> 0 | W54: ='Scénario à définir'!G37 -> 0 | X54: ='Scénario à définir'!H37 -> 0 | Y54: ='Scénario à définir'!I37 -> 0
C55: ='Calcul de LCOE'!C35 -> Eolien terrestre | D55: €/MWh | E55: =E19/HLOOKUP(E$53, $E$3:$AB$5, 3, FALSE) -> 48.22849058 | F55: ='Données de prix'!F28 -> 43.11424529 | G55: ='Données de prix'!G28 -> 41.2 | H55: ='Données de prix'!H28 -> 46.70878137 | I55: ='Données de prix'!I28 -> 48.48073481 | J55: ='Données de prix'!J28 -> 50.25268824 | K55: ='Données de prix'!K28 -> 37 | L55: ='Données de prix'!L28 -> 41 | M55: ='Données de prix'!M28 -> 39 | N55: ='Données de prix'!N28 -> 44 | O55: ='Données de prix'!O28 -> 45 | P55: ='Données de prix'!P28 -> 37 | Q55: ='Données de prix'!Q28 -> 42 | R55: ='Données de prix'!R28 -> 32 | S55: ='Données de prix'!S28 -> 35 | T55: ='Données de prix'!T28 -> 35 | U55: ='Scénario à définir'!E38 -> 0 | V55: ='Scénario à définir'!F38 -> 0 | W55: ='Scénario à définir'!G38 -> 0 | X55: ='Scénario à définir'!H38 -> 0 | Y55: ='Scénario à définir'!I38 -> 0
C56: ='Calcul de LCOE'!C36 -> Eolien en mer | D56: €/MWh | E56: =E20/HLOOKUP(E$53, $E$3:$AB$5, 3, FALSE) -> 0 | F56: ='Données de prix'!F29 -> 0 | G56: ='Données de prix'!G29 -> 43.2 | H56: ='Données de prix'!H29 -> 49.1577965 | I56: ='Données de prix'!I29 -> 52.05228775 | J56: ='Données de prix'!J29 -> 54.946779 | K56: ='Données de prix'!K29 -> 0 | L56: ='Données de prix'!L29 -> 44 | M56: ='Données de prix'!M29 -> 42 | N56: ='Données de prix'!N29 -> 48 | O56: ='Données de prix'!O29 -> 51 | P56: ='Données de prix'!P29 -> 0 | Q56: ='Données de prix'!Q29 -> 43 | R56: ='Données de prix'!R29 -> 35 | S56: ='Données de prix'!S29 -> 37 | T56: ='Données de prix'!T29 -> 35 | U56: ='Scénario à définir'!E39 -> 0 | V56: ='Scénario à définir'!F39 -> 0 | W56: ='Scénario à définir'!G39 -> 0 | X56: ='Scénario à définir'!H39 -> 0 | Y56: ='Scénario à définir'!I39 -> 0
C57: ='Calcul de LCOE'!C37 -> PV au sol | D57: €/MWh | E57: =E21/HLOOKUP(E$53, $E$3:$AB$5, 3, FALSE) -> 43.13735911 | F57: ='Données de prix'!F30 -> 40.06867956 | G57: ='Données de prix'!G30 -> 39.4 | H57: ='Données de prix'!H30 -> 44.38775219 | I57: ='Données de prix'!I30 -> 47.85713265 | J57: ='Données de prix'!J30 -> 51.32651311 | K57: ='Données de prix'!K30 -> 39 | L57: ='Données de prix'!L30 -> 43 | M57: ='Données de prix'!M30 -> 40 | N57: ='Données de prix'!N30 -> 44 | O57: ='Données de prix'!O30 -> 42 | P57: ='Données de prix'!P30 -> 39 | Q57: ='Données de prix'!Q30 -> 43 | R57: ='Données de prix'!R30 -> 34 | S57: ='Données de prix'!S30 -> 36 | T57: ='Données de prix'!T30 -> 33 | U57: ='Scénario à définir'!E40 -> 0 | V57: ='Scénario à définir'!F40 -> 0 | W57: ='Scénario à définir'!G40 -> 0 | X57: ='Scénario à définir'!H40 -> 0 | Y57: ='Scénario à définir'!I40 -> 0
C58: ='Calcul de LCOE'!C38 -> PV sur toiture | D58: €/MWh | E58: =E22/HLOOKUP(E$53, $E$3:$AB$5, 3, FALSE) -> 43.13735911 | F58: ='Données de prix'!F31 -> 40.06867956 | G58: ='Données de prix'!G31 -> 39.4 | H58: ='Données de prix'!H31 -> 44.38775219 | I58: ='Données de prix'!I31 -> 47.85713265 | J58: ='Données de prix'!J31 -> 51.32651311 | K58: ='Données de prix'!K31 -> 39 | L58: ='Données de prix'!L31 -> 43 | M58: ='Données de prix'!M31 -> 40 | N58: ='Données de prix'!N31 -> 44 | O58: ='Données de prix'!O31 -> 42 | P58: ='Données de prix'!P31 -> 39 | Q58: ='Données de prix'!Q31 -> 43 | R58: ='Données de prix'!R31 -> 34 | S58: ='Données de prix'!S31 -> 36 | T58: ='Données de prix'!T31 -> 33 | U58: ='Scénario à définir'!E41 -> 0 | V58: ='Scénario à définir'!F41 -> 0 | W58: ='Scénario à définir'!G41 -> 0 | X58: ='Scénario à définir'!H41 -> 0 | Y58: ='Scénario à définir'!I41 -> 0
E60: Données historiques | F60: ='Données de production'!E14 -> PPE - AMPERE | K60: ='Données de production'!N14 -> Référence ADEME | P60: ='Données de production'!W14 -> Prolongement nucléaire aisé ADEME | U60: ='Scénario à définir'!E7 -> Scénario à définir
C61: Variables | D61: Unité | E61: 2017 | F61: 2020 | G61: 2025 | H61: 2030 | I61: 2035 | J61: 2040 | K61: 2020 | L61: 2025 | M61: 2030 | N61: 2035 | O61: 2040 | P61: 2020 | Q61: 2025 | R61: 2030 | S61: 2035 | T61: 2040 | U61: 2020 | V61: 2025 | W61: 2030 | X61: 2035 | Y61: 2040
C62: Prix de marché moyen | D62: €/MWh | E62: =E26/HLOOKUP(E$53, $E$3:$AB$5, 3, FALSE) -> 50.49797673 | F62: ='Données de prix'!F22 -> 47.24898836 | G62: ='Données de prix'!G22 -> 48.8 | H62: ='Données de prix'!H22 -> 58.62027978 | I62: ='Données de prix'!I22 -> 65.17097924 | J62: ='Données de prix'!J22 -> 71.72167869 | K62: ='Données de prix'!K22 -> 39 | L62: ='Données de prix'!L22 -> 48 | M62: ='Données de prix'!M22 -> 49 | N62: ='Données de prix'!N22 -> 54 | O62: ='Données de prix'!O22 -> 60 | P62: ='Données de prix'!P22 -> 39 | Q62: ='Données de prix'!Q22 -> 47 | R62: ='Données de prix'!R22 -> 40 | S62: ='Données de prix'!S22 -> 43 | T62: ='Données de prix'!T22 -> 42 | U62: ='Scénario à définir'!E45 -> 0 | V62: ='Scénario à définir'!F45 -> 0 | W62: ='Scénario à définir'!G45 -> 0 | X62: ='Scénario à définir'!H45 -> 0 | Y62: ='Scénario à définir'!I45 -> 0
C63: Prix du CO2 | D63: €/tCO2 | E63: =E27/HLOOKUP(E$61, $E$3:$AB$5, 3, FALSE) -> 8.15 | F63: ='Données de prix'!F23 -> 17.76 | G63: ='Données de prix'!G23 -> 53.29 | H63: ='Données de prix'!H23 -> 88.82 | I63: ='Données de prix'!I23 -> 106.58 | J63: ='Données de prix'!J23 -> 124.35 | K63: ='Données de prix'!K23 -> 17.76 | L63: ='Données de prix'!L23 -> 25.31 | M63: ='Données de prix'!M23 -> 32.86 | N63: ='Données de prix'!N23 -> 38.64 | O63: ='Données de prix'!O23 -> 44.41 | P63: ='Données de prix'!P23 -> 17.76 | Q63: ='Données de prix'!Q23 -> 25.31 | R63: ='Données de prix'!R23 -> 32.86 | S63: ='Données de prix'!S23 -> 38.64 | T63: ='Données de prix'!T23 -> 44.41 | U63: ='Scénario à définir'!E46 -> 0 | V63: ='Scénario à définir'!F46 -> 0 | W63: ='Scénario à définir'!G46 -> 0 | X63: ='Scénario à définir'!H46 -> 0 | Y63: ='Scénario à définir'!I46 -> 0
C65: CAPEX | D65: Unité | E65: 2020 | F65: 2025 | G65: 2030 | H65: 2035 | I65: 2040 | J65: 2045 | K65: 2050 | L65: 2055 | M65: 2060
C66: Eolien terrestre | D66: €/MW | E66: ='Données de coûts'!E17 -> 1959013.684 | F66: ='Données de coûts'!F17 -> 1863200 | G66: ='Données de coûts'!G17 -> 1609400 | H66: ='Données de coûts'!H17 -> 1448000 | I66: ='Données de coûts'!I17 -> 1276700 | J66: ='Données de coûts'!J17 -> 1276700 | K66: ='Données de coûts'!K17 -> 1276700 | L66: ='Données de coûts'!L17 -> 1276700 | M66: ='Données de coûts'!M17 -> 1276700
C67: Eolien en mer | D67: €/MW | E67: ='Données de coûts'!E18 -> 7344417.701 | F67: ='Données de coûts'!F18 -> 3379181.378 | G67: ='Données de coûts'!G18 -> 3379181.378 | H67: ='Données de coûts'!H18 -> 2934590.689 | I67: ='Données de coûts'!I18 -> 2490000 | J67: ='Données de coûts'!J18 -> 2440000 | K67: ='Données de coûts'!K18 -> 2390000 | L67: ='Données de coûts'!L18 -> 2390000 | M67: ='Données de coûts'!M18 -> 2390000
C68: PV au sol | D68: €/MW | E68: ='Données de coûts'!E19 -> 932593.3658 | F68: ='Données de coûts'!F19 -> 758000 | G68: ='Données de coûts'!G19 -> 708000 | H68: ='Données de coûts'!H19 -> 662100 | I68: ='Données de coûts'!I19 -> 592900 | J68: ='Données de coûts'!J19 -> 532000 | K68: ='Données de coûts'!K19 -> 482600 | L68: ='Données de coûts'!L19 -> 482600 | M68: ='Données de coûts'!M19 -> 482600
C69: PV sur toiture | D69: €/MW | E69: ='Données de coûts'!E20 -> 1198838.393 | F69: ='Données de coûts'!F20 -> 1106000 | G69: ='Données de coûts'!G20 -> 960000 | H69: ='Données de coûts'!H20 -> 800000 | I69: ='Données de coûts'!I20 -> 691600 | J69: ='Données de coûts'!J20 -> 675000 | K69: ='Données de coûts'!K20 -> 657200 | L69: ='Données de coûts'!L20 -> 657200 | M69: ='Données de coûts'!M20 -> 657200
E71: Données historiques | F71: =F35 -> Scénario par défaut
C72: =C36 -> Prix d'attribution des projets | D72: Unité | E72: 2017 | F72: 2020 | G72: 2025 | H72: 2030 | I72: 2035 | J72: 2040
C73: =C54 -> Nucléaire | D73: €/MWh | E73: ='Données de coûts'!E24 -> 0 | F73: ='Données de coûts'!F24 -> 0 | G73: ='Données de coûts'!G24 -> 0 | H73: ='Données de coûts'!H24 -> 85 | I73: ='Données de coûts'!I24 -> 85 | J73: ='Données de coûts'!J24 -> 85
C74: ='Calcul de LCOE'!C35 -> Eolien terrestre | D74: €/MWh | E74: ='Calcul de LCOE'!E35 -> 65.4 | F74: ='Calcul de LCOE'!F35 -> 63.1759062 | G74: ='Calcul de LCOE'!G35 -> 59.46908319 | H74: ='Calcul de LCOE'!H35 -> 52.13448206 | I74: ='Calcul de LCOE'!I35 -> 47.5330145 | J74: ='Calcul de LCOE'!J35 -> 43.06298734
C75: ='Calcul de LCOE'!C36 -> Eolien en mer | D75: €/MWh | E75: ='Données de coûts'!E26 -> 140 | F75: ='Données de coûts'!F26 -> 56 | G75: ='Données de coûts'!G26 -> 54 | H75: ='Données de coûts'!H26 -> 52 | I75: ='Données de coûts'!I26 -> 50 | J75: ='Données de coûts'!J26 -> 45
C76: ='Calcul de LCOE'!C37 -> PV au sol | D76: €/MWh | E76: ='Calcul de LCOE'!E37 -> 63.9 | F76: ='Calcul de LCOE'!F37 -> 57.92907496 | G76: ='Calcul de LCOE'!G37 -> 47.97753323 | H76: ='Calcul de LCOE'!H37 -> 44.63593805 | I76: ='Calcul de LCOE'!I37 -> 41.61069931 | J76: ='Calcul de LCOE'!J37 -> 37.55529781
C77: ='Calcul de LCOE'!C38 -> PV sur toiture | D77: €/MWh | E77: ='Calcul de LCOE'!E38 -> 85 | F77: ='Calcul de LCOE'!F38 -> 80.8728516 | G77: ='Calcul de LCOE'!G38 -> 73.99427094 | H77: ='Calcul de LCOE'!H38 -> 64.52778995 | I77: ='Calcul de LCOE'!I38 -> 54.87088467 | J77: ='Calcul de LCOE'!J38 -> 48.58192944

Sheet Scénarios choisis - défaut (hidden)
E3: Données historiques | F3: Scénario sélectionné
C4: Capacité installée de production d'électricité | D4: Unité | E4: 2017 | F4: 2018 | G4: 2019 | H4: 2020 | I4: 2021 | J4: 2022 | K4: 2025 | L4: 2030 | M4: 2035 | N4: 2040
C5: ='Données de production'!C5 -> Nucléaire | D5: GW | E5: ='Données de production'!V5 -> 63.13 | F5: =IF(ISBLANK('Données de production'!W5), IF(Start!$D$3='Données de production'!$E$14,'Données de production'!E16,IF(Start!$D$3='Données de production'!$N$14,'Données de production'!N16,IF(Start!$D$3='Données de production'!$W$14,'Données de production'!W16,"ENTRER UN CALCUL"))), 'Données de production'!W5) -> 63.10833333 | G5: =IF(ISBLANK('Données de production'!X5), IF(Start!$D$3='Données de production'!$E$14,'Données de production'!F16,IF(Start!$D$3='Données de production'!$N$14,'Données de production'!O16,IF(Start!$D$3='Données de production'!$W$14,'Données de production'!X16,"ENTRER UN CALCUL"))), 'Données de production'!X5) -> 63.08666667 | H5: =IF(ISBLANK('Données de production'!Y5), IF(Start!$D$3='Données de production'!$E$14,'Données de production'!G16,IF(Start!$D$3='Données de production'!$N$14,'Données de production'!P16,IF(Start!$D$3='Données de production'!$W$14,'Données de production'!Y16,"ENTRER UN CALCUL"))), 'Données de production'!Y5) -> 63.065 | I5: =IF(ISBLANK('Données de production'!Z5), IF(Start!$D$3='Données de production'!$E$14,'Données de production'!H16,IF(Start!$D$3='Données de production'!$N$14,'Données de production'!Q16,IF(Start!$D$3='Données de production'!$W$14,'Données de production'!Z16,"ENTRER UN CALCUL"))), 'Données de production'!Z5) -> 63.04333333 | J5: =IF(ISBLANK('Données de production'!AA5), IF(Start!$D$3='Données de production'!$E$14,'Données de production'!I16,IF(Start!$D$3='Données de production'!$N$14,'Données de production'!R16,IF(Start!$D$3='Données de production'!$W$14,'Données de production'!AA16,"ENTRER UN CALCUL"))), 'Données de production'!AA5) -> 63.02166667 | K5: =IF(ISBLANK('Données de production'!AB5), IF(Start!$D$3='Données de production'!$E$14,'Données de production'!J16,IF(Start!$D$3='Données de production'!$N$14,'Données de production'!S16,IF(Start!$D$3='Données de production'!$W$14,'Données de production'!AB16,"ENTRER UN CALCUL"))), 'Données de production'!AB5) -> 63 | L5: =IF(ISBLANK('Données de production'!AC5), IF(Start!$D$3='Données de production'!$E$14,'Données de production'!K16,IF(Start!$D$3='Données de production'!$N$14,'Données de production'!T16,IF(Start!$D$3='Données de production'!$W$14,'Données de production'!AC16,"ENTRER UN CALCUL"))), 'Données de production'!AC5) -> 56.28571429 | M5: =IF(ISBLANK('Données de production'!AD5), IF(Start!$D$3='Données de production'!$E$14,'Données de production'!L16,IF(Start!$D$3='Données de production'!$N$14,'Données de production'!U16,IF(Start!$D$3='Données de production'!$W$14,'Données de production'!AD16,"ENTRER UN CALCUL"))), 'Données de production'!AD5) -> 48.5 | N5: =IF(ISBLANK('Données de production'!AE5), IF(Start!$D$3='Données de production'!$E$14,'Données de production'!M16,IF(Start!$D$3='Données de production'!$N$14,'Données de production'!V16,IF(Start!$D$3='Données de production'!$W$14,'Données de production'!AE16,"ENTRER UN CALCUL"))), 'Données de production'!AE5) -> 40.71428571
C6: ='Données de production'!C6 -> Eolien terrestre | D6: GW | E6: ='Données de production'!V6 -> 13.55 | F6: =IF(ISBLANK('Données de production'!W6), IF(Start!$D$3='Données de production'!$E$14,'Données de production'!E17,IF(Start!$D$3='Données de production'!$N$14,'Données de production'!N17,IF(Start!$D$3='Données de production'!$W$14,'Données de production'!W17,"ENTRER UN CALCUL"))), 'Données de production'!W6) -> 15.575 | G6: =IF(ISBLANK('Données de production'!X6), IF(Start!$D$3='Données de production'!$E$14,'Données de production'!F17,IF(Start!$D$3='Données de production'!$N$14,'Données de production'!O17,IF(Start!$D$3='Données de production'!$W$14,'Données de production'!X17,"ENTRER UN CALCUL"))), 'Données de production'!X6) -> 17.6 | H6: =IF(ISBLANK('Données de production'!Y6), IF(Start!$D$3='Données de production'!$E$14,'Données de production'!G17,IF(Start!$D$3='Données de production'!$N$14,'Données de production'!P17,IF(Start!$D$3='Données de production'!$W$14,'Données de production'!Y17,"ENTRER UN CALCUL"))), 'Données de production'!Y6) -> 19.625 | I6: =IF(ISBLANK('Données de production'!Z6), IF(Start!$D$3='Données de production'!$E$14,'Données de production'!H17,IF(Start!$D$3='Données de production'!$N$14,'Données de production'!Q17,IF(Start!$D$3='Données de production'!$W$14,'Données de production'!Z17,"ENTRER UN CALCUL"))), 'Données de production'!Z6) -> 21.65 | J6: =IF(ISBLANK('Données de production'!AA6), IF(Start!$D$3='Données de production'!$E$14,'Données de production'!I17,IF(Start!$D$3='Données de production'!$N$14,'Données de production'!R17,IF(Start!$D$3='Données de production'!$W$14,'Données de production'!AA17,"ENTRER UN CALCUL"))), 'Données de production'!AA6) -> 23.675 | K6: =IF(ISBLANK('Données de production'!AB6), IF(Start!$D$3='Données de production'!$E$14,'Données de production'!J17,IF(Start!$D$3='Données de production'!$N$14,'Données de production'!S17,IF(Start!$D$3='Données de production'!$W$14,'Données de production'!AB17,"ENTRER UN CALCUL"))), 'Données de production'!AB6) -> 29.36 | L6: =IF(ISBLANK('Données de production'!AC6), IF(Start!$D$3='Données de production'!$E$14,'Données de production'!K17,IF(Start!$D$3='Données de production'!$N$14,'Données de production'!T17,IF(Start!$D$3='Données de production'!$W$14,'Données de production'!AC17,"ENTRER UN CALCUL"))), 'Données de production'!AC6) -> 39.83571429 | M6: =IF(ISBLANK('Données de production'!AD6), IF(Start!$D$3='Données de production'!$E$14,'Données de production'!L17,IF(Start!$D$3='Données de production'!$N$14,'Données de production'!U17,IF(Start!$D$3='Données de production'!$W$14,'Données de production'!AD17,"ENTRER UN CALCUL"))), 'Données de production'!AD6) -> 52.3 | N6: =IF(ISBLANK('Données de production'!AE6), IF(Start!$D$3='Données de production'!$E$14,'Données de production'!M17,IF(Start!$D$3='Données de production'!$N$14,'Données de production'!V17,IF(Start!$D$3='Données de production'!$W$14,'Données de production'!AE17,"ENTRER UN CALCUL"))), 'Données de production'!AE6) -> 64.76428571
C7: ='Données de production'!C7 -> Eolien en mer | D7: GW | E7: ='Données de production'!V7 -> 0 | F7: =IF(ISBLANK('Données de production'!W7), IF(Start!$D$3='Données de production'!$E$14,'Données de production'!E18,IF(Start!$D$3='Données de production'!$N$14,'Données de production'!N18,IF(Start!$D$3='Données de production'!$W$14,'Données de production'!W18,"ENTRER UN CALCUL"))), 'Données de production'!W7) -> 0 | G7: =IF(ISBLANK('Données de production'!X7), IF(Start!$D$3='Données de production'!$E$14,'Données de production'!F18,IF(Start!$D$3='Données de production'!$N$14,'Données de production'!O18,IF(Start!$D$3='Données de production'!$W$14,'Données de production'!X18,"ENTRER UN CALCUL"))), 'Données de production'!X7) -> 0 | H7: =IF(ISBLANK('Données de production'!Y7), IF(Start!$D$3='Données de production'!$E$14,'Données de production'!G18,IF(Start!$D$3='Données de production'!$N$14,'Données de production'!P18,IF(Start!$D$3='Données de production'!$W$14,'Données de production'!Y18,"ENTRER UN CALCUL"))), 'Données de production'!Y7) -> 0 | I7: =IF(ISBLANK('Données de production'!Z7), IF(Start!$D$3='Données de production'!$E$14,'Données de production'!H18,IF(Start!$D$3='Données de production'!$N$14,'Données de production'!Q18,IF(Start!$D$3='Données de production'!$W$14,'Données de production'!Z18,"ENTRER UN CALCUL"))), 'Données de production'!Z7) -> 0.8 | J7: =IF(ISBLANK('Données de production'!AA7), IF(Start!$D$3='Données de production'!$E$14,'Données de production'!I18,IF(Start!$D$3='Données de production'!$N$14,'Données de production'!R18,IF(Start!$D$3='Données de production'!$W$14,'Données de production'!AA18,"ENTRER UN CALCUL"))), 'Données de production'!AA7) -> 1.6 | K7: =IF(ISBLANK('Données de production'!AB7), IF(Start!$D$3='Données de production'!$E$14,'Données de production'!J18,IF(Start!$D$3='Données de production'!$N$14,'Données de production'!S18,IF(Start!$D$3='Données de production'!$W$14,'Données de production'!AB18,"ENTRER UN CALCUL"))), 'Données de production'!AB7) -> 3.42 | L7: =IF(ISBLANK('Données de production'!AC7), IF(Start!$D$3='Données de production'!$E$14,'Données de production'!K18,IF(Start!$D$3='Données de production'!$N$14,'Données de production'!T18,IF(Start!$D$3='Données de production'!$W$14,'Données de production'!AC18,"ENTRER UN CALCUL"))), 'Données de production'!AC7) -> 7.821428571 | M7: =IF(ISBLANK('Données de production'!AD7), IF(Start!$D$3='Données de production'!$E$14,'Données de production'!L18,IF(Start!$D$3='Données de production'!$N$14,'Données de production'!U18,IF(Start!$D$3='Données de production'!$W$14,'Données de production'!AD18,"ENTRER UN CALCUL"))), 'Données de production'!AD7) -> 15 | N7: =IF(ISBLANK('Données de production'!AE7), IF(Start!$D$3='Données de production'!$E$14,'Données de production'!M18,IF(Start!$D$3='Données de production'!$N$14,'Données de production'!V18,IF(Start!$D$3='Données de production'!$W$14,'Données de production'!AE18,"ENTRER UN CALCUL"))), 'Données de production'!AE7) -> 22.17857143
C8: ='Données de production'!C8 -> PV au sol | D8: GW | E8: ='Données de production'!V8 -> 4.178612325 | F8: =IF(ISBLANK('Données de production'!W8), IF(Start!$D$3='Données de production'!$E$14,'Données de production'!E19,IF(Start!$D$3='Données de production'!$N$14,'Données de production'!N19,IF(Start!$D$3='Données de production'!$W$14,'Données de production'!W19,"ENTRER UN CALCUL"))), 'Données de production'!W8) -> 5.415510271 | G8: =IF(ISBLANK('Données de production'!X8), IF(Start!$D$3='Données de production'!$E$14,'Données de production'!F19,IF(Start!$D$3='Données de production'!$N$14,'Données de production'!O19,IF(Start!$D$3='Données de production'!$W$14,'Données de production'!X19,"ENTRER UN CALCUL"))), 'Données de production'!X8) -> 6.652408217 | H8: =IF(ISBLANK('Données de production'!Y8), IF(Start!$D$3='Données de production'!$E$14,'Données de production'!G19,IF(Start!$D$3='Données de production'!$N$14,'Données de production'!P19,IF(Start!$D$3='Données de production'!$W$14,'Données de production'!Y19,"ENTRER UN CALCUL"))), 'Données de production'!Y8) -> 7.889306162 | I8: =IF(ISBLANK('Données de production'!Z8), IF(Start!$D$3='Données de production'!$E$14,'Données de production'!H19,IF(Start!$D$3='Données de production'!$N$14,'Données de production'!Q19,IF(Start!$D$3='Données de production'!$W$14,'Données de production'!Z19,"ENTRER UN CALCUL"))), 'Données de production'!Z8) -> 9.126204108 | J8: =IF(ISBLANK('Données de production'!AA8), IF(Start!$D$3='Données de production'!$E$14,'Données de production'!I19,IF(Start!$D$3='Données de production'!$N$14,'Données de production'!R19,IF(Start!$D$3='Données de production'!$W$14,'Données de production'!AA19,"ENTRER UN CALCUL"))), 'Données de production'!AA8) -> 10.36310205 | K8: =IF(ISBLANK('Données de production'!AB8), IF(Start!$D$3='Données de production'!$E$14,'Données de production'!J19,IF(Start!$D$3='Données de production'!$N$14,'Données de production'!S19,IF(Start!$D$3='Données de production'!$W$14,'Données de production'!AB19,"ENTRER UN CALCUL"))), 'Données de production'!AB8) -> 16.08 | L8: =IF(ISBLANK('Données de production'!AC8), IF(Start!$D$3='Données de production'!$E$14,'Données de production'!K19,IF(Start!$D$3='Données de production'!$N$14,'Données de production'!T19,IF(Start!$D$3='Données de production'!$W$14,'Données de production'!AC19,"ENTRER UN CALCUL"))), 'Données de production'!AC8) -> 24.51383066 | M8: =IF(ISBLANK('Données de production'!AD8), IF(Start!$D$3='Données de production'!$E$14,'Données de production'!L19,IF(Start!$D$3='Données de production'!$N$14,'Données de production'!U19,IF(Start!$D$3='Données de production'!$W$14,'Données de production'!AD19,"ENTRER UN CALCUL"))), 'Données de production'!AD8) -> 28.79840731 | N8: =IF(ISBLANK('Données de production'!AE8), IF(Start!$D$3='Données de production'!$E$14,'Données de production'!M19,IF(Start!$D$3='Données de production'!$N$14,'Données de production'!V19,IF(Start!$D$3='Données de production'!$W$14,'Données de production'!AE19,"ENTRER UN CALCUL"))), 'Données de production'!AE8) -> 33.08298396
C9: ='Données de production'!C9 -> PV sur toiture | D9: GW | E9: ='Données de production'!V9 -> 3.475387675 | F9: =IF(ISBLANK('Données de production'!W9), IF(Start!$D$3='Données de production'!$E$14,'Données de production'!E20,IF(Start!$D$3='Données de production'!$N$14,'Données de production'!N20,IF(Start!$D$3='Données de production'!$W$14,'Données de production'!W20,"ENTRER UN CALCUL"))), 'Données de production'!W9) -> 4.396156396 | G9: =IF(ISBLANK('Données de production'!X9), IF(Start!$D$3='Données de production'!$E$14,'Données de production'!F20,IF(Start!$D$3='Données de production'!$N$14,'Données de production'!O20,IF(Start!$D$3='Données de production'!$W$14,'Données de production'!X20,"ENTRER UN CALCUL"))), 'Données de production'!X9) -> 5.316925117 | H9: =IF(ISBLANK('Données de production'!Y9), IF(Start!$D$3='Données de production'!$E$14,'Données de production'!G20,IF(Start!$D$3='Données de production'!$N$14,'Données de production'!P20,IF(Start!$D$3='Données de production'!$W$14,'Données de production'!Y20,"ENTRER UN CALCUL"))), 'Données de production'!Y9) -> 6.237693838 | I9: =IF(ISBLANK('Données de production'!Z9), IF(Start!$D$3='Données de production'!$E$14,'Données de production'!H20,IF(Start!$D$3='Données de production'!$N$14,'Données de production'!Q20,IF(Start!$D$3='Données de production'!$W$14,'Données de production'!Z20,"ENTRER UN CALCUL"))), 'Données de production'!Z9) -> 7.158462558 | J9: =IF(ISBLANK('Données de production'!AA9), IF(Start!$D$3='Données de production'!$E$14,'Données de production'!I20,IF(Start!$D$3='Données de production'!$N$14,'Données de production'!R20,IF(Start!$D$3='Données de production'!$W$14,'Données de production'!AA20,"ENTRER UN CALCUL"))), 'Données de production'!AA9) -> 8.079231279 | K9: =IF(ISBLANK('Données de production'!AB9), IF(Start!$D$3='Données de production'!$E$14,'Données de production'!J20,IF(Start!$D$3='Données de production'!$N$14,'Données de production'!S20,IF(Start!$D$3='Données de production'!$W$14,'Données de production'!AB20,"ENTRER UN CALCUL"))), 'Données de production'!AB9) -> 12.3 | L9: =IF(ISBLANK('Données de production'!AC9), IF(Start!$D$3='Données de production'!$E$14,'Données de production'!K20,IF(Start!$D$3='Données de production'!$N$14,'Données de production'!T20,IF(Start!$D$3='Données de production'!$W$14,'Données de production'!AC20,"ENTRER UN CALCUL"))), 'Données de production'!AC9) -> 17.95045505 | M9: =IF(ISBLANK('Données de production'!AD9), IF(Start!$D$3='Données de production'!$E$14,'Données de production'!L20,IF(Start!$D$3='Données de production'!$N$14,'Données de production'!U20,IF(Start!$D$3='Données de production'!$W$14,'Données de production'!AD20,"ENTRER UN CALCUL"))), 'Données de production'!AD9) -> 19.70159269 | N9: =IF(ISBLANK('Données de production'!AE9), IF(Start!$D$3='Données de production'!$E$14,'Données de production'!M20,IF(Start!$D$3='Données de production'!$N$14,'Données de production'!V20,IF(Start!$D$3='Données de production'!$W$14,'Données de production'!AE20,"ENTRER UN CALCUL"))), 'Données de production'!AE9) -> 21.45273033
C10: ='Données de production'!C10 -> Autres EnRe | D10: GW | E10: ='Données de production'!V10 -> 1.9528 | F10: =IF(ISBLANK('Données de production'!W10), IF(Start!$D$3='Données de production'!$E$14,'Données de production'!E21,IF(Start!$D$3='Données de production'!$N$14,'Données de production'!N21,IF(Start!$D$3='Données de production'!$W$14,'Données de production'!W21,"ENTRER UN CALCUL"))), 'Données de production'!W10) -> 1.809666667 | G10: =IF(ISBLANK('Données de production'!X10), IF(Start!$D$3='Données de production'!$E$14,'Données de production'!F21,IF(Start!$D$3='Données de production'!$N$14,'Données de production'!O21,IF(Start!$D$3='Données de production'!$W$14,'Données de production'!X21,"ENTRER UN CALCUL"))), 'Données de production'!X10) -> 1.666533333 | H10: =IF(ISBLANK('Données de production'!Y10), IF(Start!$D$3='Données de production'!$E$14,'Données de production'!G21,IF(Start!$D$3='Données de production'!$N$14,'Données de production'!P21,IF(Start!$D$3='Données de production'!$W$14,'Données de production'!Y21,"ENTRER UN CALCUL"))), 'Données de production'!Y10) -> 1.5234 | I10: =IF(ISBLANK('Données de production'!Z10), IF(Start!$D$3='Données de production'!$E$14,'Données de production'!H21,IF(Start!$D$3='Données de production'!$N$14,'Données de production'!Q21,IF(Start!$D$3='Données de production'!$W$14,'Données de production'!Z21,"ENTRER UN CALCUL"))), 'Données de production'!Z10) -> 1.380266667 | J10: =IF(ISBLANK('Données de production'!AA10), IF(Start!$D$3='Données de production'!$E$14,'Données de production'!I21,IF(Start!$D$3='Données de production'!$N$14,'Données de production'!R21,IF(Start!$D$3='Données de production'!$W$14,'Données de production'!AA21,"ENTRER UN CALCUL"))), 'Données de production'!AA10) -> 1.237133333 | K10: =IF(ISBLANK('Données de production'!AB10), IF(Start!$D$3='Données de production'!$E$14,'Données de production'!J21,IF(Start!$D$3='Données de production'!$N$14,'Données de production'!S21,IF(Start!$D$3='Données de production'!$W$14,'Données de production'!AB21,"ENTRER UN CALCUL"))), 'Données de production'!AB10) -> 1.136 | L10: =IF(ISBLANK('Données de production'!AC10), IF(Start!$D$3='Données de production'!$E$14,'Données de production'!K21,IF(Start!$D$3='Données de production'!$N$14,'Données de production'!T21,IF(Start!$D$3='Données de production'!$W$14,'Données de production'!AC21,"ENTRER UN CALCUL"))), 'Données de production'!AC10) -> 2.027857143 | M10: =IF(ISBLANK('Données de production'!AD10), IF(Start!$D$3='Données de production'!$E$14,'Données de production'!L21,IF(Start!$D$3='Données de production'!$N$14,'Données de production'!U21,IF(Start!$D$3='Données de production'!$W$14,'Données de production'!AD21,"ENTRER UN CALCUL"))), 'Données de production'!AD10) -> 4.1 | N10: =IF(ISBLANK('Données de production'!AE10), IF(Start!$D$3='Données de production'!$E$14,'Données de production'!M21,IF(Start!$D$3='Données de production'!$N$14,'Données de production'!V21,IF(Start!$D$3='Données de production'!$W$14,'Données de production'!AE21,"ENTRER UN CALCUL"))), 'Données de production'!AE10) -> 6.172142857
C11: ='Données de production'!C11 -> Hydraulique | D11: GW | E11: ='Données de production'!V11 -> 25.5211 | F11: =IF(ISBLANK('Données de production'!W11), IF(Start!$D$3='Données de production'!$E$14,'Données de production'!E22,IF(Start!$D$3='Données de production'!$N$14,'Données de production'!N22,IF(Start!$D$3='Données de production'!$W$14,'Données de production'!W22,"ENTRER UN CALCUL"))), 'Données de production'!W11) -> 25.51758333 | G11: =IF(ISBLANK('Données de production'!X11), IF(Start!$D$3='Données de production'!$E$14,'Données de production'!F22,IF(Start!$D$3='Données de production'!$N$14,'Données de production'!O22,IF(Start!$D$3='Données de production'!$W$14,'Données de production'!X22,"ENTRER UN CALCUL"))), 'Données de production'!X11) -> 25.51406667 | H11: =IF(ISBLANK('Données de production'!Y11), IF(Start!$D$3='Données de production'!$E$14,'Données de production'!G22,IF(Start!$D$3='Données de production'!$N$14,'Données de production'!P22,IF(Start!$D$3='Données de production'!$W$14,'Données de production'!Y22,"ENTRER UN CALCUL"))), 'Données de production'!Y11) -> 25.51055 | I11: =IF(ISBLANK('Données de production'!Z11), IF(Start!$D$3='Données de production'!$E$14,'Données de production'!H22,IF(Start!$D$3='Données de production'!$N$14,'Données de production'!Q22,IF(Start!$D$3='Données de production'!$W$14,'Données de production'!Z22,"ENTRER UN CALCUL"))), 'Données de production'!Z11) -> 25.50703333 | J11: =IF(ISBLANK('Données de production'!AA11), IF(Start!$D$3='Données de production'!$E$14,'Données de production'!I22,IF(Start!$D$3='Données de production'!$N$14,'Données de production'!R22,IF(Start!$D$3='Données de production'!$W$14,'Données de production'!AA22,"ENTRER UN CALCUL"))), 'Données de production'!AA11) -> 25.50351667 | K11: =IF(ISBLANK('Données de production'!AB11), IF(Start!$D$3='Données de production'!$E$14,'Données de production'!J22,IF(Start!$D$3='Données de production'!$N$14,'Données de production'!S22,IF(Start!$D$3='Données de production'!$W$14,'Données de production'!AB22,"ENTRER UN CALCUL"))), 'Données de production'!AB11) -> 25.5 | L11: =IF(ISBLANK('Données de production'!AC11), IF(Start!$D$3='Données de production'!$E$14,'Données de production'!K22,IF(Start!$D$3='Données de production'!$N$14,'Données de production'!T22,IF(Start!$D$3='Données de production'!$W$14,'Données de production'!AC22,"ENTRER UN CALCUL"))), 'Données de production'!AC11) -> 25.5 | M11: =IF(ISBLANK('Données de production'!AD11), IF(Start!$D$3='Données de production'!$E$14,'Données de production'!L22,IF(Start!$D$3='Données de production'!$N$14,'Données de production'!U22,IF(Start!$D$3='Données de production'!$W$14,'Données de production'!AD22,"ENTRER UN CALCUL"))), 'Données de production'!AD11) -> 25.5 | N11: =IF(ISBLANK('Données de production'!AE11), IF(Start!$D$3='Données de production'!$E$14,'Données de production'!M22,IF(Start!$D$3='Données de production'!$N$14,'Données de production'!V22,IF(Start!$D$3='Données de production'!$W$14,'Données de production'!AE22,"ENTRER UN CALCUL"))), 'Données de production'!AE11) -> 25.5
C12: ='Données de production'!C12 -> Fossile | D12: GW | E12: ='Données de production'!V12 -> 19.0277 | F12: =IF(ISBLANK('Données de production'!W12), IF(Start!$D$3='Données de production'!$E$14,'Données de production'!E23,IF(Start!$D$3='Données de production'!$N$14,'Données de production'!N23,IF(Start!$D$3='Données de production'!$W$14,'Données de production'!W23,"ENTRER UN CALCUL"))), 'Données de production'!W12) -> 17.93975 | G12: =IF(ISBLANK('Données de production'!X12), IF(Start!$D$3='Données de production'!$E$14,'Données de production'!F23,IF(Start!$D$3='Données de production'!$N$14,'Données de production'!O23,IF(Start!$D$3='Données de production'!$W$14,'Données de production'!X23,"ENTRER UN CALCUL"))), 'Données de production'!X12) -> 16.8518 | H12: =IF(ISBLANK('Données de production'!Y12), IF(Start!$D$3='Données de production'!$E$14,'Données de production'!G23,IF(Start!$D$3='Données de production'!$N$14,'Données de production'!P23,IF(Start!$D$3='Données de production'!$W$14,'Données de production'!Y23,"ENTRER UN CALCUL"))), 'Données de production'!Y12) -> 15.76385 | I12: =IF(ISBLANK('Données de production'!Z12), IF(Start!$D$3='Données de production'!$E$14,'Données de production'!H23,IF(Start!$D$3='Données de production'!$N$14,'Données de production'!Q23,IF(Start!$D$3='Données de production'!$W$14,'Données de production'!Z23,"ENTRER UN CALCUL"))), 'Données de production'!Z12) -> 14.6759 | J12: =IF(ISBLANK('Données de production'!AA12), IF(Start!$D$3='Données de production'!$E$14,'Données de production'!I23,IF(Start!$D$3='Données de production'!$N$14,'Données de production'!R23,IF(Start!$D$3='Données de production'!$W$14,'Données de production'!AA23,"ENTRER UN CALCUL"))), 'Données de production'!AA12) -> 13.58795 | K12: =IF(ISBLANK('Données de production'!AB12), IF(Start!$D$3='Données de production'!$E$14,'Données de production'!J23,IF(Start!$D$3='Données de production'!$N$14,'Données de production'!S23,IF(Start!$D$3='Données de production'!$W$14,'Données de production'!AB23,"ENTRER UN CALCUL"))), 'Données de production'!AB12) -> 12.5 | L12: =IF(ISBLANK('Données de production'!AC12), IF(Start!$D$3='Données de production'!$E$14,'Données de production'!K23,IF(Start!$D$3='Données de production'!$N$14,'Données de production'!T23,IF(Start!$D$3='Données de production'!$W$14,'Données de production'!AC23,"ENTRER UN CALCUL"))), 'Données de production'!AC12) -> 12.5 | M12: =IF(ISBLANK('Données de production'!AD12), IF(Start!$D$3='Données de production'!$E$14,'Données de production'!L23,IF(Start!$D$3='Données de production'!$N$14,'Données de production'!U23,IF(Start!$D$3='Données de production'!$W$14,'Données de production'!AD23,"ENTRER UN CALCUL"))), 'Données de production'!AD12) -> 12.5 | N12: =IF(ISBLANK('Données de production'!AE12), IF(Start!$D$3='Données de production'!$E$14,'Données de production'!M23,IF(Start!$D$3='Données de production'!$N$14,'Données de production'!V23,IF(Start!$D$3='Données de production'!$W$14,'Données de production'!AE23,"ENTRER UN CALCUL"))), 'Données de production'!AE12) -> 12.5
E14: Données historiques | F14: Scénario sélectionné
C15: Production d'électricité | D15: Unité | E15: 2017 | F15: 2018 | G15: 2019 | H15: 2020 | I15: 2021 | J15: 2022 | K15: 2025 | L15: 2030 | M15: 2035 | N15: 2040
C16: ='Données de production'!C5 -> Nucléaire | D16: TWh | E16: ='Données de production'!V27 -> 379.1 | F16: =IF(ISBLANK('Données de production'!W27), IF(Start!$D$3='Données de production'!$E$40,'Données de production'!E42,IF(Start!$D$3='Données de production'!$N$40,'Données de production'!N42,IF(Start!$D$3='Données de production'!$W$40,'Données de production'!W42,"ENTRER UN CALCUL"))), 'Données de production'!W27) -> 381.4166667 | G16: =IF(ISBLANK('Données de production'!X27), IF(Start!$D$3='Données de production'!$E$40,'Données de production'!F42,IF(Start!$D$3='Données de production'!$N$40,'Données de production'!O42,IF(Start!$D$3='Données de production'!$W$40,'Données de production'!X42,"ENTRER UN CALCUL"))), 'Données de production'!X27) -> 383.7333333 | H16: =IF(ISBLANK('Données de production'!Y27), IF(Start!$D$3='Données de production'!$E$40,'Données de production'!G42,IF(Start!$D$3='Données de production'!$N$40,'Données de production'!P42,IF(Start!$D$3='Données de production'!$W$40,'Données de production'!Y42,"ENTRER UN CALCUL"))), 'Données de production'!Y27) -> 386.05 | I16: =IF(ISBLANK('Données de production'!Z27), IF(Start!$D$3='Données de production'!$E$40,'Données de production'!H42,IF(Start!$D$3='Données de production'!$N$40,'Données de production'!Q42,IF(Start!$D$3='Données de production'!$W$40,'Données de production'!Z42,"ENTRER UN CALCUL"))), 'Données de production'!Z27) -> 388.3666667 | J16: =IF(ISBLANK('Données de production'!AA27), IF(Start!$D$3='Données de production'!$E$40,'Données de production'!I42,IF(Start!$D$3='Données de production'!$N$40,'Données de production'!R42,IF(Start!$D$3='Données de production'!$W$40,'Données de production'!AA42,"ENTRER UN CALCUL"))), 'Données de production'!AA27) -> 390.6833333 | K16: =IF(ISBLANK('Données de production'!AB27), IF(Start!$D$3='Données de production'!$E$40,'Données de production'!J42,IF(Start!$D$3='Données de production'!$N$40,'Données de production'!S42,IF(Start!$D$3='Données de production'!$W$40,'Données de production'!AB42,"ENTRER UN CALCUL"))), 'Données de production'!AB27) -> 386.4 | L16: =IF(ISBLANK('Données de production'!AC27), IF(Start!$D$3='Données de production'!$E$40,'Données de production'!K42,IF(Start!$D$3='Données de production'!$N$40,'Données de production'!T42,IF(Start!$D$3='Données de production'!$W$40,'Données de production'!AC42,"ENTRER UN CALCUL"))), 'Données de production'!AC27) -> 352.8714286 | M16: =IF(ISBLANK('Données de production'!AD27), IF(Start!$D$3='Données de production'!$E$40,'Données de production'!L42,IF(Start!$D$3='Données de production'!$N$40,'Données de production'!U42,IF(Start!$D$3='Données de production'!$W$40,'Données de production'!AD42,"ENTRER UN CALCUL"))), 'Données de production'!AD27) -> 293.8 | N16: =IF(ISBLANK('Données de production'!AE27), IF(Start!$D$3='Données de production'!$E$40,'Données de production'!M42,IF(Start!$D$3='Données de production'!$N$40,'Données de production'!V42,IF(Start!$D$3='Données de production'!$W$40,'Données de production'!AE42,"ENTRER UN CALCUL"))), 'Données de production'!AE27) -> 234.7285714
C17: ='Données de production'!C6 -> Eolien terrestre | D17: TWh | E17: ='Données de production'!V28 -> 24 | F17: =IF(ISBLANK('Données de production'!W28), IF(Start!$D$3='Données de production'!$E$40,'Données de production'!E43,IF(Start!$D$3='Données de production'!$N$40,'Données de production'!N43,IF(Start!$D$3='Données de production'!$W$40,'Données de production'!W43,"ENTRER UN CALCUL"))), 'Données de production'!W28) -> 29 | G17: =IF(ISBLANK('Données de production'!X28), IF(Start!$D$3='Données de production'!$E$40,'Données de production'!F43,IF(Start!$D$3='Données de production'!$N$40,'Données de production'!O43,IF(Start!$D$3='Données de production'!$W$40,'Données de production'!X43,"ENTRER UN CALCUL"))), 'Données de production'!X28) -> 34 | H17: =IF(ISBLANK('Données de production'!Y28), IF(Start!$D$3='Données de production'!$E$40,'Données de production'!G43,IF(Start!$D$3='Données de production'!$N$40,'Données de production'!P43,IF(Start!$D$3='Données de production'!$W$40,'Données de production'!Y43,"ENTRER UN CALCUL"))), 'Données de production'!Y28) -> 39 | I17: =IF(ISBLANK('Données de production'!Z28), IF(Start!$D$3='Données de production'!$E$40,'Données de production'!H43,IF(Start!$D$3='Données de production'!$N$40,'Données de production'!Q43,IF(Start!$D$3='Données de production'!$W$40,'Données de production'!Z43,"ENTRER UN CALCUL"))), 'Données de production'!Z28) -> 44 | J17: =IF(ISBLANK('Données de production'!AA28), IF(Start!$D$3='Données de production'!$E$40,'Données de production'!I43,IF(Start!$D$3='Données de production'!$N$40,'Données de production'!R43,IF(Start!$D$3='Données de production'!$W$40,'Données de production'!AA43,"ENTRER UN CALCUL"))), 'Données de production'!AA28) -> 49 | K17: =IF(ISBLANK('Données de production'!AB28), IF(Start!$D$3='Données de production'!$E$40,'Données de production'!J43,IF(Start!$D$3='Données de production'!$N$40,'Données de production'!S43,IF(Start!$D$3='Données de production'!$W$40,'Données de production'!AB43,"ENTRER UN CALCUL"))), 'Données de production'!AB28) -> 64.8 | L17: =IF(ISBLANK('Données de production'!AC28), IF(Start!$D$3='Données de production'!$E$40,'Données de production'!K43,IF(Start!$D$3='Données de production'!$N$40,'Données de production'!T43,IF(Start!$D$3='Données de production'!$W$40,'Données de production'!AC43,"ENTRER UN CALCUL"))), 'Données de production'!AC28) -> 90.6 | M17: =IF(ISBLANK('Données de production'!AD28), IF(Start!$D$3='Données de production'!$E$40,'Données de production'!L43,IF(Start!$D$3='Données de production'!$N$40,'Données de production'!U43,IF(Start!$D$3='Données de production'!$W$40,'Données de production'!AD43,"ENTRER UN CALCUL"))), 'Données de production'!AD28) -> 114.6 | N17: =IF(ISBLANK('Données de production'!AE28), IF(Start!$D$3='Données de production'!$E$40,'Données de production'!M43,IF(Start!$D$3='Données de production'!$N$40,'Données de production'!V43,IF(Start!$D$3='Données de production'!$W$40,'Données de production'!AE43,"ENTRER UN CALCUL"))), 'Données de production'!AE28) -> 138.6
C18: ='Données de production'!C7 -> Eolien en mer | D18: TWh | E18: ='Données de production'!V29 -> 0 | F18: =IF(ISBLANK('Données de production'!W29), IF(Start!$D$3='Données de production'!$E$40,'Données de production'!E44,IF(Start!$D$3='Données de production'!$N$40,'Données de production'!N44,IF(Start!$D$3='Données de production'!$W$40,'Données de production'!W44,"ENTRER UN CALCUL"))), 'Données de production'!W29) -> 0 | G18: =IF(ISBLANK('Données de production'!X29), IF(Start!$D$3='Données de production'!$E$40,'Données de production'!F44,IF(Start!$D$3='Données de production'!$N$40,'Données de production'!O44,IF(Start!$D$3='Données de production'!$W$40,'Données de production'!X44,"ENTRER UN CALCUL"))), 'Données de production'!X29) -> 0 | H18: =IF(ISBLANK('Données de production'!Y29), IF(Start!$D$3='Données de production'!$E$40,'Données de production'!G44,IF(Start!$D$3='Données de production'!$N$40,'Données de production'!P44,IF(Start!$D$3='Données de production'!$W$40,'Données de production'!Y44,"ENTRER UN CALCUL"))), 'Données de production'!Y29) -> 0 | I18: =IF(ISBLANK('Données de production'!Z29), IF(Start!$D$3='Données de production'!$E$40,'Données de production'!H44,IF(Start!$D$3='Données de production'!$N$40,'Données de production'!Q44,IF(Start!$D$3='Données de production'!$W$40,'Données de production'!Z44,"ENTRER UN CALCUL"))), 'Données de production'!Z29) -> 3 | J18: =IF(ISBLANK('Données de production'!AA29), IF(Start!$D$3='Données de production'!$E$40,'Données de production'!I44,IF(Start!$D$3='Données de production'!$N$40,'Données de production'!R44,IF(Start!$D$3='Données de production'!$W$40,'Données de production'!AA44,"ENTRER UN CALCUL"))), 'Données de production'!AA29) -> 6 | K18: =IF(ISBLANK('Données de production'!AB29), IF(Start!$D$3='Données de production'!$E$40,'Données de production'!J44,IF(Start!$D$3='Données de production'!$N$40,'Données de production'!S44,IF(Start!$D$3='Données de production'!$W$40,'Données de production'!AB44,"ENTRER UN CALCUL"))), 'Données de production'!AB29) -> 9.2 | L18: =IF(ISBLANK('Données de production'!AC29), IF(Start!$D$3='Données de production'!$E$40,'Données de production'!K44,IF(Start!$D$3='Données de production'!$N$40,'Données de production'!T44,IF(Start!$D$3='Données de production'!$W$40,'Données de production'!AC44,"ENTRER UN CALCUL"))), 'Données de production'!AC29) -> 20.21428571 | M18: =IF(ISBLANK('Données de production'!AD29), IF(Start!$D$3='Données de production'!$E$40,'Données de production'!L44,IF(Start!$D$3='Données de production'!$N$40,'Données de production'!U44,IF(Start!$D$3='Données de production'!$W$40,'Données de production'!AD44,"ENTRER UN CALCUL"))), 'Données de production'!AD29) -> 47 | N18: =IF(ISBLANK('Données de production'!AE29), IF(Start!$D$3='Données de production'!$E$40,'Données de production'!M44,IF(Start!$D$3='Données de production'!$N$40,'Données de production'!V44,IF(Start!$D$3='Données de production'!$W$40,'Données de production'!AE44,"ENTRER UN CALCUL"))), 'Données de production'!AE29) -> 73.78571429
C19: ='Données de production'!C8 -> PV au sol | D19: TWh | E19: ='Données de production'!V30 -> 5.022633053 | F19: =IF(ISBLANK('Données de production'!W30), IF(Start!$D$3='Données de production'!$E$40,'Données de production'!E45,IF(Start!$D$3='Données de production'!$N$40,'Données de production'!N45,IF(Start!$D$3='Données de production'!$W$40,'Données de production'!W45,"ENTRER UN CALCUL"))), 'Données de production'!W30) -> 6.484880295 | G19: =IF(ISBLANK('Données de production'!X30), IF(Start!$D$3='Données de production'!$E$40,'Données de production'!F45,IF(Start!$D$3='Données de production'!$N$40,'Données de production'!O45,IF(Start!$D$3='Données de production'!$W$40,'Données de production'!X45,"ENTRER UN CALCUL"))), 'Données de production'!X30) -> 7.947127537 | H19: =IF(ISBLANK('Données de production'!Y30), IF(Start!$D$3='Données de production'!$E$40,'Données de production'!G45,IF(Start!$D$3='Données de production'!$N$40,'Données de production'!P45,IF(Start!$D$3='Données de production'!$W$40,'Données de production'!Y45,"ENTRER UN CALCUL"))), 'Données de production'!Y30) -> 9.409374779 | I19: =IF(ISBLANK('Données de production'!Z30), IF(Start!$D$3='Données de production'!$E$40,'Données de production'!H45,IF(Start!$D$3='Données de production'!$N$40,'Données de production'!Q45,IF(Start!$D$3='Données de production'!$W$40,'Données de production'!Z45,"ENTRER UN CALCUL"))), 'Données de production'!Z30) -> 10.87162202 | J19: =IF(ISBLANK('Données de production'!AA30), IF(Start!$D$3='Données de production'!$E$40,'Données de production'!I45,IF(Start!$D$3='Données de production'!$N$40,'Données de production'!R45,IF(Start!$D$3='Données de production'!$W$40,'Données de production'!AA45,"ENTRER UN CALCUL"))), 'Données de production'!AA30) -> 12.33386926 | K19: =IF(ISBLANK('Données de production'!AB30), IF(Start!$D$3='Données de production'!$E$40,'Données de production'!J45,IF(Start!$D$3='Données de production'!$N$40,'Données de production'!S45,IF(Start!$D$3='Données de production'!$W$40,'Données de production'!AB45,"ENTRER UN CALCUL"))), 'Données de production'!AB30) -> 19.20800698 | L19: =IF(ISBLANK('Données de production'!AC30), IF(Start!$D$3='Données de production'!$E$40,'Données de production'!K45,IF(Start!$D$3='Données de production'!$N$40,'Données de production'!T45,IF(Start!$D$3='Données de production'!$W$40,'Données de production'!AC45,"ENTRER UN CALCUL"))), 'Données de production'!AC30) -> 29.37523353 | M19: =IF(ISBLANK('Données de production'!AD30), IF(Start!$D$3='Données de production'!$E$40,'Données de production'!L45,IF(Start!$D$3='Données de production'!$N$40,'Données de production'!U45,IF(Start!$D$3='Données de production'!$W$40,'Données de production'!AD45,"ENTRER UN CALCUL"))), 'Données de production'!AD30) -> 34.49871061 | N19: =IF(ISBLANK('Données de production'!AE30), IF(Start!$D$3='Données de production'!$E$40,'Données de production'!M45,IF(Start!$D$3='Données de production'!$N$40,'Données de production'!V45,IF(Start!$D$3='Données de production'!$W$40,'Données de production'!AE45,"ENTRER UN CALCUL"))), 'Données de production'!AE30) -> 39.6221877
C20: ='Données de production'!C9 -> PV sur toiture | D20: TWh | E20: ='Données de production'!V31 -> 4.177366947 | F20: =IF(ISBLANK('Données de production'!W31), IF(Start!$D$3='Données de production'!$E$40,'Données de production'!E46,IF(Start!$D$3='Données de production'!$N$40,'Données de production'!N46,IF(Start!$D$3='Données de production'!$W$40,'Données de production'!W46,"ENTRER UN CALCUL"))), 'Données de production'!W31) -> 5.265119705 | G20: =IF(ISBLANK('Données de production'!X31), IF(Start!$D$3='Données de production'!$E$40,'Données de production'!F46,IF(Start!$D$3='Données de production'!$N$40,'Données de production'!O46,IF(Start!$D$3='Données de production'!$W$40,'Données de production'!X46,"ENTRER UN CALCUL"))), 'Données de production'!X31) -> 6.352872463 | H20: =IF(ISBLANK('Données de production'!Y31), IF(Start!$D$3='Données de production'!$E$40,'Données de production'!G46,IF(Start!$D$3='Données de production'!$N$40,'Données de production'!P46,IF(Start!$D$3='Données de production'!$W$40,'Données de production'!Y46,"ENTRER UN CALCUL"))), 'Données de production'!Y31) -> 7.440625221 | I20: =IF(ISBLANK('Données de production'!Z31), IF(Start!$D$3='Données de production'!$E$40,'Données de production'!H46,IF(Start!$D$3='Données de production'!$N$40,'Données de production'!Q46,IF(Start!$D$3='Données de production'!$W$40,'Données de production'!Z46,"ENTRER UN CALCUL"))), 'Données de production'!Z31) -> 8.528377979 | J20: =IF(ISBLANK('Données de production'!AA31), IF(Start!$D$3='Données de production'!$E$40,'Données de production'!I46,IF(Start!$D$3='Données de production'!$N$40,'Données de production'!R46,IF(Start!$D$3='Données de production'!$W$40,'Données de production'!AA46,"ENTRER UN CALCUL"))), 'Données de production'!AA31) -> 9.616130737 | K20: =IF(ISBLANK('Données de production'!AB31), IF(Start!$D$3='Données de production'!$E$40,'Données de production'!J46,IF(Start!$D$3='Données de production'!$N$40,'Données de production'!S46,IF(Start!$D$3='Données de production'!$W$40,'Données de production'!AB46,"ENTRER UN CALCUL"))), 'Données de production'!AB31) -> 14.69199302 | L20: =IF(ISBLANK('Données de production'!AC31), IF(Start!$D$3='Données de production'!$E$40,'Données de production'!K46,IF(Start!$D$3='Données de production'!$N$40,'Données de production'!T46,IF(Start!$D$3='Données de production'!$W$40,'Données de production'!AC46,"ENTRER UN CALCUL"))), 'Données de production'!AC31) -> 21.51048076 | M20: =IF(ISBLANK('Données de production'!AD31), IF(Start!$D$3='Données de production'!$E$40,'Données de production'!L46,IF(Start!$D$3='Données de production'!$N$40,'Données de production'!U46,IF(Start!$D$3='Données de production'!$W$40,'Données de production'!AD46,"ENTRER UN CALCUL"))), 'Données de production'!AD31) -> 23.60128939 | N20: =IF(ISBLANK('Données de production'!AE31), IF(Start!$D$3='Données de production'!$E$40,'Données de production'!M46,IF(Start!$D$3='Données de production'!$N$40,'Données de production'!V46,IF(Start!$D$3='Données de production'!$W$40,'Données de production'!AE46,"ENTRER UN CALCUL"))), 'Données de production'!AE31) -> 25.69209802
C21: ='Données de production'!C10 -> Autres EnRe | D21: TWh | E21: ='Données de production'!V32 -> 9.5 | F21: =IF(ISBLANK('Données de production'!W32), IF(Start!$D$3='Données de production'!$E$40,'Données de production'!E47,IF(Start!$D$3='Données de production'!$N$40,'Données de production'!N47,IF(Start!$D$3='Données de production'!$W$40,'Données de production'!W47,"ENTRER UN CALCUL"))), 'Données de production'!W32) -> 9.416666667 | G21: =IF(ISBLANK('Données de production'!X32), IF(Start!$D$3='Données de production'!$E$40,'Données de production'!F47,IF(Start!$D$3='Données de production'!$N$40,'Données de production'!O47,IF(Start!$D$3='Données de production'!$W$40,'Données de production'!X47,"ENTRER UN CALCUL"))), 'Données de production'!X32) -> 9.333333333 | H21: =IF(ISBLANK('Données de production'!Y32), IF(Start!$D$3='Données de production'!$E$40,'Données de production'!G47,IF(Start!$D$3='Données de production'!$N$40,'Données de production'!P47,IF(Start!$D$3='Données de production'!$W$40,'Données de production'!Y47,"ENTRER UN CALCUL"))), 'Données de production'!Y32) -> 9.25 | I21: =IF(ISBLANK('Données de production'!Z32), IF(Start!$D$3='Données de production'!$E$40,'Données de production'!H47,IF(Start!$D$3='Données de production'!$N$40,'Données de production'!Q47,IF(Start!$D$3='Données de production'!$W$40,'Données de production'!Z47,"ENTRER UN CALCUL"))), 'Données de production'!Z32) -> 9.166666667 | J21: =IF(ISBLANK('Données de production'!AA32), IF(Start!$D$3='Données de production'!$E$40,'Données de production'!I47,IF(Start!$D$3='Données de production'!$N$40,'Données de production'!R47,IF(Start!$D$3='Données de production'!$W$40,'Données de production'!AA47,"ENTRER UN CALCUL"))), 'Données de production'!AA32) -> 9.083333333 | K21: =IF(ISBLANK('Données de production'!AB32), IF(Start!$D$3='Données de production'!$E$40,'Données de production'!J47,IF(Start!$D$3='Données de production'!$N$40,'Données de production'!S47,IF(Start!$D$3='Données de production'!$W$40,'Données de production'!AB47,"ENTRER UN CALCUL"))), 'Données de production'!AB32) -> 9.2 | L21: =IF(ISBLANK('Données de production'!AC32), IF(Start!$D$3='Données de production'!$E$40,'Données de production'!K47,IF(Start!$D$3='Données de production'!$N$40,'Données de production'!T47,IF(Start!$D$3='Données de production'!$W$40,'Données de production'!AC47,"ENTRER UN CALCUL"))), 'Données de production'!AC32) -> 11.92857143 | M21: =IF(ISBLANK('Données de production'!AD32), IF(Start!$D$3='Données de production'!$E$40,'Données de production'!L47,IF(Start!$D$3='Données de production'!$N$40,'Données de production'!U47,IF(Start!$D$3='Données de production'!$W$40,'Données de production'!AD47,"ENTRER UN CALCUL"))), 'Données de production'!AD32) -> 18 | N21: =IF(ISBLANK('Données de production'!AE32), IF(Start!$D$3='Données de production'!$E$40,'Données de production'!M47,IF(Start!$D$3='Données de production'!$N$40,'Données de production'!V47,IF(Start!$D$3='Données de production'!$W$40,'Données de production'!AE47,"ENTRER UN CALCUL"))), 'Données de production'!AE32) -> 24.07142857
C22: ='Données de production'!C11 -> Hydraulique | D22: TWh | E22: ='Données de production'!V33 -> 53.5 | F22: =IF(ISBLANK('Données de production'!W33), IF(Start!$D$3='Données de production'!$E$40,'Données de production'!E48,IF(Start!$D$3='Données de production'!$N$40,'Données de production'!N48,IF(Start!$D$3='Données de production'!$W$40,'Données de production'!W48,"ENTRER UN CALCUL"))), 'Données de production'!W33) -> 54.91666667 | G22: =IF(ISBLANK('Données de production'!X33), IF(Start!$D$3='Données de production'!$E$40,'Données de production'!F48,IF(Start!$D$3='Données de production'!$N$40,'Données de production'!O48,IF(Start!$D$3='Données de production'!$W$40,'Données de production'!X48,"ENTRER UN CALCUL"))), 'Données de production'!X33) -> 56.33333333 | H22: =IF(ISBLANK('Données de production'!Y33), IF(Start!$D$3='Données de production'!$E$40,'Données de production'!G48,IF(Start!$D$3='Données de production'!$N$40,'Données de production'!P48,IF(Start!$D$3='Données de production'!$W$40,'Données de production'!Y48,"ENTRER UN CALCUL"))), 'Données de production'!Y33) -> 57.75 | I22: =IF(ISBLANK('Données de production'!Z33), IF(Start!$D$3='Données de production'!$E$40,'Données de production'!H48,IF(Start!$D$3='Données de production'!$N$40,'Données de production'!Q48,IF(Start!$D$3='Données de production'!$W$40,'Données de production'!Z48,"ENTRER UN CALCUL"))), 'Données de production'!Z33) -> 59.16666667 | J22: =IF(ISBLANK('Données de production'!AA33), IF(Start!$D$3='Données de production'!$E$40,'Données de production'!I48,IF(Start!$D$3='Données de production'!$N$40,'Données de production'!R48,IF(Start!$D$3='Données de production'!$W$40,'Données de production'!AA48,"ENTRER UN CALCUL"))), 'Données de production'!AA33) -> 60.58333333 | K22: =IF(ISBLANK('Données de production'!AB33), IF(Start!$D$3='Données de production'!$E$40,'Données de production'!J48,IF(Start!$D$3='Données de production'!$N$40,'Données de production'!S48,IF(Start!$D$3='Données de production'!$W$40,'Données de production'!AB48,"ENTRER UN CALCUL"))), 'Données de production'!AB33) -> 62 | L22: =IF(ISBLANK('Données de production'!AC33), IF(Start!$D$3='Données de production'!$E$40,'Données de production'!K48,IF(Start!$D$3='Données de production'!$N$40,'Données de production'!T48,IF(Start!$D$3='Données de production'!$W$40,'Données de production'!AC48,"ENTRER UN CALCUL"))), 'Données de production'!AC33) -> 63.65714286 | M22: =IF(ISBLANK('Données de production'!AD33), IF(Start!$D$3='Données de production'!$E$40,'Données de production'!L48,IF(Start!$D$3='Données de production'!$N$40,'Données de production'!U48,IF(Start!$D$3='Données de production'!$W$40,'Données de production'!AD48,"ENTRER UN CALCUL"))), 'Données de production'!AD33) -> 67.8 | N22: =IF(ISBLANK('Données de production'!AE33), IF(Start!$D$3='Données de production'!$E$40,'Données de production'!M48,IF(Start!$D$3='Données de production'!$N$40,'Données de production'!V48,IF(Start!$D$3='Données de production'!$W$40,'Données de production'!AE48,"ENTRER UN CALCUL"))), 'Données de production'!AE33) -> 71.94285714
C23: ='Données de production'!C12 -> Fossile | D23: TWh | E23: ='Données de production'!V34 -> 53.9 | F23: =IF(ISBLANK('Données de production'!W34), IF(Start!$D$3='Données de production'!$E$40,'Données de production'!E49,IF(Start!$D$3='Données de production'!$N$40,'Données de production'!N49,IF(Start!$D$3='Données de production'!$W$40,'Données de production'!W49,"ENTRER UN CALCUL"))), 'Données de production'!W34) -> 50.58333333 | G23: =IF(ISBLANK('Données de production'!X34), IF(Start!$D$3='Données de production'!$E$40,'Données de production'!F49,IF(Start!$D$3='Données de production'!$N$40,'Données de production'!O49,IF(Start!$D$3='Données de production'!$W$40,'Données de production'!X49,"ENTRER UN CALCUL"))), 'Données de production'!X34) -> 47.26666667 | H23: =IF(ISBLANK('Données de production'!Y34), IF(Start!$D$3='Données de production'!$E$40,'Données de production'!G49,IF(Start!$D$3='Données de production'!$N$40,'Données de production'!P49,IF(Start!$D$3='Données de production'!$W$40,'Données de production'!Y49,"ENTRER UN CALCUL"))), 'Données de production'!Y34) -> 43.95 | I23: =IF(ISBLANK('Données de production'!Z34), IF(Start!$D$3='Données de production'!$E$40,'Données de production'!H49,IF(Start!$D$3='Données de production'!$N$40,'Données de production'!Q49,IF(Start!$D$3='Données de production'!$W$40,'Données de production'!Z49,"ENTRER UN CALCUL"))), 'Données de production'!Z34) -> 40.63333333 | J23: =IF(ISBLANK('Données de production'!AA34), IF(Start!$D$3='Données de production'!$E$40,'Données de production'!I49,IF(Start!$D$3='Données de production'!$N$40,'Données de production'!R49,IF(Start!$D$3='Données de production'!$W$40,'Données de production'!AA49,"ENTRER UN CALCUL"))), 'Données de production'!AA34) -> 37.31666667 | K23: =IF(ISBLANK('Données de production'!AB34), IF(Start!$D$3='Données de production'!$E$40,'Données de production'!J49,IF(Start!$D$3='Données de production'!$N$40,'Données de production'!S49,IF(Start!$D$3='Données de production'!$W$40,'Données de production'!AB49,"ENTRER UN CALCUL"))), 'Données de production'!AB34) -> 33.2 | L23: =IF(ISBLANK('Données de production'!AC34), IF(Start!$D$3='Données de production'!$E$40,'Données de production'!K49,IF(Start!$D$3='Données de production'!$N$40,'Données de production'!T49,IF(Start!$D$3='Données de production'!$W$40,'Données de production'!AC49,"ENTRER UN CALCUL"))), 'Données de production'!AC34) -> 30.45714286 | M23: =IF(ISBLANK('Données de production'!AD34), IF(Start!$D$3='Données de production'!$E$40,'Données de production'!L49,IF(Start!$D$3='Données de production'!$N$40,'Données de production'!U49,IF(Start!$D$3='Données de production'!$W$40,'Données de production'!AD49,"ENTRER UN CALCUL"))), 'Données de production'!AD34) -> 26.6 | N23: =IF(ISBLANK('Données de production'!AE34), IF(Start!$D$3='Données de production'!$E$40,'Données de production'!M49,IF(Start!$D$3='Données de production'!$N$40,'Données de production'!V49,IF(Start!$D$3='Données de production'!$W$40,'Données de production'!AE49,"ENTRER UN CALCUL"))), 'Données de production'!AE34) -> 22.74285714
C24: ='Données de production'!C38 -> Consommation | D24: TWh | E24: ='Données de production'!V38 -> 441.5 | F24: =IF(ISBLANK('Données de production'!W38), IF(Start!$D$3='Données de production'!$E$40,'Données de production'!E53,IF(Start!$D$3='Données de production'!$N$40,'Données de production'!N53,IF(Start!$D$3='Données de production'!$W$40,'Données de production'!W53,"ENTRER UN CALCUL"))), 'Données de production'!W38) -> 460.15 | G24: =IF(ISBLANK('Données de production'!X38), IF(Start!$D$3='Données de production'!$E$40,'Données de production'!F53,IF(Start!$D$3='Données de production'!$N$40,'Données de production'!O53,IF(Start!$D$3='Données de production'!$W$40,'Données de production'!X53,"ENTRER UN CALCUL"))), 'Données de production'!X38) -> 478.8 | H24: =IF(ISBLANK('Données de production'!Y38), IF(Start!$D$3='Données de production'!$E$40,'Données de production'!G53,IF(Start!$D$3='Données de production'!$N$40,'Données de production'!P53,IF(Start!$D$3='Données de production'!$W$40,'Données de production'!Y53,"ENTRER UN CALCUL"))), 'Données de production'!Y38) -> 477.4 | I24: =IF(ISBLANK('Données de production'!Z38), IF(Start!$D$3='Données de production'!$E$40,'Données de production'!H53,IF(Start!$D$3='Données de production'!$N$40,'Données de production'!Q53,IF(Start!$D$3='Données de production'!$W$40,'Données de production'!Z53,"ENTRER UN CALCUL"))), 'Données de production'!Z38) -> 475.9 | J24: =IF(ISBLANK('Données de production'!AA38), IF(Start!$D$3='Données de production'!$E$40,'Données de production'!I53,IF(Start!$D$3='Données de production'!$N$40,'Données de production'!R53,IF(Start!$D$3='Données de production'!$W$40,'Données de production'!AA53,"ENTRER UN CALCUL"))), 'Données de production'!AA38) -> 474.2 | K24: =IF(ISBLANK('Données de production'!AB38), IF(Start!$D$3='Données de production'!$E$40,'Données de production'!J53,IF(Start!$D$3='Données de production'!$N$40,'Données de production'!S53,IF(Start!$D$3='Données de production'!$W$40,'Données de production'!AB53,"ENTRER UN CALCUL"))), 'Données de production'!AB38) -> 471 | L24: =IF(ISBLANK('Données de production'!AC38), IF(Start!$D$3='Données de production'!$E$40,'Données de production'!K53,IF(Start!$D$3='Données de production'!$N$40,'Données de production'!T53,IF(Start!$D$3='Données de production'!$W$40,'Données de production'!AC53,"ENTRER UN CALCUL"))), 'Données de production'!AC38) -> 480.4 | M24: =IF(ISBLANK('Données de production'!AD38), IF(Start!$D$3='Données de production'!$E$40,'Données de production'!L53,IF(Start!$D$3='Données de production'!$N$40,'Données de production'!U53,IF(Start!$D$3='Données de production'!$W$40,'Données de production'!AD53,"ENTRER UN CALCUL"))), 'Données de production'!AD38) -> 501.2 | N24: =IF(ISBLANK('Données de production'!AE38), IF(Start!$D$3='Données de production'!$E$40,'Données de production'!M53,IF(Start!$D$3='Données de production'!$N$40,'Données de production'!V53,IF(Start!$D$3='Données de production'!$W$40,'Données de production'!AE53,"ENTRER UN CALCUL"))), 'Données de production'!AE38) -> 522
C26: Euros constants | E26: Données historiques | F26: Scénario sélectionné | K26: ='Calcul de LCOE'!F32 -> Scénario par défaut
C27: ='Calcul de variation des prix'!C36 -> Prix d'attribution des projets | D27: Unité | E27: 2017 | F27: 2020 | G27: 2025 | H27: 2030 | I27: 2035 | J27: 2040 | K27: 2020 | L27: 2025 | M27: 2030 | N27: 2035 | O27: 2040
C28: ='Calcul de variation des prix'!C37 -> Nucléaire | D28: €/MWh | E28: =IF(Start!$F$3="COURANT",'Calcul de variation des prix'!E37,'Calcul de variation des prix'!E73) -> 0 | F28: =IF(Start!$F$3="COURANT",'Calcul de variation des prix'!F37,'Calcul de variation des prix'!F73) -> 0 | G28: =IF(Start!$F$3="COURANT",'Calcul de variation des prix'!G37,'Calcul de variation des prix'!G73) -> 0 | H28: ='Calcul de variation des prix'!H73 -> 85 | I28: ='Calcul de variation des prix'!I73 -> 85 | J28: ='Calcul de variation des prix'!J73 -> 85
C29: ='Calcul de variation des prix'!C38 -> Eolien terrestre | D29: €/MWh | E29: =IF(Start!$F$3="COURANT",'Calcul de variation des prix'!E38,'Calcul de variation des prix'!E74) -> 65.4 | F29: =((K29-E29)/(K$27-E$27)+ABS((K29-E29)/(K$27-E$27))*VLOOKUP(Start!$I10,'Données - Graphiques'!$R$8:$S$14,2,FALSE))*(K$27-E$27)+E29 -> 63.1759062 | G29: =((L29-K29)/(L$27-K$27)+ABS((L29-K29)/(L$27-K$27))*VLOOKUP(Start!$I10,'Données - Graphiques'!$R$8:$S$14,2,FALSE))*(L$27-K$27)+F29 -> 59.46908319 | H29: =((M29-L29)/(M$27-L$27)+ABS((M29-L29)/(M$27-L$27))*VLOOKUP(Start!$I10,'Données - Graphiques'!$R$8:$S$14,2,FALSE))*(M$27-L$27)+G29 -> 52.13448206 | I29: =((N29-M29)/(N$27-M$27)+ABS((N29-M29)/(N$27-M$27))*VLOOKUP(Start!$I10,'Données - Graphiques'!$R$8:$S$14,2,FALSE))*(N$27-M$27)+H29 -> 47.5330145 | J29: =((O29-N29)/(O$27-N$27)+ABS((O29-N29)/(O$27-N$27))*VLOOKUP(Start!$I10,'Données - Graphiques'!$R$8:$S$14,2,FALSE))*(O$27-N$27)+I29 -> 43.06298734 | K29: ='Calcul de variation des prix'!F74 -> 63.1759062 | L29: ='Calcul de variation des prix'!G74 -> 59.46908319 | M29: ='Calcul de variation des prix'!H74 -> 52.13448206 | N29: ='Calcul de variation des prix'!I74 -> 47.5330145 | O29: ='Calcul de variation des prix'!J74 -> 43.06298734
C30: ='Calcul de variation des prix'!C39 -> Eolien en mer | D30: €/MWh | E30: =IF(Start!$I11="Tendance AO 2019",IF(Start!$F$3="COURANT",'Données de coûts'!E26,'Données de coûts'!E26/HLOOKUP(E27,'Calcul de variation des prix'!$E$3:$AB$5,3,FALSE)),IF(Start!$F$3="COURANT",'Calcul de variation des prix'!E39,'Calcul de variation des prix'!E75)) -> 140 | F30: =((K30-E30)/(K$27-E$27)+ABS((K30-E30)/(K$27-E$27))*VLOOKUP(Start!$I11,'Données - Graphiques'!$R$8:$S$14,2,FALSE))*(K$27-E$27)+E30 -> 56 | G30: =((L30-F30)/(L$27-F$27)+ABS((L30-F30)/(L$27-F$27))*VLOOKUP(Start!$I11,'Données - Graphiques'!$R$8:$S$14,2,FALSE))*(L$27-F$27)+F30 -> 54 | H30: =((M30-G30)/(M$27-G$27)+ABS((M30-G30)/(M$27-G$27))*VLOOKUP(Start!$I11,'Données - Graphiques'!$R$8:$S$14,2,FALSE))*(M$27-G$27)+G30 -> 52 | I30: =((N30-H30)/(N$27-H$27)+ABS((N30-H30)/(N$27-H$27))*VLOOKUP(Start!$I11,'Données - Graphiques'!$R$8:$S$14,2,FALSE))*(N$27-H$27)+H30 -> 50 | J30: =((O30-I30)/(O$27-I$27)+ABS((O30-I30)/(O$27-I$27))*VLOOKUP(Start!$I11,'Données - Graphiques'!$R$8:$S$14,2,FALSE))*(O$27-I$27)+I30 -> 45 | K30: ='Calcul de variation des prix'!F75 -> 56 | L30: ='Calcul de variation des prix'!G75 -> 54 | M30: ='Calcul de variation des prix'!H75 -> 52 | N30: ='Calcul de variation des prix'!I75 -> 50 | O30: ='Calcul de variation des prix'!J75 -> 45
C31: ='Calcul de variation des prix'!C40 -> PV au sol | D31: €/MWh | E31: =IF(Start!$F$3="COURANT",'Calcul de variation des prix'!E40,'Calcul de variation des prix'!E76) -> 63.9 | F31: =((K31-E31)/(K$27-E$27)+ABS((K31-E31)/(K$27-E$27))*VLOOKUP(Start!$I12,'Données - Graphiques'!$R$8:$S$14,2,FALSE))*(K$27-E$27)+E31 -> 57.92907496 | G31: =((L31-K31)/(L$27-K$27)+ABS((L31-K31)/(L$27-K$27))*VLOOKUP(Start!$I12,'Données - Graphiques'!$R$8:$S$14,2,FALSE))*(L$27-K$27)+F31 -> 47.97753323 | H31: =((M31-L31)/(M$27-L$27)+ABS((M31-L31)/(M$27-L$27))*VLOOKUP(Start!$I12,'Données - Graphiques'!$R$8:$S$14,2,FALSE))*(M$27-L$27)+G31 -> 44.63593805 | I31: =((N31-M31)/(N$27-M$27)+ABS((N31-M31)/(N$27-M$27))*VLOOKUP(Start!$I12,'Données - Graphiques'!$R$8:$S$14,2,FALSE))*(N$27-M$27)+H31 -> 41.61069931 | J31: =((O31-N31)/(O$27-N$27)+ABS((O31-N31)/(O$27-N$27))*VLOOKUP(Start!$I12,'Données - Graphiques'!$R$8:$S$14,2,FALSE))*(O$27-N$27)+I31 -> 37.55529781 | K31: ='Calcul de variation des prix'!F76 -> 57.92907496 | L31: ='Calcul de variation des prix'!G76 -> 47.97753323 | M31: ='Calcul de variation des prix'!H76 -> 44.63593805 | N31: ='Calcul de variation des prix'!I76 -> 41.61069931 | O31: ='Calcul de variation des prix'!J76 -> 37.55529781
C32: ='Calcul de variation des prix'!C41 -> PV sur toiture | D32: €/MWh | E32: =IF(Start!$F$3="COURANT",'Calcul de variation des prix'!E41,'Calcul de variation des prix'!E77) -> 85 | F32: =((K32-E32)/(K$27-E$27)+ABS((K32-E32)/(K$27-E$27))*VLOOKUP(Start!$I13,'Données - Graphiques'!$R$8:$S$14,2,FALSE))*(K$27-E$27)+E32 -> 80.8728516 | G32: =((L32-K32)/(L$27-K$27)+ABS((L32-K32)/(L$27-K$27))*VLOOKUP(Start!$I13,'Données - Graphiques'!$R$8:$S$14,2,FALSE))*(L$27-K$27)+F32 -> 73.99427094 | H32: =((M32-L32)/(M$27-L$27)+ABS((M32-L32)/(M$27-L$27))*VLOOKUP(Start!$I13,'Données - Graphiques'!$R$8:$S$14,2,FALSE))*(M$27-L$27)+G32 -> 64.52778995 | I32: =((N32-M32)/(N$27-M$27)+ABS((N32-M32)/(N$27-M$27))*VLOOKUP(Start!$I13,'Données - Graphiques'!$R$8:$S$14,2,FALSE))*(N$27-M$27)+H32 -> 54.87088467 | J32: =((O32-N32)/(O$27-N$27)+ABS((O32-N32)/(O$27-N$27))*VLOOKUP(Start!$I13,'Données - Graphiques'!$R$8:$S$14,2,FALSE))*(O$27-N$27)+I32 -> 48.58192944 | K32: ='Calcul de variation des prix'!F77 -> 80.8728516 | L32: ='Calcul de variation des prix'!G77 -> 73.99427094 | M32: ='Calcul de variation des prix'!H77 -> 64.52778995 | N32: ='Calcul de variation des prix'!I77 -> 54.87088467 | O32: ='Calcul de variation des prix'!J77 -> 48.58192944
C34: Euros constants | E34: Données historiques | F34: Scénario sélectionné
C35: Revenus de marché | D35: Unité | E35: 2017 | F35: 2020 | G35: 2025 | H35: 2030 | I35: 2035 | J35: 2040
C36: ='Calcul de variation des prix'!C37 -> Nucléaire | D36: €/MWh | E36: ='Calcul de variation des prix'!E54 -> 47.90213593 | F36: =IF(Start!$D$3='Données de production'!$E$14,'Calcul de variation des prix'!F54,IF(Start!$D$3='Données de production'!$N$14,'Calcul de variation des prix'!K54,IF(Start!$D$3='Données de production'!$W$14,'Calcul de variation des prix'!P54,"ENTRER UN CALCUL"))) -> 50.36414359 | G36: =IF(Start!$D$3='Données de production'!$E$14,'Calcul de variation des prix'!G54,IF(Start!$D$3='Données de production'!$N$14,'Calcul de variation des prix'!L54,IF(Start!$D$3='Données de production'!$W$14,'Calcul de variation des prix'!Q54,"ENTRER UN CALCUL"))) -> 54.46748968 | H36: =IF(Start!$D$3='Données de production'!$E$14,'Calcul de variation des prix'!H54,IF(Start!$D$3='Données de production'!$N$14,'Calcul de variation des prix'!M54,IF(Start!$D$3='Données de production'!$W$14,'Calcul de variation des prix'!R54,"ENTRER UN CALCUL"))) -> 58.57083577 | I36: =IF(Start!$D$3='Données de production'!$E$14,'Calcul de variation des prix'!I54,IF(Start!$D$3='Données de production'!$N$14,'Calcul de variation des prix'!N54,IF(Start!$D$3='Données de production'!$W$14,'Calcul de variation des prix'!S54,"ENTRER UN CALCUL"))) -> 62.67418186 | J36: =IF(Start!$D$3='Données de production'!$E$14,'Calcul de variation des prix'!J54,IF(Start!$D$3='Données de production'!$N$14,'Calcul de variation des prix'!O54,IF(Start!$D$3='Données de production'!$W$14,'Calcul de variation des prix'!T54,"ENTRER UN CALCUL"))) -> 66.77752796
C37: ='Calcul de variation des prix'!C38 -> Eolien terrestre | D37: €/MWh | E37: ='Calcul de variation des prix'!E55 -> 48.22849058 | F37: =IF(Start!$D$3='Données de production'!$E$14,'Calcul de variation des prix'!F55,IF(Start!$D$3='Données de production'!$N$14,'Calcul de variation des prix'!K55,IF(Start!$D$3='Données de production'!$W$14,'Calcul de variation des prix'!P55,"ENTRER UN CALCUL"))) -> 43.11424529 | G37: =IF(Start!$D$3='Données de production'!$E$14,'Calcul de variation des prix'!G55,IF(Start!$D$3='Données de production'!$N$14,'Calcul de variation des prix'!L55,IF(Start!$D$3='Données de production'!$W$14,'Calcul de variation des prix'!Q55,"ENTRER UN CALCUL"))) -> 41.2 | H37: =IF(Start!$D$3='Données de production'!$E$14,'Calcul de variation des prix'!H55,IF(Start!$D$3='Données de production'!$N$14,'Calcul de variation des prix'!M55,IF(Start!$D$3='Données de production'!$W$14,'Calcul de variation des prix'!R55,"ENTRER UN CALCUL"))) -> 46.70878137 | I37: =IF(Start!$D$3='Données de production'!$E$14,'Calcul de variation des prix'!I55,IF(Start!$D$3='Données de production'!$N$14,'Calcul de variation des prix'!N55,IF(Start!$D$3='Données de production'!$W$14,'Calcul de variation des prix'!S55,"ENTRER UN CALCUL"))) -> 48.48073481 | J37: =IF(Start!$D$3='Données de production'!$E$14,'Calcul de variation des prix'!J55,IF(Start!$D$3='Données de production'!$N$14,'Calcul de variation des prix'!O55,IF(Start!$D$3='Données de production'!$W$14,'Calcul de variation des prix'!T55,"ENTRER UN CALCUL"))) -> 50.25268824
C38: ='Calcul de variation des prix'!C39 -> Eolien en mer | D38: €/MWh | E38: ='Calcul de variation des prix'!E56 -> 0 | F38: =IF(Start!$D$3='Données de production'!$E$14,'Calcul de variation des prix'!F56,IF(Start!$D$3='Données de production'!$N$14,'Calcul de variation des prix'!K56,IF(Start!$D$3='Données de production'!$W$14,'Calcul de variation des prix'!P56,"ENTRER UN CALCUL"))) -> 0 | G38: =IF(Start!$D$3='Données de production'!$E$14,'Calcul de variation des prix'!G56,IF(Start!$D$3='Données de production'!$N$14,'Calcul de variation des prix'!L56,IF(Start!$D$3='Données de production'!$W$14,'Calcul de variation des prix'!Q56,"ENTRER UN CALCUL"))) -> 43.2 | H38: =IF(Start!$D$3='Données de production'!$E$14,'Calcul de variation des prix'!H56,IF(Start!$D$3='Données de production'!$N$14,'Calcul de variation des prix'!M56,IF(Start!$D$3='Données de production'!$W$14,'Calcul de variation des prix'!R56,"ENTRER UN CALCUL"))) -> 49.1577965 | I38: =IF(Start!$D$3='Données de production'!$E$14,'Calcul de variation des prix'!I56,IF(Start!$D$3='Données de production'!$N$14,'Calcul de variation des prix'!N56,IF(Start!$D$3='Données de production'!$W$14,'Calcul de variation des prix'!S56,"ENTRER UN CALCUL"))) -> 52.05228775 | J38: =IF(Start!$D$3='Données de production'!$E$14,'Calcul de variation des prix'!J56,IF(Start!$D$3='Données de production'!$N$14,'Calcul de variation des prix'!O56,IF(Start!$D$3='Données de production'!$W$14,'Calcul de variation des prix'!T56,"ENTRER UN CALCUL"))) -> 54.946779
C39: ='Calcul de variation des prix'!C40 -> PV au sol | D39: €/MWh | E39: ='Calcul de variation des prix'!E57 -> 43.13735911 | F39: =IF(Start!$D$3='Données de production'!$E$14,'Calcul de variation des prix'!F57,IF(Start!$D$3='Données de production'!$N$14,'Calcul de variation des prix'!K57,IF(Start!$D$3='Données de production'!$W$14,'Calcul de variation des prix'!P57,"ENTRER UN CALCUL"))) -> 40.06867956 | G39: =IF(Start!$D$3='Données de production'!$E$14,'Calcul de variation des prix'!G57,IF(Start!$D$3='Données de production'!$N$14,'Calcul de variation des prix'!L57,IF(Start!$D$3='Données de production'!$W$14,'Calcul de variation des prix'!Q57,"ENTRER UN CALCUL"))) -> 39.4 | H39: =IF(Start!$D$3='Données de production'!$E$14,'Calcul de variation des prix'!H57,IF(Start!$D$3='Données de production'!$N$14,'Calcul de variation des prix'!M57,IF(Start!$D$3='Données de production'!$W$14,'Calcul de variation des prix'!R57,"ENTRER UN CALCUL"))) -> 44.38775219 | I39: =IF(Start!$D$3='Données de production'!$E$14,'Calcul de variation des prix'!I57,IF(Start!$D$3='Données de production'!$N$14,'Calcul de variation des prix'!N57,IF(Start!$D$3='Données de production'!$W$14,'Calcul de variation des prix'!S57,"ENTRER UN CALCUL"))) -> 47.85713265 | J39: =IF(Start!$D$3='Données de production'!$E$14,'Calcul de variation des prix'!J57,IF(Start!$D$3='Données de production'!$N$14,'Calcul de variation des prix'!O57,IF(Start!$D$3='Données de production'!$W$14,'Calcul de variation des prix'!T57,"ENTRER UN CALCUL"))) -> 51.32651311
C40: ='Calcul de variation des prix'!C41 -> PV sur toiture | D40: €/MWh | E40: ='Calcul de variation des prix'!E58 -> 43.13735911 | F40: =IF(Start!$D$3='Données de production'!$E$14,'Calcul de variation des prix'!F58,IF(Start!$D$3='Données de production'!$N$14,'Calcul de variation des prix'!K58,IF(Start!$D$3='Données de production'!$W$14,'Calcul de variation des prix'!P58,"ENTRER UN CALCUL"))) -> 40.06867956 | G40: =IF(Start!$D$3='Données de production'!$E$14,'Calcul de variation des prix'!G58,IF(Start!$D$3='Données de production'!$N$14,'Calcul de variation des prix'!L58,IF(Start!$D$3='Données de production'!$W$14,'Calcul de variation des prix'!Q58,"ENTRER UN CALCUL"))) -> 39.4 | H40: =IF(Start!$D$3='Données de production'!$E$14,'Calcul de variation des prix'!H58,IF(Start!$D$3='Données de production'!$N$14,'Calcul de variation des prix'!M58,IF(Start!$D$3='Données de production'!$W$14,'Calcul de variation des prix'!R58,"ENTRER UN CALCUL"))) -> 44.38775219 | I40: =IF(Start!$D$3='Données de production'!$E$14,'Calcul de variation des prix'!I58,IF(Start!$D$3='Données de production'!$N$14,'Calcul de variation des prix'!N58,IF(Start!$D$3='Données de production'!$W$14,'Calcul de variation des prix'!S58,"ENTRER UN CALCUL"))) -> 47.85713265 | J40: =IF(Start!$D$3='Données de production'!$E$14,'Calcul de variation des prix'!J58,IF(Start!$D$3='Données de production'!$N$14,'Calcul de variation des prix'!O58,IF(Start!$D$3='Données de production'!$W$14,'Calcul de variation des prix'!T58,"ENTRER UN CALCUL"))) -> 51.32651311
C42: Euros constants | E42: Données historiques | F42: Scénario sélectionné
C43: Complément de rémunération nécessaire en fonction de l'année de mise en fonctionnement | D43: Unité | E43: 2017 | F43: 2020 | G43: 2025 | H43: 2030 | I43: 2035 | J43: 2040
C44: ='Données de coûts'!C24 -> Nucléaire | D44: €/MWh | E44: =IF(E28=0, 0, E28-E36) -> 0 | F44: =IF(F28=0, 0, F28-F36) -> 0 | G44: 0 | H44: =IF(H28=0, 0, H28-H36) -> 26.42916423 | I44: 22.32581814 | J44: 18.22247204
C45: ='Données de prix'!C28 -> Eolien terrestre | D45: €/MWh | E45: =IF(E29=0, 0, E29-E37) -> 17.17150942 | F45: =IF(F29=0, 0, F29-F37) -> 20.06166091 | G45: =IF(G29=0, 0, G29-G37) -> 18.26908319 | H45: 5.425700689 | I45: -0.9477203031 | J45: -7.189700896
C46: ='Données de prix'!C29 -> Eolien en mer | D46: €/MWh | E46: 0 | F46: 0 | G46: =IF(G30=0, 0, G30-G38) -> 10.8 | H46: =IF(H30=0, 0, H30-H38) -> 2.842203499 | I46: -2.052287753 | J46: -9.946779004
C47: ='Données de prix'!C30 -> PV au sol | D47: €/MWh | E47: =IF(E31=0, 0, E31-E39) -> 20.76264089 | F47: =IF(F31=0, 0, F31-F39) -> 17.86039541 | G47: =IF(G31=0, 0, G31-G39) -> 8.577533233 | H47: 0.2481858689 | I47: -6.246433341 | J47: -13.7712153
C48: ='Données de prix'!C31 -> PV sur toiture | D48: €/MWh | E48: =IF(E32=0, 0, E32-E40) -> 41.86264089 | F48: =IF(F32=0, 0, F32-F40) -> 40.80417205 | G48: =IF(G32=0, 0, G32-G40) -> 34.59427094 | H48: 20.14003776 | I48: 7.013752023 | J48: -2.744583667
C50: Euros constants | E50: Données historiques | F50: Scénario sélectionné
C51: Variables | D51: Unité | E51: 2017 | F51: 2020 | G51: 2025 | H51: 2030 | I51: 2035 | J51: 2040
C52: Prix de marché moyen | D52: €/MWh | E52: ='Calcul de variation des prix'!E62 -> 50.49797673 | F52: =IF(Start!$D$3='Données de production'!$E$14,'Calcul de variation des prix'!F62,IF(Start!$D$3='Données de production'!$N$14,'Calcul de variation des prix'!K62,IF(Start!$D$3='Données de production'!$W$14,'Calcul de variation des prix'!P62,IF(Start!$D$3='Calcul de variation des prix'!$U$16, 'Calcul de variation des prix'!U62,"ENTRER UN CALCUL")))) -> 47.24898836 | G52: =IF(Start!$D$3='Données de production'!$E$14,'Calcul de variation des prix'!G62,IF(Start!$D$3='Données de production'!$N$14,'Calcul de variation des prix'!L62,IF(Start!$D$3='Données de production'!$W$14,'Calcul de variation des prix'!Q62,IF(Start!$D$3='Calcul de variation des prix'!$U$16, 'Calcul de variation des prix'!V62,"ENTRER UN CALCUL")))) -> 48.8 | H52: =IF(Start!$D$3='Données de production'!$E$14,'Calcul de variation des prix'!H62,IF(Start!$D$3='Données de production'!$N$14,'Calcul de variation des prix'!M62,IF(Start!$D$3='Données de production'!$W$14,'Calcul de variation des prix'!R62,IF(Start!$D$3='Calcul de variation des prix'!$U$16, 'Calcul de variation des prix'!W62,"ENTRER UN CALCUL")))) -> 58.62027978 | I52: =IF(Start!$D$3='Données de production'!$E$14,'Calcul de variation des prix'!I62,IF(Start!$D$3='Données de production'!$N$14,'Calcul de variation des prix'!N62,IF(Start!$D$3='Données de production'!$W$14,'Calcul de variation des prix'!S62,IF(Start!$D$3='Calcul de variation des prix'!$U$16, 'Calcul de variation des prix'!X62,"ENTRER UN CALCUL")))) -> 65.17097924 | J52: =IF(Start!$D$3='Données de production'!$E$14,'Calcul de variation des prix'!J62,IF(Start!$D$3='Données de production'!$N$14,'Calcul de variation des prix'!O62,IF(Start!$D$3='Données de production'!$W$14,'Calcul de variation des prix'!T62,IF(Start!$D$3='Calcul de variation des prix'!$U$16, 'Calcul de variation des prix'!Y62,"ENTRER UN CALCUL")))) -> 71.72167869
C53: Prix du CO2 | D53: €/tCO2 | E53: ='Calcul de variation des prix'!E63 -> 8.15 | F53: =IF(Start!$D$3='Données de production'!$E$14,'Calcul de variation des prix'!F63,IF(Start!$D$3='Données de production'!$N$14,'Calcul de variation des prix'!K63,IF(Start!$D$3='Données de production'!$W$14,'Calcul de variation des prix'!P63,IF(Start!$D$3='Calcul de variation des prix'!$U$16, 'Calcul de variation des prix'!U63,"ENTRER UN CALCUL")))) -> 17.76 | G53: =IF(Start!$D$3='Données de production'!$E$14,'Calcul de variation des prix'!G63,IF(Start!$D$3='Données de production'!$N$14,'Calcul de variation des prix'!L63,IF(Start!$D$3='Données de production'!$W$14,'Calcul de variation des prix'!Q63,IF(Start!$D$3='Calcul de variation des prix'!$U$16, 'Calcul de variation des prix'!V63,"ENTRER UN CALCUL")))) -> 53.29 | H53: =IF(Start!$D$3='Données de production'!$E$14,'Calcul de variation des prix'!H63,IF(Start!$D$3='Données de production'!$N$14,'Calcul de variation des prix'!M63,IF(Start!$D$3='Données de production'!$W$14,'Calcul de variation des prix'!R63,IF(Start!$D$3='Calcul de variation des prix'!$U$16, 'Calcul de variation des prix'!W63,"ENTRER UN CALCUL")))) -> 88.82 | I53: =IF(Start!$D$3='Données de production'!$E$14,'Calcul de variation des prix'!I63,IF(Start!$D$3='Données de production'!$N$14,'Calcul de variation des prix'!N63,IF(Start!$D$3='Données de production'!$W$14,'Calcul de variation des prix'!S63,IF(Start!$D$3='Calcul de variation des prix'!$U$16, 'Calcul de variation des prix'!X63,"ENTRER UN CALCUL")))) -> 106.58 | J53: =IF(Start!$D$3='Données de production'!$E$14,'Calcul de variation des prix'!J63,IF(Start!$D$3='Données de production'!$N$14,'Calcul de variation des prix'!O63,IF(Start!$D$3='Données de production'!$W$14,'Calcul de variation des prix'!T63,IF(Start!$D$3='Calcul de variation des prix'!$U$16, 'Calcul de variation des prix'!Y63,"ENTRER UN CALCUL")))) -> 124.35
E55: Données historiques | F55: Scénario sélectionné
D56: Unité | E56: 2017 | F56: 2018 | G56: 2019 | H56: 2020 | I56: 2021 | J56: 2022 | K56: 2023 | L56: 2024 | M56: 2025 | N56: 2026 | O56: 2027 | P56: 2028 | Q56: 2029 | R56: 2030 | S56: 2031 | T56: 2032 | U56: 2033 | V56: 2034 | W56: 2035 | X56: 2036 | Y56: 2037 | Z56: 2038 | AA56: 2039 | AB56: 2040
C57: Capacité installée de production d'électricité
C58: ='Données de production'!C6 -> Eolien terrestre | D58: GW | E58: =E6 -> 13.55 | F58: 15.575 | G58: 17.6 | H58: 19.625 | I58: 21.65 | J58: 23.675 | K58: =K$56*($M58-$J58)/($M$56-$J$56)+$J58-($M58-$J58)/($M$56-$J$56)*$J$56 -> 25.57 | L58: 27.465 | M58: =K6 -> 29.36 | N58: =N$56*($R58-$M58)/($R$56-$M$56)+$M58-($R58-$M58)/($R$56-$M$56)*$M$56 -> 31.45514286 | O58: =O$56*($R58-$M58)/($R$56-$M$56)+$M58-($R58-$M58)/($R$56-$M$56)*$M$56 -> 33.55028571 | P58: =P$56*($R58-$M58)/($R$56-$M$56)+$M58-($R58-$M58)/($R$56-$M$56)*$M$56 -> 35.64542857 | Q58: 37.74057143 | R58: =L6 -> 39.83571429 | S58: =S$56*($W58-$R58)/($W$56-$R$56)+$R58-($W58-$R58)/($W$56-$R$56)*$R$56 -> 42.32857143 | T58: =T$56*($W58-$R58)/($W$56-$R$56)+$R58-($W58-$R58)/($W$56-$R$56)*$R$56 -> 44.82142857 | U58: =U$56*($W58-$R58)/($W$56-$R$56)+$R58-($W58-$R58)/($W$56-$R$56)*$R$56 -> 47.31428571 | V58: =V$56*($W58-$R58)/($W$56-$R$56)+$R58-($W58-$R58)/($W$56-$R$56)*$R$56 -> 49.80714286 | W58: =M6 -> 52.3 | X58: =X$56*($AB58-$W58)/($AB$56-$W$56)+$W58-($AB58-$W58)/($AB$56-$W$56)*$W$56 -> 54.79285714 | Y58: =Y$56*($AB58-$W58)/($AB$56-$W$56)+$W58-($AB58-$W58)/($AB$56-$W$56)*$W$56 -> 57.28571429 | Z58: 59.77857143 | AA58: 62.27142857 | AB58: =N6 -> 64.76428571
C59: ='Données de production'!C7 -> Eolien en mer | D59: GW | E59: 0 | F59: 0 | G59: 0 | H59: 0 | I59: 0.8 | J59: 1.6 | K59: 2.206666667 | L59: 2.813333333 | M59: =K7 -> 3.42 | N59: 4.300285714 | O59: 5.180571429 | P59: 6.060857143 | Q59: 6.941142857 | R59: =L7 -> 7.821428571 | S59: 9.257142857 | T59: 10.69285714 | U59: 12.12857143 | V59: =V$56*($W59-$R59)/($W$56-$R$56)+$R59-($W59-$R59)/($W$56-$R$56)*$R$56 -> 13.56428571 | W59: =M7 -> 15 | X59: =X$56*($AB59-$W59)/($AB$56-$W$56)+$W59-($AB59-$W59)/($AB$56-$W$56)*$W$56 -> 16.43571429 | Y59: 17.87142857 | Z59: 19.30714286 | AA59: 20.74285714 | AB59: =N7 -> 22.17857143
C60: ='Données de production'!C8 -> PV au sol | D60: GW | E60: 4.178612325 | F60: 5.415510271 | G60: 6.652408217 | H60: 7.889306162 | I60: 9.126204108 | J60: 10.36310205 | K60: 12.2687347 | L60: 14.17436735 | M60: =K8 -> 16.08 | N60: 17.76676613 | O60: 19.45353226 | P60: 21.1402984 | Q60: 22.82706453 | R60: =L8 -> 24.51383066 | S60: 25.37074599 | T60: 26.22766132 | U60: 27.08457665 | V60: 27.94149198 | W60: =M8 -> 28.79840731 | X60: 29.65532264 | Y60: =Y$56*($AB60-$W60)/($AB$56-$W$56)+$W60-($AB60-$W60)/($AB$56-$W$56)*$W$56 -> 30.51223797 | Z60: =Z$56*($AB60-$W60)/($AB$56-$W$56)+$W60-($AB60-$W60)/($AB$56-$W$56)*$W$56 -> 31.3691533 | AA60: 32.22606863 | AB60: =N8 -> 33.08298396
C61: ='Données de production'!C9 -> PV sur toiture | D61: GW | E61: 3.475387675 | F61: 4.396156396 | G61: 5.316925117 | H61: 6.237693838 | I61: 7.158462558 | J61: 8.079231279 | K61: 9.486154186 | L61: 10.89307709 | M61: =K9 -> 12.3 | N61: 13.43009101 | O61: 14.56018202 | P61: 15.69027303 | Q61: 16.82036404 | R61: =L9 -> 17.95045505 | S61: 18.30068258 | T61: 18.65091011 | U61: 19.00113764 | V61: 19.35136516 | W61: =M9 -> 19.70159269 | X61: 20.05182022 | Y61: 20.40204774 | Z61: 20.75227527 | AA61: 21.1025028 | AB61: =N9 -> 21.45273033
C62: Production
C63: ='Données de production'!C5 -> Nucléaire | D63: TWh | E63: =E16 -> 379.1 | F63: 381.4166667 | G63: 383.7333333 | H63: 386.05 | I63: 388.3666667 | J63: 390.6833333 | K63: =K$56*($M63-$J63)/($M$56-$J$56)+$J63-($M63-$J63)/($M$56-$J$56)*$J$56 -> 389.2555556 | L63: 387.8277778 | M63: =K16 -> 386.4 | N63: =N$56*($R63-$M63)/($R$56-$M$56)+$M63-($R63-$M63)/($R$56-$M$56)*$M$56 -> 379.6942857 | O63: 372.9885714 | P63: 366.2828571 | Q63: 359.5771429 | R63: =L16 -> 352.8714286 | S63: =S$56*($W63-$R63)/($W$56-$R$56)+$R63-($W63-$R63)/($W$56-$R$56)*$R$56 -> 341.0571429 | T63: 329.2428571 | U63: 317.4285714 | V63: 305.6142857 | W63: =M16 -> 293.8 | X63: =X$56*($AB63-$W63)/($AB$56-$W$56)+$W63-($AB63-$W63)/($AB$56-$W$56)*$W$56 -> 281.9857143 | Y63: 270.1714286 | Z63: 258.3571429 | AA63: 246.5428571 | AB63: =N16 -> 234.7285714
C64: ='Données de production'!C6 -> Eolien terrestre | D64: TWh | E64: 24 | F64: 29 | G64: 34 | H64: 39 | I64: 44 | J64: 49 | K64: 54.26666667 | L64: 59.53333333 | M64: 64.8 | N64: 69.96 | O64: 75.12 | P64: 80.28 | Q64: 85.44 | R64: 90.6 | S64: 95.4 | T64: 100.2 | U64: 105 | V64: 109.8 | W64: 114.6 | X64: =X$56*($AB64-$W64)/($AB$56-$W$56)+$W64-($AB64-$W64)/($AB$56-$W$56)*$W$56 -> 119.4 | Y64: 124.2 | Z64: 129 | AA64: 133.8 | AB64: 138.6
C65: ='Données de production'!C7 -> Eolien en mer | D65: TWh | E65: 0 | F65: 0 | G65: 0 | H65: 0 | I65: 3 | J65: 6 | K65: 7.066666667 | L65: 8.133333333 | M65: 9.2 | N65: 11.40285714 | O65: 13.60571429 | P65: 15.80857143 | Q65: 18.01142857 | R65: 20.21428571 | S65: 25.57142857 | T65: 30.92857143 | U65: 36.28571429 | V65: 41.64285714 | W65: 47 | X65: =X$56*($AB65-$W65)/($AB$56-$W$56)+$W65-($AB65-$W65)/($AB$56-$W$56)*$W$56 -> 52.35714286 | Y65: 57.71428571 | Z65: 63.07142857 | AA65: 68.42857143 | AB65: 73.78571429
C66: ='Données de production'!C8 -> PV au sol | D66: TWh | E66: 5.022633053 | F66: 6.484880295 | G66: 7.947127537 | H66: 9.409374779 | I66: 10.87162202 | J66: 12.33386926 | K66: 14.6252485 | L66: 16.91662774 | M66: 19.20800698 | N66: 21.24145229 | O66: 23.2748976 | P66: 25.30834291 | Q66: 27.34178822 | R66: 29.37523353 | S66: 30.39992895 | T66: 31.42462436 | U66: 32.44931978 | V66: 33.4740152 | W66: 34.49871061 | X66: 35.52340603 | Y66: =Y$56*($AB66-$W66)/($AB$56-$W$56)+$W66-($AB66-$W66)/($AB$56-$W$56)*$W$56 -> 36.54810145 | Z66: =Z$56*($AB66-$W66)/($AB$56-$W$56)+$W66-($AB66-$W66)/($AB$56-$W$56)*$W$56 -> 37.57279686 | AA66: 38.59749228 | AB66: 39.6221877
C67: ='Données de production'!C9 -> PV sur toiture | D67: TWh | E67: 4.177366947 | F67: 5.265119705 | G67: 6.352872463 | H67: 7.440625221 | I67: 8.528377979 | J67: 9.616130737 | K67: 11.30808483 | L67: 13.00003892 | M67: 14.69199302 | N67: 16.05569057 | O67: 17.41938811 | P67: 18.78308566 | Q67: 20.14678321 | R67: 21.51048076 | S67: 21.92864248 | T67: 22.34680421 | U67: 22.76496593 | V67: 23.18312766 | W67: 23.60128939 | X67: 24.01945111 | Y67: 24.43761284 | Z67: 24.85577457 | AA67: 25.27393629 | AB67: 25.69209802
C68: ='Données de production'!C10 -> Autres EnRe | D68: TWh | E68: 9.5 | F68: 9.416666667 | G68: 9.333333333 | H68: 9.25 | I68: 9.166666667 | J68: 9.083333333 | K68: 9.122222222 | L68: 9.161111111 | M68: 9.2 | N68: 9.745714286 | O68: 10.29142857 | P68: 10.83714286 | Q68: 11.38285714 | R68: 11.92857143 | S68: 13.14285714 | T68: 14.35714286 | U68: 15.57142857 | V68: 16.78571429 | W68: 18 | X68: =X$56*($AB68-$W68)/($AB$56-$W$56)+$W68-($AB68-$W68)/($AB$56-$W$56)*$W$56 -> 19.21428571 | Y68: 20.42857143 | Z68: 21.64285714 | AA68: 22.85714286 | AB68: 24.07142857
C69: ='Données de production'!C11 -> Hydraulique | D69: TWh | E69: 53.5 | F69: 54.91666667 | G69: 56.33333333 | H69: 57.75 | I69: 59.16666667 | J69: 60.58333333 | K69: 61.05555556 | L69: 61.52777778 | M69: 62 | N69: 62.33142857 | O69: 62.66285714 | P69: 62.99428571 | Q69: 63.32571429 | R69: 63.65714286 | S69: 64.48571429 | T69: 65.31428571 | U69: 66.14285714 | V69: 66.97142857 | W69: 67.8 | X69: 68.62857143 | Y69: 69.45714286 | Z69: 70.28571429 | AA69: 71.11428571 | AB69: 71.94285714
C70: ='Données de production'!C12 -> Fossile | D70: TWh | E70: 53.9 | F70: 50.58333333 | G70: 47.26666667 | H70: 43.95 | I70: 40.63333333 | J70: 37.31666667 | K70: 35.94444444 | L70: 34.57222222 | M70: 33.2 | N70: 32.65142857 | O70: 32.10285714 | P70: 31.55428571 | Q70: 31.00571429 | R70: 30.45714286 | S70: 29.68571429 | T70: 28.91428571 | U70: 28.14285714 | V70: 27.37142857 | W70: 26.6 | X70: 25.82857143 | Y70: 25.05714286 | Z70: 24.28571429 | AA70: 23.51428571 | AB70: 22.74285714
C71: Part EnRe
C72: Part des EnR dans le mix de production électrique | D72: % | E72: =SUM(E64:E69)/SUM(E63:E70) -> 0.1817838246 | F72: =SUM(F64:F69)/SUM(F63:F70) -> 0.1956555469 | G72: 0.2091259404 | H72: 0.2222121733 | I72: 0.2390018921 | J72: 0.255155611 | K72: 0.2702238834 | L72: 0.2848825726 | M72: 0.2991481543 | N72: 0.3162702116 | O72: 0.3331451981 | P72: 0.3497784232 | Q72: 0.3661750456 | R72: 0.3823400778 | S72: 0.4036353609 | T72: 0.4248583423 | U72: 0.4460093897 | V72: 0.4670888681 | W72: 0.4880971401 | X72: 0.509034566 | Y72: 0.5299015036 | Z72: 0.5506983082 | AA72: 0.5714253327 | AB72: 0.5920829278
C73: Facteur de charge
C74: ='Données de production'!C6 -> Eolien terrestre | D74: % | E74: =IF(E58=0,0,E64*1000/8760/E58) -> 0.2021938028 | F74: 0.2125523135 | G74: 0.2205271897 | H74: 0.2268562953 | I74: =IF(I58=0,0,I64*1000/8760/I58) -> 0.2320014342 | J74: 0.2362664121 | K74: 0.2422692594 | L74: 0.2474437509 | M74: 0.2519502818 | N74: 0.2538949324 | O74: 0.2555967046 | P74: 0.2570984255 | Q74: 0.2584334123 | R74: 0.259627973 | S74: 0.2572827429 | T74: 0.2551983845 | U74: 0.2533336642 | V74: 0.2516556031 | W74: 0.2501375101 | X74: 0.2487575516 | Y74: 0.2474976941 | Z74: 0.2463429126 | AA74: 0.2452805878 | AB74: 0.2443000434
C75: ='Données de production'!C7 -> Eolien en mer | D75: % | E75: =IF(E59=0,0,E65*1000/8760/E59) -> 0 | F75: 0 | G75: =IF(G59=0,0,G65*1000/8760/G59) -> 0 | H75: 0 | I75: 0.4280821918 | J75: 0.4280821918 | K75: 0.3655727076 | L75: 0.33002229 | M75: 0.3070843013 | N75: 0.3026998919 | O75: 0.2998054853 | P75: 0.2977518524 | Q75: 0.2962191089 | R75: 0.2950313797 | S75: 0.3153362647 | T75: 0.3301885354 | U75: 0.3415245441 | V75: 0.3504608289 | W75: 0.3576864536 | X75: 0.3636497135 | Y75: 0.3686548478 | Z75: 0.3729156003 | AA75: 0.3765865379 | AB75: 0.3797822043
C76: ='Données de production'!C8 -> PV au sol | D76: % | E76: =IF(E60=0,0,E66*1000/8760/E60) -> 0.1372130011 | F76: 0.1366968396 | G76: 0.1363726203 | H76: =IF(H60=0,0,H66*1000/8760/H60) -> 0.1361500643 | I76: 0.1359878354 | J76: 0.1358643325 | K76: 0.1360815892 | L76: 0.136240429 | M76: 0.1363616207 | N76: 0.1364808487 | O76: 0.1365794008 | P76: 0.1366622262 | Q76: 0.136732811 | R76: 0.1367936822 | S76: 0.1367839765 | T76: 0.136774905 | U76: 0.1367664076 | V76: 0.1367584313 | W76: 0.1367509297 | X76: 0.1367438617 | Y76: 0.1367371906 | Z76: 0.136730884 | AA76: 0.1367249128 | AB76: 0.136719251
C77: ='Données de production'!C9 -> PV sur toiture | D77: % | E77: =IF(E61=0,0,E67*1000/8760/E61) -> 0.1372130011 | F77: 0.1367196724 | G77: 0.13639721 | H77: 0.1361699472 | I77: 0.1360011486 | J77: 0.135870825 | K77: 0.1360801478 | L77: 0.1362353994 | M77: 0.1363551344 | N77: 0.1364727452 | O77: 0.1365720993 | P77: 0.1366571414 | Q77: 0.1367307563 | R77: 0.1367951022 | S77: 0.1367855914 | T77: 0.1367764378 | U77: 0.1367676217 | V77: 0.1367591246 | W77: 0.1367509297 | X77: 0.1367430211 | Y77: 0.1367353839 | Z77: 0.1367280046 | AA77: 0.1367208701 | AB77: 0.1367139687
C78: =C27 -> Prix d'attribution des projets
C79: ='Données de production'!C6 -> Eolien terrestre | D79: €/MWh | E79: =E29 -> 65.4 | F79: =F$56*($E79-$H79)/($E$56-$H$56)+$H79-($E79-$H79)/($E$56-$H$56)*$H$56 -> 64.6586354 | G79: =G$56*($E79-$H79)/($E$56-$H$56)+$H79-($E79-$H79)/($E$56-$H$56)*$H$56 -> 63.9172708 | H79: =F29 -> 63.1759062 | I79: =I$56*($M79-$H79)/($M$56-$H$56)+$H79-($M79-$H79)/($M$56-$H$56)*$H$56 -> 62.43454159 | J79: 61.69317699 | K79: 60.95181239 | L79: 60.21044779 | M79: =G29 -> 59.46908319 | N79: =N$56*($R79-$M79)/($R$56-$M$56)+$M79-($R79-$M79)/($R$56-$M$56)*$M$56 -> 58.00216296 | O79: =O$56*($R79-$M79)/($R$56-$M$56)+$M79-($R79-$M79)/($R$56-$M$56)*$M$56 -> 56.53524274 | P79: =P$56*($R79-$M79)/($R$56-$M$56)+$M79-($R79-$M79)/($R$56-$M$56)*$M$56 -> 55.06832251 | Q79: =Q$56*($R79-$M79)/($R$56-$M$56)+$M79-($R79-$M79)/($R$56-$M$56)*$M$56 -> 53.60140229 | R79: =H29 -> 52.13448206 | S79: =S$56*($W79-$R79)/($W$56-$R$56)+$R79-($W79-$R79)/($W$56-$R$56)*$R$56 -> 51.21418855 | T79: 50.29389504 | U79: 49.37360153 | V79: 48.45330801 | W79: =I29 -> 47.5330145 | X79: =X$56*($AB79-$W79)/($AB$56-$W$56)+$W79-($AB79-$W79)/($AB$56-$W$56)*$W$56 -> 46.63900907 | Y79: 45.74500364 | Z79: 44.85099821 | AA79: 43.95699277 | AB79: =J29 -> 43.06298734
C80: ='Données de production'!C7 -> Eolien en mer | D80: €/MWh | E80: =E30 -> 140 | F80: =44/'Calcul de variation des prix'!F5 -> 43.20078547 | G80: =44/'Calcul de variation des prix'!G5 -> 42.42025282 | H80: =F30 -> 56 | I80: =I$56*($M80-$H80)/($M$56-$H$56)+$H80-($M80-$H80)/($M$56-$H$56)*$H$56 -> 55.6 | J80: 55.2 | K80: 54.8 | L80: 54.4 | M80: =G30 -> 54 | N80: =N$56*($R80-$M80)/($R$56-$M$56)+$M80-($R80-$M80)/($R$56-$M$56)*$M$56 -> 53.6 | O80: 53.2 | P80: =P$56*($R80-$M80)/($R$56-$M$56)+$M80-($R80-$M80)/($R$56-$M$56)*$M$56 -> 52.8 | Q80: =Q$56*($R80-$M80)/($R$56-$M$56)+$M80-($R80-$M80)/($R$56-$M$56)*$M$56 -> 52.4 | R80: =H30 -> 52 | S80: 51.6 | T80: 51.2 | U80: 50.8 | V80: 50.4 | W80: =I30 -> 50 | X80: 49 | Y80: 48 | Z80: 47 | AA80: 46 | AB80: =J30 -> 45
C81: ='Données de production'!C8 -> PV au sol | D81: €/MWh | E81: =E31 -> 63.9 | F81: =F$56*($E81-$H81)/($E$56-$H$56)+$H81-($E81-$H81)/($E$56-$H$56)*$H$56 -> 61.90969165 | G81: =G$56*($E81-$H81)/($E$56-$H$56)+$H81-($E81-$H81)/($E$56-$H$56)*$H$56 -> 59.91938331 | H81: =F31 -> 57.92907496 | I81: 55.93876662 | J81: 53.94845827 | K81: 51.95814993 | L81: 49.96784158 | M81: =G31 -> 47.97753323 | N81: =N$56*($R81-$M81)/($R$56-$M$56)+$M81-($R81-$M81)/($R$56-$M$56)*$M$56 -> 47.3092142 | O81: =O$56*($R81-$M81)/($R$56-$M$56)+$M81-($R81-$M81)/($R$56-$M$56)*$M$56 -> 46.64089516 | P81: =P$56*($R81-$M81)/($R$56-$M$56)+$M81-($R81-$M81)/($R$56-$M$56)*$M$56 -> 45.97257613 | Q81: =Q$56*($R81-$M81)/($R$56-$M$56)+$M81-($R81-$M81)/($R$56-$M$56)*$M$56 -> 45.30425709 | R81: =H31 -> 44.63593805 | S81: 44.0308903 | T81: 43.42584256 | U81: 42.82079481 | V81: 42.21574706 | W81: =I31 -> 41.61069931 | X81: 40.79961901 | Y81: 39.98853871 | Z81: 39.17745841 | AA81: 38.36637811 | AB81: 37.55529781
C82: ='Données de production'!C9 -> PV sur toiture | D82: €/MWh | E82: =E32 -> 85 | F82: =F$56*($E82-$H82)/($E$56-$H$56)+$H82-($E82-$H82)/($E$56-$H$56)*$H$56 -> 83.62428387 | G82: =G$56*($E82-$H82)/($E$56-$H$56)+$H82-($E82-$H82)/($E$56-$H$56)*$H$56 -> 82.24856773 | H82: =F32 -> 80.8728516 | I82: 79.49713547 | J82: 78.12141934 | K82: 76.7457032 | L82: 75.36998707 | M82: =G32 -> 73.99427094 | N82: =N$56*($R82-$M82)/($R$56-$M$56)+$M82-($R82-$M82)/($R$56-$M$56)*$M$56 -> 72.10097474 | O82: =O$56*($R82-$M82)/($R$56-$M$56)+$M82-($R82-$M82)/($R$56-$M$56)*$M$56 -> 70.20767854 | P82: =P$56*($R82-$M82)/($R$56-$M$56)+$M82-($R82-$M82)/($R$56-$M$56)*$M$56 -> 68.31438234 | Q82: =Q$56*($R82-$M82)/($R$56-$M$56)+$M82-($R82-$M82)/($R$56-$M$56)*$M$56 -> 66.42108615 | R82: =H32 -> 64.52778995 | S82: 62.59640889 | T82: 60.66502784 | U82: 58.73364678 | V82: 56.80226573 | W82: =I32 -> 54.87088467 | X82: 53.61309363 | Y82: 52.35530258 | Z82: 51.09751154 | AA82: 49.83972049 | AB82: 48.58192944
C83: Revenus de marché
C84: ='Données de production'!C6 -> Eolien terrestre | D84: €/MWh | E84: =E37 -> 48.22849058 | F84: =F$56*($H84-$E84)/($H$56-$E$56)+$E84-($H84-$E84)/($H$56-$E$56)*$E$56 -> 46.52374215 | G84: 44.81899372 | H84: =F37 -> 43.11424529 | I84: =I$56*($M84-$H84)/($M$56-$H$56)+$H84-($M84-$H84)/($M$56-$H$56)*$H$56 -> 42.73139623 | J84: =J$56*($M84-$H84)/($M$56-$H$56)+$H84-($M84-$H84)/($M$56-$H$56)*$H$56 -> 42.34854717 | K84: =K$56*($M84-$H84)/($M$56-$H$56)+$H84-($M84-$H84)/($M$56-$H$56)*$H$56 -> 41.96569812 | L84: =L$56*($M84-$H84)/($M$56-$H$56)+$H84-($M84-$H84)/($M$56-$H$56)*$H$56 -> 41.58284906 | M84: =G37 -> 41.2 | N84: =N$56*($R84-$M84)/($R$56-$M$56)+$M84-($R84-$M84)/($R$56-$M$56)*$M$56 -> 42.30175627 | O84: =O$56*($R84-$M84)/($R$56-$M$56)+$M84-($R84-$M84)/($R$56-$M$56)*$M$56 -> 43.40351255 | P84: 44.50526882 | Q84: 45.6070251 | R84: =H37 -> 46.70878137 | S84: =S$56*($W84-$R84)/($W$56-$R$56)+$R84-($W84-$R84)/($W$56-$R$56)*$R$56 -> 47.06317206 | T84: =T$56*($W84-$R84)/($W$56-$R$56)+$R84-($W84-$R84)/($W$56-$R$56)*$R$56 -> 47.41756275 | U84: 47.77195343 | V84: 48.12634412 | W84: =I37 -> 48.48073481 | X84: =X$56*($W84-$R84)/($W$56-$R$56)+$R84-($W84-$R84)/($W$56-$R$56)*$R$56 -> 48.83512549 | Y84: =Y$56*($W84-$R84)/($W$56-$R$56)+$R84-($W84-$R84)/($W$56-$R$56)*$R$56 -> 49.18951618 | Z84: 49.54390686 | AA84: 49.89829755 | AB84: 50.25268824
C85: ='Données de production'!C7 -> Eolien en mer | D85: €/MWh | E85: =E38 -> 0 | F85: 0 | G85: 0 | H85: =F38 -> 0 | I85: =I$56*($R85-$M85)/($R$56-$M$56)+$M85-($R85-$M85)/($R$56-$M$56)*$M$56 -> 38.4337628 | J85: =J$56*($R85-$M85)/($R$56-$M$56)+$M85-($R85-$M85)/($R$56-$M$56)*$M$56 -> 39.6253221 | K85: =K$56*($R85-$M85)/($R$56-$M$56)+$M85-($R85-$M85)/($R$56-$M$56)*$M$56 -> 40.8168814 | L85: =L$56*($R85-$M85)/($R$56-$M$56)+$M85-($R85-$M85)/($R$56-$M$56)*$M$56 -> 42.0084407 | M85: =G38 -> 43.2 | N85: =N$56*($R85-$M85)/($R$56-$M$56)+$M85-($R85-$M85)/($R$56-$M$56)*$M$56 -> 44.3915593 | O85: 45.5831186 | P85: 46.7746779 | Q85: 47.9662372 | R85: =H38 -> 49.1577965 | S85: =S$56*($W85-$R85)/($W$56-$R$56)+$R85-($W85-$R85)/($W$56-$R$56)*$R$56 -> 49.73669475 | T85: 50.315593 | U85: 50.89449125 | V85: 51.4733895 | W85: =I38 -> 52.05228775 | X85: =X$56*($W85-$R85)/($W$56-$R$56)+$R85-($W85-$R85)/($W$56-$R$56)*$R$56 -> 52.631186 | Y85: 53.21008425 | Z85: 53.7889825 | AA85: 54.36788075 | AB85: 54.946779
C86: ='Données de production'!C8 -> PV au sol | D86: €/MWh | E86: =E39 -> 43.13735911 | F86: 42.11446593 | G86: 41.09157274 | H86: =F39 -> 40.06867956 | I86: =I$56*($M86-$H86)/($M$56-$H$56)+$H86-($M86-$H86)/($M$56-$H$56)*$H$56 -> 39.93494364 | J86: 39.80120773 | K86: 39.66747182 | L86: 39.53373591 | M86: =G39 -> 39.4 | N86: 40.39755044 | O86: 41.39510087 | P86: =P$56*($R86-$M86)/($R$56-$M$56)+$M86-($R86-$M86)/($R$56-$M$56)*$M$56 -> 42.39265131 | Q86: 43.39020175 | R86: =H39 -> 44.38775219 | S86: 45.08162828 | T86: 45.77550437 | U86: 46.46938046 | V86: 47.16325656 | W86: =I39 -> 47.85713265 | X86: 48.55100874 | Y86: 49.24488483 | Z86: 49.93876093 | AA86: 50.63263702 | AB86: 51.32651311
C87: ='Données de production'!C9 -> PV sur toiture | D87: €/MWh | E87: =E40 -> 43.13735911 | F87: 42.11446593 | G87: 41.09157274 | H87: =F40 -> 40.06867956 | I87: 39.93494364 | J87: 39.80120773 | K87: 39.66747182 | L87: 39.53373591 | M87: =G40 -> 39.4 | N87: 40.39755044 | O87: 41.39510087 | P87: =P$56*($R87-$M87)/($R$56-$M$56)+$M87-($R87-$M87)/($R$56-$M$56)*$M$56 -> 42.39265131 | Q87: 43.39020175 | R87: =H40 -> 44.38775219 | S87: 45.08162828 | T87: 45.77550437 | U87: 46.46938046 | V87: 47.16325656 | W87: =I40 -> 47.85713265 | X87: 48.55100874 | Y87: 49.24488483 | Z87: 49.93876093 | AA87: 50.63263702 | AB87: 51.32651311
B89: Calcul des compléments de rémunération
C91: Estimation compléments de rémunération passés de la Cour des Comptes (euros courants ou constants)
C92: ='Calcul de variation des prix'!C11 -> Dépenses au titre des engagements passés | D92: M€ | F92: ='Calcul de variation des prix'!E47 -> 4292.783505 | G92: ='Calcul de variation des prix'!F47 -> 4567.504312 | H92: ='Calcul de variation des prix'!G47 -> 4493.727971 | I92: ='Calcul de variation des prix'!H47 -> 4594.361887 | J92: ='Calcul de variation des prix'!I47 -> 4572.582174 | K92: ='Calcul de variation des prix'!J47 -> 4580.370336 | L92: ='Calcul de variation des prix'!K47 -> 4731.580038 | M92: ='Calcul de variation des prix'!L47 -> 4691.254344 | N92: ='Calcul de variation des prix'!M47 -> 4373.275228 | O92: ='Calcul de variation des prix'!N47 -> 4106.128467 | P92: ='Calcul de variation des prix'!O47 -> 3930.645146 | Q92: ='Calcul de variation des prix'!P47 -> 3788.600004 | R92: ='Calcul de variation des prix'!Q47 -> 3553.502951 | S92: ='Calcul de variation des prix'!R47 -> 3019.556399 | T92: ='Calcul de variation des prix'!S47 -> 2102.847241 | U92: ='Calcul de variation des prix'!T47 -> 1522.954869 | V92: ='Calcul de variation des prix'!U47 -> 1249.564687 | W92: ='Calcul de variation des prix'!V47 -> 1119.336857 | X92: ='Calcul de variation des prix'!W47 -> 1002.045886 | Y92: ='Calcul de variation des prix'!X47 -> 827.6491265 | Z92: ='Calcul de variation des prix'!Y47 -> 713.457636 | AA92: ='Calcul de variation des prix'!Z47 -> 596.4490024 | AB92: ='Calcul de variation des prix'!AA47 -> 529.6695902
C93: ='Calcul de variation des prix'!C12 -> Part de l'éolien en mer dans les dépenses au titre des engagements passés (AO 2011&2013) | D93: M€ | F93: ='Calcul de variation des prix'!E48 -> 0 | G93: ='Calcul de variation des prix'!F48 -> 0 | H93: ='Calcul de variation des prix'!G48 -> 0 | I93: ='Calcul de variation des prix'!H48 -> 176.5905213 | J93: ='Calcul de variation des prix'!I48 -> 345.4758361 | K93: ='Calcul de variation des prix'!J48 -> 432.8652703 | L93: ='Calcul de variation des prix'!K48 -> 637.0077304 | M93: ='Calcul de variation des prix'!L48 -> 695.6488455 | N93: ='Calcul de variation des prix'!M48 -> 670.6101791 | O93: ='Calcul de variation des prix'!N48 -> 649.5282907 | P93: ='Calcul de variation des prix'!O48 -> 630.795138 | Q93: ='Calcul de variation des prix'!P48 -> 613.6158716 | R93: ='Calcul de variation des prix'!Q48 -> 597.551271 | S93: ='Calcul de variation des prix'!R48 -> 624.4212119 | T93: ='Calcul de variation des prix'!S48 -> 639.1978347 | U93: ='Calcul de variation des prix'!T48 -> 646.3043795 | V93: ='Calcul de variation des prix'!U48 -> 648.2884805 | W93: ='Calcul de variation des prix'!V48 -> 646.7198374 | X93: ='Calcul de variation des prix'!W48 -> 642.6173985 | Y93: ='Calcul de variation des prix'!X48 -> 636.670634 | Z93: ='Calcul de variation des prix'!Y48 -> 629.3620827 | AA93: ='Calcul de variation des prix'!Z48 -> 596.4490024 | AB93: ='Calcul de variation des prix'!AA48 -> 529.6695902
C94: ='Calcul de variation des prix'!C13 -> Dépenses au titre des engagements passés hors éolien en mer | D94: M€ | F94: ='Calcul de variation des prix'!E49 -> 4292.783505 | G94: ='Calcul de variation des prix'!F49 -> 4567.504312 | H94: ='Calcul de variation des prix'!G49 -> 4493.727971 | I94: ='Calcul de variation des prix'!H49 -> 4417.771365 | J94: ='Calcul de variation des prix'!I49 -> 4227.106338 | K94: ='Calcul de variation des prix'!J49 -> 4147.505066 | L94: ='Calcul de variation des prix'!K49 -> 4094.572308 | M94: ='Calcul de variation des prix'!L49 -> 3995.605498 | N94: ='Calcul de variation des prix'!M49 -> 3702.665049 | O94: ='Calcul de variation des prix'!N49 -> 3456.600177 | P94: ='Calcul de variation des prix'!O49 -> 3299.850008 | Q94: ='Calcul de variation des prix'!P49 -> 3174.984133 | R94: ='Calcul de variation des prix'!Q49 -> 2955.95168 | S94: ='Calcul de variation des prix'!R49 -> 2395.135188 | T94: ='Calcul de variation des prix'!S49 -> 1463.649406 | U94: ='Calcul de variation des prix'!T49 -> 876.6504896 | V94: ='Calcul de variation des prix'!U49 -> 601.2762062 | W94: ='Calcul de variation des prix'!V49 -> 472.6170194 | X94: ='Calcul de variation des prix'!W49 -> 359.4284875 | Y94: ='Calcul de variation des prix'!X49 -> 190.9784925 | Z94: ='Calcul de variation des prix'!Y49 -> 84.09555336 | AA94: ='Calcul de variation des prix'!Z49 -> 0 | AB94: ='Calcul de variation des prix'!AA49 -> 0
C95: ='Calcul de variation des prix'!C14 -> Hypothèse de prix marché de la Cour des Comptes | D95: €/MWh | F95: ='Calcul de variation des prix'!E50 -> 35.25773196 | G95: ='Calcul de variation des prix'!F50 -> 34.79424828 | H95: ='Calcul de variation des prix'!G50 -> 36.25775912 | I95: ='Calcul de variation des prix'!H50 -> 35.95869669 | J95: ='Calcul de variation des prix'!I50 -> 35.662101 | K95: ='Calcul de variation des prix'!J50 -> 35.3679517 | L95: ='Calcul de variation des prix'!K50 -> 35.07622861 | M95: ='Calcul de variation des prix'!L50 -> 34.78691172 | N95: ='Calcul de variation des prix'!M50 -> 34.49998118 | O95: ='Calcul de variation des prix'!N50 -> 34.21541731 | P95: ='Calcul de variation des prix'!O50 -> 33.9332006 | Q95: ='Calcul de variation des prix'!P50 -> 33.65331167 | R95: ='Calcul de variation des prix'!Q50 -> 33.37573133 | S95: ='Calcul de variation des prix'!R50 -> 33.10044053 | T95: ='Calcul de variation des prix'!S50 -> 32.8274204 | U95: ='Calcul de variation des prix'!T50 -> 32.55665221 | V95: ='Calcul de variation des prix'!U50 -> 32.28811737 | W95: ='Calcul de variation des prix'!V50 -> 32.02179747 | X95: ='Calcul de variation des prix'!W50 -> 31.75767424 | Y95: ='Calcul de variation des prix'!X50 -> 31.49572956 | Z95: ='Calcul de variation des prix'!Y50 -> 31.23594546 | AA95: ='Calcul de variation des prix'!Z50 -> 30.97830412 | AB95: ='Calcul de variation des prix'!AA50 -> 30.72278786
C96: Delta prix
C97: Eolien terrestre | D97: €/MWh | F97: =F$95-F84 -> -11.26601019 | G97: =G$95-G84 -> -10.02474544 | H97: =H$95-H84 -> -6.856486172 | I97: -6.772699542 | J97: -6.686446176 | K97: -6.59774642 | L97: -6.506620452 | M97: -6.413088283 | N97: -7.801775094 | O97: -9.188095236 | P97: -10.57206823 | Q97: -11.95371343 | R97: -13.33305005 | S97: -13.96273152 | T97: -14.59014234 | U97: -15.21530122 | V97: -15.83822675 | W97: -16.45893733 | X97: -17.07745125 | Y97: -17.69378662 | Z97: -18.30796141 | AA97: -18.91999343 | AB97: -19.52990038
C98: Eolien en mer | D98: €/MWh | F98: =F$95-F85 -> 35.25773196 | G98: 34.79424828 | H98: =H$95-H85 -> 36.25775912 | I98: -2.475066111 | J98: -3.963221103 | K98: -5.448929704 | L98: -6.932212094 | M98: -8.413088283 | N98: -9.89157812 | O98: -11.36770129 | P98: -12.8414773 | Q98: -14.31292553 | R98: -15.78206517 | S98: -16.63625422 | T98: -17.4881726 | U98: -18.33783904 | V98: -19.18527213 | W98: -20.03049028 | X98: -20.87351176 | Y98: -21.7143547 | Z98: -22.55303705 | AA98: -23.38957664 | AB98: -24.22399114
C99: PV au sol | D99: €/MWh | F99: =F$95-F86 -> -6.856733967 | G99: -6.297324464 | H99: -3.810920439 | I99: -3.976246956 | J99: -4.139106737 | K99: -4.299520127 | L99: -4.457507305 | M99: -4.613088283 | N99: -5.897569257 | O99: -7.179683561 | P99: -8.459450716 | Q99: -9.736890081 | R99: -11.01202086 | S99: -11.98118774 | T99: -12.94808397 | U99: -13.91272826 | V99: -14.87513919 | W99: -15.83533518 | X99: -16.7933345 | Y99: -17.74915528 | Z99: -18.70281547 | AA99: -19.6543329 | AB99: -20.60372525
C100: =C87 -> PV sur toiture | D100: €/MWh | F100: =F$95-F87 -> -6.856733967 | G100: -6.297324464 | H100: -3.810920439 | I100: -3.976246956 | J100: -4.139106737 | K100: -4.299520127 | L100: -4.457507305 | M100: -4.613088283 | N100: -5.897569257 | O100: -7.179683561 | P100: -8.459450716 | Q100: -9.736890081 | R100: -11.01202086 | S100: -11.98118774 | T100: -12.94808397 | U100: -13.91272826 | V100: -14.87513919 | W100: -15.83533518 | X100: -16.7933345 | Y100: -17.74915528 | Z100: -18.70281547 | AA100: -19.6543329 | AB100: -20.60372525
C101: Ajustement des compléments rémunération passés sur la base des prix de marché du scénario considéré
C102: Ajustement des dépenses au titre des engagements passés hors éolien en mer | D102: M€ | F102: =F$94+(SUMPRODUCT('Données - Graphiques'!$F$13:$F$14,F$76:F$77,F99:F100)+SUMPRODUCT('Données - Graphiques'!$F$11,F$74,F97))*8760*1000/1000000*F$94/MAX($F$94:$AB$94) -> 3813.501302 | G102: =G$94+(SUMPRODUCT('Données - Graphiques'!$F$13:$F$14,G$76:G$77,G99:G100)+SUMPRODUCT('Données - Graphiques'!$F$11,G$74,G97))*8760*1000/1000000*G$94/MAX($F$94:$AB$94) -> 4097.395107 | H102: =H$94+(SUMPRODUCT('Données - Graphiques'!$F$13:$F$14,H$76:H$77,H99:H100)+SUMPRODUCT('Données - Graphiques'!$F$11,H$74,H97))*8760*1000/1000000*H$94/MAX($F$94:$AB$94) -> 4177.116619 | I102: =I$94+(SUMPRODUCT('Données - Graphiques'!$F$13:$F$14,I$76:I$77,I99:I100)+SUMPRODUCT('Données - Graphiques'!$F$11,I$74,I97))*8760*1000/1000000*I$94/MAX($F$94:$AB$94) -> 4101.661639 | J102: =J$94+(SUMPRODUCT('Données - Graphiques'!$F$13:$F$14,J$76:J$77,J99:J100)+SUMPRODUCT('Données - Graphiques'!$F$11,J$74,J97))*8760*1000/1000000*J$94/MAX($F$94:$AB$94) -> 3921.187698 | K102: =K$94+(SUMPRODUCT('Données - Graphiques'!$F$13:$F$14,K$76:K$77,K99:K100)+SUMPRODUCT('Données - Graphiques'!$F$11,K$74,K97))*8760*1000/1000000*K$94/MAX($F$94:$AB$94) -> 3842.273485 | L102: =L$94+(SUMPRODUCT('Données - Graphiques'!$F$13:$F$14,L$76:L$77,L99:L100)+SUMPRODUCT('Données - Graphiques'!$F$11,L$74,L97))*8760*1000/1000000*L$94/MAX($F$94:$AB$94) -> 3789.363174 | M102: =M$94+(SUMPRODUCT('Données - Graphiques'!$F$13:$F$14,M$76:M$77,M99:M100)+SUMPRODUCT('Données - Graphiques'!$F$11,M$74,M97))*8760*1000/1000000*M$94/MAX($F$94:$AB$94) -> 3694.912407 | N102: =N$94+(SUMPRODUCT('Données - Graphiques'!$F$13:$F$14,N$76:N$77,N99:N100)+SUMPRODUCT('Données - Graphiques'!$F$11,N$74,N97))*8760*1000/1000000*N$94/MAX($F$94:$AB$94) -> 3358.195704 | O102: =O$94+(SUMPRODUCT('Données - Graphiques'!$F$13:$F$14,O$76:O$77,O99:O100)+SUMPRODUCT('Données - Graphiques'!$F$11,O$74,O97))*8760*1000/1000000*O$94/MAX($F$94:$AB$94) -> 3073.254522 | P102: =P$94+(SUMPRODUCT('Données - Graphiques'!$F$13:$F$14,P$76:P$77,P99:P100)+SUMPRODUCT('Données - Graphiques'!$F$11,P$74,P97))*8760*1000/1000000*P$94/MAX($F$94:$AB$94) -> 2874.687422 | Q102: =Q$94+(SUMPRODUCT('Données - Graphiques'!$F$13:$F$14,Q$76:Q$77,Q99:Q100)+SUMPRODUCT('Données - Graphiques'!$F$11,Q$74,Q97))*8760*1000/1000000*Q$94/MAX($F$94:$AB$94) -> 2708.778253 | R102: =R$94+(SUMPRODUCT('Données - Graphiques'!$F$13:$F$14,R$76:R$77,R99:R100)+SUMPRODUCT('Données - Graphiques'!$F$11,R$74,R97))*8760*1000/1000000*R$94/MAX($F$94:$AB$94) -> 2468.598527 | S102: =S$94+(SUMPRODUCT('Données - Graphiques'!$F$13:$F$14,S$76:S$77,S99:S100)+SUMPRODUCT('Données - Graphiques'!$F$11,S$74,S97))*8760*1000/1000000*S$94/MAX($F$94:$AB$94) -> 1981.175886 | T102: =T$94+(SUMPRODUCT('Données - Graphiques'!$F$13:$F$14,T$76:T$77,T99:T100)+SUMPRODUCT('Données - Graphiques'!$F$11,T$74,T97))*8760*1000/1000000*T$94/MAX($F$94:$AB$94) -> 1199.024776 | U102: =U$94+(SUMPRODUCT('Données - Graphiques'!$F$13:$F$14,U$76:U$77,U99:U100)+SUMPRODUCT('Données - Graphiques'!$F$11,U$74,U97))*8760*1000/1000000*U$94/MAX($F$94:$AB$94) -> 711.1732103 | V102: =V$94+(SUMPRODUCT('Données - Graphiques'!$F$13:$F$14,V$76:V$77,V99:V100)+SUMPRODUCT('Données - Graphiques'!$F$11,V$74,V97))*8760*1000/1000000*V$94/MAX($F$94:$AB$94) -> 482.9937646 | W102: =W$94+(SUMPRODUCT('Données - Graphiques'!$F$13:$F$14,W$76:W$77,W99:W100)+SUMPRODUCT('Données - Graphiques'!$F$11,W$74,W97))*8760*1000/1000000*W$94/MAX($F$94:$AB$94) -> 375.8867195 | X102: =X$94+(SUMPRODUCT('Données - Graphiques'!$F$13:$F$14,X$76:X$77,X99:X100)+SUMPRODUCT('Données - Graphiques'!$F$11,X$74,X97))*8760*1000/1000000*X$94/MAX($F$94:$AB$94) -> 283.0103004 | Y102: =Y$94+(SUMPRODUCT('Données - Graphiques'!$F$13:$F$14,Y$76:Y$77,Y99:Y100)+SUMPRODUCT('Données - Graphiques'!$F$11,Y$74,Y97))*8760*1000/1000000*Y$94/MAX($F$94:$AB$94) -> 148.8602036 | Z102: =Z$94+(SUMPRODUCT('Données - Graphiques'!$F$13:$F$14,Z$76:Z$77,Z99:Z100)+SUMPRODUCT('Données - Graphiques'!$F$11,Z$74,Z97))*8760*1000/1000000*Z$94/MAX($F$94:$AB$94) -> 64.88345535 | AA102: =AA$94+(SUMPRODUCT('Données - Graphiques'!$F$13:$F$14,AA$76:AA$77,AA99:AA100)+SUMPRODUCT('Données - Graphiques'!$F$11,AA$74,AA97))*8760*1000/1000000*AA$94/MAX($F$94:$AB$94) -> 0 | AB102: =AB$94+(SUMPRODUCT('Données - Graphiques'!$F$13:$F$14,AB$76:AB$77,AB99:AB100)+SUMPRODUCT('Données - Graphiques'!$F$11,AB$74,AB97))*8760*1000/1000000*AB$94/MAX($F$94:$AB$94) -> 0
C103: Ajustement des dépenses au titre des engagements AO éolien en mer 2011-2013 | D103: M€ | F103: =F$93+(SUMPRODUCT('Données - Graphiques'!$F$12,F$75,F98))*8760*1000/1000000 -> 0 | G103: =G$93+(SUMPRODUCT('Données - Graphiques'!$F$12,G$75,G98))*8760*1000/1000000 -> 0 | H103: =H$93+(SUMPRODUCT('Données - Graphiques'!$F$12,H$75,H98))*8760*1000/1000000 -> 0 | I103: =I$93+(SUMPRODUCT('Données - Graphiques'!$F$12,I$75,I98))*8760*1000/1000000 -> 148.7460276 | J103: =J$93+(SUMPRODUCT('Données - Graphiques'!$F$12,J$75,J98))*8760*1000/1000000 -> 300.8895987 | K103: =K$93+(SUMPRODUCT('Données - Graphiques'!$F$12,K$75,K98))*8760*1000/1000000 -> 380.5160363 | L103: =L$93+(SUMPRODUCT('Données - Graphiques'!$F$12,L$75,L98))*8760*1000/1000000 -> 576.8847535 | M103: =M$93+(SUMPRODUCT('Données - Graphiques'!$F$12,M$75,M98))*8760*1000/1000000 -> 627.7537471 | N103: =N$93+(SUMPRODUCT('Données - Graphiques'!$F$12,N$75,N98))*8760*1000/1000000 -> 591.9231385 | O103: =O$93+(SUMPRODUCT('Données - Graphiques'!$F$12,O$75,O98))*8760*1000/1000000 -> 559.9634437 | P103: =P$93+(SUMPRODUCT('Données - Graphiques'!$F$12,P$75,P98))*8760*1000/1000000 -> 530.3116224 | Q103: =Q$93+(SUMPRODUCT('Données - Graphiques'!$F$12,Q$75,Q98))*8760*1000/1000000 -> 502.194925 | R103: =R$93+(SUMPRODUCT('Données - Graphiques'!$F$12,R$75,R98))*8760*1000/1000000 -> 475.1862177 | S103: =S$93+(SUMPRODUCT('Données - Graphiques'!$F$12,S$75,S98))*8760*1000/1000000 -> 486.5559571 | T103: =T$93+(SUMPRODUCT('Données - Graphiques'!$F$12,T$75,T98))*8760*1000/1000000 -> 487.4467579 | U103: =U$93+(SUMPRODUCT('Données - Graphiques'!$F$12,U$75,U98))*8760*1000/1000000 -> 481.7174142 | V103: =V$93+(SUMPRODUCT('Données - Graphiques'!$F$12,V$75,V98))*8760*1000/1000000 -> 471.5900026 | W103: =W$93+(SUMPRODUCT('Données - Graphiques'!$F$12,W$75,W98))*8760*1000/1000000 -> 458.4332288 | X103: =X$93+(SUMPRODUCT('Données - Graphiques'!$F$12,X$75,X98))*8760*1000/1000000 -> 443.1352066 | Y103: =Y$93+(SUMPRODUCT('Données - Graphiques'!$F$12,Y$75,Y98))*8760*1000/1000000 -> 426.2965501 | Z103: =Z$93+(SUMPRODUCT('Données - Graphiques'!$F$12,Z$75,Z98))*8760*1000/1000000 -> 408.3373134 | AA103: =AA$93+(SUMPRODUCT('Données - Graphiques'!$F$12,AA$75,AA98))*8760*1000/1000000 -> 364.9695146 | AB103: =AB$93+(SUMPRODUCT('Données - Graphiques'!$F$12,AB$75,AB98))*8760*1000/1000000 -> 287.8977752
C104: Estimation de l'évolution du besoin cumulé de compléments rémunération futurs par technologie - incluant le remboursement des compléments de rémunération à hauteur maximale des compléments de rémunération touchés | AF104: Retraitement des compléments de rémunération négatifs | BG104: Estimation de l'évolution du besoin cumulé de compléments rémunération futurs par technologie
C105: ='Données de production'!C6 -> Eolien terrestre | AF105: =C105 -> Eolien terrestre | BG105: =AF105 -> Eolien terrestre
C106: 2021 | D106: M€ | I106: =AL106 -> 90.24097043 | J106: =AM106-AL106 -> 93.50447747 | K106: =AN106-AM106 -> 97.52549386 | L106: 101.2889649 | M106: 104.8447594 | N106: 100.6918558 | O106: 96.37136343 | P106: 91.91283358 | Q106: 87.33925542 | R106: 82.66878172 | S106: 80.30461389 | T106: 78.04971769 | U106: 75.88682147 | V106: 73.80211138 | W106: 71.78440729 | X106: 69.82456368 | Y106: 67.91502695 | Z106: 66.04950348 | AA106: =BD106-BC106 -> 64.22270743 | AB106: 62.4301668 | AF106: 2021 | AG106: M€ | AL106: =IF(BM106>0,BM106,0) -> 90.24097043 | AM106: =IF(AL106+BN106>0,AL106+BN106,0) -> 183.7454479 | AN106: =IF(AM106+BO106>0,AM106+BO106,0) -> 281.2709418 | AO106: 382.5599067 | AP106: 487.4046662 | AQ106: 588.096522 | AR106: 684.4678854 | AS106: 776.380719 | AT106: 863.7199744 | AU106: 946.3887561 | AV106: 1026.69337 | AW106: 1104.743088 | AX106: 1180.629909 | AY106: 1254.432021 | AZ106: 1326.216428 | BA106: 1396.040992 | BB106: 1463.956018 | BC106: 1530.005522 | BD106: =IF(BC106+CE106>0,BC106+CE106,0) -> 1594.228229 | BE106: =IF(BD106+CF106>0,BD106+CF106,0) -> 1656.658396 | BG106: 2021 | BH106: M€ | BM106: =($I$58-$H$58)*1000*I$74*8760*($F$79-I$84)/1000000 -> 90.24097043 | BN106: =($I$58-$H$58)*1000*J$74*8760*($F$79-J$84)/1000000 -> 93.50447747 | BO106: =($I$58-$H$58)*1000*K$74*8760*($F$79-K$84)/1000000 -> 97.52549386 | BP106: 101.2889649 | BQ106: 104.8447594 | BR106: 100.6918558 | BS106: 96.37136343 | BT106: 91.91283358 | BU106: 87.33925542 | BV106: 82.66878172 | BW106: 80.30461389 | BX106: 78.04971769 | BY106: 75.88682147 | BZ106: 73.80211138 | CA106: 71.78440729 | CB106: 69.82456368 | CC106: 67.91502695 | CD106: 66.04950348 | CE106: 64.22270743 | CF106: 62.4301668
C107: 2022 | D107: M€ | J107: =AM107 -> 90.39732214 | K107: 94.33939468 | L107: 98.03481569 | M107: 101.5313445 | N107: 97.35286662 | O107: 93.00999413 | P107: 88.53171504 | Q107: 83.94058039 | R107: 79.25439694 | S107: 76.92107139 | T107: 74.69358673 | U107: 72.55521357 | V107: 70.49257177 | W107: 68.49483222 | X107: 66.55313654 | Y107: 64.66016828 | Z107: 62.80983141 | AA107: 60.99700607 | AB107: 59.21736065 | AF107: 2022 | AG107: M€ | AM107: =IF(BN107>0,BN107,0) -> 90.39732214 | AN107: 184.7367168 | AO107: 282.7715325 | AP107: 384.302877 | AQ107: 481.6557436 | AR107: 574.6657377 | AS107: 663.1974528 | AT107: 747.1380332 | AU107: 826.3924301 | AV107: 903.3135015 | AW107: 978.0070882 | AX107: 1050.562302 | AY107: 1121.054874 | AZ107: 1189.549706 | BA107: 1256.102842 | BB107: 1320.763011 | BC107: 1383.572842 | BD107: 1444.569848 | BE107: =IF(BD107+CF107>0,BD107+CF107,0) -> 1503.787209 | BG107: 2022 | BH107: M€ | BN107: =($J$58-$I$58)*1000*J$74*8760*($G$79-J$84)/1000000 -> 90.39732214 | BO107: =($J$58-$I$58)*1000*K$74*8760*($G$79-K$84)/1000000 -> 94.33939468 | BP107: 98.03481569 | BQ107: 101.5313445 | BR107: 97.35286662 | BS107: 93.00999413 | BT107: 88.53171504 | BU107: 83.94058039 | BV107: 79.25439694 | BW107: 76.92107139 | BX107: 74.69358673 | BY107: 72.55521357 | BZ107: 70.49257177 | CA107: 68.49483222 | CB107: 66.55313654 | CC107: 64.66016828 | CD107: 62.80983141 | CE107: 60.99700607 | CF107: 59.21736065
C108: 2023 | D108: M€ | K108: =AN108 -> 85.301479 | L108: 88.69598167 | M108: 91.91258097 | N108: 87.97841864 | O108: 83.89340447 | P108: 79.68413846 | Q108: 75.3713139 | R108: 70.97127064 | S108: 68.81660111 | T108: 66.75776724 | U108: 64.7796211 | V108: 62.87004737 | W108: 61.01924064 | X108: 59.2191799 | Y108: 57.46324034 | Z108: 55.7459022 | AA108: 54.06252959 | AB108: 52.40920038 | AF108: 2023 | AG108: M€ | AN108: =IF(BO108>0,BO108,0) -> 85.301479 | AO108: 173.9974607 | AP108: 265.9100416 | AQ108: 353.8884603 | AR108: 437.7818647 | AS108: 517.4660032 | AT108: 592.8373171 | AU108: 663.8085877 | AV108: 732.6251888 | AW108: 799.3829561 | AX108: 864.1625772 | AY108: 927.0326246 | AZ108: 988.0518652 | BA108: 1047.271045 | BB108: 1104.734285 | BC108: 1160.480188 | BD108: 1214.542717 | BE108: 1266.951918 | BG108: 2023 | BH108: M€ | BO108: =($K$58-$J$58)*1000*K$74*8760*($H$79-K$84)/1000000 -> 85.301479 | BP108: =($K$58-$J$58)*1000*L$74*8760*($H$79-L$84)/1000000 -> 88.69598167 | BQ108: 91.91258097 | BR108: 87.97841864 | BS108: 83.89340447 | BT108: 79.68413846 | BU108: 75.3713139 | BV108: 70.97127064 | BW108: 68.81660111 | BX108: 66.75776724 | BY108: 64.7796211 | BZ108: 62.87004737 | CA108: 61.01924064 | CB108: 59.2191799 | CC108: 57.46324034 | CD108: 55.7459022 | CE108: 54.06252959 | CF108: 52.40920038
C109: 2024 | D109: M€ | L109: =AO109 -> 85.65074075 | M109: 88.81187908 | N109: 84.85378432 | O109: 80.74782678 | P109: 76.52007939 | Q109: 72.19082541 | R109: 67.77608093 | S109: 65.65027368 | T109: 63.6170916 | U109: 61.6618942 | V109: 59.77297203 | W109: 57.94084817 | X109: 56.15777031 | Y109: 54.41733556 | Z109: 52.71420908 | AA109: 51.04391029 | AB109: 49.40264844 | AF109: 2024 | AG109: M€ | AO109: =IF(BP109>0,BP109,0) -> 85.65074075 | AP109: 174.4626198 | AQ109: 259.3164041 | AR109: 340.0642309 | AS109: 416.5843103 | AT109: 488.7751357 | AU109: 556.5512166 | AV109: 622.2014903 | AW109: 685.8185819 | AX109: 747.4804761 | AY109: 807.2534482 | AZ109: 865.1942963 | BA109: 921.3520666 | BB109: 975.7694022 | BC109: 1028.483611 | BD109: 1079.527522 | BE109: 1128.93017 | BG109: 2024 | BH109: M€ | BP109: =($L$58-$K$58)*1000*L$74*8760*($I$79-L$84)/1000000 -> 85.65074075 | BQ109: =($L$58-$K$58)*1000*M$74*8760*($I$79-M$84)/1000000 -> 88.81187908 | BR109: 84.85378432 | BS109: 80.74782678 | BT109: 76.52007939 | BU109: 72.19082541 | BV109: 67.77608093 | BW109: 65.65027368 | BX109: 63.6170916 | BY109: 61.6618942 | BZ109: 59.77297203 | CA109: 57.94084817 | CB109: 56.15777031 | CC109: 54.41733556 | CD109: 52.71420908 | CE109: 51.04391029 | CF109: 49.40264844
C110: 2025 | D110: M€ | M110: =AP110 -> 85.71117718 | N110: 81.72914999 | O110: 77.60224908 | P110: 73.35602032 | Q110: 69.01033692 | R110: 64.58089122 | S110: 62.48394625 | T110: 60.47641595 | U110: 58.54416729 | V110: 56.67589669 | W110: 54.86245569 | X110: 53.09636071 | Y110: 51.37143078 | Z110: 49.68251597 | AA110: 48.02529099 | AB110: 46.39609651 | AF110: 2025 | AG110: M€ | AP110: =IF(BQ110>0,BQ110,0) -> 85.71117718 | AQ110: 167.4403272 | AR110: 245.0425763 | AS110: 318.3985966 | AT110: 387.4089335 | AU110: 451.9898247 | AV110: 514.473771 | AW110: 574.9501869 | AX110: 633.4943542 | AY110: 690.1702509 | AZ110: 745.0327066 | BA110: 798.1290673 | BB110: 849.5004981 | BC110: 899.1830141 | BD110: 947.208305 | BE110: 993.6044016 | BG110: 2025 | BH110: M€ | BQ110: =($M$58-$L$58)*1000*M$74*8760*($J$79-M$84)/1000000 -> 85.71117718 | BR110: =($M$58-$L$58)*1000*N$74*8760*($J$79-N$84)/1000000 -> 81.72914999 | BS110: 77.60224908 | BT110: 73.35602032 | BU110: 69.01033692 | BV110: 64.58089122 | BW110: 62.48394625 | BX110: 60.47641595 | BY110: 58.54416729 | BZ110: 56.67589669 | CA110: 54.86245569 | CB110: 53.09636071 | CC110: 51.37143078 | CD110: 49.68251597 | CE110: 48.02529099 | CF110: 46.39609651
C111: 2026 | D111: M€ | N111: =AQ111 -> 86.90643248 | O111: 82.3205083 | P111: 77.60537532 | Q111: 72.78255237 | R111: 67.86903116 | S111: 65.58252527 | T111: 63.3913281 | U111: 61.28037503 | V111: 59.23761733 | W111: 57.25330352 | X111: 55.31945669 | Y111: 53.42948844 | Z111: 51.57790938 | AA111: 49.76010909 | AB111: 47.97218702 | AF111: 2026 | AG111: M€ | AQ111: =IF(BR111>0,BR111,0) -> 86.90643248 | AR111: 169.2269408 | AS111: 246.8323161 | AT111: 319.6148685 | AU111: 387.4838996 | AV111: 453.0664249 | AW111: 516.457753 | AX111: 577.738128 | AY111: 636.9757454 | AZ111: 694.2290489 | BA111: 749.5485056 | BB111: 802.977994 | BC111: 854.5559034 | BD111: 904.3160125 | BE111: 952.2881995 | BG111: 2026 | BH111: M€ | BR111: =($N$58-$M$58)*1000*N$74*8760*($K$79-N$84)/1000000 -> 86.90643248 | BS111: =($N$58-$M$58)*1000*O$74*8760*($K$79-O$84)/1000000 -> 82.3205083 | BT111: 77.60537532 | BU111: 72.78255237 | BV111: 67.86903116 | BW111: 65.58252527 | BX111: 63.3913281 | BY111: 61.28037503 | BZ111: 59.23761733 | CA111: 57.25330352 | CB111: 55.31945669 | CC111: 53.42948844 | CD111: 51.57790938 | CE111: 49.76010909 | CF111: 47.97218702
C112: 2027 | D112: M€ | O112: =AR112 -> 78.84270639 | P112: 74.10714009 | Q112: 69.26615251 | R112: 64.33637739 | S112: 62.0817821 | T112: 59.91894597 | U112: 57.83336539 | V112: 55.81344041 | W112: 53.84978267 | X112: 51.93471238 | Y112: 50.06188652 | Z112: 48.2260201 | AA112: 46.42267444 | AB112: 44.64809424 | AF112: 2027 | AG112: M€ | AR112: =IF(BS112>0,BS112,0) -> 78.84270639 | AS112: 152.9498465 | AT112: 222.215999 | AU112: 286.5523764 | AV112: 348.6341585 | AW112: 408.5531045 | AX112: 466.3864698 | AY112: 522.1999102 | AZ112: 576.0496929 | BA112: 627.9844053 | BB112: 678.0462918 | BC112: 726.2723119 | BD112: 772.6949864 | BE112: 817.3430806 | BG112: 2027 | BH112: M€ | BS112: =($O$58-$N$58)*1000*O$74*8760*($L$79-O$84)/1000000 -> 78.84270639 | BT112: =($O$58-$N$58)*1000*P$74*8760*($L$79-P$84)/1000000 -> 74.10714009 | BU112: 69.26615251 | BV112: 64.33637739 | BW112: 62.0817821 | BX112: 59.91894597 | BY112: 57.83336539 | BZ112: 55.81344041 | CA112: 53.84978267 | CB112: 51.93471238 | CC112: 50.06188652 | CD112: 48.2260201 | CE112: 46.42267444 | CF112: 44.64809424
C113: 2028 | D113: M€ | P113: =AS113 -> 70.60890486 | Q113: 65.74975264 | R113: 60.80372362 | S113: 58.58103894 | T113: 56.44656383 | U113: 54.38635576 | V113: 52.38926348 | W113: 50.44626183 | X113: 48.54996808 | Y113: 46.69428459 | Z113: 44.87413082 | AA113: 43.08523979 | AB113: 41.32400147 | AF113: 2028 | AG113: M€ | AS113: =IF(BT113>0,BT113,0) -> 70.60890486 | AT113: 136.3586575 | AU113: 197.1623811 | AV113: 255.7434201 | AW113: 312.1899839 | AX113: 366.5763397 | AY113: 418.9656031 | AZ113: 469.411865 | BA113: 517.961833 | BB113: 564.6561176 | BC113: 609.5302485 | BD113: 652.6154882 | BE113: 693.9394897 | BG113: 2028 | BH113: M€ | BT113: =($P$58-$O$58)*1000*P$74*8760*($M$79-P$84)/1000000 -> 70.60890486 | BU113: =($P$58-$O$58)*1000*Q$74*8760*($M$79-Q$84)/1000000 -> 65.74975264 | BV113: =($P$58-$O$58)*1000*R$74*8760*($M$79-R$84)/1000000 -> 60.80372362 | BW113: 58.58103894 | BX113: 56.44656383 | BY113: 54.38635576 | BZ113: 52.38926348 | CA113: 50.44626183 | CB113: 48.54996808 | CC113: 46.69428459 | CD113: 44.87413082 | CE113: 43.08523979 | CF113: 41.32400147
C114: 2029 | D114: M€ | Q114: =AT114 -> 58.79193719 | R114: 53.81374695 | S114: 51.65420302 | T114: 49.57584519 | U114: 47.56584108 | V114: 45.61392732 | W114: 43.71179736 | X114: 41.8526563 | Y114: 40.03089202 | Z114: 38.24182849 | AA114: 36.48153848 | AB114: 34.7466994 | AF114: 2029 | AG114: M€ | AT114: =IF(BU114>0,BU114,0) -> 58.79193719 | AU114: 112.6056841 | AV114: 164.2598872 | AW114: 213.8357324 | AX114: 261.4015734 | AY114: 307.0155007 | AZ114: 350.7272981 | BA114: 392.5799544 | BB114: 432.6108464 | BC114: 470.8526749 | BD114: 507.3342134 | BE114: 542.0809128 | BG114: 2029 | BH114: M€ | BU114: =($Q$58-$P$58)*1000*Q$74*8760*($N$79-Q$84)/1000000 -> 58.79193719 | BV114: =($Q$58-$P$58)*1000*R$74*8760*($N$79-R$84)/1000000 -> 53.81374695 | BW114: 51.65420302 | BX114: 49.57584519 | BY114: 47.56584108 | BZ114: 45.61392732 | CA114: 43.71179736 | CB114: 41.8526563 | CC114: 40.03089202 | CD114: 38.24182849 | CE114: 36.48153848 | CF114: 34.7466994
C115: 2030 | D115: M€ | R115: =AU115 -> 46.82377029 | S115: 44.7273671 | T115: 42.70512655 | U115: 40.74532639 | V115: 38.83859115 | W115: 36.97733289 | X115: 35.15534453 | Y115: 33.36749944 | Z115: 31.60952615 | AA115: 29.87783717 | AB115: 28.16939734 | AF115: 2030 | AG115: M€ | AU115: =IF(BV115>0,BV115,0) -> 46.82377029 | AV115: 91.55113738 | AW115: 134.2562639 | AX115: 175.0015903 | AY115: 213.8401815 | AZ115: 250.8175144 | BA115: 285.9728589 | BB115: 319.3403583 | BC115: 350.9498845 | BD115: 380.8277217 | BE115: 408.997119 | BG115: 2030 | BH115: M€ | BV115: =($R$58-$Q$58)*1000*R$74*8760*($O$79-R$84)/1000000 -> 46.82377029 | BW115: =($R$58-$Q$58)*1000*S$74*8760*($O$79-S$84)/1000000 -> 44.7273671 | BX115: 42.70512655 | BY115: 40.74532639 | BZ115: 38.83859115 | CA115: 36.97733289 | CB115: 35.15534453 | CC115: 33.36749944 | CD115: 31.60952615 | CE115: 29.87783717 | CF115: 28.16939734
C116: 2031 | D116: M€ | S116: =AV116 -> 44.97608543 | T116: 42.63673927 | U116: 40.36465051 | V116: 38.14972042 | W116: 35.98377566 | X116: 33.86013033 | Y116: 31.7732623 | Z116: 29.71857055 | AA116: 27.69219083 | AB116: 25.69085384 | AF116: 2031 | AG116: M€ | AV116: =IF(BW116>0,BW116,0) -> 44.97608543 | AW116: 87.6128247 | AX116: 127.9774752 | AY116: 166.1271956 | AZ116: 202.1109713 | BA116: 235.9711016 | BB116: 267.7443639 | BC116: 297.4629345 | BD116: 325.1551253 | BE116: 350.8459791 | BG116: 2031 | BH116: M€ | BW116: =($S$58-$R$58)*1000*S$74*8760*($P$79-S$84)/1000000 -> 44.97608543 | BX116: =($S$58-$R$58)*1000*T$74*8760*($P$79-T$84)/1000000 -> 42.63673927 | BY116: =($S$58-$R$58)*1000*U$74*8760*($P$79-U$84)/1000000 -> 40.36465051 | BZ116: 38.14972042 | CA116: 35.98377566 | CB116: 33.86013033 | CC116: 31.7732623 | CD116: 29.71857055 | CE116: 27.69219083 | CF116: 25.69085384
C117: 2032 | D117: M€ | T117: =AW117 -> 34.46177402 | U117: 32.24941928 | V117: 30.0882438 | W117: 27.97092928 | X117: 25.89148922 | Y117: 23.84497917 | Z117: 21.82727942 | AA117: 19.83492996 | AB117: 17.86500351 | AF117: 2032 | AG117: M€ | AW117: =IF(BX117>0,BX117,0) -> 34.46177402 | AX117: 66.7111933 | AY117: 96.7994371 | AZ117: 124.7703664 | BA117: 150.6618556 | BB117: 174.5068348 | BC117: 196.3341142 | BD117: 216.1690441 | BE117: 234.0340477 | BG117: 2032 | BH117: M€ | BX117: =($T$58-$S$58)*1000*T$74*8760*($Q$79-T$84)/1000000 -> 34.46177402 | BY117: =($T$58-$S$58)*1000*U$74*8760*($Q$79-U$84)/1000000 -> 32.24941928 | BZ117: 30.0882438 | CA117: 27.97092928 | CB117: 25.89148922 | CC117: 23.84497917 | CD117: 21.82727942 | CE117: 19.83492996 | CF117: 17.86500351
C118: 2033 | D118: M€ | U118: =AX118 -> 24.13418805 | V118: 22.02676719 | W118: 19.9580829 | X118: 17.92284811 | Y118: 15.91669603 | Z118: 13.93598828 | AA118: 11.97766909 | AB118: 10.03915317 | AF118: 2033 | AG118: M€ | AX118: =IF(BY118>0,BY118,0) -> 24.13418805 | AY118: 46.16095523 | AZ118: 66.11903814 | BA118: 84.04188625 | BB118: 99.95858229 | BC118: 113.8945706 | BD118: 125.8722397 | BE118: 135.9113928 | BG118: 2033 | BH118: M€ | BY118: =($U$58-$T$58)*1000*U$74*8760*($R$79-U$84)/1000000 -> 24.13418805 | BZ118: =($U$58-$T$58)*1000*V$74*8760*($R$79-V$84)/1000000 -> 22.02676719 | CA118: 19.9580829 | CB118: 17.92284811 | CC118: 15.91669603 | CD118: 13.93598828 | CE118: 11.97766909 | CF118: 10.03915317
C119: 2034 | D119: M€ | V119: =AY119 -> 16.96928383 | W119: 14.93110843 | X119: 12.92360645 | Y119: 10.94277353 | Z119: 8.98527324 | AA119: 7.048303425 | AB119: 5.12949335 | AF119: 2034 | AG119: M€ | AY119: =IF(BZ119>0,BZ119,0) -> 16.96928383 | AZ119: 31.90039226 | BA119: 44.82399871 | BB119: 55.76677223 | BC119: 64.75204547 | BD119: 71.8003489 | BE119: 76.92984225 | BG119: 2034 | BH119: M€ | BZ119: =($V$58-$U$58)*1000*V$74*8760*($S$79-V$84)/1000000 -> 16.96928383 | CA119: =($V$58-$U$58)*1000*W$74*8760*($S$79-W$84)/1000000 -> 14.93110843 | CB119: =($V$58-$U$58)*1000*X$74*8760*($S$79-X$84)/1000000 -> 12.92360645 | CC119: 10.94277353 | CD119: 8.98527324 | CE119: 7.048303425 | CF119: 5.12949335
C120: 2035 | D120: M€ | W120: =AZ120 -> 9.904133948 | X120: 7.924364783 | Y120: 5.96885102 | Z120: 4.034558197 | AA120: 2.118937757 | AB120: 0.2198335311 | AF120: 2035 | AG120: M€ | AZ120: =IF(CA120>0,CA120,0) -> 9.904133948 | BA120: 17.82849873 | BB120: 23.79734975 | BC120: 27.83190795 | BD120: 29.9508457 | BE120: 30.17067924 | BG120: 2035 | BH120: M€ | CA120: =($W$58-$V$58)*1000*W$74*8760*($T$79-W$84)/1000000 -> 9.904133948 | CB120: =($W$58-$V$58)*1000*X$74*8760*($T$79-X$84)/1000000 -> 7.924364783 | CC120: 5.96885102 | CD120: 4.034558197 | CE120: 2.118937757 | CF120: 0.2198335311
C121: 2036 | D121: M€ | X121: =BA121 -> 2.925123117 | Y121: 0.9949285124 | Z121: -0.9161568466 | AA121: -2.810427911 | AB121: -0.1934668725 | AF121: 2036 | AG121: M€ | BA121: =IF(CB121>0,CB121,0) -> 2.925123117 | BB121: 3.92005163 | BC121: 3.003894783 | BD121: 0.1934668725 | BE121: 0 | BG121: 2036 | BH121: M€ | CB121: =($X$58-$W$58)*1000*X$74*8760*($U$79-X$84)/1000000 -> 2.925123117 | CC121: =($X$58-$W$58)*1000*Y$74*8760*($U$79-Y$84)/1000000 -> 0.9949285124 | CD121: -0.9161568466 | CE121: -2.810427911 | CF121: -4.689826288
C122: 2037 | D122: M€ | Y122: =BB122 -> 0 | Z122: =BC122-BB122 -> 0 | AA122: 0 | AB122: 0 | AF122: 2037 | AG122: M€ | BB122: =IF(CC122>0,CC122,0) -> 0 | BC122: =IF(BB122+CD122>0,BB122+CD122,0) -> 0 | BD122: 0 | BE122: 0 | BG122: 2037 | BH122: M€ | CC122: =($Y$58-$X$58)*1000*Y$74*8760*($V$79-Y$84)/1000000 -> -3.978993995 | CD122: =($Y$58-$X$58)*1000*Z$74*8760*($V$79-Z$84)/1000000 -> -5.86687189 | CE122: -7.739793578 | CF122: -9.599486108
C123: 2038 | D123: M€ | Z123: =BC123 -> 0 | AA123: 0 | AB123: 0 | AF123: 2038 | AG123: M€ | BC123: =IF(CD123>0,CD123,0) -> 0 | BD123: 0 | BE123: 0 | BG123: 2038 | BH123: M€ | CD123: =($Z$58-$Y$58)*1000*Z$74*8760*($W$79-Z$84)/1000000 -> -10.81758693 | CE123: =($Z$58-$Y$58)*1000*AA$74*8760*($W$79-AA$84)/1000000 -> -12.66915925 | CF123: -14.50914593
C124: 2039 | D124: M€ | AA124: =BD124 -> 0 | AB124: 0 | AF124: 2039 | AG124: M€ | BD124: =IF(CE124>0,CE124,0) -> 0 | BE124: 0 | BG124: 2039 | BH124: M€ | CE124: =($AA$58-$Z$58)*1000*AA$74*8760*($X$79-AA$84)/1000000 -> -17.45771814 | CF124: =($AA$58-$Z$58)*1000*AB$74*8760*($X$79-AB$84)/1000000 -> -19.27856187
C125: 2040 | D125: M€ | AB125: =BE125 -> 0 | AF125: 2040 | AG125: M€ | BE125: =IF(CF125>0,CF125,0) -> 0 | BG125: 2040 | BH125: M€ | CF125: =($AB$58-$AA$58)*1000*AB$74*8760*($Y$79-AB$84)/1000000 -> -24.04797781
C126: Total | D126: M€ | F126: =SUM(F106:F125) -> 0 | G126: =SUM(G106:G125) -> 0 | H126: 0 | I126: 90.24097043 | J126: 183.9017996 | K126: 277.1663675 | L126: 373.6705031 | M126: 472.8117411 | N126: 539.5125078 | O126: 592.7880526 | P126: 632.3262071 | Q126: 654.4427068 | R126: 658.8980709 | S126: 681.7795082 | T126: 692.7309022 | U126: 691.9872391 | V126: 682.7404542 | W126: 665.0882925 | X126: 639.1107111 | Y126: 608.8527435 | Z126: 579.1168899 | AA126: 549.8404465 | AB126: =SUM(AB106:AB125) -> 525.4667228 | AF126: Total | AG126: M€ | AI126: =SUM(AI106:AI125) -> 0 | AJ126: =SUM(AJ106:AJ125) -> 0 | AK126: 0 | AL126: 90.24097043 | AM126: 274.14277 | AN126: 551.3091376 | AO126: 924.9796406 | AP126: 1397.791382 | AQ126: 1937.30389 | AR126: 2530.091942 | AS126: 3162.418149 | AT126: 3816.860856 | AU126: 4475.758927 | AV126: 5157.538435 | AW126: 5850.269337 | AX126: 6542.256576 | AY126: 7224.99703 | AZ126: 7890.085323 | BA126: 8529.196034 | BB126: 9138.048778 | BC126: 9717.165668 | BD126: 10267.00611 | BE126: =SUM(BE106:BE125) -> 10792.47284 | BG126: Total | BH126: M€ | BJ126: =SUM(BJ106:BJ125) -> 0 | BK126: =SUM(BK106:BK125) -> 0 | BL126: 0 | BM126: 90.24097043 | BN126: 183.9017996 | BO126: 277.1663675 | BP126: 373.6705031 | BQ126: 472.8117411 | BR126: 539.5125078 | BS126: 592.7880526 | BT126: 632.3262071 | BU126: 654.4427068 | BV126: 658.8980709 | BW126: 681.7795082 | BX126: 692.7309022 | BY126: 691.9872391 | BZ126: 682.7404542 | CA126: 665.0882925 | CB126: 639.1107111 | CC126: 604.8737495 | CD126: 562.4324311 | CE126: 511.9737755 | CF126: =SUM(CF106:CF125) -> 453.5351916
C127: =C7 -> Eolien en mer
C128: 2025 | D128: M€ | M128: =($M$59-3)*1000*M$75*8760*($F$80-M$85)/1000000 -> 0.0008874419726 | N128: =($M$59-3)*1000*N$75*8760*($F$80-N$85)/1000000 -> -1.326157007 | O128: -2.62781908 | P128: -3.915158472 | Q128: -5.193624451 | R128: -6.466213071 | S128: -7.582865121 | T128: -8.643279211 | U128: -9.667426772 | V128: -10.66682372 | W128: -11.64857701 | X128: -12.61731034 | Y128: -13.57616161 | Z128: -14.52733538 | AA128: -15.47242582 | AB128: -16.41261435
C129: 2026 | D129: M€ | N129: =IF(Start!$D$3="PPE - AMPERE",0.2*1000*N$75*8760*($G$80-N$85)/1000000+($N$59-$M$59+0.2)*1000*N$75*8760*($H$80-N$85)/1000000,($N$59-$M$59)*1000*N$75*8760*($G$80-N$85)/1000000) -> 32.20740807 | O129: =IF(Start!$D$3="PPE - AMPERE",0.2*1000*O$75*8760*($G$80-O$85)/1000000+($N$59-$M$59+0.2)*1000*O$75*8760*($H$80-O$85)/1000000,($N$59-$M$59)*1000*O$75*8760*($G$80-O$85)/1000000) -> 27.89293178 | P129: =IF(Start!$D$3="PPE - AMPERE",0.2*1000*P$75*8760*($G$80-P$85)/1000000+($N$59-$M$59+0.2)*1000*P$75*8760*($H$80-P$85)/1000000,($N$59-$M$59)*1000*P$75*8760*($G$80-P$85)/1000000) -> 23.72280247 | Q129: =IF(Start!$D$3="PPE - AMPERE",0.2*1000*Q$75*8760*($G$80-Q$85)/1000000+($N$59-$M$59+0.2)*1000*Q$75*8760*($H$80-Q$85)/1000000,($N$59-$M$59)*1000*Q$75*8760*($G$80-Q$85)/1000000) -> 19.64210125 | R129: =IF(Start!$D$3="PPE - AMPERE",0.2*1000*R$75*8760*($G$80-R$85)/1000000+($N$59-$M$59+0.2)*1000*R$75*8760*($H$80-R$85)/1000000,($N$59-$M$59)*1000*R$75*8760*($G$80-R$85)/1000000) -> 15.6206333 | S129: =IF(Start!$D$3="PPE - AMPERE",0.2*1000*S$75*8760*($G$80-S$85)/1000000+($N$59-$M$59+0.2)*1000*S$75*8760*($H$80-S$85)/1000000,($N$59-$M$59)*1000*S$75*8760*($G$80-S$85)/1000000) -> 14.64836223 | T129: =IF(Start!$D$3="PPE - AMPERE",0.2*1000*T$75*8760*($G$80-T$85)/1000000+($N$59-$M$59+0.2)*1000*T$75*8760*($H$80-T$85)/1000000,($N$59-$M$59)*1000*T$75*8760*($G$80-T$85)/1000000) -> 13.19454156 | U129: =IF(Start!$D$3="PPE - AMPERE",0.2*1000*U$75*8760*($G$80-U$85)/1000000+($N$59-$M$59+0.2)*1000*U$75*8760*($H$80-U$85)/1000000,($N$59-$M$59)*1000*U$75*8760*($G$80-U$85)/1000000) -> 11.43018093 | V129: =IF(Start!$D$3="PPE - AMPERE",0.2*1000*V$75*8760*($G$80-V$85)/1000000+($N$59-$M$59+0.2)*1000*V$75*8760*($H$80-V$85)/1000000,($N$59-$M$59)*1000*V$75*8760*($G$80-V$85)/1000000) -> 9.453887837 | W129: =IF(Start!$D$3="PPE - AMPERE",0.2*1000*W$75*8760*($G$80-W$85)/1000000+($N$59-$M$59+0.2)*1000*W$75*8760*($H$80-W$85)/1000000,($N$59-$M$59)*1000*W$75*8760*($G$80-W$85)/1000000) -> 7.326517161 | X129: =IF(Start!$D$3="PPE - AMPERE",0.2*1000*X$75*8760*($G$80-X$85)/1000000+($N$59-$M$59+0.2)*1000*X$75*8760*($H$80-X$85)/1000000,($N$59-$M$59)*1000*X$75*8760*($G$80-X$85)/1000000) -> 5.087660293 | Y129: =IF(Start!$D$3="PPE - AMPERE",0.2*1000*Y$75*8760*($G$80-Y$85)/1000000+($N$59-$M$59+0.2)*1000*Y$75*8760*($H$80-Y$85)/1000000,($N$59-$M$59)*1000*Y$75*8760*($G$80-Y$85)/1000000) -> 2.764186207 | Z129: =IF(Start!$D$3="PPE - AMPERE",0.2*1000*Z$75*8760*($G$80-Z$85)/1000000+($N$59-$M$59+0.2)*1000*Z$75*8760*($H$80-Z$85)/1000000,($N$59-$M$59)*1000*Z$75*8760*($G$80-Z$85)/1000000) -> 0.3749717745 | AA129: =IF(Start!$D$3="PPE - AMPERE",0.2*1000*AA$75*8760*($G$80-AA$85)/1000000+($N$59-$M$59+0.2)*1000*AA$75*8760*($H$80-AA$85)/1000000,($N$59-$M$59)*1000*AA$75*8760*($G$80-AA$85)/1000000) -> -2.066332375 | AB129: =IF(Start!$D$3="PPE - AMPERE",0.2*1000*AB$75*8760*($G$80-AB$85)/1000000+($N$59-$M$59+0.2)*1000*AB$75*8760*($H$80-AB$85)/1000000,($N$59-$M$59)*1000*AB$75*8760*($G$80-AB$85)/1000000) -> -4.549610268
C130: 2027 | D130: M€ | O130: =($O$59-$N$59)*1000*O$75*8760*($I$80-O$85)/1000000 -> 23.15793691 | P130: =($O$59-$N$59)*1000*P$75*8760*($I$80-P$85)/1000000 -> 20.26342238 | Q130: 17.43731016 | R130: 14.65650464 | S130: 14.25752637 | T130: 13.45507147 | U130: 12.39242404 | V130: 11.15220445 | W130: 9.785401284 | X130: 8.325187028 | Y130: 6.794074427 | Z130: 5.207879871 | AA130: 3.578040832 | AB130: 1.913033196
C131: 2028 | D131: M€ | P131: =($P$59-$O$59)*1000*P$75*8760*($K$80-P$85)/1000000 -> 18.42657861 | Q131: =($P$59-$O$59)*1000*Q$75*8760*($K$80-Q$85)/1000000 -> 15.60992195 | R131: 12.83644358 | S131: 12.31220362 | T131: 11.41812444 | U131: 10.28554468 | V131: 8.990196778 | W131: 7.578818427 | X131: 6.081816568 | Y131: 4.519827082 | Z131: 2.907347764 | AA131: 1.254862556 | AB131: -0.4298592816
C132: 2029 | D132: M€ | Q132: =($Q$59-$P$59)*1000*Q$75*8760*($L$80-Q$85)/1000000 -> 14.69622785 | R132: =($Q$59-$P$59)*1000*R$75*8760*($L$80-R$85)/1000000 -> 11.92641305 | S132: 11.33954225 | T132: 10.39965092 | U132: 9.232105008 | V132: 7.909192941 | W132: 6.475526998 | X132: 4.960131338 | Y132: 3.38270341 | Z132: 1.75708171 | AA132: 0.09327341805 | AB132: -1.60130552
C133: 2030 | D133: M€ | R133: =($R$59-$Q$59)*1000*R$75*8760*($M$80-R$85)/1000000 -> 11.01638252 | S133: =($R$59-$Q$59)*1000*S$75*8760*($M$80-S$85)/1000000 -> 10.36688087 | T133: 9.381177398 | U133: 8.178665331 | V133: 6.828189104 | W133: 5.37223557 | X133: 3.838446108 | Y133: 2.245579737 | Z133: 0.6068156568 | AA133: -1.06831572 | AB133: -2.772751759
C134: 2031 | D134: M€ | S134: =($S$59-$R$59)*1000*S$75*8760*($N$80-S$85)/1000000 -> 15.32163355 | T134: =($S$59-$R$59)*1000*T$75*8760*($N$80-T$85)/1000000 -> 13.63926874 | U134: 11.62098634 | V134: 9.373452116 | W134: 6.962494096 | X134: 4.430939114 | Y134: 1.807851907 | Z134: -0.8863480181 | AA134: -3.636894486 | AB134: -6.432844836
C135: 2032 | D135: M€ | T135: =($T$59-$S$59)*1000*T$75*8760*($O$80-T$85)/1000000 -> 11.97817513 | U135: =($T$59-$S$59)*1000*U$75*8760*($O$80-U$85)/1000000 -> 9.902864179 | V135: 7.610373804 | W135: 5.163065524 | X135: 2.601510915 | Y135: -0.04675583568 | Z135: -2.762390511 | AA135: -5.531404522 | AB135: -8.343431448
C136: 2033 | D136: M€ | U136: =($U$59-$T$59)*1000*U$75*8760*($P$80-U$85)/1000000 -> 8.184742018 | V136: =($U$59-$T$59)*1000*V$75*8760*($P$80-V$85)/1000000 -> 5.847295492 | W136: 3.363636953 | X136: 0.7720827165 | Y136: -1.901363578 | Z136: -4.638433003 | AA136: -7.425914557 | AB136: -10.25401806
C137: 2034 | D137: M€ | V137: =($V$59-$U$59)*1000*V$75*8760*($Q$80-V$85)/1000000 -> 4.084217181 | W137: =($V$59-$U$59)*1000*W$75*8760*($Q$80-W$85)/1000000 -> 1.564208382 | X137: -1.057345482 | Y137: -3.75597132 | Z137: -6.514475496 | AA137: -9.320424593 | AB137: -12.16460467
C138: 2035 | D138: M€ | W138: =($W$59-$V$59)*1000*W$75*8760*($R$80-W$85)/1000000 -> -0.2352201898 | X138: =($W$59-$V$59)*1000*X$75*8760*($R$80-X$85)/1000000 -> -2.886773681 | Y138: -5.610579063 | Z138: -8.390517988 | AA138: -11.21493463 | AB138: -14.07519128
C139: 2036 | D139: M€ | X139: =($X$59-$W$59)*1000*X$75*8760*($S$80-X$85)/1000000 -> -4.71620188 | Y139: =($X$59-$W$59)*1000*Y$75*8760*($S$80-Y$85)/1000000 -> -7.465186805 | Z139: -10.26656048 | AA139: -13.10944466 | AB139: -15.98577789
C140: 2037 | D140: M€ | Y140: =($Y$59-$X$59)*1000*Y$75*8760*($T$80-Y$85)/1000000 -> -9.319794548 | Z140: =($Y$59-$X$59)*1000*Z$75*8760*($T$80-Z$85)/1000000 -> -12.14260297 | AA140: -15.0039547 | AB140: -17.8963645
C141: 2038 | D141: M€ | Z141: =($Z$59-$Y$59)*1000*Z$75*8760*($U$80-Z$85)/1000000 -> -14.01864547 | AA141: =($Z$59-$Y$59)*1000*AA$75*8760*($U$80-AA$85)/1000000 -> -16.89846473 | AB141: -19.80695112
C142: 2039 | D142: M€ | AA142: =($AA$59-$Z$59)*1000*AA$75*8760*($V$80-AA$85)/1000000 -> -18.79297477 | AB142: =($AA$59-$Z$59)*1000*AB$75*8760*($V$80-AB$85)/1000000 -> -21.71753773
C143: 2040 | D143: M€ | AB143: =($AB$59-$AA$59)*1000*AB$75*8760*($W$80-AB$85)/1000000 -> -23.62812434
C144: Total | D144: M€ | F144: =SUM(F128:F143) -> 0 | G144: =SUM(G128:G143) -> 0 | H144: 0 | I144: 0 | J144: 0 | K144: 0 | L144: 0 | M144: =SUM(M128:M143) -> 0.0008874419726 | N144: =SUM(N128:N143) -> 30.88125106 | O144: 48.42304961 | P144: 58.49764498 | Q144: 62.19193676 | R144: 59.59016401 | S144: 70.66328377 | T144: 74.82273044 | U144: 71.56008576 | V144: 60.58218599 | W144: 41.7081072 | X144: 14.8201427 | Y144: -20.16158999 | Z144: -63.29321253 | AA144: -114.6153088 | AB144: -174.1579539
C145: ='Données de production'!C8 -> PV au sol | AF145: =C145 -> PV au sol | BG145: =AF145 -> PV au sol
C146: 2020 | D146: M€ | H146: =AK146 -> 32.22022616 | I146: =AL146-AK146 -> 32.3788887 | J146: =AM146-AL146 -> 32.5463579 | K146: 32.79559206 | L146: 33.03129276 | M146: 33.25827153 | N146: 31.81217253 | O146: 30.35890029 | P146: 28.90017185 | Q146: 27.43719674 | R146: 25.97085157 | S146: 24.94062535 | T146: 23.91065594 | U146: 22.88091896 | V146: 21.85139304 | W146: 20.82205933 | X146: 19.79290117 | Y146: 18.76390377 | Z146: =BC146-BB146 -> 17.73505395 | AA146: 16.70633994 | AB146: 0 | AF146: 2020 | AG146: M€ | AK146: =IF(BL146>0,BL146,0) -> 32.22022616 | AL146: =IF(AK146+BM146>0,AK146+BM146,0) -> 64.59911486 | AM146: =IF(AL146+BN146>0,AL146+BN146,0) -> 97.14547277 | AN146: 129.9410648 | AO146: 162.9723576 | AP146: 196.2306291 | AQ146: 228.0428017 | AR146: 258.401702 | AS146: 287.3018738 | AT146: 314.7390705 | AU146: 340.7099221 | AV146: 365.6505475 | AW146: 389.5612034 | AX146: 412.4421224 | AY146: 434.2935154 | AZ146: 455.1155747 | BA146: 474.9084759 | BB146: 493.6723797 | BC146: =IF(BB146+CD146>0,BB146+CD146,0) -> 511.4074336 | BD146: 528.1137735 | BE146: 528.1137735 | BG146: 2020 | BH146: M€ | BL146: =($H$60-$G$60)*1000*H$76*8760*($F$81-H$86)/1000000 -> 32.22022616 | BM146: =($H$60-$G$60)*1000*I$76*8760*($F$81-I$86)/1000000 -> 32.3788887 | BN146: 32.5463579 | BO146: 32.79559206 | BP146: 33.03129276 | BQ146: 33.25827153 | BR146: 31.81217253 | BS146: 30.35890029 | BT146: 28.90017185 | BU146: 27.43719674 | BV146: 25.97085157 | BW146: 24.94062535 | BX146: 23.91065594 | BY146: 22.88091896 | BZ146: 21.85139304 | CA146: 20.82205933 | CB146: 19.79290117 | CC146: 18.76390377 | CD146: 17.73505395 | CE146: 16.70633994
C147: 2021 | D147: M€ | I147: =AL147 -> 29.4462511 | J147: 29.61638369 | K147: 29.86093261 | L147: 30.09320786 | M147: 30.31757308 | N147: 28.86890288 | O147: 27.41350532 | P147: 25.95299071 | Q147: 24.4884934 | R147: 23.02083552 | S147: 21.99081861 | T147: 20.96104483 | U147: 19.9314911 | V147: 18.90213719 | W147: 17.87296526 | X147: 16.84395952 | Y147: 15.81510598 | Z147: 14.78639217 | AA147: 13.75780693 | AB147: 12.72934028 | AF147: 2021 | AG147: M€ | AL147: =IF(BM147>0,BM147,0) -> 29.4462511 | AM147: 59.06263479 | AN147: 88.9235674 | AO147: 119.0167753 | AP147: 149.3343483 | AQ147: 178.2032512 | AR147: 205.6167565 | AS147: 231.5697472 | AT147: 256.0582406 | AU147: 279.0790762 | AV147: 301.0698948 | AW147: 322.0309396 | AX147: 341.9624307 | AY147: 360.8645679 | AZ147: 378.7375332 | BA147: 395.5814927 | BB147: 411.3965987 | BC147: 426.1829908 | BD147: 439.9407978 | BE147: 452.670138 | BG147: 2021 | BH147: M€ | BM147: =($I$60-$H$60)*1000*I$76*8760*($G$81-I$86)/1000000 -> 29.4462511 | BN147: =($I$60-$H$60)*1000*J$76*8760*($G$81-J$86)/1000000 -> 29.61638369 | BO147: =($I$60-$H$60)*1000*K$76*8760*($G$81-K$86)/1000000 -> 29.86093261 | BP147: 30.09320786 | BQ147: 30.31757308 | BR147: 28.86890288 | BS147: 27.41350532 | BT147: 25.95299071 | BU147: 24.4884934 | BV147: 23.02083552 | BW147: 21.99081861 | BX147: 20.96104483 | BY147: 19.9314911 | BZ147: 18.90213719 | CA147: 17.87296526 | CB147: 16.84395952 | CC147: 15.81510598 | CD147: 14.78639217 | CE147: 13.75780693 | CF147: 12.72934028
C148: 2022 | D148: M€ | J148: =($J$60-$I$60)*1000*J$76*8760*($H$81-J$86)/1000000 -> 26.68640948 | K148: 26.92627317 | L148: 27.15512296 | M148: 27.37687463 | N148: 25.92563322 | O148: 24.46811034 | P148: 23.00580957 | Q148: 21.53979007 | R148: 20.07081947 | S148: 19.04101187 | T148: 18.01143372 | U148: 16.98206325 | V148: 15.95288135 | W148: 14.92387119 | X148: 13.89501788 | Y148: 12.8663082 | Z148: 11.83773039 | AA148: 10.80927393 | AB148: 9.780929377
C149: 2023 | D149: M€ | K149: =($K$60-$J$60)*1000*K$76*8760*($I$81-K$86)/1000000 -> 36.96279272 | L149: 37.31009381 | M149: 37.64770997 | N149: 35.40788672 | O149: 33.15907284 | P149: 30.9034204 | Q149: 28.64244537 | R149: 26.37724647 | S149: 24.790991 | T149: 23.20506797 | U149: 21.61944583 | V149: 20.0340969 | W149: 18.44899679 | X149: 16.86412392 | Y149: 15.27945916 | Z149: 13.69498544 | AA149: 12.11068754 | AB149: 10.52655178
C150: 2024 | D150: M€ | L150: =($L$60-$K$60)*1000*L$76*8760*($J$81-L$86)/1000000 -> 32.78351947 | M150: 33.11710904 | N150: 30.87332445 | O150: 28.62123619 | P150: 26.36283189 | Q150: 24.09951169 | R150: 21.83229035 | S150: 20.24635735 | T150: 18.66073572 | U150: 17.0753959 | V150: 15.49031198 | W150: 13.90546111 | X150: 12.32082308 | Y150: 10.73637996 | Z150: 9.152115782 | AA150: 7.568016268 | AB150: 5.984068623
C151: 2025 | D151: M€ | M151: =($M$60-$L$60)*1000*M$76*8760*($K$81-M$86)/1000000 -> 28.58650812 | N151: 26.33876219 | O151: 24.08339954 | P151: 21.82224338 | Q151: 19.556578 | R151: 17.28733422 | S151: 15.70172369 | T151: 14.11640346 | U151: 12.53134598 | V151: 10.94652706 | W151: 9.361925429 | X151: 7.777522235 | Y151: 6.193300762 | Z151: 4.609246119 | AA151: 3.025344997 | AB151: 1.441585467
C152: 2026 | D152: M€ | N152: =($N$60-$M$60)*1000*N$76*8760*($L$81-N$86)/1000000 -> 19.29993485 | O152: 17.30070775 | P152: 15.29681503 | Q152: 13.28929097 | R152: 11.27888517 | S152: 9.875671273 | T152: 8.472695686 | U152: 7.069935787 | V152: 5.667371732 | W152: 4.264986039 | X152: 2.862763246 | Y152: 1.460689628 | Z152: 0.05875296042 | AA152: -1.343057682 | AB152: -2.744752093
C153: 2027 | D153: M€ | O153: =($O$60-$N$60)*1000*O$76*8760*($M$81-O$86)/1000000 -> 13.28405261 | P153: 11.27772408 | Q153: 9.268124195 | R153: 7.25592824 | S153: 5.85299978 | T153: 4.450290975 | U153: 3.047780978 | V153: 1.645451497 | W153: 0.2432864176 | X153: -1.158728512 | Y153: -2.560605941 | Z153: -3.962357139 | AA153: -5.363992175 | AB153: -6.765520076
C154: 2028 | D154: M€ | P154: =($P$60-$O$60)*1000*P$76*8760*($N$81-P$86)/1000000 -> 9.928166868 | Q154: 7.917869947 | R154: 5.905072882 | S154: 4.502240266 | T154: 3.099621044 | U154: 1.69719496 | V154: 0.2949442453 | W154: -1.107146755 | X154: -2.509091886 | Y154: -3.910903438 | Z154: -5.312592357 | AA154: -6.714168427 | AB154: -8.115640417
C155: 2029 | D155: M€ | Q155: =($Q$60-$P$60)*1000*Q$76*8760*($O$81-Q$86)/1000000 -> 6.567615698 | R155: 4.554217523 | S155: 3.151480752 | T155: 1.748951112 | U155: 0.3466089418 | V155: -1.055563006 | W155: -2.457579927 | X155: -3.859455261 | Y155: -5.261200935 | Z155: -6.662827576 | AA155: -8.06434468 | AB155: -9.465760758
C156: 2030 | D156: M€ | R156: =($R$60-$Q$60)*1000*R$76*8760*($P$81-R$86)/1000000 -> 3.203362164 | S156: 1.800721238 | T156: 0.3982811802 | U156: -1.003977076 | V156: -2.406070258 | W156: -3.8080131 | X156: -5.209818635 | Y156: -6.611498432 | Z156: -8.013062795 | AA156: -9.414520932 | AB156: -10.8158811
C157: 2031 | D157: M€ | S157: =($S$60-$R$60)*1000*S$76*8760*($Q$81-S$86)/1000000 -> 0.228590729 | T157: -0.4838350177 | U157: -1.196171285 | V157: -1.908426305 | W157: -2.62060733 | X157: -3.332720776 | Y157: -4.044772335 | Z157: -4.756767079 | AA157: -5.468709542 | AB157: -6.180603784
C158: 2032 | D158: M€ | T158: =($T$60-$S$60)*1000*T$76*8760*($R$81-T$86)/1000000 -> -1.170005879 | U158: -1.882299517 | V158: -2.594514521 | W158: -3.306657913 | X158: -4.018735899 | Y158: -4.730753991 | Z158: -5.442717097 | AA158: -6.154629603 | AB158: -6.866495441
C159: 2033 | D159: M€ | U159: =($U$60-$T$60)*1000*U$76*8760*($S$81-U$86)/1000000 -> -2.503470425 | V159: -3.215649202 | W159: -3.927758523 | X159: -4.639804407 | Y159: -5.351792201 | Z159: -6.063726663 | AA159: -6.775612049 | AB159: -7.487452172
C160: 2034 | D160: M€ | V160: =($V$60-$U$60)*1000*V$76*8760*($T$81-V$86)/1000000 -> -3.836783883 | W160: -4.548859133 | X160: -5.260872916 | Y160: -5.97283041 | Z160: -6.684736229 | AA160: -7.396594494 | AB160: -8.108408902
C161: 2035 | D161: M€ | W161: =($W$60-$V$60)*1000*W$76*8760*($U$81-W$86)/1000000 -> -5.169959743 | X161: -5.881941424 | Y161: -6.593868619 | Z161: -7.305745795 | AA161: -8.01757694 | AB161: -8.729365633
C162: 2036 | D162: M€ | X162: =($X$60-$W$60)*1000*X$76*8760*($V$81-X$86)/1000000 -> -6.503009932 | Y162: =($X$60-$W$60)*1000*Y$76*8760*($V$81-Y$86)/1000000 -> -7.214906829 | Z162: =($X$60-$W$60)*1000*Z$76*8760*($V$81-Z$86)/1000000 -> -7.92675536 | AA162: =($X$60-$W$60)*1000*AA$76*8760*($V$81-AA$86)/1000000 -> -8.638559386 | AB162: =($X$60-$W$60)*1000*AB$76*8760*($V$81-AB$86)/1000000 -> -9.350322363
C163: 2037 | D163: M€ | Y163: =($Y$60-$X$60)*1000*Y$76*8760*($W$81-Y$86)/1000000 -> -7.835945038 | Z163: =($Y$60-$X$60)*1000*Z$76*8760*($W$81-Z$86)/1000000 -> -8.547764926 | AA163: =($Y$60-$X$60)*1000*AA$76*8760*($W$81-AA$86)/1000000 -> -9.259541831 | AB163: =($Y$60-$X$60)*1000*AB$76*8760*($W$81-AB$86)/1000000 -> -9.971279093
C164: 2038 | D164: M€ | Z164: =($Z$60-$Y$60)*1000*Z$76*8760*($X$81-Z$86)/1000000 -> -9.380242404 | AA164: =($Z$60-$Y$60)*1000*AA$76*8760*($X$81-AA$86)/1000000 -> -10.09198295 | AB164: =($Z$60-$Y$60)*1000*AB$76*8760*($X$81-AB$86)/1000000 -> -10.80368574
C165: 2039 | D165: M€ | AA165: =($AA$60-$Z$60)*1000*AA$76*8760*($Y$81-AA$86)/1000000 -> -10.92442408 | AB165: =($AA$60-$Z$60)*1000*AB$76*8760*($Y$81-AB$86)/1000000 -> -11.63609239
C166: 2040 | D166: M€ | AB166: =($AB$60-$AA$60)*1000*AB$76*8760*($Z$81-AB$86)/1000000 -> -12.46849904
C167: Total | D167: M€ | F167: =SUM(F146:F166) -> 0 | G167: =SUM(G146:G166) -> 0 | H167: 32.22022616 | I167: 61.8251398 | J167: 88.84915107 | K167: 126.5455906 | L167: 160.3732369 | M167: 190.3040464 | N167: 198.5266168 | O167: 198.6889849 | P167: 193.4501738 | Q167: 182.8069161 | R167: 166.7568436 | S167: 152.1232319 | T167: 135.3813407 | U167: 116.5962634 | V167: 95.76810783 | W167: 72.89696913 | X167: 47.9829314 | Y167: 21.02606929 | Z167: -8.185018609 | AA167: -39.65024517 | AB167: -89.04728348
C168: ='Données de production'!C9 -> PV sur toiture | AF168: =C168 -> PV sur toiture | BG168: =AF168 -> PV sur toiture
C169: 2020 | D169: M€ | H169: =AK169 -> 47.8387669 | I169: =AL169-AK169 -> 47.92617025 | J169: =AM169-AL169 -> 48.02680937 | K169: 48.24758989 | L169: 48.44959257 | M169: 48.63926107 | N169: 47.58313032 | O169: 46.51888837 | P169: 45.44828782 | Q169: 44.37261031 | R169: 43.29281471 | S169: 42.5242488 | T169: 41.75589838 | U169: 40.98775156 | V169: 40.21979726 | W169: 39.45202523 | X169: 38.68442592 | Y169: 37.91699042 | Z169: =BC169-BB169 -> 37.14971045 | AA169: =BD169-BC169 -> 36.38257827 | AB169: 0 | AF169: 2020 | AG169: M€ | AK169: =IF(BL169>0,BL169,0) -> 47.8387669 | AL169: =IF(AK169+BM169>0,AK169+BM169,0) -> 95.76493714 | AM169: =IF(AL169+BN169>0,AL169+BN169,0) -> 143.7917465 | AN169: 192.0393364 | AO169: 240.488929 | AP169: 289.12819 | AQ169: 336.7113204 | AR169: 383.2302087 | AS169: 428.6784965 | AT169: 473.0511069 | AU169: 516.3439216 | AV169: 558.8681704 | AW169: 600.6240688 | AX169: 641.6118203 | AY169: 681.8316176 | AZ169: 721.2836428 | BA169: 759.9680687 | BB169: 797.8850591 | BC169: =IF(BB169+CD169>0,BB169+CD169,0) -> 835.0347696 | BD169: 871.4173479 | BE169: 871.4173479 | BG169: 2020 | BH169: M€ | BL169: =($H$61-$G$61)*1000*H$77*8760*($F$82-H$87)/1000000 -> 47.8387669 | BM169: =($H$61-$G$61)*1000*I$77*8760*($F$82-I$87)/1000000 -> 47.92617025 | BN169: 48.02680937 | BO169: 48.24758989 | BP169: 48.44959257 | BQ169: 48.63926107 | BR169: 47.58313032 | BS169: 46.51888837 | BT169: 45.44828782 | BU169: 44.37261031 | BV169: 43.29281471 | BW169: 42.5242488 | BX169: 41.75589838 | BY169: 40.98775156 | BZ169: 40.21979726 | CA169: 39.45202523 | CB169: 38.68442592 | CC169: 37.91699042 | CD169: 37.14971045 | CE169: 36.38257827
C170: 2021 | D170: M€ | I170: =AL170 -> 46.41704227 | J170: 46.51912752 | K170: 46.7375853 | L170: 46.93786524 | M170: 47.12620511 | N170: 46.06876931 | O170: 45.00342487 | P170: 43.93188066 | Q170: 42.85538629 | R170: 41.77487668 | S170: 41.0064163 | T170: 40.23816746 | U170: 39.47011846 | V170: 38.70225845 | W170: 37.93457736 | X170: 37.1670658 | Y170: 36.39971505 | Z170: 35.63251697 | AA170: 34.86546395 | AB170: 34.09854889 | AF170: 2021 | AG170: M€ | AL170: =IF(BM170>0,BM170,0) -> 46.41704227 | AM170: 92.93616979 | AN170: 139.6737551 | AO170: 186.6116203 | AP170: 233.7378254 | AQ170: 279.8065947 | AR170: 324.8100196 | AS170: 368.7419003 | AT170: 411.5972866 | AU170: 453.3721633 | AV170: 494.3785796 | AW170: 534.616747 | AX170: 574.0868655 | AY170: 612.7891239 | AZ170: 650.7237013 | BA170: 687.8907671 | BB170: 724.2904821 | BC170: 759.9229991 | BD170: 794.7884631 | BE170: 828.887012 | BG170: 2021 | BH170: M€ | BM170: =($I$61-$H$61)*1000*I$77*8760*($G$82-I$87)/1000000 -> 46.41704227 | BN170: =($I$61-$H$61)*1000*J$77*8760*($G$82-J$87)/1000000 -> 46.51912752 | BO170: 46.7375853 | BP170: 46.93786524 | BQ170: 47.12620511 | BR170: 46.06876931 | BS170: 45.00342487 | BT170: 43.93188066 | BU170: 42.85538629 | BV170: 41.77487668 | BW170: 41.0064163 | BX170: 40.23816746 | BY170: 39.47011846 | BZ170: 38.70225845 | CA170: 37.93457736 | CB170: 37.1670658 | CC170: 36.39971505 | CD170: 35.63251697 | CE170: 34.86546395 | CF170: 34.09854889
C171: 2022 | D171: M€ | J171: =($J$61-$I$61)*1000*J$77*8760*($H$82-J$87)/1000000 -> 45.01144567 | K171: 45.22758071 | L171: 45.42613792 | M171: 45.61314915 | N171: 44.55440829 | O171: 43.48796138 | P171: 42.4154735 | Q171: 41.33816227 | R171: 40.25693865 | S171: 39.48858381 | T171: 38.72043654 | U171: 37.95248537 | V171: 37.18471964 | W171: 36.41712948 | X171: 35.64970569 | Y171: 34.88243968 | Z171: 34.11532348 | AA171: 33.34834963 | AB171: 32.58151115
C172: 2023 | D172: M€ | K172: =($K$61-$J$61)*1000*K$77*8760*($I$82-K$87)/1000000 -> 66.79990089 | L172: 67.10066145 | M172: 67.38438211 | N172: 65.7646454 | O172: 64.1334435 | P172: 62.49325375 | Q172: 60.84588771 | R172: 59.19270077 | S172: 58.01882558 | T172: 56.84526151 | U172: 55.67199136 | V172: 54.49899916 | W172: 53.3262701 | X172: 52.15379037 | Y172: 50.98154716 | Z172: 49.80952847 | AA172: 48.63772313 | AB172: 47.4661207
C173: 2024 | D173: M€ | L173: =($L$61-$K$61)*1000*L$77*8760*($J$82-L$87)/1000000 -> 64.7907613 | M173: =($L$61-$K$61)*1000*M$77*8760*($J$82-M$87)/1000000 -> 65.07245183 | N173: =($L$61-$K$61)*1000*N$77*8760*($J$82-N$87)/1000000 -> 63.45072101 | O173: =($L$61-$K$61)*1000*O$77*8760*($J$82-O$87)/1000000 -> 61.81783454 | P173: =($L$61-$K$61)*1000*P$77*8760*($J$82-P$87+IF($C173>=$X$36,$X$37,IF($C173>=$W$36,$W$37,IF($C173>=$V$36,$V$37,$U$37))))/1000000 -> 60.17620288 | Q173: 58.52758869 | R173: 56.87331074 | S173: 55.69959681 | T173: 54.52618795 | U173: 53.35306727 | V173: 52.18021914 | W173: 51.00762902 | X173: 49.83528339 | Y173: 48.66316967 | Z173: 47.4912761 | AA173: 46.31959173 | AB173: 45.1481063
C174: 2025 | D174: M€ | M174: =($M$61-$L$61)*1000*M$77*8760*($K$82-M$87)/1000000 -> 62.76052155 | N174: 61.13679661 | O174: 59.50222557 | P174: 57.85915201 | Q174: 56.20928966 | R174: 54.55392072 | S174: 53.38036804 | T174: 52.20711438 | U174: 51.03414318 | V174: 49.86143912 | W174: 48.68898795 | X174: 47.51677642 | Y174: 46.34479218 | Z174: 45.17302373 | AA174: 44.00146032 | AB174: 42.83009191
C175: 2026 | D175: M€ | N175: =($N$61-$M$61)*1000*N$77*8760*($L$82-N$87)/1000000 -> 47.24864369 | O175: 45.93434441 | P175: 44.61341052 | Q175: 43.28717926 | R175: 41.95665114 | S175: 41.01414101 | T175: 40.07186619 | U175: 39.12981367 | V175: 38.18797137 | W175: 37.24632808 | X175: 36.30487338 | Y175: 35.36359756 | Z175: 34.42249155 | AA175: 33.48154691 | AB175: 32.54075573
C176: 2027 | D176: M€ | O176: =($O$61-$N$61)*1000*O$77*8760*($M$82-O$87)/1000000 -> 44.07436412 | P176: 42.75227204 | Q176: 41.42503821 | R176: 40.09363377 | S176: 39.15125317 | T176: 38.20910301 | U176: 37.26717055 | V176: 36.32544397 | W176: 35.38391229 | X176: 34.4425653 | Y176: 33.50139349 | Z176: 32.56038798 | AA176: 31.6195405 | AB176: 30.67884331
C177: 2028 | D177: M€ | P177: =($P$61-$O$61)*1000*P$77*8760*($N$82-P$87)/1000000 -> 40.19092502 | Q177: 38.86231145 | R177: 37.52970097 | S177: 36.58749863 | T177: 35.64552004 | U177: 34.70375282 | V177: 33.7621855 | W177: 32.82080742 | X177: 31.87960866 | Y177: 30.93857999 | Z177: 29.99771279 | AA177: 29.05699903 | AB177: 28.11643119
C178: 2029 | D178: M€ | Q178: =($Q$61-$P$61)*1000*Q$77*8760*($O$82-Q$87)/1000000 -> 36.29958468 | R178: 34.96576818 | S178: 34.02374409 | T178: 33.08193707 | U178: 32.14033509 | V178: 31.19892702 | W178: 30.25770254 | X178: 29.31665201 | Y178: 28.37576648 | Z178: 27.4350376 | AA178: 26.49445756 | AB178: 25.55401907
C179: 2030 | D179: M€ | R179: =($R$61-$Q$61)*1000*R$77*8760*($P$82-R$87)/1000000 -> 32.40183538 | S179: 31.45998956 | T179: 30.51835409 | U179: 29.57691735 | V179: 28.63566855 | W179: 27.69459766 | X179: 26.75369537 | Y179: 25.81295298 | Z179: 24.8723624 | AA179: 23.93191608 | AB179: 22.99160695
C180: 2031 | D180: M€ | S180: =($S$61-$R$61)*1000*S$77*8760*($Q$82-S$87)/1000000 -> 8.955258327 | T180: 8.663488398 | U180: 8.371778096 | V180: 8.080124185 | W180: 7.788523656 | X180: 7.496973712 | Y180: 7.20547175 | Z180: 6.914015338 | AA180: 6.622602209 | AB180: 6.331230244
C181: 2032 | D181: M€ | T181: =($T$61-$S$61)*1000*T$77*8760*($R$82-T$87)/1000000 -> 7.869006081 | U181: 7.577346989 | V181: 7.285742433 | W181: 6.994189506 | X181: 6.702685501 | Y181: 6.411227899 | Z181: 6.119814351 | AA181: 5.828442664 | AB181: 5.537110786
C182: 2033 | D182: M€ | U182: =($U$61-$T$61)*1000*U$77*8760*($S$82-U$87)/1000000 -> 6.766935394 | V182: 6.475381188 | W182: 6.183876819 | X182: 5.892419676 | Y182: 5.601007328 | Z182: 5.309637506 | AA182: 5.018308094 | AB182: 4.727017111
C183: 2034 | D183: M€ | V183: =($V$61-$U$61)*1000*V$77*8760*($T$82-V$87)/1000000 -> 5.665019942 | W183: 5.373564132 | X183: 5.082153852 | Y183: 4.790786757 | Z183: 4.499460662 | AA183: 4.208173524 | AB183: 3.916923435
C184: 2035 | D184: M€ | W184: =($W$61-$V$61)*1000*W$77*8760*($U$82-W$87)/1000000 -> 4.563251445 | X184: 4.271888028 | Y184: 3.980566187 | Z184: 3.689283817 | AA184: 3.398038954 | AB184: 3.10682976
C185: 2036 | D185: M€ | X185: =($X$61-$W$61)*1000*X$77*8760*($V$82-X$87)/1000000 -> 3.461622203 | Y185: =($X$61-$W$61)*1000*Y$77*8760*($V$82-Y$87)/1000000 -> 3.170345616 | Z185: =($X$61-$W$61)*1000*Z$77*8760*($V$82-Z$87)/1000000 -> 2.879106972 | AA185: =($X$61-$W$61)*1000*AA$77*8760*($V$82-AA$87)/1000000 -> 2.587904384 | AB185: =($X$61-$W$61)*1000*AB$77*8760*($V$82-AB$87)/1000000 -> 2.296736084
C186: 2037 | D186: M€ | Y186: =($Y$61-$X$61)*1000*Y$77*8760*($W$82-Y$87)/1000000 -> 2.360125045 | Z186: =($Y$61-$X$61)*1000*Z$77*8760*($W$82-Z$87)/1000000 -> 2.068930128 | AA186: =($Y$61-$X$61)*1000*AA$77*8760*($W$82-AA$87)/1000000 -> 1.777769814 | AB186: =($Y$61-$X$61)*1000*AB$77*8760*($W$82-AB$87)/1000000 -> 1.486642409
C187: 2038 | D187: M€ | Z187: =($Z$61-$Y$61)*1000*Z$77*8760*($X$82-Z$87)/1000000 -> 1.541311211 | AA187: =($Z$61-$Y$61)*1000*AA$77*8760*($X$82-AA$87)/1000000 -> 1.250178428 | AB187: =($Z$61-$Y$61)*1000*AB$77*8760*($X$82-AB$87)/1000000 -> 0.9590776551
C188: 2039 | D188: M€ | AA188: =($AA$61-$Z$61)*1000*AA$77*8760*($Y$82-AA$87)/1000000 -> 0.7225870423 | AB188: =($AA$61-$Z$61)*1000*AB$77*8760*($Y$82-AB$87)/1000000 -> 0.4315129013
C189: 2040 | D189: M€ | AB189: =($AB$61-$AA$61)*1000*AB$77*8760*($Z$82-AB$87)/1000000 -> -0.09605185257
C190: Total | D190: M€ | F190: =SUM(F169:F189) -> 0 | G190: =SUM(G169:G189) -> 0 | H190: 47.8387669 | I190: 94.34321252 | J190: 139.5573826 | K190: 207.0126568 | L190: 272.7050185 | M190: 336.5959708 | N190: 375.8071146 | O190: 410.4724868 | P190: 439.8808582 | Q190: 464.0230385 | R190: 482.8921517 | S190: 481.3099241 | T190: 478.3523411 | U190: 474.0036072 | V190: 468.2638969 | W190: 461.1333727 | X190: 452.6121853 | Y190: 442.7004752 | Z190: 431.6809315 | AA190: 419.5536322 | AB190: 370.7030637
C192: Euros constants ou courants | F192: Scénario sélectionné
C193: Evolution du besoin cumulé de compléments rémunération | D193: Unité | F193: 2018 | G193: 2019 | H193: 2020 | I193: 2021 | J193: 2022 | K193: 2023 | L193: 2024 | M193: 2025 | N193: 2026 | O193: 2027 | P193: 2028 | Q193: 2029 | R193: 2030 | S193: 2031 | T193: 2032 | U193: 2033 | V193: 2034 | W193: 2035 | X193: 2036 | Y193: 2037 | Z193: 2038 | AA193: 2039 | AB193: 2040
C194: Charges engagées avant 2018 | D194: Md€ | F194: =IF(Start!$F$3="CONSTANT",F102,F102*HLOOKUP(F$193,'Calcul de variation des prix'!$E$3:$AP$5, 3, FALSE))/1000 -> 3.813501302 | G194: =IF(Start!$F$3="CONSTANT",G102,G102*HLOOKUP(G$193,'Calcul de variation des prix'!$E$3:$AP$5, 3, FALSE))/1000 -> 4.097395107 | H194: =IF(Start!$F$3="CONSTANT",H102,H102*HLOOKUP(H$193,'Calcul de variation des prix'!$E$3:$AP$5, 3, FALSE))/1000 -> 4.177116619 | I194: =IF(Start!$F$3="CONSTANT",I102,I102*HLOOKUP(I$193,'Calcul de variation des prix'!$E$3:$AP$5, 3, FALSE))/1000 -> 4.101661639 | J194: =IF(Start!$F$3="CONSTANT",J102,J102*HLOOKUP(J$193,'Calcul de variation des prix'!$E$3:$AP$5, 3, FALSE))/1000 -> 3.921187698 | K194: =IF(Start!$F$3="CONSTANT",K102,K102*HLOOKUP(K$193,'Calcul de variation des prix'!$E$3:$AP$5, 3, FALSE))/1000 -> 3.842273485 | L194: =IF(Start!$F$3="CONSTANT",L102,L102*HLOOKUP(L$193,'Calcul de variation des prix'!$E$3:$AP$5, 3, FALSE))/1000 -> 3.789363174 | M194: =IF(Start!$F$3="CONSTANT",M102,M102*HLOOKUP(M$193,'Calcul de variation des prix'!$E$3:$AP$5, 3, FALSE))/1000 -> 3.694912407 | N194: =IF(Start!$F$3="CONSTANT",N102,N102*HLOOKUP(N$193,'Calcul de variation des prix'!$E$3:$AP$5, 3, FALSE))/1000 -> 3.358195704 | O194: =IF(Start!$F$3="CONSTANT",O102,O102*HLOOKUP(O$193,'Calcul de variation des prix'!$E$3:$AP$5, 3, FALSE))/1000 -> 3.073254522 | P194: =IF(Start!$F$3="CONSTANT",P102,P102*HLOOKUP(P$193,'Calcul de variation des prix'!$E$3:$AP$5, 3, FALSE))/1000 -> 2.874687422 | Q194: =IF(Start!$F$3="CONSTANT",Q102,Q102*HLOOKUP(Q$193,'Calcul de variation des prix'!$E$3:$AP$5, 3, FALSE))/1000 -> 2.708778253 | R194: =IF(Start!$F$3="CONSTANT",R102,R102*HLOOKUP(R$193,'Calcul de variation des prix'!$E$3:$AP$5, 3, FALSE))/1000 -> 2.468598527 | S194: =IF(Start!$F$3="CONSTANT",S102,S102*HLOOKUP(S$193,'Calcul de variation des prix'!$E$3:$AP$5, 3, FALSE))/1000 -> 1.981175886 | T194: =IF(Start!$F$3="CONSTANT",T102,T102*HLOOKUP(T$193,'Calcul de variation des prix'!$E$3:$AP$5, 3, FALSE))/1000 -> 1.199024776 | U194: =IF(Start!$F$3="CONSTANT",U102,U102*HLOOKUP(U$193,'Calcul de variation des prix'!$E$3:$AP$5, 3, FALSE))/1000 -> 0.7111732103 | V194: =IF(Start!$F$3="CONSTANT",V102,V102*HLOOKUP(V$193,'Calcul de variation des prix'!$E$3:$AP$5, 3, FALSE))/1000 -> 0.4829937646 | W194: =IF(Start!$F$3="CONSTANT",W102,W102*HLOOKUP(W$193,'Calcul de variation des prix'!$E$3:$AP$5, 3, FALSE))/1000 -> 0.3758867195 | X194: =IF(Start!$F$3="CONSTANT",X102,X102*HLOOKUP(X$193,'Calcul de variation des prix'!$E$3:$AP$5, 3, FALSE))/1000 -> 0.2830103004 | Y194: =IF(Start!$F$3="CONSTANT",Y102,Y102*HLOOKUP(Y$193,'Calcul de variation des prix'!$E$3:$AP$5, 3, FALSE))/1000 -> 0.1488602036 | Z194: =IF(Start!$F$3="CONSTANT",Z102,Z102*HLOOKUP(Z$193,'Calcul de variation des prix'!$E$3:$AP$5, 3, FALSE))/1000 -> 0.06488345535 | AA194: =IF(Start!$F$3="CONSTANT",AA102,AA102*HLOOKUP(AA$193,'Calcul de variation des prix'!$E$3:$AP$5, 3, FALSE))/1000 -> 0 | AB194: =IF(Start!$F$3="CONSTANT",AB102,AB102*HLOOKUP(AB$193,'Calcul de variation des prix'!$E$3:$AP$5, 3, FALSE))/1000 -> 0
C195: AO éolien en mer 2011 & 2013 renégociés | D195: Md€ | F195: =IF(Start!$F$3="CONSTANT",F103,F103*HLOOKUP(F$193,'Calcul de variation des prix'!$E$3:$AP$5, 3, FALSE))/1000 -> 0 | G195: =IF(Start!$F$3="CONSTANT",G103,G103*HLOOKUP(G$193,'Calcul de variation des prix'!$E$3:$AP$5, 3, FALSE))/1000 -> 0 | H195: =IF(Start!$F$3="CONSTANT",H103,H103*HLOOKUP(H$193,'Calcul de variation des prix'!$E$3:$AP$5, 3, FALSE))/1000 -> 0 | I195: =IF(Start!$F$3="CONSTANT",I103,I103*HLOOKUP(I$193,'Calcul de variation des prix'!$E$3:$AP$5, 3, FALSE))/1000 -> 0.1487460276 | J195: =IF(Start!$F$3="CONSTANT",J103,J103*HLOOKUP(J$193,'Calcul de variation des prix'!$E$3:$AP$5, 3, FALSE))/1000 -> 0.3008895987 | K195: =IF(Start!$F$3="CONSTANT",K103,K103*HLOOKUP(K$193,'Calcul de variation des prix'!$E$3:$AP$5, 3, FALSE))/1000 -> 0.3805160363 | L195: =IF(Start!$F$3="CONSTANT",L103,L103*HLOOKUP(L$193,'Calcul de variation des prix'!$E$3:$AP$5, 3, FALSE))/1000 -> 0.5768847535 | M195: =IF(Start!$F$3="CONSTANT",M103,M103*HLOOKUP(M$193,'Calcul de variation des prix'!$E$3:$AP$5, 3, FALSE))/1000 -> 0.6277537471 | N195: =IF(Start!$F$3="CONSTANT",N103,N103*HLOOKUP(N$193,'Calcul de variation des prix'!$E$3:$AP$5, 3, FALSE))/1000 -> 0.5919231385 | O195: =IF(Start!$F$3="CONSTANT",O103,O103*HLOOKUP(O$193,'Calcul de variation des prix'!$E$3:$AP$5, 3, FALSE))/1000 -> 0.5599634437 | P195: =IF(Start!$F$3="CONSTANT",P103,P103*HLOOKUP(P$193,'Calcul de variation des prix'!$E$3:$AP$5, 3, FALSE))/1000 -> 0.5303116224 | Q195: =IF(Start!$F$3="CONSTANT",Q103,Q103*HLOOKUP(Q$193,'Calcul de variation des prix'!$E$3:$AP$5, 3, FALSE))/1000 -> 0.502194925 | R195: =IF(Start!$F$3="CONSTANT",R103,R103*HLOOKUP(R$193,'Calcul de variation des prix'!$E$3:$AP$5, 3, FALSE))/1000 -> 0.4751862177 | S195: =IF(Start!$F$3="CONSTANT",S103,S103*HLOOKUP(S$193,'Calcul de variation des prix'!$E$3:$AP$5, 3, FALSE))/1000 -> 0.4865559571 | T195: =IF(Start!$F$3="CONSTANT",T103,T103*HLOOKUP(T$193,'Calcul de variation des prix'!$E$3:$AP$5, 3, FALSE))/1000 -> 0.4874467579 | U195: =IF(Start!$F$3="CONSTANT",U103,U103*HLOOKUP(U$193,'Calcul de variation des prix'!$E$3:$AP$5, 3, FALSE))/1000 -> 0.4817174142 | V195: =IF(Start!$F$3="CONSTANT",V103,V103*HLOOKUP(V$193,'Calcul de variation des prix'!$E$3:$AP$5, 3, FALSE))/1000 -> 0.4715900026 | W195: =IF(Start!$F$3="CONSTANT",W103,W103*HLOOKUP(W$193,'Calcul de variation des prix'!$E$3:$AP$5, 3, FALSE))/1000 -> 0.4584332288 | X195: =IF(Start!$F$3="CONSTANT",X103,X103*HLOOKUP(X$193,'Calcul de variation des prix'!$E$3:$AP$5, 3, FALSE))/1000 -> 0.4431352066 | Y195: =IF(Start!$F$3="CONSTANT",Y103,Y103*HLOOKUP(Y$193,'Calcul de variation des prix'!$E$3:$AP$5, 3, FALSE))/1000 -> 0.4262965501 | Z195: =IF(Start!$F$3="CONSTANT",Z103,Z103*HLOOKUP(Z$193,'Calcul de variation des prix'!$E$3:$AP$5, 3, FALSE))/1000 -> 0.4083373134 | AA195: =IF(Start!$F$3="CONSTANT",AA103,AA103*HLOOKUP(AA$193,'Calcul de variation des prix'!$E$3:$AP$5, 3, FALSE))/1000 -> 0.3649695146 | AB195: =IF(Start!$F$3="CONSTANT",AB103,AB103*HLOOKUP(AB$193,'Calcul de variation des prix'!$E$3:$AP$5, 3, FALSE))/1000 -> 0.2878977752
C196: Eolien terrestre | D196: Md€ | F196: =IF(Start!$F$3="CONSTANT",IF(F$126>=0,F$126,0),IF(F$126*HLOOKUP(F$193,'Calcul de variation des prix'!$E$3:$AP$5, 3, FALSE)>0,F$126*HLOOKUP(F$193,'Calcul de variation des prix'!$E$3:$AP$5, 3, FALSE),0))/1000 -> 0 | G196: =IF(Start!$F$3="CONSTANT",IF(G$126>=0,G$126,0),IF(G$126*HLOOKUP(G$193,'Calcul de variation des prix'!$E$3:$AP$5, 3, FALSE)>0,G$126*HLOOKUP(G$193,'Calcul de variation des prix'!$E$3:$AP$5, 3, FALSE),0))/1000 -> 0 | H196: =IF(Start!$F$3="CONSTANT",IF(H$126>=0,H$126,0),IF(H$126*HLOOKUP(H$193,'Calcul de variation des prix'!$E$3:$AP$5, 3, FALSE)>0,H$126*HLOOKUP(H$193,'Calcul de variation des prix'!$E$3:$AP$5, 3, FALSE),0))/1000 -> 0 | I196: =IF(Start!$F$3="CONSTANT",IF(I$126>=0,I$126,0),IF(I$126*HLOOKUP(I$193,'Calcul de variation des prix'!$E$3:$AP$5, 3, FALSE)>0,I$126*HLOOKUP(I$193,'Calcul de variation des prix'!$E$3:$AP$5, 3, FALSE),0))/1000 -> 0.09024097043 | J196: =IF(Start!$F$3="CONSTANT",IF(J$126>=0,J$126,0),IF(J$126*HLOOKUP(J$193,'Calcul de variation des prix'!$E$3:$AP$5, 3, FALSE)>0,J$126*HLOOKUP(J$193,'Calcul de variation des prix'!$E$3:$AP$5, 3, FALSE),0))/1000 -> 0.1839017996 | K196: =IF(Start!$F$3="CONSTANT",IF(K$126>=0,K$126,0),IF(K$126*HLOOKUP(K$193,'Calcul de variation des prix'!$E$3:$AP$5, 3, FALSE)>0,K$126*HLOOKUP(K$193,'Calcul de variation des prix'!$E$3:$AP$5, 3, FALSE),0))/1000 -> 0.2771663675 | L196: =IF(Start!$F$3="CONSTANT",IF(L$126>=0,L$126,0),IF(L$126*HLOOKUP(L$193,'Calcul de variation des prix'!$E$3:$AP$5, 3, FALSE)>0,L$126*HLOOKUP(L$193,'Calcul de variation des prix'!$E$3:$AP$5, 3, FALSE),0))/1000 -> 0.3736705031 | M196: =IF(Start!$F$3="CONSTANT",IF(M$126>=0,M$126,0),IF(M$126*HLOOKUP(M$193,'Calcul de variation des prix'!$E$3:$AP$5, 3, FALSE)>0,M$126*HLOOKUP(M$193,'Calcul de variation des prix'!$E$3:$AP$5, 3, FALSE),0))/1000 -> 0.4728117411 | N196: =IF(Start!$F$3="CONSTANT",IF(N$126>=0,N$126,0),IF(N$126*HLOOKUP(N$193,'Calcul de variation des prix'!$E$3:$AP$5, 3, FALSE)>0,N$126*HLOOKUP(N$193,'Calcul de variation des prix'!$E$3:$AP$5, 3, FALSE),0))/1000 -> 0.5395125078 | O196: =IF(Start!$F$3="CONSTANT",IF(O$126>=0,O$126,0),IF(O$126*HLOOKUP(O$193,'Calcul de variation des prix'!$E$3:$AP$5, 3, FALSE)>0,O$126*HLOOKUP(O$193,'Calcul de variation des prix'!$E$3:$AP$5, 3, FALSE),0))/1000 -> 0.5927880526 | P196: =IF(Start!$F$3="CONSTANT",IF(P$126>=0,P$126,0),IF(P$126*HLOOKUP(P$193,'Calcul de variation des prix'!$E$3:$AP$5, 3, FALSE)>0,P$126*HLOOKUP(P$193,'Calcul de variation des prix'!$E$3:$AP$5, 3, FALSE),0))/1000 -> 0.6323262071 | Q196: =IF(Start!$F$3="CONSTANT",IF(Q$126>=0,Q$126,0),IF(Q$126*HLOOKUP(Q$193,'Calcul de variation des prix'!$E$3:$AP$5, 3, FALSE)>0,Q$126*HLOOKUP(Q$193,'Calcul de variation des prix'!$E$3:$AP$5, 3, FALSE),0))/1000 -> 0.6544427068 | R196: =IF(Start!$F$3="CONSTANT",IF(R$126>=0,R$126,0),IF(R$126*HLOOKUP(R$193,'Calcul de variation des prix'!$E$3:$AP$5, 3, FALSE)>0,R$126*HLOOKUP(R$193,'Calcul de variation des prix'!$E$3:$AP$5, 3, FALSE),0))/1000 -> 0.6588980709 | S196: =IF(Start!$F$3="CONSTANT",IF(S$126>=0,S$126,0),IF(S$126*HLOOKUP(S$193,'Calcul de variation des prix'!$E$3:$AP$5, 3, FALSE)>0,S$126*HLOOKUP(S$193,'Calcul de variation des prix'!$E$3:$AP$5, 3, FALSE),0))/1000 -> 0.6817795082 | T196: =IF(Start!$F$3="CONSTANT",IF(T$126>=0,T$126,0),IF(T$126*HLOOKUP(T$193,'Calcul de variation des prix'!$E$3:$AP$5, 3, FALSE)>0,T$126*HLOOKUP(T$193,'Calcul de variation des prix'!$E$3:$AP$5, 3, FALSE),0))/1000 -> 0.6927309022 | U196: =IF(Start!$F$3="CONSTANT",IF(U$126>=0,U$126,0),IF(U$126*HLOOKUP(U$193,'Calcul de variation des prix'!$E$3:$AP$5, 3, FALSE)>0,U$126*HLOOKUP(U$193,'Calcul de variation des prix'!$E$3:$AP$5, 3, FALSE),0))/1000 -> 0.6919872391 | V196: =IF(Start!$F$3="CONSTANT",IF(V$126>=0,V$126,0),IF(V$126*HLOOKUP(V$193,'Calcul de variation des prix'!$E$3:$AP$5, 3, FALSE)>0,V$126*HLOOKUP(V$193,'Calcul de variation des prix'!$E$3:$AP$5, 3, FALSE),0))/1000 -> 0.6827404542 | W196: =IF(Start!$F$3="CONSTANT",IF(W$126>=0,W$126,0),IF(W$126*HLOOKUP(W$193,'Calcul de variation des prix'!$E$3:$AP$5, 3, FALSE)>0,W$126*HLOOKUP(W$193,'Calcul de variation des prix'!$E$3:$AP$5, 3, FALSE),0))/1000 -> 0.6650882925 | X196: =IF(Start!$F$3="CONSTANT",IF(X$126>=0,X$126,0),IF(X$126*HLOOKUP(X$193,'Calcul de variation des prix'!$E$3:$AP$5, 3, FALSE)>0,X$126*HLOOKUP(X$193,'Calcul de variation des prix'!$E$3:$AP$5, 3, FALSE),0))/1000 -> 0.6391107111 | Y196: =IF(Start!$F$3="CONSTANT",IF(Y$126>=0,Y$126,0),IF(Y$126*HLOOKUP(Y$193,'Calcul de variation des prix'!$E$3:$AP$5, 3, FALSE)>0,Y$126*HLOOKUP(Y$193,'Calcul de variation des prix'!$E$3:$AP$5, 3, FALSE),0))/1000 -> 0.6088527435 | Z196: =IF(Start!$F$3="CONSTANT",IF(Z$126>=0,Z$126,0),IF(Z$126*HLOOKUP(Z$193,'Calcul de variation des prix'!$E$3:$AP$5, 3, FALSE)>0,Z$126*HLOOKUP(Z$193,'Calcul de variation des prix'!$E$3:$AP$5, 3, FALSE),0))/1000 -> 0.5791168899 | AA196: =IF(Start!$F$3="CONSTANT",IF(AA$126>=0,AA$126,0),IF(AA$126*HLOOKUP(AA$193,'Calcul de variation des prix'!$E$3:$AP$5, 3, FALSE)>0,AA$126*HLOOKUP(AA$193,'Calcul de variation des prix'!$E$3:$AP$5, 3, FALSE),0))/1000 -> 0.5498404465 | AB196: =IF(Start!$F$3="CONSTANT",IF(AB$126>=0,AB$126,0),IF(AB$126*HLOOKUP(AB$193,'Calcul de variation des prix'!$E$3:$AP$5, 3, FALSE)>0,AB$126*HLOOKUP(AB$193,'Calcul de variation des prix'!$E$3:$AP$5, 3, FALSE),0))/1000 -> 0.5254667228
C197: Eolien terrestre - remboursement | D197: Md€ | F197: =IF(Start!$F$3="CONSTANT",IF(F$126<0,F$126,0),IF(F$126*HLOOKUP(F$193,'Calcul de variation des prix'!$E$3:$AP$5, 3, FALSE)<0,F$126*HLOOKUP(F$193,'Calcul de variation des prix'!$E$3:$AP$5, 3, FALSE),0))/1000 -> 0 | G197: =IF(Start!$F$3="CONSTANT",IF(G$126<0,G$126,0),IF(G$126*HLOOKUP(G$193,'Calcul de variation des prix'!$E$3:$AP$5, 3, FALSE)<0,G$126*HLOOKUP(G$193,'Calcul de variation des prix'!$E$3:$AP$5, 3, FALSE),0))/1000 -> 0 | H197: =IF(Start!$F$3="CONSTANT",IF(H$126<0,H$126,0),IF(H$126*HLOOKUP(H$193,'Calcul de variation des prix'!$E$3:$AP$5, 3, FALSE)<0,H$126*HLOOKUP(H$193,'Calcul de variation des prix'!$E$3:$AP$5, 3, FALSE),0))/1000 -> 0 | I197: =IF(Start!$F$3="CONSTANT",IF(I$126<0,I$126,0),IF(I$126*HLOOKUP(I$193,'Calcul de variation des prix'!$E$3:$AP$5, 3, FALSE)<0,I$126*HLOOKUP(I$193,'Calcul de variation des prix'!$E$3:$AP$5, 3, FALSE),0))/1000 -> 0 | J197: =IF(Start!$F$3="CONSTANT",IF(J$126<0,J$126,0),IF(J$126*HLOOKUP(J$193,'Calcul de variation des prix'!$E$3:$AP$5, 3, FALSE)<0,J$126*HLOOKUP(J$193,'Calcul de variation des prix'!$E$3:$AP$5, 3, FALSE),0))/1000 -> 0 | K197: =IF(Start!$F$3="CONSTANT",IF(K$126<0,K$126,0),IF(K$126*HLOOKUP(K$193,'Calcul de variation des prix'!$E$3:$AP$5, 3, FALSE)<0,K$126*HLOOKUP(K$193,'Calcul de variation des prix'!$E$3:$AP$5, 3, FALSE),0))/1000 -> 0 | L197: =IF(Start!$F$3="CONSTANT",IF(L$126<0,L$126,0),IF(L$126*HLOOKUP(L$193,'Calcul de variation des prix'!$E$3:$AP$5, 3, FALSE)<0,L$126*HLOOKUP(L$193,'Calcul de variation des prix'!$E$3:$AP$5, 3, FALSE),0))/1000 -> 0 | M197: =IF(Start!$F$3="CONSTANT",IF(M$126<0,M$126,0),IF(M$126*HLOOKUP(M$193,'Calcul de variation des prix'!$E$3:$AP$5, 3, FALSE)<0,M$126*HLOOKUP(M$193,'Calcul de variation des prix'!$E$3:$AP$5, 3, FALSE),0))/1000 -> 0 | N197: =IF(Start!$F$3="CONSTANT",IF(N$126<0,N$126,0),IF(N$126*HLOOKUP(N$193,'Calcul de variation des prix'!$E$3:$AP$5, 3, FALSE)<0,N$126*HLOOKUP(N$193,'Calcul de variation des prix'!$E$3:$AP$5, 3, FALSE),0))/1000 -> 0 | O197: =IF(Start!$F$3="CONSTANT",IF(O$126<0,O$126,0),IF(O$126*HLOOKUP(O$193,'Calcul de variation des prix'!$E$3:$AP$5, 3, FALSE)<0,O$126*HLOOKUP(O$193,'Calcul de variation des prix'!$E$3:$AP$5, 3, FALSE),0))/1000 -> 0 | P197: =IF(Start!$F$3="CONSTANT",IF(P$126<0,P$126,0),IF(P$126*HLOOKUP(P$193,'Calcul de variation des prix'!$E$3:$AP$5, 3, FALSE)<0,P$126*HLOOKUP(P$193,'Calcul de variation des prix'!$E$3:$AP$5, 3, FALSE),0))/1000 -> 0 | Q197: =IF(Start!$F$3="CONSTANT",IF(Q$126<0,Q$126,0),IF(Q$126*HLOOKUP(Q$193,'Calcul de variation des prix'!$E$3:$AP$5, 3, FALSE)<0,Q$126*HLOOKUP(Q$193,'Calcul de variation des prix'!$E$3:$AP$5, 3, FALSE),0))/1000 -> 0 | R197: =IF(Start!$F$3="CONSTANT",IF(R$126<0,R$126,0),IF(R$126*HLOOKUP(R$193,'Calcul de variation des prix'!$E$3:$AP$5, 3, FALSE)<0,R$126*HLOOKUP(R$193,'Calcul de variation des prix'!$E$3:$AP$5, 3, FALSE),0))/1000 -> 0 | S197: =IF(Start!$F$3="CONSTANT",IF(S$126<0,S$126,0),IF(S$126*HLOOKUP(S$193,'Calcul de variation des prix'!$E$3:$AP$5, 3, FALSE)<0,S$126*HLOOKUP(S$193,'Calcul de variation des prix'!$E$3:$AP$5, 3, FALSE),0))/1000 -> 0 | T197: =IF(Start!$F$3="CONSTANT",IF(T$126<0,T$126,0),IF(T$126*HLOOKUP(T$193,'Calcul de variation des prix'!$E$3:$AP$5, 3, FALSE)<0,T$126*HLOOKUP(T$193,'Calcul de variation des prix'!$E$3:$AP$5, 3, FALSE),0))/1000 -> 0 | U197: =IF(Start!$F$3="CONSTANT",IF(U$126<0,U$126,0),IF(U$126*HLOOKUP(U$193,'Calcul de variation des prix'!$E$3:$AP$5, 3, FALSE)<0,U$126*HLOOKUP(U$193,'Calcul de variation des prix'!$E$3:$AP$5, 3, FALSE),0))/1000 -> 0 | V197: =IF(Start!$F$3="CONSTANT",IF(V$126<0,V$126,0),IF(V$126*HLOOKUP(V$193,'Calcul de variation des prix'!$E$3:$AP$5, 3, FALSE)<0,V$126*HLOOKUP(V$193,'Calcul de variation des prix'!$E$3:$AP$5, 3, FALSE),0))/1000 -> 0 | W197: =IF(Start!$F$3="CONSTANT",IF(W$126<0,W$126,0),IF(W$126*HLOOKUP(W$193,'Calcul de variation des prix'!$E$3:$AP$5, 3, FALSE)<0,W$126*HLOOKUP(W$193,'Calcul de variation des prix'!$E$3:$AP$5, 3, FALSE),0))/1000 -> 0 | X197: =IF(Start!$F$3="CONSTANT",IF(X$126<0,X$126,0),IF(X$126*HLOOKUP(X$193,'Calcul de variation des prix'!$E$3:$AP$5, 3, FALSE)<0,X$126*HLOOKUP(X$193,'Calcul de variation des prix'!$E$3:$AP$5, 3, FALSE),0))/1000 -> 0 | Y197: =IF(Start!$F$3="CONSTANT",IF(Y$126<0,Y$126,0),IF(Y$126*HLOOKUP(Y$193,'Calcul de variation des prix'!$E$3:$AP$5, 3, FALSE)<0,Y$126*HLOOKUP(Y$193,'Calcul de variation des prix'!$E$3:$AP$5, 3, FALSE),0))/1000 -> 0 | Z197: =IF(Start!$F$3="CONSTANT",IF(Z$126<0,Z$126,0),IF(Z$126*HLOOKUP(Z$193,'Calcul de variation des prix'!$E$3:$AP$5, 3, FALSE)<0,Z$126*HLOOKUP(Z$193,'Calcul de variation des prix'!$E$3:$AP$5, 3, FALSE),0))/1000 -> 0 | AA197: =IF(Start!$F$3="CONSTANT",IF(AA$126<0,AA$126,0),IF(AA$126*HLOOKUP(AA$193,'Calcul de variation des prix'!$E$3:$AP$5, 3, FALSE)<0,AA$126*HLOOKUP(AA$193,'Calcul de variation des prix'!$E$3:$AP$5, 3, FALSE),0))/1000 -> 0 | AB197: =IF(Start!$F$3="CONSTANT",IF(AB$126<0,AB$126,0),IF(AB$126*HLOOKUP(AB$193,'Calcul de variation des prix'!$E$3:$AP$5, 3, FALSE)<0,AB$126*HLOOKUP(AB$193,'Calcul de variation des prix'!$E$3:$AP$5, 3, FALSE),0))/1000 -> 0
C198: Eolien en mer | D198: Md€ | F198: =IF(Start!$F$3="CONSTANT",IF(F$144>=0,F$144,0),IF(F$144*HLOOKUP(F$193,'Calcul de variation des prix'!$E$3:$AP$5, 3, FALSE)>0,F$144*HLOOKUP(F$193,'Calcul de variation des prix'!$E$3:$AP$5, 3, FALSE),0))/1000 -> 0 | G198: =IF(Start!$F$3="CONSTANT",IF(G$144>=0,G$144,0),IF(G$144*HLOOKUP(G$193,'Calcul de variation des prix'!$E$3:$AP$5, 3, FALSE)>0,G$144*HLOOKUP(G$193,'Calcul de variation des prix'!$E$3:$AP$5, 3, FALSE),0))/1000 -> 0 | H198: =IF(Start!$F$3="CONSTANT",IF(H$144>=0,H$144,0),IF(H$144*HLOOKUP(H$193,'Calcul de variation des prix'!$E$3:$AP$5, 3, FALSE)>0,H$144*HLOOKUP(H$193,'Calcul de variation des prix'!$E$3:$AP$5, 3, FALSE),0))/1000 -> 0 | I198: =IF(Start!$F$3="CONSTANT",IF(I$144>=0,I$144,0),IF(I$144*HLOOKUP(I$193,'Calcul de variation des prix'!$E$3:$AP$5, 3, FALSE)>0,I$144*HLOOKUP(I$193,'Calcul de variation des prix'!$E$3:$AP$5, 3, FALSE),0))/1000 -> 0 | J198: =IF(Start!$F$3="CONSTANT",IF(J$144>=0,J$144,0),IF(J$144*HLOOKUP(J$193,'Calcul de variation des prix'!$E$3:$AP$5, 3, FALSE)>0,J$144*HLOOKUP(J$193,'Calcul de variation des prix'!$E$3:$AP$5, 3, FALSE),0))/1000 -> 0 | K198: =IF(Start!$F$3="CONSTANT",IF(K$144>=0,K$144,0),IF(K$144*HLOOKUP(K$193,'Calcul de variation des prix'!$E$3:$AP$5, 3, FALSE)>0,K$144*HLOOKUP(K$193,'Calcul de variation des prix'!$E$3:$AP$5, 3, FALSE),0))/1000 -> 0 | L198: =IF(Start!$F$3="CONSTANT",IF(L$144>=0,L$144,0),IF(L$144*HLOOKUP(L$193,'Calcul de variation des prix'!$E$3:$AP$5, 3, FALSE)>0,L$144*HLOOKUP(L$193,'Calcul de variation des prix'!$E$3:$AP$5, 3, FALSE),0))/1000 -> 0 | M198: =IF(Start!$F$3="CONSTANT",IF(M$144>=0,M$144,0),IF(M$144*HLOOKUP(M$193,'Calcul de variation des prix'!$E$3:$AP$5, 3, FALSE)>0,M$144*HLOOKUP(M$193,'Calcul de variation des prix'!$E$3:$AP$5, 3, FALSE),0))/1000 -> 8.874419726e-07 | N198: =IF(Start!$F$3="CONSTANT",IF(N$144>=0,N$144,0),IF(N$144*HLOOKUP(N$193,'Calcul de variation des prix'!$E$3:$AP$5, 3, FALSE)>0,N$144*HLOOKUP(N$193,'Calcul de variation des prix'!$E$3:$AP$5, 3, FALSE),0))/1000 -> 0.03088125106 | O198: =IF(Start!$F$3="CONSTANT",IF(O$144>=0,O$144,0),IF(O$144*HLOOKUP(O$193,'Calcul de variation des prix'!$E$3:$AP$5, 3, FALSE)>0,O$144*HLOOKUP(O$193,'Calcul de variation des prix'!$E$3:$AP$5, 3, FALSE),0))/1000 -> 0.04842304961 | P198: =IF(Start!$F$3="CONSTANT",IF(P$144>=0,P$144,0),IF(P$144*HLOOKUP(P$193,'Calcul de variation des prix'!$E$3:$AP$5, 3, FALSE)>0,P$144*HLOOKUP(P$193,'Calcul de variation des prix'!$E$3:$AP$5, 3, FALSE),0))/1000 -> 0.05849764498 | Q198: =IF(Start!$F$3="CONSTANT",IF(Q$144>=0,Q$144,0),IF(Q$144*HLOOKUP(Q$193,'Calcul de variation des prix'!$E$3:$AP$5, 3, FALSE)>0,Q$144*HLOOKUP(Q$193,'Calcul de variation des prix'!$E$3:$AP$5, 3, FALSE),0))/1000 -> 0.06219193676 | R198: =IF(Start!$F$3="CONSTANT",IF(R$144>=0,R$144,0),IF(R$144*HLOOKUP(R$193,'Calcul de variation des prix'!$E$3:$AP$5, 3, FALSE)>0,R$144*HLOOKUP(R$193,'Calcul de variation des prix'!$E$3:$AP$5, 3, FALSE),0))/1000 -> 0.05959016401 | S198: =IF(Start!$F$3="CONSTANT",IF(S$144>=0,S$144,0),IF(S$144*HLOOKUP(S$193,'Calcul de variation des prix'!$E$3:$AP$5, 3, FALSE)>0,S$144*HLOOKUP(S$193,'Calcul de variation des prix'!$E$3:$AP$5, 3, FALSE),0))/1000 -> 0.07066328377 | T198: =IF(Start!$F$3="CONSTANT",IF(T$144>=0,T$144,0),IF(T$144*HLOOKUP(T$193,'Calcul de variation des prix'!$E$3:$AP$5, 3, FALSE)>0,T$144*HLOOKUP(T$193,'Calcul de variation des prix'!$E$3:$AP$5, 3, FALSE),0))/1000 -> 0.07482273044 | U198: =IF(Start!$F$3="CONSTANT",IF(U$144>=0,U$144,0),IF(U$144*HLOOKUP(U$193,'Calcul de variation des prix'!$E$3:$AP$5, 3, FALSE)>0,U$144*HLOOKUP(U$193,'Calcul de variation des prix'!$E$3:$AP$5, 3, FALSE),0))/1000 -> 0.07156008576 | V198: =IF(Start!$F$3="CONSTANT",IF(V$144>=0,V$144,0),IF(V$144*HLOOKUP(V$193,'Calcul de variation des prix'!$E$3:$AP$5, 3, FALSE)>0,V$144*HLOOKUP(V$193,'Calcul de variation des prix'!$E$3:$AP$5, 3, FALSE),0))/1000 -> 0.06058218599 | W198: =IF(Start!$F$3="CONSTANT",IF(W$144>=0,W$144,0),IF(W$144*HLOOKUP(W$193,'Calcul de variation des prix'!$E$3:$AP$5, 3, FALSE)>0,W$144*HLOOKUP(W$193,'Calcul de variation des prix'!$E$3:$AP$5, 3, FALSE),0))/1000 -> 0.0417081072 | X198: =IF(Start!$F$3="CONSTANT",IF(X$144>=0,X$144,0),IF(X$144*HLOOKUP(X$193,'Calcul de variation des prix'!$E$3:$AP$5, 3, FALSE)>0,X$144*HLOOKUP(X$193,'Calcul de variation des prix'!$E$3:$AP$5, 3, FALSE),0))/1000 -> 0.0148201427 | Y198: =IF(Start!$F$3="CONSTANT",IF(Y$144>=0,Y$144,0),IF(Y$144*HLOOKUP(Y$193,'Calcul de variation des prix'!$E$3:$AP$5, 3, FALSE)>0,Y$144*HLOOKUP(Y$193,'Calcul de variation des prix'!$E$3:$AP$5, 3, FALSE),0))/1000 -> 0 | Z198: =IF(Start!$F$3="CONSTANT",IF(Z$144>=0,Z$144,0),IF(Z$144*HLOOKUP(Z$193,'Calcul de variation des prix'!$E$3:$AP$5, 3, FALSE)>0,Z$144*HLOOKUP(Z$193,'Calcul de variation des prix'!$E$3:$AP$5, 3, FALSE),0))/1000 -> 0 | AA198: =IF(Start!$F$3="CONSTANT",IF(AA$144>=0,AA$144,0),IF(AA$144*HLOOKUP(AA$193,'Calcul de variation des prix'!$E$3:$AP$5, 3, FALSE)>0,AA$144*HLOOKUP(AA$193,'Calcul de variation des prix'!$E$3:$AP$5, 3, FALSE),0))/1000 -> 0 | AB198: =IF(Start!$F$3="CONSTANT",IF(AB$144>=0,AB$144,0),IF(AB$144*HLOOKUP(AB$193,'Calcul de variation des prix'!$E$3:$AP$5, 3, FALSE)>0,AB$144*HLOOKUP(AB$193,'Calcul de variation des prix'!$E$3:$AP$5, 3, FALSE),0))/1000 -> 0
C199: Eolien en mer - remboursement | D199: Md€ | F199: =IF(Start!$F$3="CONSTANT",IF(F$144<0,F$144,0),IF(F$144*HLOOKUP(F$193,'Calcul de variation des prix'!$E$3:$AP$5, 3, FALSE)<0,F$144*HLOOKUP(F$193,'Calcul de variation des prix'!$E$3:$AP$5, 3, FALSE),0))/1000 -> 0 | G199: =IF(Start!$F$3="CONSTANT",IF(G$144<0,G$144,0),IF(G$144*HLOOKUP(G$193,'Calcul de variation des prix'!$E$3:$AP$5, 3, FALSE)<0,G$144*HLOOKUP(G$193,'Calcul de variation des prix'!$E$3:$AP$5, 3, FALSE),0))/1000 -> 0 | H199: =IF(Start!$F$3="CONSTANT",IF(H$144<0,H$144,0),IF(H$144*HLOOKUP(H$193,'Calcul de variation des prix'!$E$3:$AP$5, 3, FALSE)<0,H$144*HLOOKUP(H$193,'Calcul de variation des prix'!$E$3:$AP$5, 3, FALSE),0))/1000 -> 0 | I199: =IF(Start!$F$3="CONSTANT",IF(I$144<0,I$144,0),IF(I$144*HLOOKUP(I$193,'Calcul de variation des prix'!$E$3:$AP$5, 3, FALSE)<0,I$144*HLOOKUP(I$193,'Calcul de variation des prix'!$E$3:$AP$5, 3, FALSE),0))/1000 -> 0 | J199: =IF(Start!$F$3="CONSTANT",IF(J$144<0,J$144,0),IF(J$144*HLOOKUP(J$193,'Calcul de variation des prix'!$E$3:$AP$5, 3, FALSE)<0,J$144*HLOOKUP(J$193,'Calcul de variation des prix'!$E$3:$AP$5, 3, FALSE),0))/1000 -> 0 | K199: =IF(Start!$F$3="CONSTANT",IF(K$144<0,K$144,0),IF(K$144*HLOOKUP(K$193,'Calcul de variation des prix'!$E$3:$AP$5, 3, FALSE)<0,K$144*HLOOKUP(K$193,'Calcul de variation des prix'!$E$3:$AP$5, 3, FALSE),0))/1000 -> 0 | L199: =IF(Start!$F$3="CONSTANT",IF(L$144<0,L$144,0),IF(L$144*HLOOKUP(L$193,'Calcul de variation des prix'!$E$3:$AP$5, 3, FALSE)<0,L$144*HLOOKUP(L$193,'Calcul de variation des prix'!$E$3:$AP$5, 3, FALSE),0))/1000 -> 0 | M199: =IF(Start!$F$3="CONSTANT",IF(M$144<0,M$144,0),IF(M$144*HLOOKUP(M$193,'Calcul de variation des prix'!$E$3:$AP$5, 3, FALSE)<0,M$144*HLOOKUP(M$193,'Calcul de variation des prix'!$E$3:$AP$5, 3, FALSE),0))/1000 -> 0 | N199: =IF(Start!$F$3="CONSTANT",IF(N$144<0,N$144,0),IF(N$144*HLOOKUP(N$193,'Calcul de variation des prix'!$E$3:$AP$5, 3, FALSE)<0,N$144*HLOOKUP(N$193,'Calcul de variation des prix'!$E$3:$AP$5, 3, FALSE),0))/1000 -> 0 | O199: =IF(Start!$F$3="CONSTANT",IF(O$144<0,O$144,0),IF(O$144*HLOOKUP(O$193,'Calcul de variation des prix'!$E$3:$AP$5, 3, FALSE)<0,O$144*HLOOKUP(O$193,'Calcul de variation des prix'!$E$3:$AP$5, 3, FALSE),0))/1000 -> 0 | P199: =IF(Start!$F$3="CONSTANT",IF(P$144<0,P$144,0),IF(P$144*HLOOKUP(P$193,'Calcul de variation des prix'!$E$3:$AP$5, 3, FALSE)<0,P$144*HLOOKUP(P$193,'Calcul de variation des prix'!$E$3:$AP$5, 3, FALSE),0))/1000 -> 0 | Q199: =IF(Start!$F$3="CONSTANT",IF(Q$144<0,Q$144,0),IF(Q$144*HLOOKUP(Q$193,'Calcul de variation des prix'!$E$3:$AP$5, 3, FALSE)<0,Q$144*HLOOKUP(Q$193,'Calcul de variation des prix'!$E$3:$AP$5, 3, FALSE),0))/1000 -> 0 | R199: =IF(Start!$F$3="CONSTANT",IF(R$144<0,R$144,0),IF(R$144*HLOOKUP(R$193,'Calcul de variation des prix'!$E$3:$AP$5, 3, FALSE)<0,R$144*HLOOKUP(R$193,'Calcul de variation des prix'!$E$3:$AP$5, 3, FALSE),0))/1000 -> 0 | S199: =IF(Start!$F$3="CONSTANT",IF(S$144<0,S$144,0),IF(S$144*HLOOKUP(S$193,'Calcul de variation des prix'!$E$3:$AP$5, 3, FALSE)<0,S$144*HLOOKUP(S$193,'Calcul de variation des prix'!$E$3:$AP$5, 3, FALSE),0))/1000 -> 0 | T199: =IF(Start!$F$3="CONSTANT",IF(T$144<0,T$144,0),IF(T$144*HLOOKUP(T$193,'Calcul de variation des prix'!$E$3:$AP$5, 3, FALSE)<0,T$144*HLOOKUP(T$193,'Calcul de variation des prix'!$E$3:$AP$5, 3, FALSE),0))/1000 -> 0 | U199: =IF(Start!$F$3="CONSTANT",IF(U$144<0,U$144,0),IF(U$144*HLOOKUP(U$193,'Calcul de variation des prix'!$E$3:$AP$5, 3, FALSE)<0,U$144*HLOOKUP(U$193,'Calcul de variation des prix'!$E$3:$AP$5, 3, FALSE),0))/1000 -> 0 | V199: =IF(Start!$F$3="CONSTANT",IF(V$144<0,V$144,0),IF(V$144*HLOOKUP(V$193,'Calcul de variation des prix'!$E$3:$AP$5, 3, FALSE)<0,V$144*HLOOKUP(V$193,'Calcul de variation des prix'!$E$3:$AP$5, 3, FALSE),0))/1000 -> 0 | W199: =IF(Start!$F$3="CONSTANT",IF(W$144<0,W$144,0),IF(W$144*HLOOKUP(W$193,'Calcul de variation des prix'!$E$3:$AP$5, 3, FALSE)<0,W$144*HLOOKUP(W$193,'Calcul de variation des prix'!$E$3:$AP$5, 3, FALSE),0))/1000 -> 0 | X199: =IF(Start!$F$3="CONSTANT",IF(X$144<0,X$144,0),IF(X$144*HLOOKUP(X$193,'Calcul de variation des prix'!$E$3:$AP$5, 3, FALSE)<0,X$144*HLOOKUP(X$193,'Calcul de variation des prix'!$E$3:$AP$5, 3, FALSE),0))/1000 -> 0 | Y199: =IF(Start!$F$3="CONSTANT",IF(Y$144<0,Y$144,0),IF(Y$144*HLOOKUP(Y$193,'Calcul de variation des prix'!$E$3:$AP$5, 3, FALSE)<0,Y$144*HLOOKUP(Y$193,'Calcul de variation des prix'!$E$3:$AP$5, 3, FALSE),0))/1000 -> -0.02016158999 | Z199: =IF(Start!$F$3="CONSTANT",IF(Z$144<0,Z$144,0),IF(Z$144*HLOOKUP(Z$193,'Calcul de variation des prix'!$E$3:$AP$5, 3, FALSE)<0,Z$144*HLOOKUP(Z$193,'Calcul de variation des prix'!$E$3:$AP$5, 3, FALSE),0))/1000 -> -0.06329321253 | AA199: =IF(Start!$F$3="CONSTANT",IF(AA$144<0,AA$144,0),IF(AA$144*HLOOKUP(AA$193,'Calcul de variation des prix'!$E$3:$AP$5, 3, FALSE)<0,AA$144*HLOOKUP(AA$193,'Calcul de variation des prix'!$E$3:$AP$5, 3, FALSE),0))/1000 -> -0.1146153088 | AB199: =IF(Start!$F$3="CONSTANT",IF(AB$144<0,AB$144,0),IF(AB$144*HLOOKUP(AB$193,'Calcul de variation des prix'!$E$3:$AP$5, 3, FALSE)<0,AB$144*HLOOKUP(AB$193,'Calcul de variation des prix'!$E$3:$AP$5, 3, FALSE),0))/1000 -> -0.1741579539
C200: PV au sol | D200: Md€ | F200: =IF(Start!$F$3="CONSTANT",IF(F$167>=0,F$167,0),IF(F$167*HLOOKUP(F$193,'Calcul de variation des prix'!$E$3:$AP$5, 3, FALSE)>0,F$167*HLOOKUP(F$193,'Calcul de variation des prix'!$E$3:$AP$5, 3, FALSE),0))/1000 -> 0 | G200: =IF(Start!$F$3="CONSTANT",IF(G$167>=0,G$167,0),IF(G$167*HLOOKUP(G$193,'Calcul de variation des prix'!$E$3:$AP$5, 3, FALSE)>0,G$167*HLOOKUP(G$193,'Calcul de variation des prix'!$E$3:$AP$5, 3, FALSE),0))/1000 -> 0 | H200: =IF(Start!$F$3="CONSTANT",IF(H$167>=0,H$167,0),IF(H$167*HLOOKUP(H$193,'Calcul de variation des prix'!$E$3:$AP$5, 3, FALSE)>0,H$167*HLOOKUP(H$193,'Calcul de variation des prix'!$E$3:$AP$5, 3, FALSE),0))/1000 -> 0.03222022616 | I200: =IF(Start!$F$3="CONSTANT",IF(I$167>=0,I$167,0),IF(I$167*HLOOKUP(I$193,'Calcul de variation des prix'!$E$3:$AP$5, 3, FALSE)>0,I$167*HLOOKUP(I$193,'Calcul de variation des prix'!$E$3:$AP$5, 3, FALSE),0))/1000 -> 0.0618251398 | J200: =IF(Start!$F$3="CONSTANT",IF(J$167>=0,J$167,0),IF(J$167*HLOOKUP(J$193,'Calcul de variation des prix'!$E$3:$AP$5, 3, FALSE)>0,J$167*HLOOKUP(J$193,'Calcul de variation des prix'!$E$3:$AP$5, 3, FALSE),0))/1000 -> 0.08884915107 | K200: =IF(Start!$F$3="CONSTANT",IF(K$167>=0,K$167,0),IF(K$167*HLOOKUP(K$193,'Calcul de variation des prix'!$E$3:$AP$5, 3, FALSE)>0,K$167*HLOOKUP(K$193,'Calcul de variation des prix'!$E$3:$AP$5, 3, FALSE),0))/1000 -> 0.1265455906 | L200: =IF(Start!$F$3="CONSTANT",IF(L$167>=0,L$167,0),IF(L$167*HLOOKUP(L$193,'Calcul de variation des prix'!$E$3:$AP$5, 3, FALSE)>0,L$167*HLOOKUP(L$193,'Calcul de variation des prix'!$E$3:$AP$5, 3, FALSE),0))/1000 -> 0.1603732369 | M200: =IF(Start!$F$3="CONSTANT",IF(M$167>=0,M$167,0),IF(M$167*HLOOKUP(M$193,'Calcul de variation des prix'!$E$3:$AP$5, 3, FALSE)>0,M$167*HLOOKUP(M$193,'Calcul de variation des prix'!$E$3:$AP$5, 3, FALSE),0))/1000 -> 0.1903040464 | N200: =IF(Start!$F$3="CONSTANT",IF(N$167>=0,N$167,0),IF(N$167*HLOOKUP(N$193,'Calcul de variation des prix'!$E$3:$AP$5, 3, FALSE)>0,N$167*HLOOKUP(N$193,'Calcul de variation des prix'!$E$3:$AP$5, 3, FALSE),0))/1000 -> 0.1985266168 | O200: =IF(Start!$F$3="CONSTANT",IF(O$167>=0,O$167,0),IF(O$167*HLOOKUP(O$193,'Calcul de variation des prix'!$E$3:$AP$5, 3, FALSE)>0,O$167*HLOOKUP(O$193,'Calcul de variation des prix'!$E$3:$AP$5, 3, FALSE),0))/1000 -> 0.1986889849 | P200: =IF(Start!$F$3="CONSTANT",IF(P$167>=0,P$167,0),IF(P$167*HLOOKUP(P$193,'Calcul de variation des prix'!$E$3:$AP$5, 3, FALSE)>0,P$167*HLOOKUP(P$193,'Calcul de variation des prix'!$E$3:$AP$5, 3, FALSE),0))/1000 -> 0.1934501738 | Q200: =IF(Start!$F$3="CONSTANT",IF(Q$167>=0,Q$167,0),IF(Q$167*HLOOKUP(Q$193,'Calcul de variation des prix'!$E$3:$AP$5, 3, FALSE)>0,Q$167*HLOOKUP(Q$193,'Calcul de variation des prix'!$E$3:$AP$5, 3, FALSE),0))/1000 -> 0.1828069161 | R200: =IF(Start!$F$3="CONSTANT",IF(R$167>=0,R$167,0),IF(R$167*HLOOKUP(R$193,'Calcul de variation des prix'!$E$3:$AP$5, 3, FALSE)>0,R$167*HLOOKUP(R$193,'Calcul de variation des prix'!$E$3:$AP$5, 3, FALSE),0))/1000 -> 0.1667568436 | S200: =IF(Start!$F$3="CONSTANT",IF(S$167>=0,S$167,0),IF(S$167*HLOOKUP(S$193,'Calcul de variation des prix'!$E$3:$AP$5, 3, FALSE)>0,S$167*HLOOKUP(S$193,'Calcul de variation des prix'!$E$3:$AP$5, 3, FALSE),0))/1000 -> 0.1521232319 | T200: =IF(Start!$F$3="CONSTANT",IF(T$167>=0,T$167,0),IF(T$167*HLOOKUP(T$193,'Calcul de variation des prix'!$E$3:$AP$5, 3, FALSE)>0,T$167*HLOOKUP(T$193,'Calcul de variation des prix'!$E$3:$AP$5, 3, FALSE),0))/1000 -> 0.1353813407 | U200: =IF(Start!$F$3="CONSTANT",IF(U$167>=0,U$167,0),IF(U$167*HLOOKUP(U$193,'Calcul de variation des prix'!$E$3:$AP$5, 3, FALSE)>0,U$167*HLOOKUP(U$193,'Calcul de variation des prix'!$E$3:$AP$5, 3, FALSE),0))/1000 -> 0.1165962634 | V200: =IF(Start!$F$3="CONSTANT",IF(V$167>=0,V$167,0),IF(V$167*HLOOKUP(V$193,'Calcul de variation des prix'!$E$3:$AP$5, 3, FALSE)>0,V$167*HLOOKUP(V$193,'Calcul de variation des prix'!$E$3:$AP$5, 3, FALSE),0))/1000 -> 0.09576810783 | W200: =IF(Start!$F$3="CONSTANT",IF(W$167>=0,W$167,0),IF(W$167*HLOOKUP(W$193,'Calcul de variation des prix'!$E$3:$AP$5, 3, FALSE)>0,W$167*HLOOKUP(W$193,'Calcul de variation des prix'!$E$3:$AP$5, 3, FALSE),0))/1000 -> 0.07289696913 | X200: =IF(Start!$F$3="CONSTANT",IF(X$167>=0,X$167,0),IF(X$167*HLOOKUP(X$193,'Calcul de variation des prix'!$E$3:$AP$5, 3, FALSE)>0,X$167*HLOOKUP(X$193,'Calcul de variation des prix'!$E$3:$AP$5, 3, FALSE),0))/1000 -> 0.0479829314 | Y200: =IF(Start!$F$3="CONSTANT",IF(Y$167>=0,Y$167,0),IF(Y$167*HLOOKUP(Y$193,'Calcul de variation des prix'!$E$3:$AP$5, 3, FALSE)>0,Y$167*HLOOKUP(Y$193,'Calcul de variation des prix'!$E$3:$AP$5, 3, FALSE),0))/1000 -> 0.02102606929 | Z200: =IF(Start!$F$3="CONSTANT",IF(Z$167>=0,Z$167,0),IF(Z$167*HLOOKUP(Z$193,'Calcul de variation des prix'!$E$3:$AP$5, 3, FALSE)>0,Z$167*HLOOKUP(Z$193,'Calcul de variation des prix'!$E$3:$AP$5, 3, FALSE),0))/1000 -> 0 | AA200: =IF(Start!$F$3="CONSTANT",IF(AA$167>=0,AA$167,0),IF(AA$167*HLOOKUP(AA$193,'Calcul de variation des prix'!$E$3:$AP$5, 3, FALSE)>0,AA$167*HLOOKUP(AA$193,'Calcul de variation des prix'!$E$3:$AP$5, 3, FALSE),0))/1000 -> 0 | AB200: =IF(Start!$F$3="CONSTANT",IF(AB$167>=0,AB$167,0),IF(AB$167*HLOOKUP(AB$193,'Calcul de variation des prix'!$E$3:$AP$5, 3, FALSE)>0,AB$167*HLOOKUP(AB$193,'Calcul de variation des prix'!$E$3:$AP$5, 3, FALSE),0))/1000 -> 0
C201: PV au sol - remboursement | D201: Md€ | F201: =IF(Start!$F$3="CONSTANT",IF(F$167<0,F$167,0),IF(F$167*HLOOKUP(F$193,'Calcul de variation des prix'!$E$3:$AP$5, 3, FALSE)<0,F$167*HLOOKUP(F$193,'Calcul de variation des prix'!$E$3:$AP$5, 3, FALSE),0))/1000 -> 0 | G201: =IF(Start!$F$3="CONSTANT",IF(G$167<0,G$167,0),IF(G$167*HLOOKUP(G$193,'Calcul de variation des prix'!$E$3:$AP$5, 3, FALSE)<0,G$167*HLOOKUP(G$193,'Calcul de variation des prix'!$E$3:$AP$5, 3, FALSE),0))/1000 -> 0 | H201: =IF(Start!$F$3="CONSTANT",IF(H$167<0,H$167,0),IF(H$167*HLOOKUP(H$193,'Calcul de variation des prix'!$E$3:$AP$5, 3, FALSE)<0,H$167*HLOOKUP(H$193,'Calcul de variation des prix'!$E$3:$AP$5, 3, FALSE),0))/1000 -> 0 | I201: =IF(Start!$F$3="CONSTANT",IF(I$167<0,I$167,0),IF(I$167*HLOOKUP(I$193,'Calcul de variation des prix'!$E$3:$AP$5, 3, FALSE)<0,I$167*HLOOKUP(I$193,'Calcul de variation des prix'!$E$3:$AP$5, 3, FALSE),0))/1000 -> 0 | J201: =IF(Start!$F$3="CONSTANT",IF(J$167<0,J$167,0),IF(J$167*HLOOKUP(J$193,'Calcul de variation des prix'!$E$3:$AP$5, 3, FALSE)<0,J$167*HLOOKUP(J$193,'Calcul de variation des prix'!$E$3:$AP$5, 3, FALSE),0))/1000 -> 0 | K201: =IF(Start!$F$3="CONSTANT",IF(K$167<0,K$167,0),IF(K$167*HLOOKUP(K$193,'Calcul de variation des prix'!$E$3:$AP$5, 3, FALSE)<0,K$167*HLOOKUP(K$193,'Calcul de variation des prix'!$E$3:$AP$5, 3, FALSE),0))/1000 -> 0 | L201: =IF(Start!$F$3="CONSTANT",IF(L$167<0,L$167,0),IF(L$167*HLOOKUP(L$193,'Calcul de variation des prix'!$E$3:$AP$5, 3, FALSE)<0,L$167*HLOOKUP(L$193,'Calcul de variation des prix'!$E$3:$AP$5, 3, FALSE),0))/1000 -> 0 | M201: =IF(Start!$F$3="CONSTANT",IF(M$167<0,M$167,0),IF(M$167*HLOOKUP(M$193,'Calcul de variation des prix'!$E$3:$AP$5, 3, FALSE)<0,M$167*HLOOKUP(M$193,'Calcul de variation des prix'!$E$3:$AP$5, 3, FALSE),0))/1000 -> 0 | N201: =IF(Start!$F$3="CONSTANT",IF(N$167<0,N$167,0),IF(N$167*HLOOKUP(N$193,'Calcul de variation des prix'!$E$3:$AP$5, 3, FALSE)<0,N$167*HLOOKUP(N$193,'Calcul de variation des prix'!$E$3:$AP$5, 3, FALSE),0))/1000 -> 0 | O201: =IF(Start!$F$3="CONSTANT",IF(O$167<0,O$167,0),IF(O$167*HLOOKUP(O$193,'Calcul de variation des prix'!$E$3:$AP$5, 3, FALSE)<0,O$167*HLOOKUP(O$193,'Calcul de variation des prix'!$E$3:$AP$5, 3, FALSE),0))/1000 -> 0 | P201: =IF(Start!$F$3="CONSTANT",IF(P$167<0,P$167,0),IF(P$167*HLOOKUP(P$193,'Calcul de variation des prix'!$E$3:$AP$5, 3, FALSE)<0,P$167*HLOOKUP(P$193,'Calcul de variation des prix'!$E$3:$AP$5, 3, FALSE),0))/1000 -> 0 | Q201: =IF(Start!$F$3="CONSTANT",IF(Q$167<0,Q$167,0),IF(Q$167*HLOOKUP(Q$193,'Calcul de variation des prix'!$E$3:$AP$5, 3, FALSE)<0,Q$167*HLOOKUP(Q$193,'Calcul de variation des prix'!$E$3:$AP$5, 3, FALSE),0))/1000 -> 0 | R201: =IF(Start!$F$3="CONSTANT",IF(R$167<0,R$167,0),IF(R$167*HLOOKUP(R$193,'Calcul de variation des prix'!$E$3:$AP$5, 3, FALSE)<0,R$167*HLOOKUP(R$193,'Calcul de variation des prix'!$E$3:$AP$5, 3, FALSE),0))/1000 -> 0 | S201: =IF(Start!$F$3="CONSTANT",IF(S$167<0,S$167,0),IF(S$167*HLOOKUP(S$193,'Calcul de variation des prix'!$E$3:$AP$5, 3, FALSE)<0,S$167*HLOOKUP(S$193,'Calcul de variation des prix'!$E$3:$AP$5, 3, FALSE),0))/1000 -> 0 | T201: =IF(Start!$F$3="CONSTANT",IF(T$167<0,T$167,0),IF(T$167*HLOOKUP(T$193,'Calcul de variation des prix'!$E$3:$AP$5, 3, FALSE)<0,T$167*HLOOKUP(T$193,'Calcul de variation des prix'!$E$3:$AP$5, 3, FALSE),0))/1000 -> 0 | U201: =IF(Start!$F$3="CONSTANT",IF(U$167<0,U$167,0),IF(U$167*HLOOKUP(U$193,'Calcul de variation des prix'!$E$3:$AP$5, 3, FALSE)<0,U$167*HLOOKUP(U$193,'Calcul de variation des prix'!$E$3:$AP$5, 3, FALSE),0))/1000 -> 0 | V201: =IF(Start!$F$3="CONSTANT",IF(V$167<0,V$167,0),IF(V$167*HLOOKUP(V$193,'Calcul de variation des prix'!$E$3:$AP$5, 3, FALSE)<0,V$167*HLOOKUP(V$193,'Calcul de variation des prix'!$E$3:$AP$5, 3, FALSE),0))/1000 -> 0 | W201: =IF(Start!$F$3="CONSTANT",IF(W$167<0,W$167,0),IF(W$167*HLOOKUP(W$193,'Calcul de variation des prix'!$E$3:$AP$5, 3, FALSE)<0,W$167*HLOOKUP(W$193,'Calcul de variation des prix'!$E$3:$AP$5, 3, FALSE),0))/1000 -> 0 | X201: =IF(Start!$F$3="CONSTANT",IF(X$167<0,X$167,0),IF(X$167*HLOOKUP(X$193,'Calcul de variation des prix'!$E$3:$AP$5, 3, FALSE)<0,X$167*HLOOKUP(X$193,'Calcul de variation des prix'!$E$3:$AP$5, 3, FALSE),0))/1000 -> 0 | Y201: =IF(Start!$F$3="CONSTANT",IF(Y$167<0,Y$167,0),IF(Y$167*HLOOKUP(Y$193,'Calcul de variation des prix'!$E$3:$AP$5, 3, FALSE)<0,Y$167*HLOOKUP(Y$193,'Calcul de variation des prix'!$E$3:$AP$5, 3, FALSE),0))/1000 -> 0 | Z201: =IF(Start!$F$3="CONSTANT",IF(Z$167<0,Z$167,0),IF(Z$167*HLOOKUP(Z$193,'Calcul de variation des prix'!$E$3:$AP$5, 3, FALSE)<0,Z$167*HLOOKUP(Z$193,'Calcul de variation des prix'!$E$3:$AP$5, 3, FALSE),0))/1000 -> -0.008185018609 | AA201: =IF(Start!$F$3="CONSTANT",IF(AA$167<0,AA$167,0),IF(AA$167*HLOOKUP(AA$193,'Calcul de variation des prix'!$E$3:$AP$5, 3, FALSE)<0,AA$167*HLOOKUP(AA$193,'Calcul de variation des prix'!$E$3:$AP$5, 3, FALSE),0))/1000 -> -0.03965024517 | AB201: =IF(Start!$F$3="CONSTANT",IF(AB$167<0,AB$167,0),IF(AB$167*HLOOKUP(AB$193,'Calcul de variation des prix'!$E$3:$AP$5, 3, FALSE)<0,AB$167*HLOOKUP(AB$193,'Calcul de variation des prix'!$E$3:$AP$5, 3, FALSE),0))/1000 -> -0.08904728348
C202: PV sur toiture | D202: Md€ | F202: =IF(Start!$F$3="CONSTANT",IF(F$190>=0,F$190,0),IF(F$190*HLOOKUP(F$193,'Calcul de variation des prix'!$E$3:$AP$5, 3, FALSE)>0,F$190*HLOOKUP(F$193,'Calcul de variation des prix'!$E$3:$AP$5, 3, FALSE),0))/1000 -> 0 | G202: =IF(Start!$F$3="CONSTANT",IF(G$190>=0,G$190,0),IF(G$190*HLOOKUP(G$193,'Calcul de variation des prix'!$E$3:$AP$5, 3, FALSE)>0,G$190*HLOOKUP(G$193,'Calcul de variation des prix'!$E$3:$AP$5, 3, FALSE),0))/1000 -> 0 | H202: =IF(Start!$F$3="CONSTANT",IF(H$190>=0,H$190,0),IF(H$190*HLOOKUP(H$193,'Calcul de variation des prix'!$E$3:$AP$5, 3, FALSE)>0,H$190*HLOOKUP(H$193,'Calcul de variation des prix'!$E$3:$AP$5, 3, FALSE),0))/1000 -> 0.0478387669 | I202: =IF(Start!$F$3="CONSTANT",IF(I$190>=0,I$190,0),IF(I$190*HLOOKUP(I$193,'Calcul de variation des prix'!$E$3:$AP$5, 3, FALSE)>0,I$190*HLOOKUP(I$193,'Calcul de variation des prix'!$E$3:$AP$5, 3, FALSE),0))/1000 -> 0.09434321252 | J202: =IF(Start!$F$3="CONSTANT",IF(J$190>=0,J$190,0),IF(J$190*HLOOKUP(J$193,'Calcul de variation des prix'!$E$3:$AP$5, 3, FALSE)>0,J$190*HLOOKUP(J$193,'Calcul de variation des prix'!$E$3:$AP$5, 3, FALSE),0))/1000 -> 0.1395573826 | K202: =IF(Start!$F$3="CONSTANT",IF(K$190>=0,K$190,0),IF(K$190*HLOOKUP(K$193,'Calcul de variation des prix'!$E$3:$AP$5, 3, FALSE)>0,K$190*HLOOKUP(K$193,'Calcul de variation des prix'!$E$3:$AP$5, 3, FALSE),0))/1000 -> 0.2070126568 | L202: =IF(Start!$F$3="CONSTANT",IF(L$190>=0,L$190,0),IF(L$190*HLOOKUP(L$193,'Calcul de variation des prix'!$E$3:$AP$5, 3, FALSE)>0,L$190*HLOOKUP(L$193,'Calcul de variation des prix'!$E$3:$AP$5, 3, FALSE),0))/1000 -> 0.2727050185 | M202: =IF(Start!$F$3="CONSTANT",IF(M$190>=0,M$190,0),IF(M$190*HLOOKUP(M$193,'Calcul de variation des prix'!$E$3:$AP$5, 3, FALSE)>0,M$190*HLOOKUP(M$193,'Calcul de variation des prix'!$E$3:$AP$5, 3, FALSE),0))/1000 -> 0.3365959708 | N202: =IF(Start!$F$3="CONSTANT",IF(N$190>=0,N$190,0),IF(N$190*HLOOKUP(N$193,'Calcul de variation des prix'!$E$3:$AP$5, 3, FALSE)>0,N$190*HLOOKUP(N$193,'Calcul de variation des prix'!$E$3:$AP$5, 3, FALSE),0))/1000 -> 0.3758071146 | O202: =IF(Start!$F$3="CONSTANT",IF(O$190>=0,O$190,0),IF(O$190*HLOOKUP(O$193,'Calcul de variation des prix'!$E$3:$AP$5, 3, FALSE)>0,O$190*HLOOKUP(O$193,'Calcul de variation des prix'!$E$3:$AP$5, 3, FALSE),0))/1000 -> 0.4104724868 | P202: =IF(Start!$F$3="CONSTANT",IF(P$190>=0,P$190,0),IF(P$190*HLOOKUP(P$193,'Calcul de variation des prix'!$E$3:$AP$5, 3, FALSE)>0,P$190*HLOOKUP(P$193,'Calcul de variation des prix'!$E$3:$AP$5, 3, FALSE),0))/1000 -> 0.4398808582 | Q202: =IF(Start!$F$3="CONSTANT",IF(Q$190>=0,Q$190,0),IF(Q$190*HLOOKUP(Q$193,'Calcul de variation des prix'!$E$3:$AP$5, 3, FALSE)>0,Q$190*HLOOKUP(Q$193,'Calcul de variation des prix'!$E$3:$AP$5, 3, FALSE),0))/1000 -> 0.4640230385 | R202: =IF(Start!$F$3="CONSTANT",IF(R$190>=0,R$190,0),IF(R$190*HLOOKUP(R$193,'Calcul de variation des prix'!$E$3:$AP$5, 3, FALSE)>0,R$190*HLOOKUP(R$193,'Calcul de variation des prix'!$E$3:$AP$5, 3, FALSE),0))/1000 -> 0.4828921517 | S202: =IF(Start!$F$3="CONSTANT",IF(S$190>=0,S$190,0),IF(S$190*HLOOKUP(S$193,'Calcul de variation des prix'!$E$3:$AP$5, 3, FALSE)>0,S$190*HLOOKUP(S$193,'Calcul de variation des prix'!$E$3:$AP$5, 3, FALSE),0))/1000 -> 0.4813099241 | T202: =IF(Start!$F$3="CONSTANT",IF(T$190>=0,T$190,0),IF(T$190*HLOOKUP(T$193,'Calcul de variation des prix'!$E$3:$AP$5, 3, FALSE)>0,T$190*HLOOKUP(T$193,'Calcul de variation des prix'!$E$3:$AP$5, 3, FALSE),0))/1000 -> 0.4783523411 | U202: =IF(Start!$F$3="CONSTANT",IF(U$190>=0,U$190,0),IF(U$190*HLOOKUP(U$193,'Calcul de variation des prix'!$E$3:$AP$5, 3, FALSE)>0,U$190*HLOOKUP(U$193,'Calcul de variation des prix'!$E$3:$AP$5, 3, FALSE),0))/1000 -> 0.4740036072 | V202: =IF(Start!$F$3="CONSTANT",IF(V$190>=0,V$190,0),IF(V$190*HLOOKUP(V$193,'Calcul de variation des prix'!$E$3:$AP$5, 3, FALSE)>0,V$190*HLOOKUP(V$193,'Calcul de variation des prix'!$E$3:$AP$5, 3, FALSE),0))/1000 -> 0.4682638969 | W202: =IF(Start!$F$3="CONSTANT",IF(W$190>=0,W$190,0),IF(W$190*HLOOKUP(W$193,'Calcul de variation des prix'!$E$3:$AP$5, 3, FALSE)>0,W$190*HLOOKUP(W$193,'Calcul de variation des prix'!$E$3:$AP$5, 3, FALSE),0))/1000 -> 0.4611333727 | X202: =IF(Start!$F$3="CONSTANT",IF(X$190>=0,X$190,0),IF(X$190*HLOOKUP(X$193,'Calcul de variation des prix'!$E$3:$AP$5, 3, FALSE)>0,X$190*HLOOKUP(X$193,'Calcul de variation des prix'!$E$3:$AP$5, 3, FALSE),0))/1000 -> 0.4526121853 | Y202: =IF(Start!$F$3="CONSTANT",IF(Y$190>=0,Y$190,0),IF(Y$190*HLOOKUP(Y$193,'Calcul de variation des prix'!$E$3:$AP$5, 3, FALSE)>0,Y$190*HLOOKUP(Y$193,'Calcul de variation des prix'!$E$3:$AP$5, 3, FALSE),0))/1000 -> 0.4427004752 | Z202: =IF(Start!$F$3="CONSTANT",IF(Z$190>=0,Z$190,0),IF(Z$190*HLOOKUP(Z$193,'Calcul de variation des prix'!$E$3:$AP$5, 3, FALSE)>0,Z$190*HLOOKUP(Z$193,'Calcul de variation des prix'!$E$3:$AP$5, 3, FALSE),0))/1000 -> 0.4316809315 | AA202: =IF(Start!$F$3="CONSTANT",IF(AA$190>=0,AA$190,0),IF(AA$190*HLOOKUP(AA$193,'Calcul de variation des prix'!$E$3:$AP$5, 3, FALSE)>0,AA$190*HLOOKUP(AA$193,'Calcul de variation des prix'!$E$3:$AP$5, 3, FALSE),0))/1000 -> 0.4195536322 | AB202: =IF(Start!$F$3="CONSTANT",IF(AB$190>=0,AB$190,0),IF(AB$190*HLOOKUP(AB$193,'Calcul de variation des prix'!$E$3:$AP$5, 3, FALSE)>0,AB$190*HLOOKUP(AB$193,'Calcul de variation des prix'!$E$3:$AP$5, 3, FALSE),0))/1000 -> 0.3707030637
C203: PV sur toiture - remboursement | D203: Md€ | F203: =IF(Start!$F$3="CONSTANT",IF(F$190<0,F$190,0),IF(F$190*HLOOKUP(F$193,'Calcul de variation des prix'!$E$3:$AP$5, 3, FALSE)<0,F$190*HLOOKUP(F$193,'Calcul de variation des prix'!$E$3:$AP$5, 3, FALSE),0))/1000 -> 0 | G203: =IF(Start!$F$3="CONSTANT",IF(G$190<0,G$190,0),IF(G$190*HLOOKUP(G$193,'Calcul de variation des prix'!$E$3:$AP$5, 3, FALSE)<0,G$190*HLOOKUP(G$193,'Calcul de variation des prix'!$E$3:$AP$5, 3, FALSE),0))/1000 -> 0 | H203: =IF(Start!$F$3="CONSTANT",IF(H$190<0,H$190,0),IF(H$190*HLOOKUP(H$193,'Calcul de variation des prix'!$E$3:$AP$5, 3, FALSE)<0,H$190*HLOOKUP(H$193,'Calcul de variation des prix'!$E$3:$AP$5, 3, FALSE),0))/1000 -> 0 | I203: =IF(Start!$F$3="CONSTANT",IF(I$190<0,I$190,0),IF(I$190*HLOOKUP(I$193,'Calcul de variation des prix'!$E$3:$AP$5, 3, FALSE)<0,I$190*HLOOKUP(I$193,'Calcul de variation des prix'!$E$3:$AP$5, 3, FALSE),0))/1000 -> 0 | J203: =IF(Start!$F$3="CONSTANT",IF(J$190<0,J$190,0),IF(J$190*HLOOKUP(J$193,'Calcul de variation des prix'!$E$3:$AP$5, 3, FALSE)<0,J$190*HLOOKUP(J$193,'Calcul de variation des prix'!$E$3:$AP$5, 3, FALSE),0))/1000 -> 0 | K203: =IF(Start!$F$3="CONSTANT",IF(K$190<0,K$190,0),IF(K$190*HLOOKUP(K$193,'Calcul de variation des prix'!$E$3:$AP$5, 3, FALSE)<0,K$190*HLOOKUP(K$193,'Calcul de variation des prix'!$E$3:$AP$5, 3, FALSE),0))/1000 -> 0 | L203: =IF(Start!$F$3="CONSTANT",IF(L$190<0,L$190,0),IF(L$190*HLOOKUP(L$193,'Calcul de variation des prix'!$E$3:$AP$5, 3, FALSE)<0,L$190*HLOOKUP(L$193,'Calcul de variation des prix'!$E$3:$AP$5, 3, FALSE),0))/1000 -> 0 | M203: =IF(Start!$F$3="CONSTANT",IF(M$190<0,M$190,0),IF(M$190*HLOOKUP(M$193,'Calcul de variation des prix'!$E$3:$AP$5, 3, FALSE)<0,M$190*HLOOKUP(M$193,'Calcul de variation des prix'!$E$3:$AP$5, 3, FALSE),0))/1000 -> 0 | N203: =IF(Start!$F$3="CONSTANT",IF(N$190<0,N$190,0),IF(N$190*HLOOKUP(N$193,'Calcul de variation des prix'!$E$3:$AP$5, 3, FALSE)<0,N$190*HLOOKUP(N$193,'Calcul de variation des prix'!$E$3:$AP$5, 3, FALSE),0))/1000 -> 0 | O203: =IF(Start!$F$3="CONSTANT",IF(O$190<0,O$190,0),IF(O$190*HLOOKUP(O$193,'Calcul de variation des prix'!$E$3:$AP$5, 3, FALSE)<0,O$190*HLOOKUP(O$193,'Calcul de variation des prix'!$E$3:$AP$5, 3, FALSE),0))/1000 -> 0 | P203: =IF(Start!$F$3="CONSTANT",IF(P$190<0,P$190,0),IF(P$190*HLOOKUP(P$193,'Calcul de variation des prix'!$E$3:$AP$5, 3, FALSE)<0,P$190*HLOOKUP(P$193,'Calcul de variation des prix'!$E$3:$AP$5, 3, FALSE),0))/1000 -> 0 | Q203: =IF(Start!$F$3="CONSTANT",IF(Q$190<0,Q$190,0),IF(Q$190*HLOOKUP(Q$193,'Calcul de variation des prix'!$E$3:$AP$5, 3, FALSE)<0,Q$190*HLOOKUP(Q$193,'Calcul de variation des prix'!$E$3:$AP$5, 3, FALSE),0))/1000 -> 0 | R203: =IF(Start!$F$3="CONSTANT",IF(R$190<0,R$190,0),IF(R$190*HLOOKUP(R$193,'Calcul de variation des prix'!$E$3:$AP$5, 3, FALSE)<0,R$190*HLOOKUP(R$193,'Calcul de variation des prix'!$E$3:$AP$5, 3, FALSE),0))/1000 -> 0 | S203: =IF(Start!$F$3="CONSTANT",IF(S$190<0,S$190,0),IF(S$190*HLOOKUP(S$193,'Calcul de variation des prix'!$E$3:$AP$5, 3, FALSE)<0,S$190*HLOOKUP(S$193,'Calcul de variation des prix'!$E$3:$AP$5, 3, FALSE),0))/1000 -> 0 | T203: =IF(Start!$F$3="CONSTANT",IF(T$190<0,T$190,0),IF(T$190*HLOOKUP(T$193,'Calcul de variation des prix'!$E$3:$AP$5, 3, FALSE)<0,T$190*HLOOKUP(T$193,'Calcul de variation des prix'!$E$3:$AP$5, 3, FALSE),0))/1000 -> 0 | U203: =IF(Start!$F$3="CONSTANT",IF(U$190<0,U$190,0),IF(U$190*HLOOKUP(U$193,'Calcul de variation des prix'!$E$3:$AP$5, 3, FALSE)<0,U$190*HLOOKUP(U$193,'Calcul de variation des prix'!$E$3:$AP$5, 3, FALSE),0))/1000 -> 0 | V203: =IF(Start!$F$3="CONSTANT",IF(V$190<0,V$190,0),IF(V$190*HLOOKUP(V$193,'Calcul de variation des prix'!$E$3:$AP$5, 3, FALSE)<0,V$190*HLOOKUP(V$193,'Calcul de variation des prix'!$E$3:$AP$5, 3, FALSE),0))/1000 -> 0 | W203: =IF(Start!$F$3="CONSTANT",IF(W$190<0,W$190,0),IF(W$190*HLOOKUP(W$193,'Calcul de variation des prix'!$E$3:$AP$5, 3, FALSE)<0,W$190*HLOOKUP(W$193,'Calcul de variation des prix'!$E$3:$AP$5, 3, FALSE),0))/1000 -> 0 | X203: =IF(Start!$F$3="CONSTANT",IF(X$190<0,X$190,0),IF(X$190*HLOOKUP(X$193,'Calcul de variation des prix'!$E$3:$AP$5, 3, FALSE)<0,X$190*HLOOKUP(X$193,'Calcul de variation des prix'!$E$3:$AP$5, 3, FALSE),0))/1000 -> 0 | Y203: =IF(Start!$F$3="CONSTANT",IF(Y$190<0,Y$190,0),IF(Y$190*HLOOKUP(Y$193,'Calcul de variation des prix'!$E$3:$AP$5, 3, FALSE)<0,Y$190*HLOOKUP(Y$193,'Calcul de variation des prix'!$E$3:$AP$5, 3, FALSE),0))/1000 -> 0 | Z203: =IF(Start!$F$3="CONSTANT",IF(Z$190<0,Z$190,0),IF(Z$190*HLOOKUP(Z$193,'Calcul de variation des prix'!$E$3:$AP$5, 3, FALSE)<0,Z$190*HLOOKUP(Z$193,'Calcul de variation des prix'!$E$3:$AP$5, 3, FALSE),0))/1000 -> 0 | AA203: =IF(Start!$F$3="CONSTANT",IF(AA$190<0,AA$190,0),IF(AA$190*HLOOKUP(AA$193,'Calcul de variation des prix'!$E$3:$AP$5, 3, FALSE)<0,AA$190*HLOOKUP(AA$193,'Calcul de variation des prix'!$E$3:$AP$5, 3, FALSE),0))/1000 -> 0 | AB203: =IF(Start!$F$3="CONSTANT",IF(AB$190<0,AB$190,0),IF(AB$190*HLOOKUP(AB$193,'Calcul de variation des prix'!$E$3:$AP$5, 3, FALSE)<0,AB$190*HLOOKUP(AB$193,'Calcul de variation des prix'!$E$3:$AP$5, 3, FALSE),0))/1000 -> 0
C204: Total | D204: Md€ | F204: =SUM(F194:F203) -> 3.813501302 | G204: =SUM(G194:G203) -> 4.097395107 | H204: 4.257175612 | I204: 4.496816989 | J204: 4.63438563 | K204: 4.833514136 | L204: 5.172996686 | M204: 5.322378799 | N204: 5.094846333 | O204: 4.88359054 | P204: 4.729153928 | Q204: 4.574437776 | R204: 4.311921975 | S204: 3.853607791 | T204: 3.067758848 | U204: 2.54703782 | V204: 2.261938412 | W204: 2.07514669 | X204: 1.880671478 | Y204: 1.627574452 | Z204: =SUM(Z194:Z203) -> 1.412540359 | AA204: 1.180098039 | AB204: =SUM(AB194:AB203) -> 0.9208623244
B206: Calcul des investissements annualisés
C208: Hypothèse de prix de marché de la Cour des Comptes (euros constants)
C209: ='Données de production'!C6 -> Eolien terrestre | D209: €/MWh | F209: =F$95 -> 35.25773196 | G209: =G$95 -> 34.79424828 | H209: 36.25775912 | I209: 35.95869669 | J209: 35.662101 | K209: 35.3679517 | L209: 35.07622861 | M209: 34.78691172 | N209: 34.49998118 | O209: 34.21541731 | P209: 33.9332006 | Q209: 33.65331167 | R209: 33.37573133 | S209: 33.10044053 | T209: 32.8274204 | U209: 32.55665221 | V209: 32.28811737 | W209: 32.02179747 | X209: 31.75767424 | Y209: 31.49572956 | Z209: 31.23594546 | AA209: 30.97830412 | AB209: 30.72278786
C210: ='Données de production'!C7 -> Eolien en mer | D210: €/MWh | F210: =F$95 -> 35.25773196 | G210: 34.79424828 | H210: 36.25775912 | I210: 35.95869669 | J210: 35.662101 | K210: 35.3679517 | L210: 35.07622861 | M210: 34.78691172 | N210: 34.49998118 | O210: 34.21541731 | P210: 33.9332006 | Q210: 33.65331167 | R210: 33.37573133 | S210: 33.10044053 | T210: 32.8274204 | U210: 32.55665221 | V210: 32.28811737 | W210: 32.02179747 | X210: 31.75767424 | Y210: 31.49572956 | Z210: 31.23594546 | AA210: 30.97830412 | AB210: 30.72278786
C211: ='Données de production'!C8 -> PV au sol | D211: €/MWh | F211: =F$95 -> 35.25773196 | G211: 34.79424828 | H211: 36.25775912 | I211: 35.95869669 | J211: 35.662101 | K211: 35.3679517 | L211: 35.07622861 | M211: 34.78691172 | N211: 34.49998118 | O211: 34.21541731 | P211: 33.9332006 | Q211: 33.65331167 | R211: 33.37573133 | S211: 33.10044053 | T211: 32.8274204 | U211: 32.55665221 | V211: 32.28811737 | W211: 32.02179747 | X211: 31.75767424 | Y211: 31.49572956 | Z211: 31.23594546 | AA211: 30.97830412 | AB211: 30.72278786
C212: ='Données de production'!C9 -> PV sur toiture | D212: €/MWh | F212: =F$95 -> 35.25773196 | G212: 34.79424828 | H212: 36.25775912 | I212: 35.95869669 | J212: 35.662101 | K212: 35.3679517 | L212: 35.07622861 | M212: 34.78691172 | N212: 34.49998118 | O212: 34.21541731 | P212: 33.9332006 | Q212: 33.65331167 | R212: 33.37573133 | S212: 33.10044053 | T212: 32.8274204 | U212: 32.55665221 | V212: 32.28811737 | W212: 32.02179747 | X212: 31.75767424 | Y212: 31.49572956 | Z212: 31.23594546 | AA212: 30.97830412 | AB212: 30.72278786
C213: Estimation de l'évolution des investissements annualisés passés
... 97 more rows

Sheet Scénarios choisis (hidden)
E3: Données historiques | F3: Scénario sélectionné | O3: Scénario sélectionné PAR DEFAUT
C4: Capacité installée de production d'électricité | D4: Unité | E4: 2017 | F4: 2018 | G4: 2019 | H4: 2020 | I4: 2021 | J4: 2022 | K4: 2025 | L4: 2030 | M4: 2035 | N4: 2040 | O4: 2018 | P4: 2019 | Q4: 2020 | R4: 2021 | S4: 2022 | T4: 2025 | U4: 2030 | V4: 2035 | W4: 2040
